Workbook

Sheet Intro

Sheet Trinket Assignments (hidden)
A1: Item 1 | B1: Item 2 | C1: Item 3 | D1: Item 4 | E1: Item 5 | F1: Item 6 | G1: Count | J1: =PRODUCT($K$4:$P$4) -> 0 | K1: 9 | L1: 9
A2: Briarwood Reed | G2: 1
A3: Eye of the Beast | G3: 1
A4: Mark of the Champion | G4: 1 | J4: Check | K4: =NOT(AND(K$5<>"",ISNUMBER(MATCH(K$5,$K$6:$P$6,0))))*1 -> 0 | L4: =NOT(AND(L$5<>"",ISNUMBER(MATCH(L$5,$K$6:$P$6,0))))*1 -> 1 | M4: 1 | N4: 1 | O4: 1 | P4: 1 | Q4: =NOT(AND(Q5=Q6,Q5<>"Passive"))*1 -> 0
A5: Neltharion's Tear | G5: 1 | J5: Trinket 1 | K5: =OFFSET(A$1,$K$1,0)&"" -> Zandalarian Hero Charm | L5: =OFFSET(B$1,$K$1,0)&"" ->  | Q5: =INDEX('Trinket Optimization'!$M$19:$M$34,MATCH($K5,'Trinket Optimization'!$F$19:$F$34,0)) -> Offensive
A6: Rune of the Dawn | G6: 1 | J6: Trinket 2 | K6: =OFFSET(A$1,$L$1,0)&"" -> Zandalarian Hero Charm | L6: =OFFSET(B$1,$L$1,0)&"" ->  | Q6: =INDEX('Trinket Optimization'!$M$19:$M$34,MATCH($K6,'Trinket Optimization'!$F$19:$F$34,0)) -> Offensive
A7: Talisman of Ascendance | G7: 1
A8: Talisman of Ephemeral Power | G8: 1
A9: The Restrained Essence of Sapphiron | G9: 1
A10: Zandalarian Hero Charm | G10: 1

Sheet Trinket Optimization
AE1: Basic SP Value Calculation (Single Item Assignment): | AY1: Multiple Item Assignment:
D2: What it does: | BS2: =Active
D3: The tool has two functions: | AE3: Trinket Items: | BA3: Trinket 1 Selection | BJ3: Earliest | BK3: Adjusted | BP3: Adjusted | BS3: =Use effect Inactive
D4: 1. To optimize a trinket rotation on trash under a duration and trinket selection parameter. | AD4: Item No | AE4: 1 | AF4: 2 | AG4: 3 | AH4: 4 | AI4: 5 | AJ4: 6 | AK4: 7 | AL4: 8 | AM4: 9 | AN4: 10 | AO4: 11 | AP4: 12 | AQ4: 13 | AR4: 14 | AS4: 15 | AT4: 16 | AY4: No | AZ4: Check | BA4: Item Name | BB4: Item No: | BC4: Type | BD4: Active | BE4: Passive SP | BF4: Active Sp | BG4: Sp Change | BH4: CD | BI4: Swap CD | BJ4: Start 1 | BK4: Start 2 | BL4: End | BM4: Next | BN4: Total Sp | BO4: Aver Sp | BP4: Start 2
D5: 2. To optimize your trinket selection based off of a boss encounter and its duration. | AD5: Available | AE5: =INDEX($G$19:$G$34,AE$4) -> Yes | AF5: No | AG5: No | AH5: No | AI5: No | AJ5: Yes | AK5: Yes | AL5: No | AM5: Yes | AN5: No | AO5: Yes | AP5: No | AQ5: Yes | AR5: Yes | AS5: Yes | AT5: Yes | AY5: =IF($BA5="","",ROWS($AY$4:$AY5)-1) -> 1 | AZ5: =IF(BA5="","",IF(ISNUMBER(MATCH(BA5,BA$14:BA$19,0)),"Wrong!","OK")) -> OK | BA5: Mark of the Champion | BB5: =IF($AZ5="","",INDEX($E$18:$E$34,MATCH($BA5,$F$18:$F$34,0))) -> 7 | BC5: =IF($AZ5="","",INDEX($M$18:$M$34,MATCH($BA5,$F$18:$F$34,0))) -> Passive | BD5: =IF($AZ5="","",INDEX($AE$9:$AT$9,$BB5)) -> 57 | BE5: =IF($AZ5="","",INDEX($AE$6:$AT$6,$BB5)) -> 85 | BF5: =IF($AZ5="","",INDEX($AE$7:$AT$7,$BB5)) -> 0 | BG5: =IF($AZ5="","",INDEX($AE$8:$AT$8,$BB5)) -> 0 | BH5: =IF($AZ5="","",INDEX($AE$10:$AT$10,$BB5)) -> 0 | BI5: =IF($AZ5="","",INDEX($AE$11:$AT$11,$BB5)) -> 0 | BJ5: =IF($AZ5="","",1) -> 1 | BK5: 1 | BL5: =IF($AZ5="","",BK5+$BD5-1) -> 57 | BM5: =IF($AZ5="","",SUM(BK5,$BD5,$BH5)) -> 58 | BN5: =IF($AZ5="","",SUMIFS($BZ$7:$BZ$86,$BS$7:$BS$86,$BA5)) -> 4845 | BO5: =IF($AZ5="","",IFERROR(AVERAGEIFS($BZ$7:$BZ$86,$BS$7:$BS$86,$BA5),0)) -> 85 | BP5: =$BJ5 -> 1 | BS5: Item Name | BT5: Type | BU5: Item No | BV5: First | BW5: Last | BX5: Next | BY5: Is Active | BZ5: Sp | CA5: Active | CC5: Item Name | CD5: Type | CE5: Item No | CF5: First | CG5: Last | CH5: Next | CI5: Is Active | CJ5: Sp | CK5: Active
AD6: Passive Sp | AE6: =INDEX($N$19:$N$34,AE$4) -> 29 | AF6: 12 | AG6: 0 | AH6: 0 | AI6: 0 | AJ6: 0 | AK6: 85 | AL6: 0 | AM6: 44 | AN6: 0 | AO6: 48 | AP6: 0 | AQ6: 0 | AR6: 0 | AS6: 40 | AT6: 0 | AY6: =IF($BA6="","",ROWS($AY$4:$AY6)-1) ->  | AZ6: =IF(BA6="","",IF(OR($Z$23="Yes",BA6=BA5,ISNUMBER(MATCH(BA6,BA$14:BA$19,0))),"Wrong!","OK")) ->  | BJ6: =IF($AZ6="","",MAX(SUM(BK5,$BD5,$BI6),MAX(IF($BA$5:$BA5=$BA6,BM$5:BM5)))) ->  | BP6: =IF($AZ6="","",IFERROR(IF(AND($BC6=INDEX($BC$14:$BC$19,MATCH($BJ6,$BK$14:$BK$19,1)),$BC6<>"Passive"),IF($BJ6>INDEX($BL$14:$BL$19,MATCH($BJ6,$BK$14:$BK$19,1)),$BJ6,INDEX($BL$14:$BL$19,MATCH($BJ6,$BK$14:$BK$19,1))+1),$BJ6),$BJ6)) ->  | BR6: 0 | BS6: =IF($BR6="","",IF(BU6=BU5,BS5,INDEX(INDEX($BA$5:$BA$10,BU6),1))) -> Mark of the Champion | BT6: =IF($BR6="","",INDEX($BC$5:$BC$10,BU6)) -> Passive | BU6: 1 | BV6: =IF($BR6="","",INDEX(BK$5:BK$10,$BU6)) -> 1 | BW6: =IF($BR6="","",INDEX(BL$5:BL$10,$BU6)) -> 57 | BX6: =IF($BR6="","",INDEX(BM$5:BM$10,$BU6)) -> 58 | BZ6: 0 | CA6: 0 | CC6: =IF($AZ$14="OK",$BA$14,"") -> The Restrained Essence of Sapphiron | CD6: =IF($BR6="","",INDEX($BC$14:$BC$19,CE6)) -> Offensive | CE6: 1 | CF6: =IF($BR6="","",INDEX(BK$14:BK$19,$CE6)) -> 1 | CG6: =IF($BR6="","",INDEX(BL$14:BL$19,$CE6)) -> 7 | CH6: =IF($BR6="","",INDEX(BM$14:BM$19,$CE6)) -> 54 | CJ6: 0 | CK6: 0
D7: How to use for trash rotation: | O7: How to use for boss rotation: | AD7: Active Sp | AE7: =INDEX($O$19:$O$34,AE$4) -> 0 | AF7: 0 | AG7: 100 | AH7: 0 | AI7: 50 | AJ7: 0 | AK7: 0 | AL7: 135.9574468 | AM7: 0 | AN7: 0 | AO7: 0 | AP7: * | AQ7: 0 | AR7: 175 | AS7: 130 | AT7: 204 | AY7: =IF($BA7="","",ROWS($AY$4:$AY7)-1) ->  | AZ7: =IF(BA7="","",IF(OR($Z$23="Yes",BA7=BA6,ISNUMBER(MATCH(BA7,BA$14:BA$19,0))),"Wrong!","OK")) ->  | BJ7: =IF($AZ7="","",MAX(SUM(BK6,$BD6,$BI7),MAX(IF($BA$5:$BA6=$BA7,BM$5:BM6)))) ->  | BP7: =IF($AZ7="","",IFERROR(IF(AND($BC7=INDEX($BC$14:$BC$19,MATCH($BJ7,$BK$14:$BK$19,1)),$BC7<>"Passive"),IF($BJ7>INDEX($BL$14:$BL$19,MATCH($BJ7,$BK$14:$BK$19,1)),$BJ7,INDEX($BL$14:$BL$19,MATCH($BJ7,$BK$14:$BK$19,1))+1),$BJ7),$BJ7)) ->  | BR7: =IF(BR6<$AB$19,BR6+1,"") -> 1 | BS7: Mark of the Champion | BT7: Passive | BU7: =IF($BR7="","",IF(OR($BR6<BW6,BU6=COUNT($AY$5:$AY$10)),BU6,BU6+1)) -> 1 | BV7: =IF($BR7="","",IF(AND($BR7=BX6,$BU7=COUNT($AY$5:$AY$10)),BX6,IF($BU7=$BU6,BV6,INDEX($BK$5:$BK$10,$BU7)))) -> 1 | BW7: =IF($BR7="","",IF(AND($BR7=BX6,$BU7=COUNT($AY$5:$AY$10)),SUM(BV7,INDEX($BD$5:$BD$10,$BU7))-1,IF($BU7=$BU6,BW6,INDEX($BL$5:$BL$10,$BU7)))) -> 57 | BX7: =IF($BR7="","",IF(AND($BR7=BX6,$BU7=COUNT($AY$5:$AY$10)),SUM(BW7,INDEX($BH$5:$BH$10,$BU7)),IF($BU7=$BU6,BX6,INDEX($BM$5:$BM$10,$BU7)))) -> 58 | BY7: =IF($BR7="","",IF(OR($BR7<BV7,$BR7>BW7),"No","Yes")) -> Yes | BZ7: =IF($BR7="","",INDEX($BE$5:$BE$10,BU7)+IF(CA7=0,0,INDEX($BF$5:$BF$10,BU7)+INDEX($BG$5:$BG$10,BU7)*(CA7-1))) -> 85 | CA7: =IF($BR7="","",IF(BY7="No",0,CA6+1)) -> 1 | CC7: =IF($BR7="","",INDEX(INDEX($BA$14:$BA$19,CE7),1)) -> The Restrained Essence of Sapphiron | CD7: Offensive | CE7: =IF($BR7="","",IF(OR($BR6<CG6,CE6=COUNT($AY$14:$AY$19)),CE6,CE6+1)) -> 1 | CF7: =IF($BR7="","",IF(AND($BR7=CH6,$CE7=COUNT($AY$14:$AY$19)),CH6,IF($CE7=$CE6,CF6,INDEX($BK$14:$BK$19,$CE7)))) -> 1 | CG7: =IF($BR7="","",IF(AND($BR7=CH6,$CE7=COUNT($AY$14:$AY$19)),SUM(CF7,INDEX($BD$14:$BD$19,$CE7))-1,IF($CE7=$CE6,CG6,INDEX($BL$14:$BL$19,$CE7)))) -> 7 | CH7: =IF($BR7="","",IF(AND($BR7=CH6,$CE7=COUNT($AY$14:$AY$19)),SUM(CG7,INDEX($BH$14:$BH$19,$CE7)),IF($CE7=$CE6,CH6,INDEX($BM$14:$BM$19,$CE7)))) -> 54 | CI7: =IF($BR7="","",IF(OR($BR7<CF7,$BR7>CG7),"No","Yes")) -> Yes | CJ7: =IF($BR7="","",INDEX($BE$14:$BE$19,CE7)+IF(CK7=0,0,INDEX($BF$14:$BF$19,CE7)+INDEX($BG$14:$BG$19,CE7)*(CK7-1))) -> 170 | CK7: =IF($BR7="","",IF(CI7="No",0,CK6+1)) -> 1
D8: 1. Select the trinkets you want to utilize in the optimizer. | O8: 1. Select the trinkets you want to utilize in the optimizer. | AD8: Sp Change | AE8: =INDEX($P$19:$P$34,AE$4) -> 0 | AF8: 0 | AG8: 0 | AH8: 0 | AI8: 0 | AJ8: 0 | AK8: 0 | AL8: 0 | AM8: 0 | AN8: 0 | AO8: 0 | AP8: 0 | AQ8: 40 | AR8: 0 | AS8: 0 | AT8: -17 | AY8: =IF($BA8="","",ROWS($AY$4:$AY8)-1) ->  | AZ8: =IF(BA8="","",IF(OR($Z$23="Yes",BA8=BA7,ISNUMBER(MATCH(BA8,BA$14:BA$19,0))),"Wrong!","OK")) ->  | BJ8: =IF($AZ8="","",MAX(SUM(BK7,$BD7,$BI8),MAX(IF($BA$5:$BA7=$BA8,BM$5:BM7)))) ->  | BP8: =IF($AZ8="","",IFERROR(IF(AND($BC8=INDEX($BC$14:$BC$19,MATCH($BJ8,$BK$14:$BK$19,1)),$BC8<>"Passive"),IF($BJ8>INDEX($BL$14:$BL$19,MATCH($BJ8,$BK$14:$BK$19,1)),$BJ8,INDEX($BL$14:$BL$19,MATCH($BJ8,$BK$14:$BK$19,1))+1),$BJ8),$BJ8)) ->  | BR8: 2 | BS8: Mark of the Champion | BT8: Passive | BU8: 1 | BV8: 1 | BW8: 57 | BX8: 58 | BY8: Yes | BZ8: 85 | CA8: 2 | CC8: =IF($BR8="","",IF(CE8=CE7,CC7,INDEX(INDEX($BA$14:$BA$19,CE8),1))) -> The Restrained Essence of Sapphiron | CD8: Offensive | CE8: 1 | CF8: 1 | CG8: 7 | CH8: 54 | CI8: Yes | CJ8: 170 | CK8: 2
D9: 2. Enter in a duration in terms of seconds (note: the longer the duration the longer it will take to optimize) | O9: 2. Enter in a duration in terms of seconds (note: the longer the duration the longer it will take to optimize) | AD9: Active Casts | AE9: =IF(INDEX($I$19:$I$34,AE$4)="NA",$AB$19,MIN(IF(INDEX($R$19:$R$34,AE$4)>0,INDEX($R$19:$R$34,AE$4),$AB$19),INT(INDEX($Q$19:$Q$34,AE$4)/$Z$19))) -> 57 | AF9: 57 | AG9: 5 | AH9: 0 | AI9: 11 | AJ9: 57 | AK9: 57 | AL9: 5 | AM9: 57 | AN9: 57 | AO9: 57 | AP9: 57 | AQ9: 6 | AR9: 5 | AS9: 7 | AT9: 7 | AY9: =IF($BA9="","",ROWS($AY$4:$AY9)-1) ->  | AZ9: =IF(BA9="","",IF(OR($Z$23="Yes",BA9=BA8,ISNUMBER(MATCH(BA9,BA$14:BA$19,0))),"Wrong!","OK")) ->  | BJ9: =IF($AZ9="","",MAX(SUM(BK8,$BD8,$BI9),MAX(IF($BA$5:$BA8=$BA9,BM$5:BM8)))) ->  | BP9: =IF($AZ9="","",IFERROR(IF(AND($BC9=INDEX($BC$14:$BC$19,MATCH($BJ9,$BK$14:$BK$19,1)),$BC9<>"Passive"),IF($BJ9>INDEX($BL$14:$BL$19,MATCH($BJ9,$BK$14:$BK$19,1)),$BJ9,INDEX($BL$14:$BL$19,MATCH($BJ9,$BK$14:$BK$19,1))+1),$BJ9),$BJ9)) ->  | BR9: 3 | BS9: Mark of the Champion | BT9: Passive | BU9: 1 | BV9: 1 | BW9: 57 | BX9: 58 | BY9: Yes | BZ9: 85 | CA9: 3 | CC9: The Restrained Essence of Sapphiron | CD9: Offensive | CE9: 1 | CF9: 1 | CG9: 7 | CH9: 54 | CI9: Yes | CJ9: 170 | CK9: 3
D10: 3. Deselect 'Boss?' To No. | AD10: Cooldown Casts | AE10: =INT(IF(INDEX($J$19:$J$34,AE$4)="NA",0,INDEX($J$19:$J$34,AE$4))/$Z$19) -> 0 | AF10: 0 | AG10: 28 | AH10: 0 | AI10: 69 | AJ10: 0 | AK10: 0 | AL10: 28 | AM10: 0 | AN10: 0 | AO10: 0 | AP10: 694 | AQ10: 23 | AR10: 34 | AS10: 46 | AT10: 46 | AY10: =IF($BA10="","",ROWS($AY$4:$AY10)-1) ->  | AZ10: =IF(BA10="","",IF(OR($Z$23="Yes",BA10=BA9,ISNUMBER(MATCH(BA10,BA$14:BA$19,0))),"Wrong!","OK")) ->  | BJ10: =IF($AZ10="","",MAX(SUM(BK9,$BD9,$BI10),MAX(IF($BA$5:$BA9=$BA10,BM$5:BM9)))) ->  | BP10: =IF($AZ10="","",IFERROR(IF(AND($BC10=INDEX($BC$14:$BC$19,MATCH($BJ10,$BK$14:$BK$19,1)),$BC10<>"Passive"),IF($BJ10>INDEX($BL$14:$BL$19,MATCH($BJ10,$BK$14:$BK$19,1)),$BJ10,INDEX($BL$14:$BL$19,MATCH($BJ10,$BK$14:$BK$19,1))+1),$BJ10),$BJ10)) ->  | BR10: 4 | BS10: Mark of the Champion | BT10: Passive | BU10: 1 | BV10: 1 | BW10: 57 | BX10: 58 | BY10: Yes | BZ10: 85 | CA10: 4 | CC10: The Restrained Essence of Sapphiron | CD10: Offensive | CE10: 1 | CF10: 1 | CG10: 7 | CH10: 54 | CI10: Yes | CJ10: 170 | CK10: 4
D11: 4. Click 'Generate Item Assignments'. | O11: 3. Select 'Boss?' To Yes. | AD11: Swap CD Casts | AE11: =INT(IF(INDEX($L$19:$L$34,AE$4)="NA",0,INDEX($L$19:$L$34,AE$4))/$Z$19) -> 0 | AF11: 0 | AG11: 11 | AH11: 11 | AI11: 11 | AJ11: 0 | AK11: 0 | AL11: 11 | AM11: 0 | AN11: 0 | AO11: 0 | AP11: 11 | AQ11: 11 | AR11: 11 | AS11: 11 | AT11: 11 | BR11: 5 | BS11: Mark of the Champion | BT11: Passive | BU11: 1 | BV11: 1 | BW11: 57 | BX11: 58 | BY11: Yes | BZ11: 85 | CA11: 5 | CC11: The Restrained Essence of Sapphiron | CD11: Offensive | CE11: 1 | CF11: 1 | CG11: 7 | CH11: 54 | CI11: Yes | CJ11: 170 | CK11: 5
D12: 5. Click 'Optimize'. | O12: 4. Click 'Generate Item Assignments'. | AD12: Usage Casts | AE12: =IF(AE$5="Yes",MIN(SUM(AE9:AE10),$AB$19),0) -> 57 | AF12: 0 | AG12: 0 | AH12: 0 | AI12: 0 | AJ12: 57 | AK12: 57 | AL12: 0 | AM12: 57 | AN12: 0 | AO12: 57 | AP12: 0 | AQ12: 29 | AR12: =IF(AR$5="Yes",MIN(SUM(AR9:AR10),$AB$19),0) -> 39 | AS12: 53 | AT12: 53 | BA12: Trinket 2 Selection | BJ12: Earliest | BK12: Adjusted | BP12: Adjusted | BR12: 6 | BS12: Mark of the Champion | BT12: Passive | BU12: 1 | BV12: 1 | BW12: 57 | BX12: 58 | BY12: Yes | BZ12: 85 | CA12: 6 | CC12: The Restrained Essence of Sapphiron | CD12: Offensive | CE12: 1 | CF12: 1 | CG12: 7 | CH12: 54 | CI12: Yes | CJ12: 170 | CK12: 6
D13: 6. View your optimal trinket rotation in the tables it generates. | O13: 5. Click 'Optimize'. | AD13: Usage Count | AE13: =IFERROR(CEILING($AB$19/AE12,1),0) -> 1 | AF13: 0 | AG13: 0 | AH13: 0 | AI13: 0 | AJ13: 1 | AK13: 1 | AL13: 0 | AM13: 1 | AN13: 0 | AO13: 1 | AP13: 0 | AQ13: 2 | AR13: =IFERROR(CEILING($AB$19/AR12,1),0) -> 2 | AS13: 2 | AT13: 2 | AY13: No | AZ13: Check | BA13: Item Name | BB13: Item No: | BC13: Type | BD13: Active | BE13: Passive SP | BF13: Active Sp | BG13: Sp Change | BH13: CD | BI13: Swap CD | BJ13: Start 1 | BK13: Start 2 | BL13: End | BM13: Next | BN13: Total Sp | BO13: Aver Sp | BP13: Start 2 | BR13: 7 | BS13: Mark of the Champion | BT13: Passive | BU13: 1 | BV13: 1 | BW13: 57 | BX13: 58 | BY13: Yes | BZ13: 85 | CA13: 7 | CC13: The Restrained Essence of Sapphiron | CD13: Offensive | CE13: 1 | CF13: 1 | CG13: 7 | CH13: 54 | CI13: Yes | CJ13: 170 | CK13: 7
O14: 6. View your optimal trinket rotation in the tables it generates. | AY14: =IF($BA14="","",ROWS($AY$13:$AY14)-1) -> 1 | AZ14: =IF(BA14="","",IF(ISNUMBER(MATCH(BA14,BA$5:BA$10,0)),"Wrong!","OK")) -> OK | BA14: The Restrained Essence of Sapphiron | BB14: =IF($AZ14="","",INDEX($E$18:$E$34,MATCH($BA14,$F$18:$F$34,0))) -> 15 | BC14: =IF($AZ14="","",INDEX($M$18:$M$34,MATCH($BA14,$F$18:$F$34,0))) -> Offensive | BD14: =IF($AZ14="","",INDEX($AE$9:$AT$9,$BB14)) -> 7 | BE14: =IF($AZ14="","",INDEX($AE$6:$AT$6,$BB14)) -> 40 | BF14: =IF($AZ14="","",INDEX($AE$7:$AT$7,$BB14)) -> 130 | BG14: =IF($AZ14="","",INDEX($AE$8:$AT$8,$BB14)) -> 0 | BH14: =IF($AZ14="","",INDEX($AE$10:$AT$10,$BB14)) -> 46 | BI14: =IF($AZ14="","",INDEX($AE$11:$AT$11,$BB14)) -> 11 | BJ14: =IF($AZ14="","",1) -> 1 | BK14: 1 | BL14: =IF($AZ14="","",BK14+$BD14-1) -> 7 | BM14: =IF($AZ14="","",SUM(BK14,$BD14,$BH14)) -> 54 | BN14: =IF($AZ14="","",SUMIFS($CJ$7:$CJ$86,$CC$7:$CC$86,$BA14)) -> 3710 | BO14: =IF($AZ14="","",IFERROR(AVERAGEIFS($CJ$7:$CJ$86,$CC$7:$CC$86,$BA14),0)) -> 65.0877193 | BP14: =IF($AZ14="","",IFERROR(IF(AND($BC14=INDEX($BC$5:$BC$10,MATCH($BJ14,$BK$5:$BK$10,1)),$BC14<>"Passive"),IF($BJ14>INDEX($BL$5:$BL$10,MATCH($BJ14,$BK$5:$BK$10,1)),$BJ14,INDEX($BL$5:$BL$10,MATCH($BJ14,$BK$5:$BK$10,1))+1),$BJ14),$BJ14)) -> 1 | BR14: 8 | BS14: Mark of the Champion | BT14: Passive | BU14: 1 | BV14: 1 | BW14: 57 | BX14: 58 | BY14: Yes | BZ14: 85 | CA14: 8 | CC14: The Restrained Essence of Sapphiron | CD14: Offensive | CE14: 1 | CF14: 1 | CG14: 7 | CH14: 54 | CI14: No | CJ14: 40 | CK14: 0
O15: 7. To recalculate your gear with the optimized trinket data go back to your 'Character' sheet and reoptimize your selection with 'Optimize Trinket' selected as Yes. | AY15: =IF($BA15="","",ROWS($AY$13:$AY15)-1) ->  | AZ15: =IF(BA15="","",IF(OR($Z$23="Yes",BA15=BA14,ISNUMBER(MATCH(BA15,BA$5:BA$10,0))),"Wrong!","OK")) ->  | BJ15: =IF($AZ15="","",MAX(SUM(BK14,$BD14,$BI15),MAX(IF($BA$14:$BA14=$BA15,BM$14:BM14)))) ->  | BR15: 9 | BS15: Mark of the Champion | BT15: Passive | BU15: 1 | BV15: 1 | BW15: 57 | BX15: 58 | BY15: Yes | BZ15: 85 | CA15: 9 | CC15: The Restrained Essence of Sapphiron | CD15: Offensive | CE15: 1 | CF15: 1 | CG15: 7 | CH15: 54 | CI15: No | CJ15: 40 | CK15: 0
AY16: =IF($BA16="","",ROWS($AY$13:$AY16)-1) ->  | AZ16: =IF(BA16="","",IF(OR($Z$23="Yes",BA16=BA15,ISNUMBER(MATCH(BA16,BA$5:BA$10,0))),"Wrong!","OK")) ->  | BJ16: =IF($AZ16="","",MAX(SUM(BK15,$BD15,$BI16),MAX(IF($BA$14:$BA15=$BA16,BM$14:BM15)))) ->  | BR16: 10 | BS16: Mark of the Champion | BT16: Passive | BU16: 1 | BV16: 1 | BW16: 57 | BX16: 58 | BY16: Yes | BZ16: 85 | CA16: 10 | CC16: The Restrained Essence of Sapphiron | CD16: Offensive | CE16: 1 | CF16: 1 | CG16: 7 | CH16: 54 | CI16: No | CJ16: 40 | CK16: 0
AD17: Total Damage Matrix | AY17: =IF($BA17="","",ROWS($AY$13:$AY17)-1) ->  | AZ17: =IF(BA17="","",IF(OR($Z$23="Yes",BA17=BA16,ISNUMBER(MATCH(BA17,BA$5:BA$10,0))),"Wrong!","OK")) ->  | BJ17: =IF($AZ17="","",MAX(SUM(BK16,$BD16,$BI17),MAX(IF($BA$14:$BA16=$BA17,BM$14:BM16)))) ->  | BR17: 11 | BS17: Mark of the Champion | BT17: Passive | BU17: 1 | BV17: 1 | BW17: 57 | BX17: 58 | BY17: Yes | BZ17: 85 | CA17: 11 | CC17: The Restrained Essence of Sapphiron | CD17: Offensive | CE17: 1 | CF17: 1 | CG17: 7 | CH17: 54 | CI17: No | CJ17: 40 | CK17: 0
D18: Select | E18: No | F18: Name | G18: Valid | H18: Phase | I18: Duration | J18: Cooldown | K18: Combo CD | L18: Swap CD | M18: Type | N18: Passive Sp | O18: Active Sp | P18: Sp Change | Q18: Time Limit | R18: Cast Limit | S18: Hit% | T18: Crit% | U18: Spell Pen | V18: Total Sp | W18: Aver Sp | AB18: Total Casts | AE18: 1 | AF18: 2 | AG18: 3 | AH18: 4 | AI18: 5 | AJ18: 6 | AK18: 7 | AL18: 8 | AM18: 9 | AN18: 10 | AO18: 11 | AP18: 12 | AQ18: 13 | AR18: 14 | AS18: 15 | AT18: 16 | AY18: =IF($BA18="","",ROWS($AY$13:$AY18)-1) ->  | AZ18: =IF(BA18="","",IF(OR($Z$23="Yes",BA18=BA17,ISNUMBER(MATCH(BA18,BA$5:BA$10,0))),"Wrong!","OK")) ->  | BJ18: =IF($AZ18="","",MAX(SUM(BK17,$BD17,$BI18),MAX(IF($BA$14:$BA17=$BA18,BM$14:BM17)))) ->  | BR18: 12 | BS18: Mark of the Champion | BT18: Passive | BU18: 1 | BV18: 1 | BW18: 57 | BX18: 58 | BY18: Yes | BZ18: 85 | CA18: 12 | CC18: The Restrained Essence of Sapphiron | CD18: Offensive | CE18: 1 | CF18: 1 | CG18: 7 | CH18: 54 | CI18: No | CJ18: 40 | CK18: 0
B19: =$H19<=CharPhase -> TRUE | C19: TRUE | E19: 1 | F19: Briarwood Reed | G19: =IF(AND($B19,$C19),"Yes","No") -> Yes | H19: 1 | I19: NA | J19: NA | K19: NA | L19: NA | M19: Passive | N19: 29 | O19: 0 | P19: 0 | Q19: 0 | R19: 0 | S19: 0 | T19: 0 | U19: 0 | V19: =IFERROR(INDEX($BN$4:$BN$19,MATCH($F19,$BA$4:$BA$19,0)),0) -> 0 | W19: =IFERROR(INDEX($BO$4:$BO$19,MATCH($F19,$BA$4:$BA$19,0)),0) -> 0 | Y19: Cast Time | Z19: ='DPS Calculator'!I18 -> 2.59298375 | AB19: =FLOOR(Z20/Z19,1) -> 57 | AD19: 1 | AE19: =IF($AD19=AE$18,"n/a",SUM(OFFSET($AD$41:$AD$120,0,$AD19))+SUM(OFFSET($AD$41:$AD$120,0,AE$18))) -> n/a | AF19: 1653 | AG19: 1653 | AH19: 1653 | AI19: 1653 | AJ19: 1653 | AK19: 6498 | AL19: 1653 | AM19: 4161 | AN19: 1653 | AO19: 4389 | AP19: 1653 | AQ19: 2853 | AR19: 3403 | AS19: 5363 | AT19: 3438 | AY19: =IF($BA19="","",ROWS($AY$13:$AY19)-1) ->  | AZ19: =IF(BA19="","",IF(OR($Z$23="Yes",BA19=BA18,ISNUMBER(MATCH(BA19,BA$5:BA$10,0))),"Wrong!","OK")) ->  | BJ19: =IF($AZ19="","",MAX(SUM(BK18,$BD18,$BI19),MAX(IF($BA$14:$BA18=$BA19,BM$14:BM18)))) ->  | BR19: 13 | BS19: Mark of the Champion | BT19: Passive | BU19: 1 | BV19: 1 | BW19: 57 | BX19: 58 | BY19: Yes | BZ19: 85 | CA19: 13 | CC19: The Restrained Essence of Sapphiron | CD19: Offensive | CE19: 1 | CF19: 1 | CG19: 7 | CH19: 54 | CI19: No | CJ19: 40 | CK19: 0
B20: TRUE | C20: FALSE | E20: 2 | F20: Burst of Knowledge | G20: =IF(AND($B20,$C20),"Yes","No") -> No | H20: 1 | I20: NA | J20: NA | K20: NA | L20: NA | M20: Passive | N20: 12 | O20: 0 | P20: 0 | Q20: 0 | R20: 0 | S20: 0 | T20: 0 | U20: 0 | V20: 0 | W20: 0 | Y20: Duration | Z20: 150 | AD20: 2 | AE20: 1653 | AF20: n/a | AG20: 0 | AH20: 0 | AI20: 0 | AJ20: 0 | AK20: 4845 | AL20: 0 | AM20: 2508 | AN20: 0 | AO20: 2736 | AP20: 0 | AQ20: 1200 | AR20: 1750 | AS20: 3710 | AT20: 1785 | BR20: 14 | BS20: Mark of the Champion | BT20: Passive | BU20: 1 | BV20: 1 | BW20: 57 | BX20: 58 | BY20: Yes | BZ20: 85 | CA20: 14 | CC20: The Restrained Essence of Sapphiron | CD20: Offensive | CE20: 1 | CF20: 1 | CG20: 7 | CH20: 54 | CI20: No | CJ20: 40 | CK20: 0
B21: TRUE | C21: FALSE | E21: 3 | F21: Draconic Infused Emblem | G21: No | H21: 5 | I21: 15 | J21: 75 | K21: * | L21: 30 | M21: Offensive | N21: 0 | O21: 100 | P21: 0 | Q21: 15 | R21: 0 | S21: 0 | T21: 0 | U21: 0 | V21: 0 | W21: 0 | Y21: Boss? | Z21: Yes | AD21: 3 | AE21: 1653 | AF21: 0 | AG21: n/a | AH21: 0 | AI21: 0 | AJ21: 0 | AK21: 4845 | AL21: 0 | AM21: 2508 | AN21: 0 | AO21: 2736 | AP21: 0 | AQ21: 1200 | AR21: 1750 | AS21: 3710 | AT21: 1785 | BR21: 15 | BS21: Mark of the Champion | BT21: Passive | BU21: 1 | BV21: 1 | BW21: 57 | BX21: 58 | BY21: Yes | BZ21: 85 | CA21: 15 | CC21: The Restrained Essence of Sapphiron | CD21: Offensive | CE21: 1 | CF21: 1 | CG21: 7 | CH21: 54 | CI21: No | CJ21: 40 | CK21: 0
B22: TRUE | C22: FALSE | E22: 4 | F22: Eye of Diminution | G22: No | H22: 5 | I22: 0 | J22: 0 | K22: * | L22: 30 | M22: Defensive | N22: 0 | O22: 0 | P22: 0 | Q22: 0 | R22: 0 | S22: 0 | T22: 0.02 | U22: 0 | V22: 0 | W22: 0 | AD22: 4 | AE22: 1653 | AF22: 0 | AG22: 0 | AH22: n/a | AI22: 0 | AJ22: 0 | AK22: 4845 | AL22: 0 | AM22: 2508 | AN22: 0 | AO22: 2736 | AP22: 0 | AQ22: 1200 | AR22: 1750 | AS22: 3710 | AT22: 1785 | BR22: 16 | BS22: Mark of the Champion | BT22: Passive | BU22: 1 | BV22: 1 | BW22: 57 | BX22: 58 | BY22: Yes | BZ22: 85 | CA22: 16 | CC22: The Restrained Essence of Sapphiron | CD22: Offensive | CE22: 1 | CF22: 1 | CG22: 7 | CH22: 54 | CI22: No | CJ22: 40 | CK22: 0
B23: TRUE | C23: FALSE | E23: 5 | F23: Eye of Moam | G23: No | H23: 5 | I23: 30 | J23: 180 | K23: * | L23: 30 | M23: Offensive | N23: 0 | O23: 50 | P23: 0 | Q23: 30 | R23: 0 | S23: 0 | T23: 0 | U23: 100 | V23: 0 | W23: 0 | Y23: Boss | Z23: =Boss -> Yes | AD23: 5 | AE23: 1653 | AF23: 0 | AG23: 0 | AH23: 0 | AI23: n/a | AJ23: 0 | AK23: 4845 | AL23: 0 | AM23: 2508 | AN23: 0 | AO23: 2736 | AP23: 0 | AQ23: 1200 | AR23: 1750 | AS23: 3710 | AT23: 1785 | BR23: 17 | BS23: Mark of the Champion | BT23: Passive | BU23: 1 | BV23: 1 | BW23: 57 | BX23: 58 | BY23: Yes | BZ23: 85 | CA23: 17 | CC23: The Restrained Essence of Sapphiron | CD23: Offensive | CE23: 1 | CF23: 1 | CG23: 7 | CH23: 54 | CI23: No | CJ23: 40 | CK23: 0
B24: TRUE | C24: TRUE | E24: 6 | F24: Eye of the Beast | G24: Yes | H24: 1 | I24: NA | J24: NA | K24: NA | L24: NA | M24: Passive | N24: 0 | O24: 0 | P24: 0 | Q24: 0 | R24: 0 | S24: 0 | T24: 0.02 | U24: 0 | V24: 0 | W24: 0 | Y24: Check | Z24: =IF(COUNTIFS($AZ$4:$AZ$19,"Wrong!")>0,"Wrong!","OK") -> OK | AD24: 6 | AE24: 1653 | AF24: 0 | AG24: 0 | AH24: 0 | AI24: 0 | AJ24: n/a | AK24: 4845 | AL24: 0 | AM24: 2508 | AN24: 0 | AO24: 2736 | AP24: 0 | AQ24: 1200 | AR24: 1750 | AS24: 3710 | AT24: 1785 | BR24: 18 | BS24: Mark of the Champion | BT24: Passive | BU24: 1 | BV24: 1 | BW24: 57 | BX24: 58 | BY24: Yes | BZ24: 85 | CA24: 18 | CC24: The Restrained Essence of Sapphiron | CD24: Offensive | CE24: 1 | CF24: 1 | CG24: 7 | CH24: 54 | CI24: No | CJ24: 40 | CK24: 0
B25: TRUE | C25: TRUE | E25: 7 | F25: Mark of the Champion | G25: =IF(AND($B25,$C25),"Yes","No") -> Yes | H25: 6 | I25: NA | J25: NA | K25: NA | L25: NA | M25: Passive | N25: 85 | O25: 0 | P25: 0 | Q25: 0 | R25: 0 | S25: 0 | T25: 0 | U25: 0 | V25: =IFERROR(INDEX($BN$4:$BN$19,MATCH($F25,$BA$4:$BA$19,0)),0) -> 4845 | W25: =IFERROR(INDEX($BO$4:$BO$19,MATCH($F25,$BA$4:$BA$19,0)),0) -> 85 | Y25: Total | Z25: =SUM(BN5:BN10,BN14:BN19) -> 8555 | AD25: 7 | AE25: 6498 | AF25: 4845 | AG25: 4845 | AH25: 4845 | AI25: 4845 | AJ25: 4845 | AK25: n/a | AL25: 4845 | AM25: 7353 | AN25: 4845 | AO25: 7581 | AP25: 4845 | AQ25: 6045 | AR25: 6595 | AS25: 8555 | AT25: 6630 | BR25: 19 | BS25: Mark of the Champion | BT25: Passive | BU25: 1 | BV25: 1 | BW25: 57 | BX25: 58 | BY25: Yes | BZ25: 85 | CA25: 19 | CC25: The Restrained Essence of Sapphiron | CD25: Offensive | CE25: 1 | CF25: 1 | CG25: 7 | CH25: 54 | CI25: No | CJ25: 40 | CK25: 0
B26: TRUE | C26: FALSE | E26: 8 | F26: Nat Pagle's Broken Reel | G26: =IF(AND($B26,$C26),"Yes","No") -> No | H26: 4 | I26: 15 | J26: 75 | K26: * | L26: 30 | M26: Defensive | N26: 0 | O26: =SUM(('All Equipment'!I$667*Character!$D$42),('All Equipment'!$Q$667*Character!$E$42),('All Equipment'!$L$667*Character!$F$42),('All Equipment'!$M$667*Character!$G$42),('All Equipment'!$O$667*Character!$H$42)) -> 135.9574468 | P26: 0 | Q26: 15 | R26: 0 | S26: 0.1 | T26: 0 | U26: 0 | V26: =IFERROR(INDEX($BN$4:$BN$19,MATCH($F26,$BA$4:$BA$19,0)),0) -> 0 | W26: =IFERROR(INDEX($BO$4:$BO$19,MATCH($F26,$BA$4:$BA$19,0)),0) -> 0 | AD26: 8 | AE26: 1653 | AF26: 0 | AG26: 0 | AH26: 0 | AI26: 0 | AJ26: 0 | AK26: 4845 | AL26: n/a | AM26: 2508 | AN26: 0 | AO26: 2736 | AP26: 0 | AQ26: 1200 | AR26: 1750 | AS26: 3710 | AT26: 1785 | BR26: 20 | BS26: Mark of the Champion | BT26: Passive | BU26: 1 | BV26: 1 | BW26: 57 | BX26: 58 | BY26: Yes | BZ26: 85 | CA26: 20 | CC26: The Restrained Essence of Sapphiron | CD26: Offensive | CE26: 1 | CF26: 1 | CG26: 7 | CH26: 54 | CI26: No | CJ26: 40 | CK26: 0
B27: TRUE | C27: TRUE | E27: 9 | F27: Neltharion's Tear | G27: =IF(AND($B27,$C27),"Yes","No") -> Yes | H27: 3 | I27: NA | J27: NA | K27: NA | L27: NA | M27: Passive | N27: 44 | O27: 0 | P27: 0 | Q27: 0 | R27: 0 | S27: 0.02 | T27: 0 | U27: 0 | V27: =IFERROR(INDEX($BN$4:$BN$19,MATCH($F27,$BA$4:$BA$19,0)),0) -> 0 | W27: =IFERROR(INDEX($BO$4:$BO$19,MATCH($F27,$BA$4:$BA$19,0)),0) -> 0 | AD27: 9 | AE27: 4161 | AF27: 2508 | AG27: 2508 | AH27: 2508 | AI27: 2508 | AJ27: 2508 | AK27: 7353 | AL27: 2508 | AM27: n/a | AN27: 2508 | AO27: 5244 | AP27: 2508 | AQ27: 3708 | AR27: 4258 | AS27: 6218 | AT27: 4293 | BR27: 21 | BS27: Mark of the Champion | BT27: Passive | BU27: 1 | BV27: 1 | BW27: 57 | BX27: 58 | BY27: Yes | BZ27: 85 | CA27: 21 | CC27: The Restrained Essence of Sapphiron | CD27: Offensive | CE27: 1 | CF27: 1 | CG27: 7 | CH27: 54 | CI27: No | CJ27: 40 | CK27: 0
B28: TRUE | C28: FALSE | E28: 10 | F28: Rune of Perfection | G28: =IF(AND($B28,$C28),"Yes","No") -> No | H28: 5 | I28: NA | J28: NA | K28: NA | L28: NA | M28: Passive | N28: 0 | O28: 0 | P28: 0 | Q28: 0 | R28: 0 | S28: 0 | T28: 0 | U28: 20 | V28: =IFERROR(INDEX($BN$4:$BN$19,MATCH($F28,$BA$4:$BA$19,0)),0) -> 0 | W28: =IFERROR(INDEX($BO$4:$BO$19,MATCH($F28,$BA$4:$BA$19,0)),0) -> 0 | AD28: 10 | AE28: 1653 | AF28: 0 | AG28: 0 | AH28: 0 | AI28: 0 | AJ28: 0 | AK28: 4845 | AL28: 0 | AM28: 2508 | AN28: n/a | AO28: 2736 | AP28: 0 | AQ28: 1200 | AR28: 1750 | AS28: 3710 | AT28: 1785 | BR28: 22 | BS28: Mark of the Champion | BT28: Passive | BU28: 1 | BV28: 1 | BW28: 57 | BX28: 58 | BY28: Yes | BZ28: 85 | CA28: 22 | CC28: The Restrained Essence of Sapphiron | CD28: Offensive | CE28: 1 | CF28: 1 | CG28: 7 | CH28: 54 | CI28: No | CJ28: 40 | CK28: 0
B29: TRUE | C29: TRUE | E29: 11 | F29: Rune of the Dawn | G29: =IF(AND($B29,$C29),"Yes","No") -> Yes | H29: 1 | I29: NA | J29: NA | K29: NA | L29: NA | M29: Passive | N29: 48 | O29: 0 | P29: 0 | Q29: 0 | R29: 0 | S29: 0 | T29: 0 | U29: 0 | V29: =IFERROR(INDEX($BN$4:$BN$19,MATCH($F29,$BA$4:$BA$19,0)),0) -> 0 | W29: =IFERROR(INDEX($BO$4:$BO$19,MATCH($F29,$BA$4:$BA$19,0)),0) -> 0 | AD29: 11 | AE29: =IF($AD29=AE$18,"n/a",SUM(OFFSET($AD$41:$AD$120,0,$AD29))+SUM(OFFSET($AD$41:$AD$120,0,AE$18))) -> 4389 | AF29: 2736 | AG29: 2736 | AH29: 2736 | AI29: 2736 | AJ29: 2736 | AK29: 7581 | AL29: 2736 | AM29: 5244 | AN29: 2736 | AO29: n/a | AP29: 2736 | AQ29: 3936 | AR29: 4486 | AS29: 6446 | AT29: 4521 | BR29: 23 | BS29: Mark of the Champion | BT29: Passive | BU29: 1 | BV29: 1 | BW29: 57 | BX29: 58 | BY29: Yes | BZ29: 85 | CA29: 23 | CC29: The Restrained Essence of Sapphiron | CD29: Offensive | CE29: 1 | CF29: 1 | CG29: 7 | CH29: 54 | CI29: No | CJ29: 40 | CK29: 0
B30: TRUE | C30: FALSE | E30: 12 | F30: Six Demon Bags | G30: No | H30: 1 | I30: NA | J30: 1800 | K30: * | L30: 30 | M30: Offensive | N30: 0 | O30: * | P30: 0 | Q30: 0 | R30: 0 | S30: 0 | T30: 0 | U30: 0 | V30: 0 | W30: 0 | AD30: 12 | AE30: 1653 | AF30: 0 | AG30: 0 | AH30: 0 | AI30: 0 | AJ30: 0 | AK30: 4845 | AL30: 0 | AM30: 2508 | AN30: 0 | AO30: 2736 | AP30: n/a | AQ30: 1200 | AR30: 1750 | AS30: 3710 | AT30: 1785 | BR30: 24 | BS30: Mark of the Champion | BT30: Passive | BU30: 1 | BV30: 1 | BW30: 57 | BX30: 58 | BY30: Yes | BZ30: 85 | CA30: 24 | CC30: The Restrained Essence of Sapphiron | CD30: Offensive | CE30: 1 | CF30: 1 | CG30: 7 | CH30: 54 | CI30: No | CJ30: 40 | CK30: 0
B31: TRUE | C31: TRUE | E31: 13 | F31: Talisman of Ascendance | G31: Yes | H31: 5 | I31: 20 | J31: 60 | K31: * | L31: 30 | M31: Offensive | N31: 0 | O31: 0 | P31: 40 | Q31: 20 | R31: 6 | S31: 0 | T31: 0 | U31: 0 | V31: 0 | W31: 0 | AD31: 13 | AE31: 2853 | AF31: 1200 | AG31: 1200 | AH31: 1200 | AI31: 1200 | AJ31: 1200 | AK31: 6045 | AL31: 1200 | AM31: 3708 | AN31: 1200 | AO31: 3936 | AP31: 1200 | AQ31: n/a | AR31: 2950 | AS31: 4910 | AT31: 2985 | BR31: 25 | BS31: Mark of the Champion | BT31: Passive | BU31: 1 | BV31: 1 | BW31: 57 | BX31: 58 | BY31: Yes | BZ31: 85 | CA31: 25 | CC31: The Restrained Essence of Sapphiron | CD31: Offensive | CE31: 1 | CF31: 1 | CG31: 7 | CH31: 54 | CI31: No | CJ31: 40 | CK31: 0
B32: TRUE | C32: TRUE | E32: 14 | F32: Talisman of Ephemeral Power | G32: Yes | H32: 1 | I32: 15 | J32: 90 | K32: * | L32: 30 | M32: Offensive | N32: 0 | O32: 175 | P32: 0 | Q32: 15 | R32: 0 | S32: 0 | T32: 0 | U32: 0 | V32: 0 | W32: 0 | AD32: 14 | AE32: 3403 | AF32: 1750 | AG32: 1750 | AH32: 1750 | AI32: 1750 | AJ32: 1750 | AK32: 6595 | AL32: 1750 | AM32: 4258 | AN32: 1750 | AO32: 4486 | AP32: 1750 | AQ32: 2950 | AR32: n/a | AS32: 5460 | AT32: 3535 | BR32: 26 | BS32: Mark of the Champion | BT32: Passive | BU32: 1 | BV32: 1 | BW32: 57 | BX32: 58 | BY32: Yes | BZ32: 85 | CA32: 26 | CC32: The Restrained Essence of Sapphiron | CD32: Offensive | CE32: 1 | CF32: 1 | CG32: 7 | CH32: 54 | CI32: No | CJ32: 40 | CK32: 0
B33: TRUE | C33: TRUE | E33: 15 | F33: The Restrained Essence of Sapphiron | G33: Yes | H33: 6 | I33: 20 | J33: 120 | K33: * | L33: 30 | M33: Offensive | N33: 40 | O33: 130 | P33: 0 | Q33: 20 | R33: 0 | S33: 0 | T33: 0 | U33: 0 | V33: 3710 | W33: 65.0877193 | AD33: 15 | AE33: 5363 | AF33: 3710 | AG33: 3710 | AH33: 3710 | AI33: 3710 | AJ33: 3710 | AK33: 8555 | AL33: 3710 | AM33: 6218 | AN33: 3710 | AO33: 6446 | AP33: 3710 | AQ33: 4910 | AR33: 5460 | AS33: n/a | AT33: 5495 | BR33: 27 | BS33: Mark of the Champion | BT33: Passive | BU33: 1 | BV33: 1 | BW33: 57 | BX33: 58 | BY33: Yes | BZ33: 85 | CA33: 27 | CC33: The Restrained Essence of Sapphiron | CD33: Offensive | CE33: 1 | CF33: 1 | CG33: 7 | CH33: 54 | CI33: No | CJ33: 40 | CK33: 0
B34: TRUE | C34: TRUE | E34: 16 | F34: Zandalarian Hero Charm | G34: Yes | H34: 4 | I34: 20 | J34: 120 | K34: * | L34: 30 | M34: Offensive | N34: 0 | O34: 204 | P34: -17 | Q34: 20 | R34: 0 | S34: 0 | T34: 0 | U34: 0 | V34: 0 | W34: 0 | AD34: 16 | AE34: 3438 | AF34: 1785 | AG34: 1785 | AH34: 1785 | AI34: 1785 | AJ34: 1785 | AK34: 6630 | AL34: 1785 | AM34: 4293 | AN34: 1785 | AO34: 4521 | AP34: 1785 | AQ34: 2985 | AR34: 3535 | AS34: 5495 | AT34: n/a | BR34: 28 | BS34: Mark of the Champion | BT34: Passive | BU34: 1 | BV34: 1 | BW34: 57 | BX34: 58 | BY34: Yes | BZ34: 85 | CA34: 28 | CC34: The Restrained Essence of Sapphiron | CD34: Offensive | CE34: 1 | CF34: 1 | CG34: 7 | CH34: 54 | CI34: No | CJ34: 40 | CK34: 0
AC35: SP Value | BR35: 29 | BS35: Mark of the Champion | BT35: Passive | BU35: 1 | BV35: 1 | BW35: 57 | BX35: 58 | BY35: Yes | BZ35: 85 | CA35: 29 | CC35: The Restrained Essence of Sapphiron | CD35: Offensive | CE35: 1 | CF35: 1 | CG35: 7 | CH35: 54 | CI35: No | CJ35: 40 | CK35: 0
AC36: Total | AE36: =SUM(AE$41:AE$120) -> 1653 | AF36: 0 | AG36: 0 | AH36: 0 | AI36: 0 | AJ36: 0 | AK36: 4845 | AL36: 0 | AM36: 2508 | AN36: 0 | AO36: 2736 | AP36: 0 | AQ36: 1200 | AR36: 1750 | AS36: 3710 | AT36: 1785 | BR36: 30 | BS36: Mark of the Champion | BT36: Passive | BU36: 1 | BV36: 1 | BW36: 57 | BX36: 58 | BY36: Yes | BZ36: 85 | CA36: 30 | CC36: The Restrained Essence of Sapphiron | CD36: Offensive | CE36: 1 | CF36: 1 | CG36: 7 | CH36: 54 | CI36: No | CJ36: 40 | CK36: 0
AC37: Average | AE37: =AVERAGE(AE$41:AE$120) -> 29 | AF37: 0 | AG37: 0 | AH37: 0 | AI37: 0 | AJ37: 0 | AK37: 85 | AL37: 0 | AM37: 44 | AN37: 0 | AO37: 48 | AP37: 0 | AQ37: 21.05263158 | AR37: 30.70175439 | AS37: 65.0877193 | AT37: 31.31578947 | BR37: 31 | BS37: Mark of the Champion | BT37: Passive | BU37: 1 | BV37: 1 | BW37: 57 | BX37: 58 | BY37: Yes | BZ37: 85 | CA37: 31 | CC37: The Restrained Essence of Sapphiron | CD37: Offensive | CE37: 1 | CF37: 1 | CG37: 7 | CH37: 54 | CI37: No | CJ37: 40 | CK37: 0
AC38: Total/Usage | AE38: =IF(AE$13=0,0,IFERROR(SUM(OFFSET(AE$40,1,0,AE$9,1)),0)) -> 1653 | AF38: 0 | AG38: 0 | AH38: 0 | AI38: 0 | AJ38: 0 | AK38: 4845 | AL38: 0 | AM38: 2508 | AN38: 0 | AO38: 2736 | AP38: 0 | AQ38: 600 | AR38: 875 | AS38: 1190 | AT38: 1071 | BR38: 32 | BS38: =IF($BR38="","",IF(BU38=BU37,BS37,INDEX(INDEX($BA$5:$BA$10,BU38),1))) -> Mark of the Champion | BT38: =IF($BR38="","",INDEX($BC$5:$BC$10,BU38)) -> Passive | BU38: 1 | BV38: 1 | BW38: 57 | BX38: 58 | BY38: Yes | BZ38: 85 | CA38: 32 | CC38: The Restrained Essence of Sapphiron | CD38: =IF($BR38="","",INDEX($BC$14:$BC$19,CE38)) -> Offensive | CE38: 1 | CF38: 1 | CG38: 7 | CH38: 54 | CI38: No | CJ38: 40 | CK38: 0
BR39: =IF(BR38<$AB$19,BR38+1,"") -> 33 | BS39: Mark of the Champion | BT39: Passive | BU39: =IF($BR39="","",IF(OR($BR38<BW38,BU38=COUNT($AY$5:$AY$10)),BU38,BU38+1)) -> 1 | BV39: =IF($BR39="","",IF(AND($BR39=BX38,$BU39=COUNT($AY$5:$AY$10)),BX38,IF($BU39=$BU38,BV38,INDEX($BK$5:$BK$10,$BU39)))) -> 1 | BW39: =IF($BR39="","",IF(AND($BR39=BX38,$BU39=COUNT($AY$5:$AY$10)),SUM(BV39,INDEX($BD$5:$BD$10,$BU39))-1,IF($BU39=$BU38,BW38,INDEX($BL$5:$BL$10,$BU39)))) -> 57 | BX39: =IF($BR39="","",IF(AND($BR39=BX38,$BU39=COUNT($AY$5:$AY$10)),SUM(BW39,INDEX($BH$5:$BH$10,$BU39)),IF($BU39=$BU38,BX38,INDEX($BM$5:$BM$10,$BU39)))) -> 58 | BY39: =IF($BR39="","",IF(OR($BR39<BV39,$BR39>BW39),"No","Yes")) -> Yes | BZ39: =IF($BR39="","",INDEX($BE$5:$BE$10,BU39)+IF(CA39=0,0,INDEX($BF$5:$BF$10,BU39)+INDEX($BG$5:$BG$10,BU39)*(CA39-1))) -> 85 | CA39: =IF($BR39="","",IF(BY39="No",0,CA38+1)) -> 33 | CC39: The Restrained Essence of Sapphiron | CD39: Offensive | CE39: =IF($BR39="","",IF(OR($BR38<CG38,CE38=COUNT($AY$14:$AY$19)),CE38,CE38+1)) -> 1 | CF39: =IF($BR39="","",IF(AND($BR39=CH38,$CE39=COUNT($AY$14:$AY$19)),CH38,IF($CE39=$CE38,CF38,INDEX($BK$14:$BK$19,$CE39)))) -> 1 | CG39: =IF($BR39="","",IF(AND($BR39=CH38,$CE39=COUNT($AY$14:$AY$19)),SUM(CF39,INDEX($BD$14:$BD$19,$CE39))-1,IF($CE39=$CE38,CG38,INDEX($BL$14:$BL$19,$CE39)))) -> 7 | CH39: =IF($BR39="","",IF(AND($BR39=CH38,$CE39=COUNT($AY$14:$AY$19)),SUM(CG39,INDEX($BH$14:$BH$19,$CE39)),IF($CE39=$CE38,CH38,INDEX($BM$14:$BM$19,$CE39)))) -> 54 | CI39: =IF($BR39="","",IF(OR($BR39<CF39,$BR39>CG39),"No","Yes")) -> No | CJ39: =IF($BR39="","",INDEX($BE$14:$BE$19,CE39)+IF(CK39=0,0,INDEX($BF$14:$BF$19,CE39)+INDEX($BG$14:$BG$19,CE39)*(CK39-1))) -> 40 | CK39: =IF($BR39="","",IF(CI39="No",0,CK38+1)) -> 0
E40: Valid | F40: Yes | AC40: 0 | AD40: 0 | AE40: 0 | AF40: 0 | AG40: 0 | AH40: 0 | AI40: 0 | AJ40: 0 | AK40: 0 | AL40: 0 | AM40: 0 | AN40: 0 | AO40: 0 | AP40: 0 | AQ40: 0 | AR40: 0 | AS40: 0 | AT40: 0 | BR40: 34 | BS40: Mark of the Champion | BT40: Passive | BU40: 1 | BV40: 1 | BW40: 57 | BX40: 58 | BY40: Yes | BZ40: 85 | CA40: 34 | CC40: =IF($BR40="","",IF(CE40=CE39,CC39,INDEX(INDEX($BA$14:$BA$19,CE40),1))) -> The Restrained Essence of Sapphiron | CD40: Offensive | CE40: 1 | CF40: 1 | CG40: 7 | CH40: 54 | CI40: No | CJ40: 40 | CK40: 0
E41: Items Selected for Optimization | AC41: =IF(AC40<$AB$19,AC40+1,"") -> 1 | AD41: =IF($AC41="","",$AC41*$Z$19) -> 2.59298375 | AE41: =IF($AC41="","",IF(AE$13=0,0,AE$6+IF($AC41<=AE$9+(CEILING($AC41/AE$12,1)-1)*AE$12,AE$7+AE$8*($AC41-(CEILING($AC41/AE$12,1)-1)*AE$12-1),0))) -> 29 | AF41: 0 | AG41: 0 | AH41: 0 | AI41: 0 | AJ41: 0 | AK41: 85 | AL41: 0 | AM41: 44 | AN41: 0 | AO41: 48 | AP41: 0 | AQ41: 0 | AR41: 175 | AS41: 170 | AT41: 204 | BR41: 35 | BS41: Mark of the Champion | BT41: Passive | BU41: 1 | BV41: 1 | BW41: 57 | BX41: 58 | BY41: Yes | BZ41: 85 | CA41: 35 | CC41: The Restrained Essence of Sapphiron | CD41: Offensive | CE41: 1 | CF41: 1 | CG41: 7 | CH41: 54 | CI41: No | CJ41: 40 | CK41: 0
E42: No | F42: Name | G42: Type | AC42: 2 | AD42: 5.1859675 | AE42: 29 | AF42: 0 | AG42: 0 | AH42: 0 | AI42: 0 | AJ42: 0 | AK42: 85 | AL42: 0 | AM42: 44 | AN42: 0 | AO42: 48 | AP42: 0 | AQ42: 40 | AR42: 175 | AS42: 170 | AT42: 187 | BR42: 36 | BS42: Mark of the Champion | BT42: Passive | BU42: 1 | BV42: 1 | BW42: 57 | BX42: 58 | BY42: Yes | BZ42: 85 | CA42: 36 | CC42: The Restrained Essence of Sapphiron | CD42: Offensive | CE42: 1 | CF42: 1 | CG42: 7 | CH42: 54 | CI42: No | CJ42: 40 | CK42: 0
E43: 1 | F43: Briarwood Reed | G43: Passive | AC43: 3 | AD43: 7.77895125 | AE43: 29 | AF43: 0 | AG43: 0 | AH43: 0 | AI43: 0 | AJ43: 0 | AK43: 85 | AL43: 0 | AM43: 44 | AN43: 0 | AO43: 48 | AP43: 0 | AQ43: 80 | AR43: 175 | AS43: 170 | AT43: 170 | BR43: 37 | BS43: Mark of the Champion | BT43: Passive | BU43: 1 | BV43: 1 | BW43: 57 | BX43: 58 | BY43: Yes | BZ43: 85 | CA43: 37 | CC43: The Restrained Essence of Sapphiron | CD43: Offensive | CE43: 1 | CF43: 1 | CG43: 7 | CH43: 54 | CI43: No | CJ43: 40 | CK43: 0
E44: 6 | F44: Eye of the Beast | G44: Passive | AC44: 4 | AD44: 10.371935 | AE44: 29 | AF44: 0 | AG44: 0 | AH44: 0 | AI44: 0 | AJ44: 0 | AK44: 85 | AL44: 0 | AM44: 44 | AN44: 0 | AO44: 48 | AP44: 0 | AQ44: 120 | AR44: 175 | AS44: 170 | AT44: 153 | BR44: 38 | BS44: Mark of the Champion | BT44: Passive | BU44: 1 | BV44: 1 | BW44: 57 | BX44: 58 | BY44: Yes | BZ44: 85 | CA44: 38 | CC44: The Restrained Essence of Sapphiron | CD44: Offensive | CE44: 1 | CF44: 1 | CG44: 7 | CH44: 54 | CI44: No | CJ44: 40 | CK44: 0
E45: 7 | F45: Mark of the Champion | G45: Passive | AC45: 5 | AD45: 12.96491875 | AE45: 29 | AF45: 0 | AG45: 0 | AH45: 0 | AI45: 0 | AJ45: 0 | AK45: 85 | AL45: 0 | AM45: 44 | AN45: 0 | AO45: 48 | AP45: 0 | AQ45: 160 | AR45: 175 | AS45: 170 | AT45: 136 | BR45: 39 | BS45: Mark of the Champion | BT45: Passive | BU45: 1 | BV45: 1 | BW45: 57 | BX45: 58 | BY45: Yes | BZ45: 85 | CA45: 39 | CC45: The Restrained Essence of Sapphiron | CD45: Offensive | CE45: 1 | CF45: 1 | CG45: 7 | CH45: 54 | CI45: No | CJ45: 40 | CK45: 0
E46: 9 | F46: Neltharion's Tear | G46: Passive | AC46: 6 | AD46: 15.5579025 | AE46: 29 | AF46: 0 | AG46: 0 | AH46: 0 | AI46: 0 | AJ46: 0 | AK46: 85 | AL46: 0 | AM46: 44 | AN46: 0 | AO46: 48 | AP46: 0 | AQ46: 200 | AR46: 0 | AS46: 170 | AT46: 119 | BR46: 40 | BS46: Mark of the Champion | BT46: Passive | BU46: 1 | BV46: 1 | BW46: 57 | BX46: 58 | BY46: Yes | BZ46: 85 | CA46: 40 | CC46: The Restrained Essence of Sapphiron | CD46: Offensive | CE46: 1 | CF46: 1 | CG46: 7 | CH46: 54 | CI46: No | CJ46: 40 | CK46: 0
E47: 11 | F47: Rune of the Dawn | G47: Passive | AC47: 7 | AD47: 18.15088625 | AE47: 29 | AF47: 0 | AG47: 0 | AH47: 0 | AI47: 0 | AJ47: 0 | AK47: 85 | AL47: 0 | AM47: 44 | AN47: 0 | AO47: 48 | AP47: 0 | AQ47: 0 | AR47: 0 | AS47: 170 | AT47: 102 | BR47: 41 | BS47: Mark of the Champion | BT47: Passive | BU47: 1 | BV47: 1 | BW47: 57 | BX47: 58 | BY47: Yes | BZ47: 85 | CA47: 41 | CC47: The Restrained Essence of Sapphiron | CD47: Offensive | CE47: 1 | CF47: 1 | CG47: 7 | CH47: 54 | CI47: No | CJ47: 40 | CK47: 0
E48: 13 | F48: Talisman of Ascendance | G48: Offensive | AC48: 8 | AD48: 20.74387 | AE48: 29 | AF48: 0 | AG48: 0 | AH48: 0 | AI48: 0 | AJ48: 0 | AK48: 85 | AL48: 0 | AM48: 44 | AN48: 0 | AO48: 48 | AP48: 0 | AQ48: 0 | AR48: 0 | AS48: 40 | AT48: 0 | BR48: 42 | BS48: Mark of the Champion | BT48: Passive | BU48: 1 | BV48: 1 | BW48: 57 | BX48: 58 | BY48: Yes | BZ48: 85 | CA48: 42 | CC48: The Restrained Essence of Sapphiron | CD48: Offensive | CE48: 1 | CF48: 1 | CG48: 7 | CH48: 54 | CI48: No | CJ48: 40 | CK48: 0
E49: 14 | F49: Talisman of Ephemeral Power | G49: Offensive | AC49: 9 | AD49: 23.33685375 | AE49: 29 | AF49: 0 | AG49: 0 | AH49: 0 | AI49: 0 | AJ49: 0 | AK49: 85 | AL49: 0 | AM49: 44 | AN49: 0 | AO49: 48 | AP49: 0 | AQ49: 0 | AR49: 0 | AS49: 40 | AT49: 0 | BR49: 43 | BS49: Mark of the Champion | BT49: Passive | BU49: 1 | BV49: 1 | BW49: 57 | BX49: 58 | BY49: Yes | BZ49: 85 | CA49: 43 | CC49: The Restrained Essence of Sapphiron | CD49: Offensive | CE49: 1 | CF49: 1 | CG49: 7 | CH49: 54 | CI49: No | CJ49: 40 | CK49: 0
E50: 15 | F50: The Restrained Essence of Sapphiron | G50: Offensive | AC50: 10 | AD50: 25.9298375 | AE50: 29 | AF50: 0 | AG50: 0 | AH50: 0 | AI50: 0 | AJ50: 0 | AK50: 85 | AL50: 0 | AM50: 44 | AN50: 0 | AO50: 48 | AP50: 0 | AQ50: 0 | AR50: 0 | AS50: 40 | AT50: 0 | BR50: 44 | BS50: Mark of the Champion | BT50: Passive | BU50: 1 | BV50: 1 | BW50: 57 | BX50: 58 | BY50: Yes | BZ50: 85 | CA50: 44 | CC50: The Restrained Essence of Sapphiron | CD50: Offensive | CE50: 1 | CF50: 1 | CG50: 7 | CH50: 54 | CI50: No | CJ50: 40 | CK50: 0
E51: 16 | F51: Zandalarian Hero Charm | G51: Offensive | AC51: 11 | AD51: 28.52282125 | AE51: =IF($AC51="","",IF(AE$13=0,0,AE$6+IF($AC51<=AE$9+(CEILING($AC51/AE$12,1)-1)*AE$12,AE$7+AE$8*($AC51-(CEILING($AC51/AE$12,1)-1)*AE$12-1),0))) -> 29 | AF51: 0 | AG51: 0 | AH51: 0 | AI51: 0 | AJ51: 0 | AK51: 85 | AL51: 0 | AM51: 44 | AN51: 0 | AO51: 48 | AP51: 0 | AQ51: 0 | AR51: 0 | AS51: 40 | AT51: 0 | BR51: 45 | BS51: Mark of the Champion | BT51: Passive | BU51: 1 | BV51: 1 | BW51: 57 | BX51: 58 | BY51: Yes | BZ51: 85 | CA51: 45 | CC51: The Restrained Essence of Sapphiron | CD51: Offensive | CE51: 1 | CF51: 1 | CG51: 7 | CH51: 54 | CI51: No | CJ51: 40 | CK51: 0
AC52: 12 | AD52: 31.115805 | AE52: 29 | AF52: 0 | AG52: 0 | AH52: 0 | AI52: 0 | AJ52: 0 | AK52: 85 | AL52: 0 | AM52: 44 | AN52: 0 | AO52: 48 | AP52: 0 | AQ52: 0 | AR52: 0 | AS52: 40 | AT52: 0 | BR52: 46 | BS52: Mark of the Champion | BT52: Passive | BU52: 1 | BV52: 1 | BW52: 57 | BX52: 58 | BY52: Yes | BZ52: 85 | CA52: 46 | CC52: The Restrained Essence of Sapphiron | CD52: Offensive | CE52: 1 | CF52: 1 | CG52: 7 | CH52: 54 | CI52: No | CJ52: 40 | CK52: 0
AC53: 13 | AD53: 33.70878875 | AE53: 29 | AF53: 0 | AG53: 0 | AH53: 0 | AI53: 0 | AJ53: 0 | AK53: 85 | AL53: 0 | AM53: 44 | AN53: 0 | AO53: 48 | AP53: 0 | AQ53: 0 | AR53: 0 | AS53: 40 | AT53: 0 | BR53: 47 | BS53: Mark of the Champion | BT53: Passive | BU53: 1 | BV53: 1 | BW53: 57 | BX53: 58 | BY53: Yes | BZ53: 85 | CA53: 47 | CC53: The Restrained Essence of Sapphiron | CD53: Offensive | CE53: 1 | CF53: 1 | CG53: 7 | CH53: 54 | CI53: No | CJ53: 40 | CK53: 0
AC54: 14 | AD54: 36.3017725 | AE54: 29 | AF54: 0 | AG54: 0 | AH54: 0 | AI54: 0 | AJ54: 0 | AK54: 85 | AL54: 0 | AM54: 44 | AN54: 0 | AO54: 48 | AP54: 0 | AQ54: 0 | AR54: 0 | AS54: 40 | AT54: 0 | BR54: 48 | BS54: Mark of the Champion | BT54: Passive | BU54: 1 | BV54: 1 | BW54: 57 | BX54: 58 | BY54: Yes | BZ54: 85 | CA54: 48 | CC54: The Restrained Essence of Sapphiron | CD54: Offensive | CE54: 1 | CF54: 1 | CG54: 7 | CH54: 54 | CI54: No | CJ54: 40 | CK54: 0
AC55: 15 | AD55: 38.89475625 | AE55: 29 | AF55: 0 | AG55: 0 | AH55: 0 | AI55: 0 | AJ55: 0 | AK55: 85 | AL55: 0 | AM55: 44 | AN55: 0 | AO55: 48 | AP55: 0 | AQ55: 0 | AR55: 0 | AS55: 40 | AT55: 0 | BR55: 49 | BS55: Mark of the Champion | BT55: Passive | BU55: 1 | BV55: 1 | BW55: 57 | BX55: 58 | BY55: Yes | BZ55: 85 | CA55: 49 | CC55: The Restrained Essence of Sapphiron | CD55: Offensive | CE55: 1 | CF55: 1 | CG55: 7 | CH55: 54 | CI55: No | CJ55: 40 | CK55: 0
AC56: 16 | AD56: 41.48774 | AE56: 29 | AF56: 0 | AG56: 0 | AH56: 0 | AI56: 0 | AJ56: 0 | AK56: 85 | AL56: 0 | AM56: 44 | AN56: 0 | AO56: 48 | AP56: 0 | AQ56: 0 | AR56: 0 | AS56: 40 | AT56: 0 | BR56: 50 | BS56: Mark of the Champion | BT56: Passive | BU56: 1 | BV56: 1 | BW56: 57 | BX56: 58 | BY56: Yes | BZ56: 85 | CA56: 50 | CC56: The Restrained Essence of Sapphiron | CD56: Offensive | CE56: 1 | CF56: 1 | CG56: 7 | CH56: 54 | CI56: No | CJ56: 40 | CK56: 0
AC57: 17 | AD57: 44.08072375 | AE57: 29 | AF57: 0 | AG57: 0 | AH57: 0 | AI57: 0 | AJ57: 0 | AK57: 85 | AL57: 0 | AM57: 44 | AN57: 0 | AO57: 48 | AP57: 0 | AQ57: 0 | AR57: 0 | AS57: 40 | AT57: 0 | BR57: 51 | BS57: Mark of the Champion | BT57: Passive | BU57: 1 | BV57: 1 | BW57: 57 | BX57: 58 | BY57: Yes | BZ57: 85 | CA57: 51 | CC57: The Restrained Essence of Sapphiron | CD57: Offensive | CE57: 1 | CF57: 1 | CG57: 7 | CH57: 54 | CI57: No | CJ57: 40 | CK57: 0
AC58: 18 | AD58: 46.6737075 | AE58: 29 | AF58: 0 | AG58: 0 | AH58: 0 | AI58: 0 | AJ58: 0 | AK58: 85 | AL58: 0 | AM58: 44 | AN58: 0 | AO58: 48 | AP58: 0 | AQ58: 0 | AR58: 0 | AS58: 40 | AT58: 0 | BR58: 52 | BS58: Mark of the Champion | BT58: Passive | BU58: 1 | BV58: 1 | BW58: 57 | BX58: 58 | BY58: Yes | BZ58: 85 | CA58: 52 | CC58: The Restrained Essence of Sapphiron | CD58: Offensive | CE58: 1 | CF58: 1 | CG58: 7 | CH58: 54 | CI58: No | CJ58: 40 | CK58: 0
AC59: 19 | AD59: 49.26669125 | AE59: 29 | AF59: 0 | AG59: 0 | AH59: 0 | AI59: 0 | AJ59: 0 | AK59: 85 | AL59: 0 | AM59: 44 | AN59: 0 | AO59: 48 | AP59: 0 | AQ59: 0 | AR59: 0 | AS59: 40 | AT59: 0 | BR59: 53 | BS59: Mark of the Champion | BT59: Passive | BU59: 1 | BV59: 1 | BW59: 57 | BX59: 58 | BY59: Yes | BZ59: 85 | CA59: 53 | CC59: The Restrained Essence of Sapphiron | CD59: Offensive | CE59: 1 | CF59: 1 | CG59: 7 | CH59: 54 | CI59: No | CJ59: 40 | CK59: 0
AC60: 20 | AD60: 51.859675 | AE60: 29 | AF60: 0 | AG60: 0 | AH60: 0 | AI60: 0 | AJ60: 0 | AK60: 85 | AL60: 0 | AM60: 44 | AN60: 0 | AO60: 48 | AP60: 0 | AQ60: 0 | AR60: 0 | AS60: 40 | AT60: 0 | BR60: 54 | BS60: Mark of the Champion | BT60: Passive | BU60: 1 | BV60: 1 | BW60: 57 | BX60: 58 | BY60: Yes | BZ60: 85 | CA60: 54 | CC60: The Restrained Essence of Sapphiron | CD60: Offensive | CE60: 1 | CF60: 54 | CG60: 60 | CH60: 106 | CI60: Yes | CJ60: 170 | CK60: 1
AC61: 21 | AD61: 54.45265875 | AE61: =IF($AC61="","",IF(AE$13=0,0,AE$6+IF($AC61<=AE$9+(CEILING($AC61/AE$12,1)-1)*AE$12,AE$7+AE$8*($AC61-(CEILING($AC61/AE$12,1)-1)*AE$12-1),0))) -> 29 | AF61: 0 | AG61: 0 | AH61: 0 | AI61: 0 | AJ61: 0 | AK61: 85 | AL61: 0 | AM61: 44 | AN61: 0 | AO61: 48 | AP61: 0 | AQ61: 0 | AR61: 0 | AS61: 40 | AT61: 0 | BR61: 55 | BS61: Mark of the Champion | BT61: Passive | BU61: 1 | BV61: 1 | BW61: 57 | BX61: 58 | BY61: Yes | BZ61: 85 | CA61: 55 | CC61: The Restrained Essence of Sapphiron | CD61: Offensive | CE61: 1 | CF61: 54 | CG61: 60 | CH61: 106 | CI61: Yes | CJ61: 170 | CK61: 2
AC62: 22 | AD62: 57.0456425 | AE62: 29 | AF62: 0 | AG62: 0 | AH62: 0 | AI62: 0 | AJ62: 0 | AK62: 85 | AL62: 0 | AM62: 44 | AN62: 0 | AO62: 48 | AP62: 0 | AQ62: 0 | AR62: 0 | AS62: 40 | AT62: 0 | BR62: 56 | BS62: Mark of the Champion | BT62: Passive | BU62: 1 | BV62: 1 | BW62: 57 | BX62: 58 | BY62: Yes | BZ62: 85 | CA62: 56 | CC62: The Restrained Essence of Sapphiron | CD62: Offensive | CE62: 1 | CF62: 54 | CG62: 60 | CH62: 106 | CI62: Yes | CJ62: 170 | CK62: 3
AC63: 23 | AD63: 59.63862625 | AE63: 29 | AF63: 0 | AG63: 0 | AH63: 0 | AI63: 0 | AJ63: 0 | AK63: 85 | AL63: 0 | AM63: 44 | AN63: 0 | AO63: 48 | AP63: 0 | AQ63: 0 | AR63: 0 | AS63: 40 | AT63: 0 | BR63: 57 | BS63: Mark of the Champion | BT63: Passive | BU63: 1 | BV63: 1 | BW63: 57 | BX63: 58 | BY63: Yes | BZ63: 85 | CA63: 57 | CC63: The Restrained Essence of Sapphiron | CD63: Offensive | CE63: 1 | CF63: 54 | CG63: 60 | CH63: 106 | CI63: Yes | CJ63: 170 | CK63: 4
AC64: 24 | AD64: 62.23161 | AE64: 29 | AF64: 0 | AG64: 0 | AH64: 0 | AI64: 0 | AJ64: 0 | AK64: 85 | AL64: 0 | AM64: 44 | AN64: 0 | AO64: 48 | AP64: 0 | AQ64: 0 | AR64: 0 | AS64: 40 | AT64: 0
AC65: 25 | AD65: 64.82459375 | AE65: 29 | AF65: 0 | AG65: 0 | AH65: 0 | AI65: 0 | AJ65: 0 | AK65: 85 | AL65: 0 | AM65: 44 | AN65: 0 | AO65: 48 | AP65: 0 | AQ65: 0 | AR65: 0 | AS65: 40 | AT65: 0
AC66: 26 | AD66: 67.4175775 | AE66: 29 | AF66: 0 | AG66: 0 | AH66: 0 | AI66: 0 | AJ66: 0 | AK66: 85 | AL66: 0 | AM66: 44 | AN66: 0 | AO66: 48 | AP66: 0 | AQ66: 0 | AR66: 0 | AS66: 40 | AT66: 0
AC67: 27 | AD67: 70.01056125 | AE67: 29 | AF67: 0 | AG67: 0 | AH67: 0 | AI67: 0 | AJ67: 0 | AK67: 85 | AL67: 0 | AM67: 44 | AN67: 0 | AO67: 48 | AP67: 0 | AQ67: 0 | AR67: 0 | AS67: 40 | AT67: 0
AC68: 28 | AD68: 72.603545 | AE68: 29 | AF68: 0 | AG68: 0 | AH68: 0 | AI68: 0 | AJ68: 0 | AK68: 85 | AL68: 0 | AM68: 44 | AN68: 0 | AO68: 48 | AP68: 0 | AQ68: 0 | AR68: 0 | AS68: 40 | AT68: 0
AC69: 29 | AD69: 75.19652875 | AE69: 29 | AF69: 0 | AG69: 0 | AH69: 0 | AI69: 0 | AJ69: 0 | AK69: 85 | AL69: 0 | AM69: 44 | AN69: 0 | AO69: 48 | AP69: 0 | AQ69: 0 | AR69: 0 | AS69: 40 | AT69: 0
AC70: 30 | AD70: 77.7895125 | AE70: 29 | AF70: 0 | AG70: 0 | AH70: 0 | AI70: 0 | AJ70: 0 | AK70: 85 | AL70: 0 | AM70: 44 | AN70: 0 | AO70: 48 | AP70: 0 | AQ70: 0 | AR70: 0 | AS70: 40 | AT70: 0 | BS70: =IF($BR70="","",IF(BU70=BU69,BS69,INDEX(INDEX($BA$5:$BA$10,BU70),1))) ->  | BT70: =IF($BR70="","",INDEX($BC$5:$BC$10,BU70)) ->  | CD70: =IF($BR70="","",INDEX($BC$14:$BC$19,CE70)) -> 
AC71: 31 | AD71: 80.38249625 | AE71: =IF($AC71="","",IF(AE$13=0,0,AE$6+IF($AC71<=AE$9+(CEILING($AC71/AE$12,1)-1)*AE$12,AE$7+AE$8*($AC71-(CEILING($AC71/AE$12,1)-1)*AE$12-1),0))) -> 29 | AF71: 0 | AG71: 0 | AH71: 0 | AI71: 0 | AJ71: 0 | AK71: 85 | AL71: 0 | AM71: 44 | AN71: 0 | AO71: 48 | AP71: 0 | AQ71: 40 | AR71: 0 | AS71: 40 | AT71: 0 | BR71: =IF(BR70<$AB$19,BR70+1,"") ->  | BU71: =IF($BR71="","",IF(OR($BR70<BW70,BU70=COUNT($AY$5:$AY$10)),BU70,BU70+1)) ->  | BV71: =IF($BR71="","",IF(AND($BR71=BX70,$BU71=COUNT($AY$5:$AY$10)),BX70,IF($BU71=$BU70,BV70,INDEX($BK$5:$BK$10,$BU71)))) ->  | BW71: =IF($BR71="","",IF(AND($BR71=BX70,$BU71=COUNT($AY$5:$AY$10)),SUM(BV71,INDEX($BD$5:$BD$10,$BU71))-1,IF($BU71=$BU70,BW70,INDEX($BL$5:$BL$10,$BU71)))) ->  | BX71: =IF($BR71="","",IF(AND($BR71=BX70,$BU71=COUNT($AY$5:$AY$10)),SUM(BW71,INDEX($BH$5:$BH$10,$BU71)),IF($BU71=$BU70,BX70,INDEX($BM$5:$BM$10,$BU71)))) ->  | BY71: =IF($BR71="","",IF(OR($BR71<BV71,$BR71>BW71),"No","Yes")) ->  | BZ71: =IF($BR71="","",INDEX($BE$5:$BE$10,BU71)+IF(CA71=0,0,INDEX($BF$5:$BF$10,BU71)+INDEX($BG$5:$BG$10,BU71)*(CA71-1))) ->  | CA71: =IF($BR71="","",IF(BY71="No",0,CA70+1)) ->  | CE71: =IF($BR71="","",IF(OR($BR70<CG70,CE70=COUNT($AY$14:$AY$19)),CE70,CE70+1)) ->  | CF71: =IF($BR71="","",IF(AND($BR71=CH70,$CE71=COUNT($AY$14:$AY$19)),CH70,IF($CE71=$CE70,CF70,INDEX($BK$14:$BK$19,$CE71)))) ->  | CG71: =IF($BR71="","",IF(AND($BR71=CH70,$CE71=COUNT($AY$14:$AY$19)),SUM(CF71,INDEX($BD$14:$BD$19,$CE71))-1,IF($CE71=$CE70,CG70,INDEX($BL$14:$BL$19,$CE71)))) ->  | CH71: =IF($BR71="","",IF(AND($BR71=CH70,$CE71=COUNT($AY$14:$AY$19)),SUM(CG71,INDEX($BH$14:$BH$19,$CE71)),IF($CE71=$CE70,CH70,INDEX($BM$14:$BM$19,$CE71)))) ->  | CI71: =IF($BR71="","",IF(OR($BR71<CF71,$BR71>CG71),"No","Yes")) ->  | CJ71: =IF($BR71="","",INDEX($BE$14:$BE$19,CE71)+IF(CK71=0,0,INDEX($BF$14:$BF$19,CE71)+INDEX($BG$14:$BG$19,CE71)*(CK71-1))) ->  | CK71: =IF($BR71="","",IF(CI71="No",0,CK70+1)) -> 
AC72: 32 | AD72: 82.97548 | AE72: 29 | AF72: 0 | AG72: 0 | AH72: 0 | AI72: 0 | AJ72: 0 | AK72: 85 | AL72: 0 | AM72: 44 | AN72: 0 | AO72: 48 | AP72: 0 | AQ72: 80 | AR72: 0 | AS72: 40 | AT72: 0 | CC72: =IF($BR72="","",IF(CE72=CE71,CC71,INDEX(INDEX($BA$14:$BA$19,CE72),1))) -> 
AC73: =IF(AC72<$AB$19,AC72+1,"") -> 33 | AD73: =IF($AC73="","",$AC73*$Z$19) -> 85.56846375 | AE73: 29 | AF73: 0 | AG73: 0 | AH73: 0 | AI73: 0 | AJ73: 0 | AK73: 85 | AL73: 0 | AM73: 44 | AN73: 0 | AO73: 48 | AP73: 0 | AQ73: 120 | AR73: 0 | AS73: 40 | AT73: 0
AC74: 34 | AD74: 88.1614475 | AE74: 29 | AF74: 0 | AG74: 0 | AH74: 0 | AI74: 0 | AJ74: 0 | AK74: 85 | AL74: 0 | AM74: 44 | AN74: 0 | AO74: 48 | AP74: 0 | AQ74: 160 | AR74: 0 | AS74: 40 | AT74: 0
AC75: 35 | AD75: 90.75443125 | AE75: 29 | AF75: 0 | AG75: 0 | AH75: 0 | AI75: 0 | AJ75: 0 | AK75: 85 | AL75: 0 | AM75: 44 | AN75: 0 | AO75: 48 | AP75: 0 | AQ75: 200 | AR75: 0 | AS75: 40 | AT75: 0
AC76: 36 | AD76: 93.347415 | AE76: 29 | AF76: 0 | AG76: 0 | AH76: 0 | AI76: 0 | AJ76: 0 | AK76: 85 | AL76: 0 | AM76: 44 | AN76: 0 | AO76: 48 | AP76: 0 | AQ76: 0 | AR76: 0 | AS76: 40 | AT76: 0
AC77: 37 | AD77: 95.94039875 | AE77: 29 | AF77: 0 | AG77: 0 | AH77: 0 | AI77: 0 | AJ77: 0 | AK77: 85 | AL77: 0 | AM77: 44 | AN77: 0 | AO77: 48 | AP77: 0 | AQ77: 0 | AR77: 0 | AS77: 40 | AT77: 0
AC78: 38 | AD78: 98.5333825 | AE78: 29 | AF78: 0 | AG78: 0 | AH78: 0 | AI78: 0 | AJ78: 0 | AK78: 85 | AL78: 0 | AM78: 44 | AN78: 0 | AO78: 48 | AP78: 0 | AQ78: 0 | AR78: 0 | AS78: 40 | AT78: 0
AC79: 39 | AD79: 101.1263662 | AE79: 29 | AF79: 0 | AG79: 0 | AH79: 0 | AI79: 0 | AJ79: 0 | AK79: 85 | AL79: 0 | AM79: 44 | AN79: 0 | AO79: 48 | AP79: 0 | AQ79: 0 | AR79: 0 | AS79: 40 | AT79: 0
AC80: 40 | AD80: 103.71935 | AE80: 29 | AF80: 0 | AG80: 0 | AH80: 0 | AI80: 0 | AJ80: 0 | AK80: 85 | AL80: 0 | AM80: 44 | AN80: 0 | AO80: 48 | AP80: 0 | AQ80: 0 | AR80: 175 | AS80: 40 | AT80: 0
AC81: 41 | AD81: 106.3123337 | AE81: =IF($AC81="","",IF(AE$13=0,0,AE$6+IF($AC81<=AE$9+(CEILING($AC81/AE$12,1)-1)*AE$12,AE$7+AE$8*($AC81-(CEILING($AC81/AE$12,1)-1)*AE$12-1),0))) -> 29 | AF81: 0 | AG81: 0 | AH81: 0 | AI81: 0 | AJ81: 0 | AK81: 85 | AL81: 0 | AM81: 44 | AN81: 0 | AO81: 48 | AP81: 0 | AQ81: 0 | AR81: 175 | AS81: 40 | AT81: 0
AC82: 42 | AD82: 108.9053175 | AE82: 29 | AF82: 0 | AG82: 0 | AH82: 0 | AI82: 0 | AJ82: 0 | AK82: 85 | AL82: 0 | AM82: 44 | AN82: 0 | AO82: 48 | AP82: 0 | AQ82: 0 | AR82: 175 | AS82: 40 | AT82: 0
AC83: 43 | AD83: 111.4983012 | AE83: 29 | AF83: 0 | AG83: 0 | AH83: 0 | AI83: 0 | AJ83: 0 | AK83: 85 | AL83: 0 | AM83: 44 | AN83: 0 | AO83: 48 | AP83: 0 | AQ83: 0 | AR83: 175 | AS83: 40 | AT83: 0
AC84: 44 | AD84: 114.091285 | AE84: 29 | AF84: 0 | AG84: 0 | AH84: 0 | AI84: 0 | AJ84: 0 | AK84: 85 | AL84: 0 | AM84: 44 | AN84: 0 | AO84: 48 | AP84: 0 | AQ84: 0 | AR84: 175 | AS84: 40 | AT84: 0
AC85: 45 | AD85: 116.6842687 | AE85: 29 | AF85: 0 | AG85: 0 | AH85: 0 | AI85: 0 | AJ85: 0 | AK85: 85 | AL85: 0 | AM85: 44 | AN85: 0 | AO85: 48 | AP85: 0 | AQ85: 0 | AR85: 0 | AS85: 40 | AT85: 0
AC86: 46 | AD86: 119.2772525 | AE86: 29 | AF86: 0 | AG86: 0 | AH86: 0 | AI86: 0 | AJ86: 0 | AK86: 85 | AL86: 0 | AM86: 44 | AN86: 0 | AO86: 48 | AP86: 0 | AQ86: 0 | AR86: 0 | AS86: 40 | AT86: 0
AC87: 47 | AD87: 121.8702362 | AE87: 29 | AF87: 0 | AG87: 0 | AH87: 0 | AI87: 0 | AJ87: 0 | AK87: 85 | AL87: 0 | AM87: 44 | AN87: 0 | AO87: 48 | AP87: 0 | AQ87: 0 | AR87: 0 | AS87: 40 | AT87: 0
AC88: 48 | AD88: 124.46322 | AE88: 29 | AF88: 0 | AG88: 0 | AH88: 0 | AI88: 0 | AJ88: 0 | AK88: 85 | AL88: 0 | AM88: 44 | AN88: 0 | AO88: 48 | AP88: 0 | AQ88: 0 | AR88: 0 | AS88: 40 | AT88: 0
AC89: 49 | AD89: 127.0562037 | AE89: 29 | AF89: 0 | AG89: 0 | AH89: 0 | AI89: 0 | AJ89: 0 | AK89: 85 | AL89: 0 | AM89: 44 | AN89: 0 | AO89: 48 | AP89: 0 | AQ89: 0 | AR89: 0 | AS89: 40 | AT89: 0
AC90: 50 | AD90: 129.6491875 | AE90: 29 | AF90: 0 | AG90: 0 | AH90: 0 | AI90: 0 | AJ90: 0 | AK90: 85 | AL90: 0 | AM90: 44 | AN90: 0 | AO90: 48 | AP90: 0 | AQ90: 0 | AR90: 0 | AS90: 40 | AT90: 0
AC91: 51 | AD91: 132.2421712 | AE91: =IF($AC91="","",IF(AE$13=0,0,AE$6+IF($AC91<=AE$9+(CEILING($AC91/AE$12,1)-1)*AE$12,AE$7+AE$8*($AC91-(CEILING($AC91/AE$12,1)-1)*AE$12-1),0))) -> 29 | AF91: 0 | AG91: 0 | AH91: 0 | AI91: 0 | AJ91: 0 | AK91: 85 | AL91: 0 | AM91: 44 | AN91: 0 | AO91: 48 | AP91: 0 | AQ91: 0 | AR91: 0 | AS91: 40 | AT91: 0
AC92: 52 | AD92: 134.835155 | AE92: 29 | AF92: 0 | AG92: 0 | AH92: 0 | AI92: 0 | AJ92: 0 | AK92: 85 | AL92: 0 | AM92: 44 | AN92: 0 | AO92: 48 | AP92: 0 | AQ92: 0 | AR92: 0 | AS92: 40 | AT92: 0
AC93: 53 | AD93: 137.4281387 | AE93: 29 | AF93: 0 | AG93: 0 | AH93: 0 | AI93: 0 | AJ93: 0 | AK93: 85 | AL93: 0 | AM93: 44 | AN93: 0 | AO93: 48 | AP93: 0 | AQ93: 0 | AR93: 0 | AS93: 40 | AT93: 0
AC94: 54 | AD94: 140.0211225 | AE94: 29 | AF94: 0 | AG94: 0 | AH94: 0 | AI94: 0 | AJ94: 0 | AK94: 85 | AL94: 0 | AM94: 44 | AN94: 0 | AO94: 48 | AP94: 0 | AQ94: 0 | AR94: 0 | AS94: 170 | AT94: 204
AC95: 55 | AD95: 142.6141062 | AE95: 29 | AF95: 0 | AG95: 0 | AH95: 0 | AI95: 0 | AJ95: 0 | AK95: 85 | AL95: 0 | AM95: 44 | AN95: 0 | AO95: 48 | AP95: 0 | AQ95: 0 | AR95: 0 | AS95: 170 | AT95: 187
AC96: 56 | AD96: 145.20709 | AE96: 29 | AF96: 0 | AG96: 0 | AH96: 0 | AI96: 0 | AJ96: 0 | AK96: 85 | AL96: 0 | AM96: 44 | AN96: 0 | AO96: 48 | AP96: 0 | AQ96: 0 | AR96: 0 | AS96: 170 | AT96: 170
AC97: 57 | AD97: 147.8000737 | AE97: 29 | AF97: 0 | AG97: 0 | AH97: 0 | AI97: 0 | AJ97: 0 | AK97: 85 | AL97: 0 | AM97: 44 | AN97: 0 | AO97: 48 | AP97: 0 | AQ97: 0 | AR97: 0 | AS97: 170 | AT97: 153
AE101: =IF($AC101="","",IF(AE$13=0,0,AE$6+IF($AC101<=AE$9+(CEILING($AC101/AE$12,1)-1)*AE$12,AE$7+AE$8*($AC101-(CEILING($AC101/AE$12,1)-1)*AE$12-1),0))) -> 
AC105: =IF(AC104<$AB$19,AC104+1,"") ->  | AD105: =IF($AC105="","",$AC105*$Z$19) -> 
AE111: =IF($AC111="","",IF(AE$13=0,0,AE$6+IF($AC111<=AE$9+(CEILING($AC111/AE$12,1)-1)*AE$12,AE$7+AE$8*($AC111-(CEILING($AC111/AE$12,1)-1)*AE$12-1),0))) -> 

Sheet Character
C1: Load Pre-Saved Gear Set: | D1: Faction | E1: Rotation | F1: Phase | G1: Rank | H1: Hit % | I1: Optimize Trinket
B2: Character Selection | C2: Phase 6 - BiS - Alliance - Starfire - 11% | D2: Alliance | E2: Starfire | F2: 6 | G2: Rank 7 | H2: 11 | I2: Yes
AC3: =IF(COUNTIFS($AC$6:$AC$51,TRUE)=0,FALSE,IF(COUNTIFS($AC$6:$AC$51,FALSE)=0,TRUE,#N/A)) -> 
B4: Gear set link: | C4: =HYPERLINK(VLOOKUP(SelGearSet,'Gear Sets'!A3:AC70,29,FALSE)) -> https://kmmiles.gitlab.io/moonkin-calc/?gearv2=Tc67EQMxCATQXhQ7WH4SW4vn-m_jDChw9EbACr5LaCfWZ6lEtoY4pR5Dy7Sfwt1WH_ftV-285G4POHMmnU_UfJcUe1o-CmdVen2lAXaEvv_rtcWSfQ2gMSLnSud6Xg | K4: Select | L4: Settings: | M4: Phase | O4: Exceptions | P4: Valid | Q4: Int | S4: Sp | U4: Crit | V4: Hit | W4: Pen | X4: Dmg | Y4: Uptime | Z4: Weights | AC4: ChBox | AD4: Phase | AE4: Except
B5: Slot | C5: Item Name | D5: Int | E5: Sp | F5: Crit | G5: Hit | H5: Pen | I5: Score | K5: All | Q5: Pts | R5: % | S5: Pts | T5: % | U5: % | V5: % | W5: Pts | X5: % | Y5: % | Z5: Max | AA5: Actual
A6: =IFERROR(INDEX(DropDown!$O$1:$O$1000,MATCH(1,(DropDown!$M$1:$M$1000=SUBSTITUTE(SUBSTITUTE($B6,1,""),2,""))*(DropDown!$N$1:$N$1000=$C6),0)),"") -> 13 | B6: Weapon | C6: Brimstone Staff | D6: =IF($A6="",0,INDEX('All Equipment'!$I:$I,$A6)) -> 30 | E6: =IF($A6="",0,INDEX('All Equipment'!$K:$K,$A6)) -> 113 | F6: =IF($A6="",0,INDEX('All Equipment'!$L:$L,$A6)) -> 1 | G6: =IF($A6="",0,INDEX('All Equipment'!$M:$M,$A6)) -> 2 | H6: =IF($A6="",0,INDEX('All Equipment'!$O:$O,$A6)) -> 0 | I6: =SUM($D6*Character!$D$42)+($E6*Character!$E$42)+($F6*Character!$F$42)+($G6*Character!$G$42)+($H6*Character!$H$42) -> 150.3882979 | K6: TALENTS
A7: =IFERROR(INDEX(DropDown!$O$1:$O$1000,MATCH(1,(DropDown!$M$1:$M$1000=SUBSTITUTE(SUBSTITUTE($B7,1,""),2,""))*(DropDown!$N$1:$N$1000=$C7),0)),"") -> 73 | B7: Weapon Enchant | C7: Enchant Weapon - Spell Power | D7: =IF($A7="",0,INDEX('All Equipment'!$I:$I,$A7)) -> 0 | E7: =IF($A7="",0,INDEX('All Equipment'!$K:$K,$A7)) -> 30 | F7: =IF($A7="",0,INDEX('All Equipment'!$L:$L,$A7)) -> 0 | G7: =IF($A7="",0,INDEX('All Equipment'!$M:$M,$A7)) -> 0 | H7: =IF($A7="",0,INDEX('All Equipment'!$O:$O,$A7)) -> 0 | I7: =SUM($D7*Character!$D$42)+($E7*Character!$E$42)+($F7*Character!$F$42)+($G7*Character!$G$42)+($H7*Character!$H$42) -> 30 | M7: Pts / Max | O7: Max Dmg | AC7: TRUE
A8: =IFERROR(INDEX(DropDown!$O$1:$O$1000,MATCH(1,(DropDown!$M$1:$M$1000=SUBSTITUTE(SUBSTITUTE($B8,1,""),2,""))*(DropDown!$N$1:$N$1000=$C8),0)),"") -> 77 | B8: Weapon Attachment | C8: Blessed Wizard Oil | D8: =IF($A8="",0,INDEX('All Equipment'!$I:$I,$A8)) -> 0 | E8: =IF($A8="",0,INDEX('All Equipment'!$K:$K,$A8)) -> 60 | F8: =IF($A8="",0,INDEX('All Equipment'!$L:$L,$A8)) -> 0 | G8: =IF($A8="",0,INDEX('All Equipment'!$M:$M,$A8)) -> 0 | H8: =IF($A8="",0,INDEX('All Equipment'!$O:$O,$A8)) -> 0 | I8: =SUM($D8*Character!$D$42)+($E8*Character!$E$42)+($F8*Character!$F$42)+($G8*Character!$G$42)+($H8*Character!$H$42) -> 60 | L8: Improved Moonfire | M8: 5 | N8: 5 | O8: 0.1 | P8: =IF(AND($AC8,$AD8,OR($AE8,$AE8="")),"Yes","No") -> Yes | X8: =$O8*MIN($M8:$N8)/$N8 -> 0.1 | AC8: TRUE
A9: =IFERROR(INDEX(DropDown!$O$1:$O$1000,MATCH(1,(DropDown!$M$1:$M$1000=SUBSTITUTE(SUBSTITUTE($B9,1,""),2,""))*(DropDown!$N$1:$N$1000=$C9),0)),"") -> 83 | B9: Off-Hand | C9: --- Empty --- | D9: =IF($A9="",0,INDEX('All Equipment'!$I:$I,$A9)) -> 0 | E9: =IF($A9="",0,INDEX('All Equipment'!$K:$K,$A9)) -> 0 | F9: =IF($A9="",0,INDEX('All Equipment'!$L:$L,$A9)) -> 0 | G9: =IF($A9="",0,INDEX('All Equipment'!$M:$M,$A9)) -> 0 | H9: =IF($A9="",0,INDEX('All Equipment'!$O:$O,$A9)) -> 0 | I9: =SUM($D9*Character!$D$42)+($E9*Character!$E$42)+($F9*Character!$F$42)+($G9*Character!$G$42)+($H9*Character!$H$42) -> 0 | L9: Moonfury | M9: 5 | N9: 5 | O9: 0.1 | P9: =IF(AND($AC9,$AD9,OR($AE9,$AE9="")),"Yes","No") -> Yes | X9: =$O9*MIN($M9:$N9)/$N9 -> 0.1 | Z9: =1.1 -> 1.1 | AA9: =1+($Z9-1)*(MIN($M9:$N9)/$N9)*(P9="Yes") -> 1.1 | AC9: TRUE
A10: =IFERROR(INDEX(DropDown!$O$1:$O$1000,MATCH(1,(DropDown!$M$1:$M$1000=SUBSTITUTE(SUBSTITUTE($B10,1,""),2,""))*(DropDown!$N$1:$N$1000=$C10),0)),"") -> 119 | B10: Idol | C10: Idol of the Moon | D10: =IF($A10="",0,INDEX('All Equipment'!$I:$I,$A10)) -> 0 | E10: =IF($A10="",0,INDEX('All Equipment'!$K:$K,$A10)) -> 0 | F10: =IF($A10="",0,INDEX('All Equipment'!$L:$L,$A10)) -> 0 | G10: =IF($A10="",0,INDEX('All Equipment'!$M:$M,$A10)) -> 0 | H10: =IF($A10="",0,INDEX('All Equipment'!$O:$O,$A10)) -> 0 | I10: =SUM($D10*Character!$D$42)+($E10*Character!$E$42)+($F10*Character!$F$42)+($G10*Character!$G$42)+($H10*Character!$H$42) -> 0 | L10: Moonkin | M10: 1 | N10: 1 | O10: 0.03 | P10: =IF(AND($AC10,$AD10,OR($AE10,$AE10="")),"Yes","No") -> Yes | U10: =$O10*MIN($M10:$N10)/$N10 -> 0.03 | AC10: TRUE
A11: =IFERROR(INDEX(DropDown!$O$1:$O$1000,MATCH(1,(DropDown!$M$1:$M$1000=SUBSTITUTE(SUBSTITUTE($B11,1,""),2,""))*(DropDown!$N$1:$N$1000=$C11),0)),"") -> 163 | B11: Head | C11: Preceptor's Hat | D11: =IF($A11="",0,INDEX('All Equipment'!$I:$I,$A11)) -> 24 | E11: =IF($A11="",0,INDEX('All Equipment'!$K:$K,$A11)) -> 51 | F11: =IF($A11="",0,INDEX('All Equipment'!$L:$L,$A11)) -> 0 | G11: =IF($A11="",0,INDEX('All Equipment'!$M:$M,$A11)) -> 0 | H11: =IF($A11="",0,INDEX('All Equipment'!$O:$O,$A11)) -> 0 | I11: =SUM($D11*Character!$D$42)+($E11*Character!$E$42)+($F11*Character!$F$42)+($G11*Character!$G$42)+($H11*Character!$H$42) -> 53.71914894 | L11: Vengeance | M11: 5 | N11: 5 | O11: 1 | P11: =IF(AND($AC11,$AD11,OR($AE11,$AE11="")),"Yes","No") -> Yes | X11: =$O11*MIN($M11:$N11)/$N11 -> 1 | AC11: TRUE
A12: =IFERROR(INDEX(DropDown!$O$1:$O$1000,MATCH(1,(DropDown!$M$1:$M$1000=SUBSTITUTE(SUBSTITUTE($B12,1,""),2,""))*(DropDown!$N$1:$N$1000=$C12),0)),"") -> 180 | B12: Head Enchant | C12: Arcanum of Focus | D12: =IF($A12="",0,INDEX('All Equipment'!$I:$I,$A12)) -> 0 | E12: =IF($A12="",0,INDEX('All Equipment'!$K:$K,$A12)) -> 8 | F12: =IF($A12="",0,INDEX('All Equipment'!$L:$L,$A12)) -> 0 | G12: =IF($A12="",0,INDEX('All Equipment'!$M:$M,$A12)) -> 0 | H12: =IF($A12="",0,INDEX('All Equipment'!$O:$O,$A12)) -> 0 | I12: =SUM($D12*Character!$D$42)+($E12*Character!$E$42)+($F12*Character!$F$42)+($G12*Character!$G$42)+($H12*Character!$H$42) -> 8 | K12: BUFFS
A13: =IFERROR(INDEX(DropDown!$O$1:$O$1000,MATCH(1,(DropDown!$M$1:$M$1000=SUBSTITUTE(SUBSTITUTE($B13,1,""),2,""))*(DropDown!$N$1:$N$1000=$C13),0)),"") -> 192 | B13: Neck | C13: Choker of the Fire Lord | D13: =IF($A13="",0,INDEX('All Equipment'!$I:$I,$A13)) -> 7 | E13: =IF($A13="",0,INDEX('All Equipment'!$K:$K,$A13)) -> 34 | F13: =IF($A13="",0,INDEX('All Equipment'!$L:$L,$A13)) -> 0 | G13: =IF($A13="",0,INDEX('All Equipment'!$M:$M,$A13)) -> 0 | H13: =IF($A13="",0,INDEX('All Equipment'!$O:$O,$A13)) -> 0 | I13: =SUM($D13*Character!$D$42)+($E13*Character!$E$42)+($F13*Character!$F$42)+($G13*Character!$G$42)+($H13*Character!$H$42) -> 34.79308511 | L13: Arcane Brilliance | M13: 1 | P13: =IF(AND($AC13,$AD13,OR($AE13,$AE13="")),"Yes","No") -> Yes | Q13: 31 | AC13: TRUE | AD13: =$F$2>=$M13 -> TRUE
A14: =IFERROR(INDEX(DropDown!$O$1:$O$1000,MATCH(1,(DropDown!$M$1:$M$1000=SUBSTITUTE(SUBSTITUTE($B14,1,""),2,""))*(DropDown!$N$1:$N$1000=$C14),0)),"") -> 241 | B14: Shoulders | C14: Rime Covered Mantle | D14: =IF($A14="",0,INDEX('All Equipment'!$I:$I,$A14)) -> 12 | E14: =IF($A14="",0,INDEX('All Equipment'!$K:$K,$A14)) -> 39 | F14: =IF($A14="",0,INDEX('All Equipment'!$L:$L,$A14)) -> 1 | G14: =IF($A14="",0,INDEX('All Equipment'!$M:$M,$A14)) -> 0 | H14: =IF($A14="",0,INDEX('All Equipment'!$O:$O,$A14)) -> 0 | I14: =SUM($D14*Character!$D$42)+($E14*Character!$E$42)+($F14*Character!$F$42)+($G14*Character!$G$42)+($H14*Character!$H$42) -> 47.15744681 | L14: Blessing of Kings | M14: 1 | P14: Yes | R14: 0.1 | AC14: TRUE | AD14: TRUE
A15: =IFERROR(INDEX(DropDown!$O$1:$O$1000,MATCH(1,(DropDown!$M$1:$M$1000=SUBSTITUTE(SUBSTITUTE($B15,1,""),2,""))*(DropDown!$N$1:$N$1000=$C15),0)),"") -> 254 | B15: Shoulder Enchant | C15: Power of the Scourge | D15: =IF($A15="",0,INDEX('All Equipment'!$I:$I,$A15)) -> 0 | E15: =IF($A15="",0,INDEX('All Equipment'!$K:$K,$A15)) -> 15 | F15: =IF($A15="",0,INDEX('All Equipment'!$L:$L,$A15)) -> 1 | G15: =IF($A15="",0,INDEX('All Equipment'!$M:$M,$A15)) -> 0 | H15: =IF($A15="",0,INDEX('All Equipment'!$O:$O,$A15)) -> 0 | I15: =SUM($D15*Character!$D$42)+($E15*Character!$E$42)+($F15*Character!$F$42)+($G15*Character!$G$42)+($H15*Character!$H$42) -> 21.79787234 | L15: Improved Gift of the Wild | M15: 1 | P15: Yes | Q15: 16 | AC15: TRUE | AD15: TRUE
A16: =IFERROR(INDEX(DropDown!$O$1:$O$1000,MATCH(1,(DropDown!$M$1:$M$1000=SUBSTITUTE(SUBSTITUTE($B16,1,""),2,""))*(DropDown!$N$1:$N$1000=$C16),0)),"") -> 263 | B16: Chest | C16: Bloodvine Vest | D16: =IF($A16="",0,INDEX('All Equipment'!$I:$I,$A16)) -> 13 | E16: =IF($A16="",0,INDEX('All Equipment'!$K:$K,$A16)) -> 27 | F16: =IF($A16="",0,INDEX('All Equipment'!$L:$L,$A16)) -> 0 | G16: =IF($A16="",0,INDEX('All Equipment'!$M:$M,$A16)) -> 2 | H16: =IF($A16="",0,INDEX('All Equipment'!$O:$O,$A16)) -> 0 | I16: =SUM($D16*Character!$D$42)+($E16*Character!$E$42)+($F16*Character!$F$42)+($G16*Character!$G$42)+($H16*Character!$H$42) -> 55.6643617 | L16: Power Infusion | M16: 1 | P16: No | X16: 0.2 | Z16: 1.2 | AA16: =1+($Z16-1)*(P16="Yes") -> 1 | AC16: FALSE | AD16: TRUE
A17: =IFERROR(INDEX(DropDown!$O$1:$O$1000,MATCH(1,(DropDown!$M$1:$M$1000=SUBSTITUTE(SUBSTITUTE($B17,1,""),2,""))*(DropDown!$N$1:$N$1000=$C17),0)),"") -> 323 | B17: Chest Enchant | C17: Enchant Chest - Greater Stats | D17: =IF($A17="",0,INDEX('All Equipment'!$I:$I,$A17)) -> 4 | E17: =IF($A17="",0,INDEX('All Equipment'!$K:$K,$A17)) -> 0 | F17: =IF($A17="",0,INDEX('All Equipment'!$L:$L,$A17)) -> 0 | G17: =IF($A17="",0,INDEX('All Equipment'!$M:$M,$A17)) -> 0 | H17: =IF($A17="",0,INDEX('All Equipment'!$O:$O,$A17)) -> 0 | I17: =SUM($D17*Character!$D$42)+($E17*Character!$E$42)+($F17*Character!$F$42)+($G17*Character!$G$42)+($H17*Character!$H$42) -> 0.4531914894 | L17: Power of the Guardian (Mage) | M17: 6 | P17: No | U17: 0.02 | AC17: FALSE | AD17: TRUE
A18: =IFERROR(INDEX(DropDown!$O$1:$O$1000,MATCH(1,(DropDown!$M$1:$M$1000=SUBSTITUTE(SUBSTITUTE($B18,1,""),2,""))*(DropDown!$N$1:$N$1000=$C18),0)),"") -> 342 | B18: Back | C18: Cloak of the Necropolis | D18: =IF($A18="",0,INDEX('All Equipment'!$I:$I,$A18)) -> 11 | E18: =IF($A18="",0,INDEX('All Equipment'!$K:$K,$A18)) -> 26 | F18: =IF($A18="",0,INDEX('All Equipment'!$L:$L,$A18)) -> 1 | G18: =IF($A18="",0,INDEX('All Equipment'!$M:$M,$A18)) -> 1 | H18: =IF($A18="",0,INDEX('All Equipment'!$O:$O,$A18)) -> 0 | I18: =SUM($D18*Character!$D$42)+($E18*Character!$E$42)+($F18*Character!$F$42)+($G18*Character!$G$42)+($H18*Character!$H$42) -> 47.63989362 | L18: Power of the Guardian (Warlock) | M18: 6 | P18: No | S18: 33 | AC18: FALSE | AD18: =$F$2>=$M18 -> TRUE
A19: =IFERROR(INDEX(DropDown!$O$1:$O$1000,MATCH(1,(DropDown!$M$1:$M$1000=SUBSTITUTE(SUBSTITUTE($B19,1,""),2,""))*(DropDown!$N$1:$N$1000=$C19),0)),"") -> 388 | B19: Back Enchant | C19: Enchant Cloak - Subtlety | D19: =IF($A19="",0,INDEX('All Equipment'!$I:$I,$A19)) -> 0 | E19: =IF($A19="",0,INDEX('All Equipment'!$K:$K,$A19)) -> 0 | F19: =IF($A19="",0,INDEX('All Equipment'!$L:$L,$A19)) -> 0 | G19: =IF($A19="",0,INDEX('All Equipment'!$M:$M,$A19)) -> 0 | H19: =IF($A19="",0,INDEX('All Equipment'!$O:$O,$A19)) -> 0 | I19: =SUM($D19*Character!$D$42)+($E19*Character!$E$42)+($F19*Character!$F$42)+($G19*Character!$G$42)+($H19*Character!$H$42) -> 0 | K19: WORLD
A20: =IFERROR(INDEX(DropDown!$O$1:$O$1000,MATCH(1,(DropDown!$M$1:$M$1000=SUBSTITUTE(SUBSTITUTE($B20,1,""),2,""))*(DropDown!$N$1:$N$1000=$C20),0)),"") -> 432 | B20: Wrists | C20: Rockfury Bracers | D20: =IF($A20="",0,INDEX('All Equipment'!$I:$I,$A20)) -> 0 | E20: =IF($A20="",0,INDEX('All Equipment'!$K:$K,$A20)) -> 27 | F20: =IF($A20="",0,INDEX('All Equipment'!$L:$L,$A20)) -> 0 | G20: =IF($A20="",0,INDEX('All Equipment'!$M:$M,$A20)) -> 1 | H20: =IF($A20="",0,INDEX('All Equipment'!$O:$O,$A20)) -> 0 | I20: =SUM($D20*Character!$D$42)+($E20*Character!$E$42)+($F20*Character!$F$42)+($G20*Character!$G$42)+($H20*Character!$H$42) -> 40.59574468 | L20: Blessing of Blackfathom | M20: 1 | P20: =IF(AND($AC20,$AD20,OR($AE20,$AE20="")),"Yes","No") -> No | Q20: 5 | AC20: FALSE | AD20: TRUE
A21: =IFERROR(INDEX(DropDown!$O$1:$O$1000,MATCH(1,(DropDown!$M$1:$M$1000=SUBSTITUTE(SUBSTITUTE($B21,1,""),2,""))*(DropDown!$N$1:$N$1000=$C21),0)),"") -> 446 | B21: Wrist Enchant | C21: Enchant Bracer - Greater Intellect | D21: =IF($A21="",0,INDEX('All Equipment'!$I:$I,$A21)) -> 7 | E21: =IF($A21="",0,INDEX('All Equipment'!$K:$K,$A21)) -> 0 | F21: =IF($A21="",0,INDEX('All Equipment'!$L:$L,$A21)) -> 0 | G21: =IF($A21="",0,INDEX('All Equipment'!$M:$M,$A21)) -> 0 | H21: =IF($A21="",0,INDEX('All Equipment'!$O:$O,$A21)) -> 0 | I21: =SUM($D21*Character!$D$42)+($E21*Character!$E$42)+($F21*Character!$F$42)+($G21*Character!$G$42)+($H21*Character!$H$42) -> 0.7930851064 | L21: Fury of Ragnaros | M21: 1 | P21: No | S21: 25 | AC21: FALSE | AD21: TRUE | AE21: =NOT($AC$33) -> FALSE
A22: =IFERROR(INDEX(DropDown!$O$1:$O$1000,MATCH(1,(DropDown!$M$1:$M$1000=SUBSTITUTE(SUBSTITUTE($B22,1,""),2,""))*(DropDown!$N$1:$N$1000=$C22),0)),"") -> 458 | B22: Hands | C22: Dark Storm Gauntlets | D22: =IF($A22="",0,INDEX('All Equipment'!$I:$I,$A22)) -> 15 | E22: =IF($A22="",0,INDEX('All Equipment'!$K:$K,$A22)) -> 37 | F22: =IF($A22="",0,INDEX('All Equipment'!$L:$L,$A22)) -> 0 | G22: =IF($A22="",0,INDEX('All Equipment'!$M:$M,$A22)) -> 1 | H22: =IF($A22="",0,INDEX('All Equipment'!$O:$O,$A22)) -> 0 | I22: =SUM($D22*Character!$D$42)+($E22*Character!$E$42)+($F22*Character!$F$42)+($G22*Character!$G$42)+($H22*Character!$H$42) -> 52.29521277 | L22: Arcane Might | M22: 1 | P22: No | S22: 30 | AC22: FALSE | AD22: TRUE | AE22: =NOT($AC$33) -> FALSE
A23: =IFERROR(INDEX(DropDown!$O$1:$O$1000,MATCH(1,(DropDown!$M$1:$M$1000=SUBSTITUTE(SUBSTITUTE($B23,1,""),2,""))*(DropDown!$N$1:$N$1000=$C23),0)),"") -> 491 | B23: Hands Enchant | C23: Enchant Gloves - Healing Power | D23: =IF($A23="",0,INDEX('All Equipment'!$I:$I,$A23)) -> 0 | E23: =IF($A23="",0,INDEX('All Equipment'!$K:$K,$A23)) -> 0 | F23: =IF($A23="",0,INDEX('All Equipment'!$L:$L,$A23)) -> 0 | G23: =IF($A23="",0,INDEX('All Equipment'!$M:$M,$A23)) -> 0 | H23: =IF($A23="",0,INDEX('All Equipment'!$O:$O,$A23)) -> 0 | I23: =SUM($D23*Character!$D$42)+($E23*Character!$E$42)+($F23*Character!$F$42)+($G23*Character!$G$42)+($H23*Character!$H$42) -> 0 | L23: Rallying Cry of the Dragonslayer | M23: 1 | P23: Yes | U23: 0.1 | AC23: TRUE | AD23: TRUE
A24: =IFERROR(INDEX(DropDown!$O$1:$O$1000,MATCH(1,(DropDown!$M$1:$M$1000=SUBSTITUTE(SUBSTITUTE($B24,1,""),2,""))*(DropDown!$N$1:$N$1000=$C24),0)),"") -> 507 | B24: Waist | C24: Eyestalk Waist Cord | D24: =IF($A24="",0,INDEX('All Equipment'!$I:$I,$A24)) -> 9 | E24: =IF($A24="",0,INDEX('All Equipment'!$K:$K,$A24)) -> 41 | F24: =IF($A24="",0,INDEX('All Equipment'!$L:$L,$A24)) -> 1 | G24: =IF($A24="",0,INDEX('All Equipment'!$M:$M,$A24)) -> 0 | H24: =IF($A24="",0,INDEX('All Equipment'!$O:$O,$A24)) -> 0 | I24: =SUM($D24*Character!$D$42)+($E24*Character!$E$42)+($F24*Character!$F$42)+($G24*Character!$G$42)+($H24*Character!$H$42) -> 48.81755319 | L24: Sayge's Dark Fortune of Damage | M24: 3 | P24: No | X24: 0.1 | Z24: 1.1 | AA24: =1+($Z24-1)*(P24="Yes") -> 1 | AC24: FALSE | AD24: TRUE
A25: =IFERROR(INDEX(DropDown!$O$1:$O$1000,MATCH(1,(DropDown!$M$1:$M$1000=SUBSTITUTE(SUBSTITUTE($B25,1,""),2,""))*(DropDown!$N$1:$N$1000=$C25),0)),"") -> 532 | B25: Legs | C25: Bloodvine Leggings | D25: =IF($A25="",0,INDEX('All Equipment'!$I:$I,$A25)) -> 6 | E25: =IF($A25="",0,INDEX('All Equipment'!$K:$K,$A25)) -> 37 | F25: =IF($A25="",0,INDEX('All Equipment'!$L:$L,$A25)) -> 0 | G25: =IF($A25="",0,INDEX('All Equipment'!$M:$M,$A25)) -> 1 | H25: =IF($A25="",0,INDEX('All Equipment'!$O:$O,$A25)) -> 0 | I25: =SUM($D25*Character!$D$42)+($E25*Character!$E$42)+($F25*Character!$F$42)+($G25*Character!$G$42)+($H25*Character!$H$42) -> 51.27553191 | L25: Sayge's Dark Fortune of Intelligence | M25: 3 | P25: =IF(AND($AC25,$AD25,OR($AE25,$AE25="")),"Yes","No") -> No | Q25: =$D$33*10% -> 10 | AC25: FALSE | AD25: =$F$2>=$M25 -> TRUE
A26: =IFERROR(INDEX(DropDown!$O$1:$O$1000,MATCH(1,(DropDown!$M$1:$M$1000=SUBSTITUTE(SUBSTITUTE($B26,1,""),2,""))*(DropDown!$N$1:$N$1000=$C26),0)),"") -> 569 | B26: Legs Enchant | C26: Arcanum of Focus | D26: =IF($A26="",0,INDEX('All Equipment'!$I:$I,$A26)) -> 0 | E26: =IF($A26="",0,INDEX('All Equipment'!$K:$K,$A26)) -> 8 | F26: =IF($A26="",0,INDEX('All Equipment'!$L:$L,$A26)) -> 0 | G26: =IF($A26="",0,INDEX('All Equipment'!$M:$M,$A26)) -> 0 | H26: =IF($A26="",0,INDEX('All Equipment'!$O:$O,$A26)) -> 0 | I26: =SUM($D26*Character!$D$42)+($E26*Character!$E$42)+($F26*Character!$F$42)+($G26*Character!$G$42)+($H26*Character!$H$42) -> 8 | L26: Slip'kik's Savy | M26: 2 | P26: Yes | U26: 0.03 | AC26: TRUE | AD26: TRUE
A27: =IFERROR(INDEX(DropDown!$O$1:$O$1000,MATCH(1,(DropDown!$M$1:$M$1000=SUBSTITUTE(SUBSTITUTE($B27,1,""),2,""))*(DropDown!$N$1:$N$1000=$C27),0)),"") -> 580 | B27: Feet | C27: Bloodvine Boots | D27: =IF($A27="",0,INDEX('All Equipment'!$I:$I,$A27)) -> 16 | E27: =IF($A27="",0,INDEX('All Equipment'!$K:$K,$A27)) -> 19 | F27: =IF($A27="",0,INDEX('All Equipment'!$L:$L,$A27)) -> 0 | G27: =IF($A27="",0,INDEX('All Equipment'!$M:$M,$A27)) -> 1 | H27: =IF($A27="",0,INDEX('All Equipment'!$O:$O,$A27)) -> 0 | I27: =SUM($D27*Character!$D$42)+($E27*Character!$E$42)+($F27*Character!$F$42)+($G27*Character!$G$42)+($H27*Character!$H$42) -> 34.40851064 | L27: Songflower Serenade | M27: 1 | P27: Yes | Q27: 15 | U27: 0.05 | AC27: TRUE | AD27: TRUE
A28: =IFERROR(INDEX(DropDown!$O$1:$O$1000,MATCH(1,(DropDown!$M$1:$M$1000=SUBSTITUTE(SUBSTITUTE($B28,1,""),2,""))*(DropDown!$N$1:$N$1000=$C28),0)),"") -> 624 | B28: Feet Enchant | C28: Enchant Boots - Spirit | D28: =IF($A28="",0,INDEX('All Equipment'!$I:$I,$A28)) -> 0 | E28: =IF($A28="",0,INDEX('All Equipment'!$K:$K,$A28)) -> 0 | F28: =IF($A28="",0,INDEX('All Equipment'!$L:$L,$A28)) -> 0 | G28: =IF($A28="",0,INDEX('All Equipment'!$M:$M,$A28)) -> 0 | H28: =IF($A28="",0,INDEX('All Equipment'!$O:$O,$A28)) -> 0 | I28: =SUM($D28*Character!$D$42)+($E28*Character!$E$42)+($F28*Character!$F$42)+($G28*Character!$G$42)+($H28*Character!$H$42) -> 0 | L28: Spirit of Zandalar | M28: 4 | P28: Yes | R28: 0.15 | AC28: TRUE | AD28: TRUE
A29: =IFERROR(INDEX(DropDown!$O$1:$O$1000,MATCH(1,(DropDown!$M$1:$M$1000=SUBSTITUTE(SUBSTITUTE($B29,1,""),2,""))*(DropDown!$N$1:$N$1000=$C29),0)),"") -> 648 | B29: Finger1 | C29: Ring of the Fallen God | D29: =IF($A29="",0,INDEX('All Equipment'!$I:$I,$A29)) -> 6 | E29: =IF($A29="",0,INDEX('All Equipment'!$K:$K,$A29)) -> 37 | F29: =IF($A29="",0,INDEX('All Equipment'!$L:$L,$A29)) -> 0 | G29: =IF($A29="",0,INDEX('All Equipment'!$M:$M,$A29)) -> 1 | H29: =IF($A29="",0,INDEX('All Equipment'!$O:$O,$A29)) -> 0 | I29: =SUM($D29*Character!$D$42)+($E29*Character!$E$42)+($F29*Character!$F$42)+($G29*Character!$G$42)+($H29*Character!$H$42) -> 51.27553191 | L29: Traces of Silithyst | M29: 6 | P29: No | X29: 0.05 | Z29: 1.05 | AA29: =1+($Z29-1)*(P29="Yes") -> 1 | AC29: FALSE | AD29: TRUE
A30: =IFERROR(INDEX(DropDown!$O$1:$O$1000,MATCH(1,(DropDown!$M$1:$M$1000=SUBSTITUTE(SUBSTITUTE($B30,1,""),2,""))*(DropDown!$N$1:$N$1000=$C30),0)),"") -> 632 | B30: Finger2 | C30: Band of the Inevitable | D30: =IF($A30="",0,INDEX('All Equipment'!$I:$I,$A30)) -> 0 | E30: =IF($A30="",0,INDEX('All Equipment'!$K:$K,$A30)) -> 36 | F30: =IF($A30="",0,INDEX('All Equipment'!$L:$L,$A30)) -> 0 | G30: =IF($A30="",0,INDEX('All Equipment'!$M:$M,$A30)) -> 1 | H30: =IF($A30="",0,INDEX('All Equipment'!$O:$O,$A30)) -> 0 | I30: =SUM($D30*Character!$D$42)+($E30*Character!$E$42)+($F30*Character!$F$42)+($G30*Character!$G$42)+($H30*Character!$H$42) -> 49.59574468 | K30: CONSUMABLE
A31: =IFERROR(INDEX(DropDown!$O$1:$O$1000,MATCH(1,(DropDown!$M$1:$M$1000=SUBSTITUTE(SUBSTITUTE($B31,1,""),2,""))*(DropDown!$N$1:$N$1000=$C31),0)),"") -> 666 | B31: Trinket1 | C31: Mark of the Champion | D31: =IF($A31="",0,INDEX('All Equipment'!$I:$I,$A31)) -> 0 | E31: =IF($A31="",0,INDEX('All Equipment'!$K:$K,$A31)) -> 85 | F31: =IF($A31="",0,INDEX('All Equipment'!$L:$L,$A31)) -> 0 | G31: =IF($A31="",0,INDEX('All Equipment'!$M:$M,$A31)) -> 0 | H31: =IF($A31="",0,INDEX('All Equipment'!$O:$O,$A31)) -> 0 | I31: =SUM($D31*Character!$D$42)+($E31*Character!$E$42)+($F31*Character!$F$42)+($G31*Character!$G$42)+($H31*Character!$H$42) -> 85 | L31: Cerebral Cortex Compound | M31: 1 | P31: =IF(AND($AC31,$AD31,OR($AE31,$AE31="")),"Yes","No") -> Yes | Q31: 25 | AC31: TRUE | AD31: TRUE | AE31: =NOT(OR($AC$41,$AC$42)) -> TRUE
A32: =IFERROR(INDEX(DropDown!$O$1:$O$1000,MATCH(1,(DropDown!$M$1:$M$1000=SUBSTITUTE(SUBSTITUTE($B32,1,""),2,""))*(DropDown!$N$1:$N$1000=$C32),0)),"") -> 673 | B32: Trinket2 | C32: The Restrained Essence of Sapphiron | D32: =IF($A32="",0,INDEX('All Equipment'!$I:$I,$A32)) -> 0 | E32: =IF($A32="",0,INDEX('All Equipment'!$K:$K,$A32)) -> 65.0877193 | F32: =IF($A32="",0,INDEX('All Equipment'!$L:$L,$A32)) -> 0 | G32: =IF($A32="",0,INDEX('All Equipment'!$M:$M,$A32)) -> 0 | H32: =IF($A32="",0,INDEX('All Equipment'!$O:$O,$A32)) -> 0 | I32: =SUM($D32*Character!$D$42)+($E32*Character!$E$42)+($F32*Character!$F$42)+($G32*Character!$G$42)+($H32*Character!$H$42) -> 65.0877193 | L32: Flask of Supreme Power | M32: 1 | P32: =IF(AND($AC32,$AD32,OR($AE32,$AE32="")),"Yes","No") -> Yes | S32: 150 | AC32: TRUE | AD32: TRUE
C33: Faction Bonus | D33: =IF(CharFaction="Alliance",100,IF(CharFaction="Horde",95,0)) -> 100 | E33: =Settings!$W$6 -> 0 | F33: 0 | G33: =Settings!$W$8 -> 0 | I33: =IF($C33="","",SUM($D33*Character!$D$42)+($E33*Character!$E$42)+($F33*Character!$F$42)+($G33*Character!$G$42)+($H33*Character!$H$42)) -> 11.32978723 | L33: Greater Arcane Elixir | M33: 1 | P33: =IF(AND($AC33,$AD33,OR($AE33,$AE33="")),"Yes","No") -> Yes | S33: 35 | AC33: TRUE | AD33: TRUE | AE33: =NOT(OR($AC$21,$AC$22)) -> TRUE
C34: Special Set Bonus | E34: =Settings!$W$6 -> 0 | F34: =Settings!$W$7 -> 2 | G34: =Settings!$W$8 -> 0 | I34: =IF($C34="","",SUM($D34*Character!$D$42)+($E34*Character!$E$42)+($F34*Character!$F$42)+($G34*Character!$G$42)+($H34*Character!$H$42)) -> 13.59574468 | K34: FOOD
B35: Total | D35: =SUM(D6:D34) -> 260 | E35: =SUM(E6:E34) -> 795.0877193 | F35: =SUM(F6:F34)/100 -> 0.07 | G35: =SUM(G6:G34)/100 -> 0.11 | H35: =SUM(H6:H34) -> 0 | I35: =SUM(I6:I34) -> 1021.683464 | L35: Runn Tum Tuber Surprise | M35: 1 | P35: =IF(AND($AC35,$AD35,OR($AE35,$AE35="")),"Yes","No") -> Yes | Q35: 10 | AC35: TRUE | AD35: TRUE
B36: Increase (Pts) | D36: =$Q$51 -> 97 | E36: =$S$51 -> 185 | F36: n/a | G36: n/a | H36: =$W$51 -> 75 | K36: HOLIDAY
B37: Increase (%) | D37: =$R$51 -> 0.25 | E37: =$T$51 -> 0 | F37: =$U$51 -> 0.81 | G37: =$V$51 -> 0 | H37: n/a | I37: DPS | L37: Celebrate Good Times! | M37: 1 | P37: =IF(AND($AC37,$AD37,OR($AE37,$AE37="")),"Yes","No") -> No | Q37: =$D$33*10% -> 10 | AC37: FALSE | AD37: TRUE
B38: Buffed Total | D38: =SUM(D35:D36)*(1+IF(ISNUMBER(D37),D37,0)) -> 446.25 | E38: =SUM(E35:E36)*(1+IF(ISNUMBER(E37),E37,0)) -> 980.0877193 | F38: =SUM(F35:F37) -> 0.88 | G38: =SUM(G35:G37) -> 0.11 | H38: =SUM(H35:H36)*(1+IF(ISNUMBER(H37),H37,0)) -> 75 | I38: ='DPS Calculator'!$F$29 -> 1163.769623 | L38: Elune's Blessing | M38: 1 | P38: No | Q38: =$D$33*10% -> 10 | AC38: FALSE | AD38: TRUE
H39: Created By: Keftenk | L39: Fire Festival Fury | M39: 1 | P39: No | U39: 0.03 | AC39: FALSE | AD39: TRUE
L40: Midsummer Sausage | M40: 1 | P40: No | S40: 23 | AC40: FALSE | AD40: TRUE
C41: Character Weights: | D41: Int | E41: Sp | F41: Crit | G41: Hit | H41: Pen | L41: Stormwind Gift of Friendship | M41: 1 | O41: Alliance | P41: No | Q41: 30 | AC41: FALSE | AD41: TRUE | AE41: =AND($O41=CharFaction,NOT($AC$31)) -> FALSE
D42: =INDEX(Settings!B:B,MATCH(CharRotation&"-"&CharPhase&"-"&CharRank,Settings!$A:$A,0)) -> 0.1132978723 | E42: =INDEX(Settings!C:C,MATCH(CharRotation&"-"&CharPhase&"-"&CharRank,Settings!$A:$A,0)) -> 1 | F42: =INDEX(Settings!D:D,MATCH(CharRotation&"-"&CharPhase&"-"&CharRank,Settings!$A:$A,0)) -> 6.79787234 | G42: =INDEX(Settings!E:E,MATCH(CharRotation&"-"&CharPhase&"-"&CharRank,Settings!$A:$A,0)) -> 13.59574468 | H42: =INDEX(Settings!F:F,MATCH(CharRotation&"-"&CharPhase&"-"&CharRank,Settings!$A:$A,0)) -> 0 | L42: Undercity Gift of Friendship | M42: 1 | O42: Horde | P42: No | Q42: 30 | AC42: FALSE | AD42: TRUE | AE42: =AND($O42=CharFaction,NOT($AC$31)) -> FALSE
C43: Exact Weights: | D43: =F43/60 -> 0.1132978723 | E43: =E42 -> 1 | F43: =Weights!$T$2 -> 6.79787234 | G43: =Weights!$AN$2 -> 13.59574468 | H43: 0 | L43: Very Berry Cream | M43: 1 | P43: No | S43: 23 | AC43: FALSE | AD43: TRUE
K44: DEBUFFS
L45: Curse of Shadow | M45: 1 | O45: Starfire | P45: =IF(AND($AC45,$AD45,OR($AE45,$AE45="")),"Yes","No") -> Yes | W45: 75 | X45: 0.1 | Z45: 1.1 | AA45: =1+($Z45-1)*(P45="Yes") -> 1.1 | AC45: TRUE | AD45: TRUE | AE45: =$O45=CharRotation -> TRUE | AF45: =$O45=CharRotation -> TRUE
L46: Spell Vulnerability | M46: 3 | P46: =IF(AND($AC46,$AD46,OR($AE46,$AE46="")),"Yes","No") -> No | X46: 0.15 | Y46: 0.4 | Z46: 1.15 | AA46: =1+($Z46-1)*$Y46*(P46="Yes") -> 1 | AC46: FALSE | AD46: TRUE
L47: Stormstrike | M47: 1 | O47: Wrath | P47: =IF(AND($AC47,$AD47,OR($AE47,$AE47="")),"Yes","No") -> No | X47: 0.2 | Y47: 1 | Z47: 1.15 | AA47: =1+($Z47-1)*$Y47*($P47="Yes")*(CharRotation="Wrath") -> 1 | AC47: FALSE | AD47: TRUE | AE47: =$O47=CharRotation -> FALSE
L48: Thunderfury | M48: 3 | O48: Wrath | P48: =IF(AND($AC48,$AD48,OR($AE48,$AE48="")),"Yes","No") -> No | W48: 25 | AC48: FALSE | AD48: TRUE | AE48: =$O48=CharRotation -> FALSE | AF48: =$O48=CharRotation -> FALSE
L49: Fungal Bloom | M49: 6 | P49: =IF(AND($AC49,$AD49,OR($AE49,$AE49="")),"Yes","No") -> Yes | U49: 0.6 | AC49: TRUE | AD49: TRUE
L51: Total Selected: | Q51: =SUMIFS(Q$6:Q$50,$P$6:$P$50,"Yes") -> 97 | R51: 0.25 | S51: 185 | T51: 0 | U51: 0.81 | V51: 0 | W51: 75 | X51: 1.3

Sheet Moonkin Aura
B2: Party Composition | D2: DPS | F2: Warlock Stats: | H2: Spell | I2: DMG | J2: DPS | L2: 5/5 Bane | M2: Curse of Shadow
B3: Warlock | C3: 4 | D3: =C3*J4+C4*J5 -> 84.62741524 | F3: Spell Dmg | G3: 571 | H3: Extra ISB Upkeep | I3: =(1-BINOMDIST(0,4,((83%+G5)*(G4+3%+5%)),FALSE))-(1-BINOMDIST(0,4,((83%+G5)*(G4+5%)),FALSE)) -> 0.0570729658 | L3: 5/5 Devastation | M3: Curse of Shadow
B4: Corruptions | C4: 4 | F4: Spell Crit% | G4: 0.1421 | H4: Shadowbolt | I4: =(((510+G3*6/7)*(1-(G4+3%+5%))*IF((83%+G5)>99%,99%,(83%+G5))+(510+G3*6/7)*2*(G4+3%+5%)*IF((83%+G5)>99%,99%,(83%+G5)))*(1.1*1.15*(IF(C9>0,1.15,1))*(1+0.2*(1-BINOMDIST(0,4,(IF((83%+G5)>99%,99%,(83%+G5))*(G4+5%+3%)),FALSE))))-((510+G3*6/7)*(1-(G4+5%))*IF((83%+G5)>99%,99%,(83%+G5))+(510+G3*6/7)*2*(G4+5%)*IF((83%+G5)>99%,99%,(83%+G5)))*((1.1*1.15*(IF(C9>0,1.15,1))*(1+0.2*(1-BINOMDIST(0,4,(IF((83%+G5)>99%,99%,(83%+G5))*(G4+5%)),FALSE)))))) -> 50.51754521 | J4: =I4/2.5 -> 20.20701809 | L4: 1/1 Ruin | M4: ISB based on the warlock stats
B5: Frost Mage | C5: 0 | D5: =C5*J8 -> 0 | F5: Spell Hit% | G5: 0.02 | H5: Corruption | I5: =(822+G3)*IF((83%+G5)>99%,99%,(83%+G5))*(1.1*1.15*(IF(C9>0,1.15,1))*(1+0.2*(1-BINOMDIST(0,4,(IF((83%+G5)>99%,99%,(83%+G5))*(G4+5%+3%)),FALSE))))-(822+G3)*IF((83%+G5)>99%,99%,(83%+G5))*(1.1*1.15*(IF(C9>0,1.15,1))*(1+0.2*(1-BINOMDIST(0,4,(IF((83%+G5)>99%,99%,(83%+G5))*(G4+5%)),FALSE)))) -> 17.09704302 | J5: =I5/18 -> 0.9498357235 | L5: 1/1 Demonic Sacrifice | M5: Shadow weaving incase spriest is selected
B6: Fire Mage | C6: 0 | D6: =C6*J14 -> 0
B7: Elemental Shaman | C7: 0 | D7: =C7*(I22*3+I23)/7.5 -> 0 | F7: Frost Mage Stats: | H7: Spell | I7: DMG | J7: DPS | L7: 5/5 Improved Frostbolt | M7: Curse of the Elements
B8: Smite Priest | C8: 0 | D8: =C8*J28 -> 0 | F8: Spell Dmg | G8: 571 | H8: Frostbolt | I8: =((((515+556)/2+G8*3/3.5*0.95)*(1-(G9+3%+10%))*IF((83%+G10+6%)>99%,99%,(83%+G10+6%))+((429+464)/2+G8*3/3.5*0.95)*2*(G9+3%+10%)*IF((83%+G10+6%)>99%,99%,(83%+G10+6%)))*1.06*1.1-(((515+556)/2+G8*3/3.5*0.95)*(1-(G9+10%))*IF((83%+G10+6%)>99%,99%,(83%+G10+6%))+((429+464)/2+G8*3/3.5*0.95)*2*(G9+10%)*IF((83%+G10+6%)>99%,99%,(83%+G10+6%)))*1.06*1.1) -> 27.90646433 | J8: =I8/2.5 -> 11.16258573 | L8: 3/3 Elemental Precision
B9: Shadow Priest | C9: 0 | D9: =IF(C3>0,C9*(I35*3+I36+I37*6)/24,C9*I34/6) -> 0 | F9: Spell Crit% | G9: 0.2421 | L9: 5/5 Ice Shards
B10: TOTAL | D10: =SUM(D3:D9) -> 84.62741524 | F10: Spell Hit% | G10: 0.08 | L10: 3/3 Piercing Ice
L11: 5/5 Winter's Chill
F13: Fire Mage Stats: | H13: Spell | I13: DMG | J13: DPS | L13: 5/5 Improved Fireball | M13: Curse of the Elements
F14: Spell Dmg | G14: 500 | H14: Fireball | I14: =(((596+761)/2+G14*3/3.5)*(1-(G15+10%+3%))*IF((83%+G16+6%)>99%,99%,(83%+G16+6%))+((596+761)/2+G14*3/3.5)*1.5*(G15+10%+3%)*IF((83%+G16+6%)>99%,99%,(83%+G16+6%)))*1.15*1.1*1.1-(((596+761)/2+G14*3/3.5)*(1-(G15+10%))*IF((83%+G16+6%)>99%,99%,(83%+G16+6%))+((596+761)/2+G14*3/3.5)*1.5*(G15+10%)*IF((83%+G16+6%)>99%,99%,(83%+G16+6%)))*1.15*1.1*1.1 -> 21.72090749 | J14: =I14/3 -> 7.240302496 | L14: 5/5 Ignite | M14: LACKS IGNITE CALCULATION
F15: Spell Crit% | G15: 0.1 | L15: 2/2 Incinerate
F16: Spell Hit% | G16: 0.05 | L16: 3/3 Improved Scorch
L17: 3/3 Critical Mass
L18: 5/5 Fire Power
L19: 3/3 Elemental Precision
F21: Elemental Shaman Stats: | H21: Spell | I21: DMG | J21: DPS | L21: 5/5 Concussion
F22: Spell Dmg | G22: 571 | H22: Lightning Bolt | I22: =((((419+468)/2+G22*3/3.5)*(1-(G23+3%+10%))*IF((83%+G24)>99%,99%,(83%+G24))+((419+468)/2+G22*3/3.5)*2*(G23+3%+10%)*IF((83%+G24)>99%,99%,(83%+G24)))*1.05-((((419+468)/2+G22*3/3.5))*(1-(G23+10%))*IF((83%+G24)>99%,99%,(83%+G24))+((419+468)/2+G22*3/3.5)*2*(G23+10%)*IF((83%+G24)>99%,99%,(83%+G24)))*1.05) -> 25.86078 | J22: =I22/2 -> 12.93039 | L22: 5/5 Call of Thunder
F23: Spell Crit% | G23: 0.24 | H23: Chain Lightning | I23: =((((492+552)/2+G22*2.5/3.5)*(1-(G23+3%+10%))*IF((83%+G24)>99%,99%,(83%+G24))+((492+552)/2+G22*2.5/3.5)*2*(G23+3%+10%)*IF((83%+G24)>99%,99%,(83%+G24)))*1.05-((((492+552)/2+G22*2.5/3.5))*(1-(G23+10%))*IF((83%+G24)>99%,99%,(83%+G24))+((492+552)/2+G22*2.5/3.5)*2*(G23+10%)*IF((83%+G24)>99%,99%,(83%+G24)))*1.05) -> 25.77564 | J23: =I23/1.5 -> 17.18376 | L23: 1/1 Elemental Fury
F24: Spell Hit% | G24: 0.05 | L24: 5/5 Tidal Mastery
L25: 5/5 Lightning Mastery
F27: Smite Priest Stats: | H27: Spell | I27: DMG | J27: DPS | L27: 5/5 Holy Specialization
F28: Spell Dmg | G28: 571 | H28: Smite | I28: =(((393.5+(G28+G31*25%)*2.5/3.5)*(1-(G29+3%+5%))*IF((83%+G30)>99%,99%,(83%+G30))+(393.5+(G28+G31*25%)*2.5/3.5)*1.5*(G29+3%+5%)*IF((83%+G30)>99%,99%,(83%+G30))*1.1)-((393.5+(G28+G31*25%)*2.5/3.5)*(1-(G29+5%))*IF((83%+G30)>99%,99%,(83%+G30))+(393.5+(G28+G31*25%)*2.5/3.5)*1.5*(G29+5%)*IF((83%+G30)>99%,99%,(83%+G30))*1.1)) -> 14.17044107 | J28: =I28/2 -> 7.085220536 | L28: 5/5 Divine Fury
F29: Spell Crit% | G29: 0.14 | L29: 2/2 Searing Light
F30: Spell Hit% | G30: 0.02 | L30: 5/5 Spiritual Guidance
F31: Spirit | G31: 300
F33: Shadow Priest Stats: | H33: Spell | I33: DMG | J33: DPS | L33: 2/2 Improved Shadow Word: Pain | M33: Curse of Shadow | N33: Assumes the following rotation
F34: Spell Dmg | G34: 571 | H34: Mind Blast | I34: =(((517.5+G34*1.5/3.5)*(1-(G35+3%+5%))*IF((83%+G36+10%)>99%,99%,(83%+G36+10%))+(517.5+G34*1.5/3.5)*1.5*(G35+3%+5%)*IF((83%+G36+10%)>99%,99%,(83%+G36+10%))*1.1*1.1*1.15*1.15)-((517.5+G34*1.5/3.5)*(1-(G35+5%))*IF((83%+G36+10%)>99%,99%,(83%+G36+10%))+(517.5+G34*1.5/3.5)*1.5*(G35+5%)*IF((83%+G36+10%)>99%,99%,(83%+G36+10%))*1.1*1.1*1.15*1.15)) -> 31.70051025 | J34: =I34/1.5 -> 21.1336735 | L34: 5/5 Shadow Focus | M34: ISB Based on warlock stats if selected | N34: SW:P, MB, MF, MF, MB,
F35: Spell Crit% | G35: 0.14 | H35: Mind Blast ISB | I35: =(((517.5+G34*1.5/3.5)*(1-(G35+3%+5%))*IF((83%+G36+10%)>99%,99%,(83%+G36+10%))+(517.5+G34*1.5/3.5)*1.5*(G35+3%+5%)*IF((83%+G36+10%)>99%,99%,(83%+G36+10%))*(1.1*1.1*1.15*1.15*(1+0.2*(1-BINOMDIST(0,4,(IF((83%+G5)>99%,99%,(83%+G5))*(G4+3%)),FALSE)))))-((517.5+G34*1.5/3.5)*(1-(G35+5%))*IF((83%+G36+10%)>99%,99%,(83%+G36+10%))+(517.5+G34*1.5/3.5)*1.5*(G35+5%)*IF((83%+G36+10%)>99%,99%,(83%+G36+10%))*(1.1*1.1*1.15*1.15*(1+0.2*(1-BINOMDIST(0,4,(IF((83%+G5)>99%,99%,(83%+G5))*(G4)),FALSE)))))) -> 41.36324029 | J35: =I35/1.5 -> 27.57549353 | L35: 5/5 Shadow Weaving | N35: MF, MF, MB, MF, MF.
F36: Spell Hit% | G36: 0.12 | H36: SWP ISB | I36: =(1136+G34*133%)*IF((83%+G36+10%)>99%,99%,(83%+G36+10%))*(1.1*1.1*1.15*1.15*(1+0.2*(1-BINOMDIST(0,4,(IF((83%+G5)>99%,99%,(83%+G5))*(G4+3%)),FALSE))))-(1136+G34*133%)*IF((83%+G36+10%)>99%,99%,(83%+G36+10%))*(1.1*1.1*1.15*1.15*(1+0.2*(1-BINOMDIST(0,4,(IF((83%+G5)>99%,99%,(83%+G5))*(G4)),FALSE)))) -> 39.85669327 | J36: =I36/24 -> 1.660695553 | L36: 5/5 Darkness
H37: Mind Flay ISB | I37: =(426+G34*45.7%)*IF((83%+G36+10%)>99%,99%,(83%+G36+10%))*(1.1*1.1*1.15*1.15*(1+0.2*(1-BINOMDIST(0,4,(IF((83%+G5)>99%,99%,(83%+G5))*(G4+3%)),FALSE))))-(426+G34*45.7%)*IF((83%+G36+10%)>99%,99%,(83%+G36+10%))*(1.1*1.1*1.15*1.15*(1+0.2*(1-BINOMDIST(0,4,(IF((83%+G5)>99%,99%,(83%+G5))*(G4)),FALSE)))) -> 14.44497337 | J37: =I37/3 -> 4.814991123 | L37: 1/1 Shadowform

Sheet DPS Calculator
E3: DPS Calculator
C4: Input Values | G4: Output Values
C6: Chance to Hit | D6: =Weights!$Q$2 -> 11 | G6: Chance to Miss | H6: =100-(83+MIN($D$6,16)) -> 6
C8: =CharRank -> Rank 7 | D8: =IFERROR(INDEX(Settings!$H:$O,MATCH(CharRotation&"-"&CharPhase&"-"&CharRank,Settings!$A:$A,0),MATCH(CharRank,Settings!$H$1:$O$1,0)),0) -> 540
C9: Spellpower | D9: =Character!$E$38 -> 980.0877193 | G9: Average non-crit | H9: =($D$8*$D$11+$D$9*$D$10) -> 1574.087719 | I9: =IF(Character!M11=5,2,IF(Character!M11=4,1.9,IF(Character!M11=3,1.8,IF(Character!M11=2,1.7,IF(Character!M11=1,1.6,IF(Character!M11=0,1.5)))))) -> 2
C10: Rotation Factor | D10: =Character!$E$42 -> 1
C11: =Character!$L$9 -> Moonfury | D11: =Character!$AA$9 -> 1.1
C13: Chance to Crit | D13: =Weights!$Q$1 -> 88 | G13: Chance to Critical Hit | H13: =(1.8+$D$13+($E$14/60))*(100-$H$6)/100 -> 91.40325
C14: Intellect | D14: =Character!$D$38 -> 446.25 | E14: =MAX($D$14,180) -> 446.25
G16: Chance to Regular Hit | H16: =(100-$H$6)-$H$13 -> 2.59675
C18: Spell Penetration | D18: =Character!$H$38 -> 75 | G18: Effective Cast-time* | H18: =IF(CharRotation="Wrath",1.5,3-(0.5*($H$13/100))) -> 2.54298375 | I18: =$H$18+0.05 -> 2.59298375
C19: Boss Resistance: | D19: 0 | E19: =MIN($D$19,276) -> 0
E20: =MIN($D$18,$E$19) -> 0 | G20: Partial Resist Average Loss | H20: =($E$19-$E$20+24)/300*0.75 -> 0.06
C22: Curse of Shadow | D22: =Character!$AA$45 -> 1.1
C23: Spell Vulnerability | D23: =Character!$AA$46 -> 1
C24: Power Infusion | D24: =Character!$AA$16 -> 1
C25: Sayge's Dark Fortune of Damage | D25: =Character!$AA$24 -> 1
C26: Traces of Silithyst | D26: =Character!$AA$29 -> 1
C27: =Character!$L$47 -> Stormstrike | D27: =Character!$AA$47 -> 1
E29: DPS: | F29: =(($H$9*$H$13*$I$9+$H$9*$H$16)/100)/$I$18*$D$22*$D$23*$D$24*$D$25*$D$26*$D$27*(1-$H$20) -> 1163.769623

Sheet Weights
B1: =CONCATENATE(Character!$D$2," - ",Character!$E$2," - Phase ",Character!$F$2," - ",Character!$G$2," - ",Character!$H$2," %") -> Alliance - Starfire - Phase 6 - Rank 7 - 11 % | L1: =CharRotation&"Base" -> StarfireBase | M1: =INDEX(Settings!$H:$O,MATCH(CharRotation&"-"&CharPhase&"-"&CharRank,Settings!$A:$A,0),MATCH(Character!$G$2,Settings!$H$1:$O$1,0)) -> 540 | P1: Crit% | Q1: =Character!$F$38*100 -> 88 | T1: Spell Crit | AN1: Spell Hit | BJ1: Spell Pen | CH1: Rotation Factor | CI1: =Character!$E$42 -> 1
L2: Cast Reduction | M2: =IF(ISNUMBER(SEARCH("Starfire",CharRotation)),0.5,1.5) -> 0.5 | P2: Hit% | Q2: =Character!$G$38*100 -> 11 | T2: =INDEX($B$6:$T$106,MATCH($Q$1,$B$6:$B$106,1),MATCH($Q$2,$B$4:$T$4,1)) -> 6.79787234 | AN2: =INDEX($V$6:$AN$106,MATCH($Q$1,$V$6:$V$106,1),MATCH($Q$2,$V$4:$AN$4,1)) -> 13.59574468 | BJ2: =INDEX($AR$6:$BJ$106,MATCH($Q$1,$AR$6:$AR$106,1),MATCH($Q$2,$AR$4:$BJ$4,1)) -> 2.604559301 | CI2: Buff Factors
B3: Spell Critical = Spell Power | L3: Spellpower | M3: 684 | V3: Spell Hit = Spell Power | AR3: Spell Penetration = Spell Power | BN3: Spell Power to Damage | CH3: =Character!$L$9 -> Moonfury | CI3: =Character!$AA$9 -> 1.1 | CK3: Spell Critical to Damage | DE3: Spell Hit to Damage | DY3: Spell Penetration to Damage
B4: Hit% | C4: 0 | D4: 1 | E4: 2 | F4: 3 | G4: 4 | H4: 5 | I4: 6 | J4: 7 | K4: 8 | L4: 9 | M4: 10 | N4: 11 | O4: 12 | P4: 13 | Q4: 14 | R4: 15 | S4: 16 | T4: 17 | V4: Hit% | W4: 0 | X4: 1 | Y4: 2 | Z4: 3 | AA4: 4 | AB4: 5 | AC4: 6 | AD4: 7 | AE4: 8 | AF4: 9 | AG4: 10 | AH4: 11 | AI4: 12 | AJ4: 13 | AK4: 14 | AL4: 15 | AM4: 16 | AN4: 17 | AR4: Hit% | AS4: 0 | AT4: 1 | AU4: 2 | AV4: 3 | AW4: 4 | AX4: 5 | AY4: 6 | AZ4: 7 | BA4: 8 | BB4: 9 | BC4: 10 | BD4: 11 | BE4: 12 | BF4: 13 | BG4: 14 | BH4: 15 | BI4: 16 | BJ4: 17 | BN4: Hit% | BO4: 0 | BP4: 1 | BQ4: 2 | BR4: 3 | BS4: 4 | BT4: 5 | BU4: 6 | BV4: 7 | BW4: 8 | BX4: 9 | BY4: 10 | BZ4: 11 | CA4: 12 | CB4: 13 | CC4: 14 | CD4: 15 | CE4: 16 | CF4: 17 | CH4: =Character!$L$45 -> Curse of Shadow | CI4: =Character!$AA$45 -> 1.1 | CK4: Hit% | CL4: 0 | CM4: 1 | CN4: 2 | CO4: 3 | CP4: 4 | CQ4: 5 | CR4: 6 | CS4: 7 | CT4: 8 | CU4: 9 | CV4: 10 | CW4: 11 | CX4: 12 | CY4: 13 | CZ4: 14 | DA4: 15 | DB4: 16 | DC4: 17 | DE4: Hit% | DF4: 0 | DG4: 1 | DH4: 2 | DI4: 3 | DJ4: 4 | DK4: 5 | DL4: 6 | DM4: 7 | DN4: 8 | DO4: 9 | DP4: 10 | DQ4: 11 | DR4: 12 | DS4: 13 | DT4: 14 | DU4: 15 | DV4: 16 | DW4: 17 | DY4: Hit% | DZ4: 0 | EA4: 1 | EB4: 2 | EC4: 3 | ED4: 4 | EE4: 5 | EF4: 6 | EG4: 7 | EH4: 8 | EI4: 9 | EJ4: 10 | EK4: 11 | EL4: 12 | EM4: 13 | EN4: 14 | EO4: 15 | EP4: 16 | EQ4: 17
B5: Miss% | C5: 17 | D5: 16 | E5: 15 | F5: 14 | G5: 13 | H5: 12 | I5: 11 | J5: 10 | K5: 9 | L5: 8 | M5: 7 | N5: 6 | O5: 5 | P5: 4 | Q5: 3 | R5: 2 | S5: 1 | T5: 0 | V5: Miss% | W5: 17 | X5: 16 | Y5: 15 | Z5: 14 | AA5: 13 | AB5: 12 | AC5: 11 | AD5: 10 | AE5: 9 | AF5: 8 | AG5: 7 | AH5: 6 | AI5: 5 | AJ5: 4 | AK5: 3 | AL5: 2 | AM5: 1 | AN5: 0 | AR5: Miss% | AS5: 17 | AT5: 16 | AU5: 15 | AV5: 14 | AW5: 13 | AX5: 12 | AY5: 11 | AZ5: 10 | BA5: 9 | BB5: 8 | BC5: 7 | BD5: 6 | BE5: 5 | BF5: 4 | BG5: 3 | BH5: 2 | BI5: 1 | BJ5: 0 | BN5: Miss% | BO5: 17 | BP5: 16 | BQ5: 15 | BR5: 14 | BS5: 13 | BT5: 12 | BU5: 11 | BV5: 10 | BW5: 9 | BX5: 8 | BY5: 7 | BZ5: 6 | CA5: 5 | CB5: 4 | CC5: 3 | CD5: 2 | CE5: 1 | CF5: 0 | CH5: =Character!$L$24 -> Sayge's Dark Fortune of Damage | CI5: =Character!$AA$24 -> 1 | CK5: Miss% | CL5: 17 | CM5: 16 | CN5: 15 | CO5: 14 | CP5: 13 | CQ5: 12 | CR5: 11 | CS5: 10 | CT5: 9 | CU5: 8 | CV5: 7 | CW5: 6 | CX5: 5 | CY5: 4 | CZ5: 3 | DA5: 2 | DB5: 1 | DC5: 0 | DE5: Miss% | DF5: 17 | DG5: 16 | DH5: 15 | DI5: 14 | DJ5: 13 | DK5: 12 | DL5: 11 | DM5: 10 | DN5: 9 | DO5: 8 | DP5: 7 | DQ5: 6 | DR5: 5 | DS5: 4 | DT5: 3 | DU5: 2 | DV5: 1 | DW5: 0 | DY5: Miss% | DZ5: 17 | EA5: 16 | EB5: 15 | EC5: 14 | ED5: 13 | EE5: 12 | EF5: 11 | EG5: 10 | EH5: 9 | EI5: 8 | EJ5: 7 | EK5: 6 | EL5: 5 | EM5: 4 | EN5: 3 | EO5: 2 | EP5: 1 | EQ5: 0
B6: Crit% | C6: - | D6: - | E6: - | F6: - | G6: - | H6: - | I6: - | J6: - | K6: - | L6: - | M6: - | N6: - | O6: - | P6: - | Q6: - | R6: - | S6: - | T6: - | V6: Crit% | W6: - | X6: - | Y6: - | Z6: - | AA6: - | AB6: - | AC6: - | AD6: - | AE6: - | AF6: - | AG6: - | AH6: - | AI6: - | AJ6: - | AK6: - | AL6: - | AM6: - | AN6: - | AR6: Crit% | AS6: - | AT6: - | AU6: - | AV6: - | AW6: - | AX6: - | AY6: - | AZ6: - | BA6: - | BB6: - | BC6: - | BD6: - | BE6: - | BF6: - | BG6: - | BH6: - | BI6: - | BJ6: - | BN6: Crit% | BO6: - | BP6: - | BQ6: - | BR6: - | BS6: - | BT6: - | BU6: - | BV6: - | BW6: - | BX6: - | BY6: - | BZ6: - | CA6: - | CB6: - | CC6: - | CD6: - | CE6: - | CF6: - | CH6: =Character!$L$29 -> Traces of Silithyst | CI6: =Character!$AA$29 -> 1 | CK6: Crit% | CL6: - | CM6: - | CN6: - | CO6: - | CP6: - | CQ6: - | CR6: - | CS6: - | CT6: - | CU6: - | CV6: - | CW6: - | CX6: - | CY6: - | CZ6: - | DA6: - | DB6: - | DC6: - | DE6: Crit% | DF6: - | DG6: - | DH6: - | DI6: - | DJ6: - | DK6: - | DL6: - | DM6: - | DN6: - | DO6: - | DP6: - | DQ6: - | DR6: - | DS6: - | DT6: - | DU6: - | DV6: - | DW6: - | DY6: Crit% | DZ6: - | EA6: - | EB6: - | EC6: - | ED6: - | EE6: - | EF6: - | EG6: - | EH6: - | EI6: - | EJ6: - | EK6: - | EL6: - | EM6: - | EN6: - | EO6: - | EP6: - | EQ6: -
B7: 1 | C7: =(CL7/BO7) -> 12.65346535 | D7: =(CM7/BP7) -> 12.65346535 | E7: =(CN7/BQ7) -> 12.65346535 | F7: =(CO7/BR7) -> 12.65346535 | G7: =(CP7/BS7) -> 12.65346535 | H7: =(CQ7/BT7) -> 12.65346535 | I7: =(CR7/BU7) -> 12.65346535 | J7: =(CS7/BV7) -> 12.65346535 | K7: =(CT7/BW7) -> 12.65346535 | L7: =(CU7/BX7) -> 12.65346535 | M7: =(CV7/BY7) -> 12.65346535 | N7: =(CW7/BZ7) -> 12.65346535 | O7: =(CX7/CA7) -> 12.65346535 | P7: =(CY7/CB7) -> 12.65346535 | Q7: =(CZ7/CC7) -> 12.65346535 | R7: =(DA7/CD7) -> 12.65346535 | S7: =(DB7/CE7) -> 12.65346535 | T7: =(DC7/CF7) -> 12.65346535 | V7: 1 | W7: =(DF7/BO7) -> 15.39759036 | X7: =(DG7/BP7) -> 15.21428571 | Y7: =(DH7/BQ7) -> 15.03529412 | Z7: =(DI7/BR7) -> 14.86046512 | AA7: =(DJ7/BS7) -> 14.68965517 | AB7: =(DK7/BT7) -> 14.52272727 | AC7: =(DL7/BU7) -> 14.35955056 | AD7: =(DM7/BV7) -> 14.2 | AE7: =(DN7/BW7) -> 14.04395604 | AF7: =(DO7/BX7) -> 13.89130435 | AG7: =(DP7/BY7) -> 13.74193548 | AH7: =(DQ7/BZ7) -> 13.59574468 | AI7: =(DR7/CA7) -> 13.45263158 | AJ7: =(DS7/CB7) -> 13.3125 | AK7: =(DT7/CC7) -> 13.17525773 | AL7: =(DU7/CD7) -> 13.04081633 | AM7: =(DV7/CE7) -> 12.90909091 | AN7: =(DW7/CF7) -> 12.78 | AR7: 1 | AS7: =(DZ7/BO7) -> 3.955041435 | AT7: =(EA7/BP7) -> 3.861195379 | AU7: =(EB7/BQ7) -> 3.769869449 | AV7: =(EC7/BR7) -> 3.680969291 | AW7: =(ED7/BS7) -> 3.594405003 | AX7: =(EE7/BT7) -> 3.510090874 | AY7: =(EF7/BU7) -> 3.427945146 | AZ7: =(EG7/BV7) -> 3.347889792 | BA7: =(EH7/BW7) -> 3.269850308 | BB7: =(EI7/BX7) -> 3.19375552 | BC7: =(EJ7/BY7) -> 3.119537401 | BD7: =(EK7/BZ7) -> 3.047130901 | BE7: =(EL7/CA7) -> 2.97647379 | BF7: =(EM7/CB7) -> 2.907506506 | BG7: =(EN7/CC7) -> 2.840172018 | BH7: =(EO7/CD7) -> 2.774415691 | BI7: =(EP7/CE7) -> 2.710185168 | BJ7: =(EQ7/CF7) -> 2.650235358 | BN7: 1 | BO7: =(1+$BN7/100)*(1-BO$5/100)/(3-$M$2*$BN7/100) -> 0.2798998331 | BP7: =(1+$BN7/100)*(1-BP$5/100)/(3-$M$2*$BN7/100) -> 0.2832721202 | BQ7: =(1+$BN7/100)*(1-BQ$5/100)/(3-$M$2*$BN7/100) -> 0.2866444073 | BR7: 0.2900166945 | BS7: 0.2933889816 | BT7: 0.2967612688 | BU7: 0.3001335559 | BV7: 0.3035058431 | BW7: 0.3068781302 | BX7: 0.3102504174 | BY7: 0.3136227045 | BZ7: 0.3169949917 | CA7: 0.3203672788 | CB7: 0.3237395659 | CC7: 0.3271118531 | CD7: 0.3304841402 | CE7: 0.3338564274 | CF7: =(1+$BN7/100)*(1-CF$5/100)/(3-$M$2*$BN7/100) -> 0.3372287145 | CH7: =Character!$L$46 -> Spell Vulnerability | CI7: =Character!$AA$46 -> 1 | CK7: 1 | CL7: =($M$1*$CI$3+$M$3*$CI$1)*(1/100)*(1-CL$5/100)/(3-$M$2*$CK7/100) -> 3.541702838 | CM7: =($M$1*$CI$3+$M$3*$CI$1)*(1/100)*(1-CM$5/100)/(3-$M$2*$CK7/100) -> 3.584373957 | CN7: =($M$1*$CI$3+$M$3*$CI$1)*(1/100)*(1-CN$5/100)/(3-$M$2*$CK7/100) -> 3.627045075 | CO7: 3.669716194 | CP7: 3.712387312 | CQ7: 3.755058431 | CR7: 3.797729549 | CS7: 3.840400668 | CT7: 3.883071786 | CU7: 3.925742905 | CV7: 3.968414023 | CW7: 4.011085142 | CX7: 4.05375626 | CY7: 4.096427379 | CZ7: 4.139098497 | DA7: 4.181769616 | DB7: 4.224440735 | DC7: =($M$1*$CI$3+$M$3*$CI$1)*(1/100)*(1-DC$5/100)/(3-$M$2*$CK7/100) -> 4.267111853 | DE7: 1 | DF7: =($M$1*$CI$3+$M$3*$CI$1)*(1+$DE7/100)*(1/100)/(3-$M$2*$DE7/100) -> 4.309782972 | DG7: =($M$1*$CI$3+$M$3*$CI$1)*(1+$DE7/100)*(1/100)/(3-$M$2*$DE7/100) -> 4.309782972 | DH7: =($M$1*$CI$3+$M$3*$CI$1)*(1+$DE7/100)*(1/100)/(3-$M$2*$DE7/100) -> 4.309782972 | DI7: 4.309782972 | DJ7: 4.309782972 | DK7: 4.309782972 | DL7: 4.309782972 | DM7: 4.309782972 | DN7: 4.309782972 | DO7: 4.309782972 | DP7: 4.309782972 | DQ7: 4.309782972 | DR7: 4.309782972 | DS7: 4.309782972 | DT7: 4.309782972 | DU7: 4.309782972 | DV7: 4.309782972 | DW7: =($M$1*$CI$3+$M$3*$CI$1)*(1+$DE7/100)*(1/100)/(3-$M$2*$DE7/100) -> 4.309782972 | DY7: 1 | DZ7: =(1/400)*(0.83+DZ$5/100)*($CI$3*$M$1+$CI$1*$M$3)*(1+1*$DY7/100)/(3-$M$2*(0.83+DZ$5/100)*(DZ$5/100)) -> 1.107015437 | EA7: =(1/400)*(0.83+EA$5/100)*($CI$3*$M$1+$CI$1*$M$3)*(1+1*$DY7/100)/(3-$M$2*(0.83+EA$5/100)*(EA$5/100)) -> 1.093769002 | EB7: =(1/400)*(0.83+EB$5/100)*($CI$3*$M$1+$CI$1*$M$3)*(1+1*$DY7/100)/(3-$M$2*(0.83+EB$5/100)*(EB$5/100)) -> 1.080611994 | EC7: 1.067542546 | ED7: 1.054558824 | EE7: 1.041659021 | EF7: 1.028841366 | EG7: 1.016104114 | EH7: 1.003445549 | EI7: 0.990863983 | EJ7: 0.9783577564 | EK7: 0.9659252346 | EL7: 0.9535648086 | EM7: 0.9412748944 | EN7: 0.9290539319 | EO7: 0.9169003844 | EP7: 0.9048127378 | EQ7: =(1/400)*(0.83+EQ$5/100)*($CI$3*$M$1+$CI$1*$M$3)*(1+1*$DZ7/100)/(3-$M$2*(0.83+EQ$5/100)*(EQ$5/100)) -> 0.893735463
B8: 2 | C8: =(CL8/BO8) -> 12.52941176 | D8: =(CM8/BP8) -> 12.52941176 | E8: 12.52941176 | F8: 12.52941176 | G8: 12.52941176 | H8: 12.52941176 | I8: 12.52941176 | J8: 12.52941176 | K8: 12.52941176 | L8: 12.52941176 | M8: 12.52941176 | N8: 12.52941176 | O8: 12.52941176 | P8: 12.52941176 | Q8: 12.52941176 | R8: 12.52941176 | S8: 12.52941176 | T8: =(DC8/CF8) -> 12.52941176 | V8: 2 | W8: =(DF8/BO8) -> 15.39759036 | X8: =(DG8/BP8) -> 15.21428571 | Y8: 15.03529412 | Z8: 14.86046512 | AA8: 14.68965517 | AB8: 14.52272727 | AC8: 14.35955056 | AD8: 14.2 | AE8: 14.04395604 | AF8: 13.89130435 | AG8: 13.74193548 | AH8: 13.59574468 | AI8: 13.45263158 | AJ8: 13.3125 | AK8: 13.17525773 | AL8: 13.04081633 | AM8: 12.90909091 | AN8: =(DW8/CF8) -> 12.78 | AR8: 2 | AS8: =(DZ8/BO8) -> 3.948438695 | AT8: =(EA8/BP8) -> 3.85474931 | AU8: 3.763575843 | AV8: 3.6748241 | AW8: 3.588404327 | AX8: 3.504230956 | AY8: 3.422222366 | AZ8: 3.34230066 | BA8: 3.264391459 | BB8: 3.188423708 | BC8: 3.114329492 | BD8: 3.042043871 | BE8: 2.971504719 | BF8: 2.902652572 | BG8: 2.835430495 | BH8: 2.769783946 | BI8: 2.705660652 | BJ8: =(EQ8/CF8) -> 2.62015561 | BN8: 2 | BO8: =(1+$BN8/100)*(1-BO$5/100)/(3-$M$2*$BN8/100) -> 0.2831438127 | BP8: 0.2865551839 | BQ8: 0.2899665552 | BR8: 0.2933779264 | BS8: 0.2967892977 | BT8: 0.3002006689 | BU8: 0.3036120401 | BV8: 0.3070234114 | BW8: 0.3104347826 | BX8: 0.3138461538 | BY8: 0.3172575251 | BZ8: 0.3206688963 | CA8: 0.3240802676 | CB8: 0.3274916388 | CC8: 0.33090301 | CD8: 0.3343143813 | CE8: 0.3377257525 | CF8: 0.3411371237 | CH8: =Character!$L$47 -> Stormstrike | CI8: =Character!$AA$47 -> 1 | CK8: 2 | CL8: =($M$1*$CI$3+$M$3*$CI$1)*(1/100)*(1-CL$5/100)/(3-$M$2*$CK8/100) -> 3.547625418 | CM8: 3.590367893 | CN8: 3.633110368 | CO8: 3.675852843 | CP8: 3.718595318 | CQ8: 3.761337793 | CR8: 3.804080268 | CS8: 3.846822742 | CT8: 3.889565217 | CU8: 3.932307692 | CV8: 3.975050167 | CW8: 4.017792642 | CX8: 4.060535117 | CY8: 4.103277592 | CZ8: 4.146020067 | DA8: 4.188762542 | DB8: 4.231505017 | DC8: 4.274247492 | DE8: 2 | DF8: =($M$1*$CI$3+$M$3*$CI$1)*(1+$DE8/100)*(1/100)/(3-$M$2*$DE8/100) -> 4.359732441 | DG8: 4.359732441 | DH8: 4.359732441 | DI8: 4.359732441 | DJ8: 4.359732441 | DK8: 4.359732441 | DL8: 4.359732441 | DM8: 4.359732441 | DN8: 4.359732441 | DO8: 4.359732441 | DP8: 4.359732441 | DQ8: 4.359732441 | DR8: 4.359732441 | DS8: 4.359732441 | DT8: 4.359732441 | DU8: 4.359732441 | DV8: 4.359732441 | DW8: 4.359732441 | DY8: 2 | DZ8: =(1/400)*(0.83+DZ$5/100)*($CI$3*$M$1+$CI$1*$M$3)*(1+1*$DY8/100)/(3-$M$2*(0.83+DZ$5/100)*(DZ$5/100)) -> 1.117975986 | EA8: 1.104598398 | EB8: 1.091311123 | EC8: 1.078112274 | ED8: 1.065 | EE8: 1.051972477 | EF8: 1.039027914 | EG8: 1.026164551 | EH8: 1.013380653 | EI8: 1.000674517 | EJ8: 0.9880444669 | EK8: 0.9754888508 | EL8: 0.9630060443 | EM8: 0.9505944478 | EN8: 0.9382524857 | EO8: 0.9259786061 | EP8: 0.9137712798 | EQ8: =(1/400)*(0.83+EQ$5/100)*($CI$3*$M$1+$CI$1*$M$3)*(1+1*$DZ8/100)/(3-$M$2*(0.83+EQ$5/100)*(EQ$5/100)) -> 0.8938323487
B9: 3 | C9: 12.40776699 | D9: 12.40776699 | E9: 12.40776699 | F9: 12.40776699 | G9: 12.40776699 | H9: 12.40776699 | I9: 12.40776699 | J9: 12.40776699 | K9: 12.40776699 | L9: 12.40776699 | M9: 12.40776699 | N9: 12.40776699 | O9: 12.40776699 | P9: 12.40776699 | Q9: 12.40776699 | R9: 12.40776699 | S9: 12.40776699 | T9: 12.40776699 | V9: 3 | W9: 15.39759036 | X9: 15.21428571 | Y9: 15.03529412 | Z9: 14.86046512 | AA9: 14.68965517 | AB9: 14.52272727 | AC9: 14.35955056 | AD9: 14.2 | AE9: 14.04395604 | AF9: 13.89130435 | AG9: 13.74193548 | AH9: 13.59574468 | AI9: 13.45263158 | AJ9: 13.3125 | AK9: 13.17525773 | AL9: 13.04081633 | AM9: 12.90909091 | AN9: 12.78 | AR9: 3 | AS9: 3.941835954 | AT9: 3.848303241 | AU9: 3.757282238 | AV9: 3.668678909 | AW9: 3.582403651 | AX9: 3.498371038 | AY9: 3.416499586 | AZ9: 3.336711529 | BA9: 3.258932611 | BB9: 3.183091895 | BC9: 3.109121583 | BD9: 3.036956841 | BE9: 2.966535647 | BF9: 2.897798638 | BG9: 2.830688973 | BH9: 2.7651522 | BI9: 2.701136136 | BJ9: 2.590658995 | BN9: 3 | BO9: 0.28639866 | BP9: 0.2898492462 | BQ9: 0.2932998325 | BR9: 0.2967504188 | BS9: 0.300201005 | BT9: 0.3036515913 | BU9: 0.3071021776 | BV9: 0.3105527638 | BW9: 0.3140033501 | BX9: 0.3174539363 | BY9: 0.3209045226 | BZ9: 0.3243551089 | CA9: 0.3278056951 | CB9: 0.3312562814 | CC9: 0.3347068677 | CD9: 0.3381574539 | CE9: 0.3416080402 | CF9: 0.3450586265 | CK9: 3 | CL9: 3.553567839 | CM9: 3.59638191 | CN9: 3.63919598 | CO9: 3.68201005 | CP9: 3.724824121 | CQ9: 3.767638191 | CR9: 3.810452261 | CS9: 3.853266332 | CT9: 3.896080402 | CU9: 3.938894472 | CV9: 3.981708543 | CW9: 4.024522613 | CX9: 4.067336683 | CY9: 4.110150754 | CZ9: 4.152964824 | DA9: 4.195778894 | DB9: 4.238592965 | DC9: 4.281407035 | DE9: 3 | DF9: 4.409849246 | DG9: 4.409849246 | DH9: 4.409849246 | DI9: 4.409849246 | DJ9: 4.409849246 | DK9: 4.409849246 | DL9: 4.409849246 | DM9: 4.409849246 | DN9: 4.409849246 | DO9: 4.409849246 | DP9: 4.409849246 | DQ9: 4.409849246 | DR9: 4.409849246 | DS9: 4.409849246 | DT9: 4.409849246 | DU9: 4.409849246 | DV9: 4.409849246 | DW9: 4.409849246 | DY9: 3 | DZ9: 1.128936535 | EA9: 1.115427794 | EB9: 1.102010251 | EC9: 1.088682003 | ED9: 1.075441176 | EE9: 1.062285933 | EF9: 1.049214463 | EG9: 1.036224987 | EH9: 1.023315757 | EI9: 1.010485052 | EJ9: 0.9977311774 | EK9: 0.985052467 | EL9: 0.9724472801 | EM9: 0.9599140012 | EN9: 0.9474510395 | EO9: 0.9350568277 | EP9: 0.9227298218 | EQ9: 0.8939292345
B10: 4 | C10: 12.28846154 | D10: 12.28846154 | E10: 12.28846154 | F10: 12.28846154 | G10: 12.28846154 | H10: 12.28846154 | I10: 12.28846154 | J10: 12.28846154 | K10: 12.28846154 | L10: 12.28846154 | M10: 12.28846154 | N10: 12.28846154 | O10: 12.28846154 | P10: 12.28846154 | Q10: 12.28846154 | R10: 12.28846154 | S10: 12.28846154 | T10: 12.28846154 | V10: 4 | W10: 15.39759036 | X10: 15.21428571 | Y10: 15.03529412 | Z10: 14.86046512 | AA10: 14.68965517 | AB10: 14.52272727 | AC10: 14.35955056 | AD10: 14.2 | AE10: 14.04395604 | AF10: 13.89130435 | AG10: 13.74193548 | AH10: 13.59574468 | AI10: 13.45263158 | AJ10: 13.3125 | AK10: 13.17525773 | AL10: 13.04081633 | AM10: 12.90909091 | AN10: 12.78 | AR10: 4 | AS10: 3.935233214 | AT10: 3.841857172 | AU10: 3.750988633 | AV10: 3.662533719 | AW10: 3.576402975 | AX10: 3.49251112 | AY10: 3.410776806 | AZ10: 3.331122397 | BA10: 3.253473762 | BB10: 3.177760083 | BC10: 3.103913674 | BD10: 3.031869812 | BE10: 2.961566576 | BF10: 2.892944704 | BG10: 2.82594745 | BH10: 2.760520454 | BI10: 2.69661162 | BJ10: 2.561728691 | BN10: 4 | BO10: 0.2896644295 | BP10: 0.2931543624 | BQ10: 0.2966442953 | BR10: 0.3001342282 | BS10: 0.3036241611 | BT10: 0.307114094 | BU10: 0.3106040268 | BV10: 0.3140939597 | BW10: 0.3175838926 | BX10: 0.3210738255 | BY10: 0.3245637584 | BZ10: 0.3280536913 | CA10: 0.3315436242 | CB10: 0.335033557 | CC10: 0.3385234899 | CD10: 0.3420134228 | CE10: 0.3455033557 | CF10: 0.3489932886 | CK10: 4 | CL10: 3.559530201 | CM10: 3.602416107 | CN10: 3.645302013 | CO10: 3.688187919 | CP10: 3.731073826 | CQ10: 3.773959732 | CR10: 3.816845638 | CS10: 3.859731544 | CT10: 3.90261745 | CU10: 3.945503356 | CV10: 3.988389262 | CW10: 4.031275168 | CX10: 4.074161074 | CY10: 4.11704698 | CZ10: 4.159932886 | DA10: 4.202818792 | DB10: 4.245704698 | DC10: 4.288590604 | DE10: 4 | DF10: 4.460134228 | DG10: 4.460134228 | DH10: 4.460134228 | DI10: 4.460134228 | DJ10: 4.460134228 | DK10: 4.460134228 | DL10: 4.460134228 | DM10: 4.460134228 | DN10: 4.460134228 | DO10: 4.460134228 | DP10: 4.460134228 | DQ10: 4.460134228 | DR10: 4.460134228 | DS10: 4.460134228 | DT10: 4.460134228 | DU10: 4.460134228 | DV10: 4.460134228 | DW10: 4.460134228 | DY10: 4 | DZ10: 1.139897084 | EA10: 1.12625719 | EB10: 1.11270938 | EC10: 1.099251731 | ED10: 1.085882353 | EE10: 1.072599388 | EF10: 1.059401011 | EG10: 1.046285424 | EH10: 1.033250862 | EI10: 1.020295586 | EJ10: 1.007417888 | EK10: 0.9946160831 | EL10: 0.9818885158 | EM10: 0.9692335546 | EN10: 0.9566495933 | EO10: 0.9441350493 | EP10: 0.9316883637 | EQ10: 0.8940261203
B11: 5 | C11: 12.17142857 | D11: 12.17142857 | E11: 12.17142857 | F11: 12.17142857 | G11: 12.17142857 | H11: 12.17142857 | I11: 12.17142857 | J11: 12.17142857 | K11: 12.17142857 | L11: 12.17142857 | M11: 12.17142857 | N11: 12.17142857 | O11: 12.17142857 | P11: 12.17142857 | Q11: 12.17142857 | R11: 12.17142857 | S11: 12.17142857 | T11: 12.17142857 | V11: 5 | W11: 15.39759036 | X11: 15.21428571 | Y11: 15.03529412 | Z11: 14.86046512 | AA11: 14.68965517 | AB11: 14.52272727 | AC11: 14.35955056 | AD11: 14.2 | AE11: 14.04395604 | AF11: 13.89130435 | AG11: 13.74193548 | AH11: 13.59574468 | AI11: 13.45263158 | AJ11: 13.3125 | AK11: 13.17525773 | AL11: 13.04081633 | AM11: 12.90909091 | AN11: 12.78 | AR11: 5 | AS11: 3.928630474 | AT11: 3.835411103 | AU11: 3.744695028 | AV11: 3.656388528 | AW11: 3.570402299 | AX11: 3.486651202 | AY11: 3.405054027 | AZ11: 3.325533266 | BA11: 3.248014913 | BB11: 3.172428271 | BC11: 3.098705765 | BD11: 3.026782782 | BE11: 2.956597505 | BF11: 2.88809077 | BG11: 2.821205928 | BH11: 2.755888708 | BI11: 2.692087104 | BJ11: 2.533348517 | BN11: 5 | BO11: 0.2929411765 | BP11: 0.2964705882 | BQ11: 0.3 | BR11: 0.3035294118 | BS11: 0.3070588235 | BT11: 0.3105882353 | BU11: 0.3141176471 | BV11: 0.3176470588 | BW11: 0.3211764706 | BX11: 0.3247058824 | BY11: 0.3282352941 | BZ11: 0.3317647059 | CA11: 0.3352941176 | CB11: 0.3388235294 | CC11: 0.3423529412 | CD11: 0.3458823529 | CE11: 0.3494117647 | CF11: 0.3529411765 | CK11: 5 | CL11: 3.565512605 | CM11: 3.608470588 | CN11: 3.651428571 | CO11: 3.694386555 | CP11: 3.737344538 | CQ11: 3.780302521 | CR11: 3.823260504 | CS11: 3.866218487 | CT11: 3.909176471 | CU11: 3.952134454 | CV11: 3.995092437 | CW11: 4.03805042 | CX11: 4.081008403 | CY11: 4.123966387 | CZ11: 4.16692437 | DA11: 4.209882353 | DB11: 4.252840336 | DC11: 4.295798319 | DE11: 5 | DF11: 4.510588235 | DG11: 4.510588235 | DH11: 4.510588235 | DI11: 4.510588235 | DJ11: 4.510588235 | DK11: 4.510588235 | DL11: 4.510588235 | DM11: 4.510588235 | DN11: 4.510588235 | DO11: 4.510588235 | DP11: 4.510588235 | DQ11: 4.510588235 | DR11: 4.510588235 | DS11: 4.510588235 | DT11: 4.510588235 | DU11: 4.510588235 | DV11: 4.510588235 | DW11: 4.510588235 | DY11: 5 | DZ11: 1.150857633 | EA11: 1.137086586 | EB11: 1.123408508 | EC11: 1.109821459 | ED11: 1.096323529 | EE11: 1.082912844 | EF11: 1.069587559 | EG11: 1.056345861 | EH11: 1.043185966 | EI11: 1.030106121 | EJ11: 1.017104598 | EK11: 1.004179699 | EL11: 0.9913297515 | EM11: 0.978553108 | EN11: 0.965848147 | EO11: 0.9532132709 | EP11: 0.9406469057 | EQ11: 0.894123006
B12: 6 | C12: 12.05660377 | D12: 12.05660377 | E12: 12.05660377 | F12: 12.05660377 | G12: 12.05660377 | H12: 12.05660377 | I12: 12.05660377 | J12: 12.05660377 | K12: 12.05660377 | L12: 12.05660377 | M12: 12.05660377 | N12: 12.05660377 | O12: 12.05660377 | P12: 12.05660377 | Q12: 12.05660377 | R12: 12.05660377 | S12: 12.05660377 | T12: 12.05660377 | V12: 6 | W12: 15.39759036 | X12: 15.21428571 | Y12: 15.03529412 | Z12: 14.86046512 | AA12: 14.68965517 | AB12: 14.52272727 | AC12: 14.35955056 | AD12: 14.2 | AE12: 14.04395604 | AF12: 13.89130435 | AG12: 13.74193548 | AH12: 13.59574468 | AI12: 13.45263158 | AJ12: 13.3125 | AK12: 13.17525773 | AL12: 13.04081633 | AM12: 12.90909091 | AN12: 12.78 | AR12: 6 | AS12: 3.922027734 | AT12: 3.828965034 | AU12: 3.738401423 | AV12: 3.650243337 | AW12: 3.564401623 | AX12: 3.480791284 | AY12: 3.399331247 | AZ12: 3.319944134 | BA12: 3.242556065 | BB12: 3.167096459 | BC12: 3.093497857 | BD12: 3.021695752 | BE12: 2.951628433 | BF12: 2.883236836 | BG12: 2.816464405 | BH12: 2.751256963 | BI12: 2.687562588 | BJ12: 2.505502904 | BN12: 6 | BO12: 0.2962289562 | BP12: 0.2997979798 | BQ12: 0.3033670034 | BR12: 0.3069360269 | BS12: 0.3105050505 | BT12: 0.3140740741 | BU12: 0.3176430976 | BV12: 0.3212121212 | BW12: 0.3247811448 | BX12: 0.3283501684 | BY12: 0.3319191919 | BZ12: 0.3354882155 | CA12: 0.3390572391 | CB12: 0.3426262626 | CC12: 0.3461952862 | CD12: 0.3497643098 | CE12: 0.3533333333 | CF12: 0.3569023569 | CK12: 6 | CL12: 3.571515152 | CM12: 3.614545455 | CN12: 3.657575758 | CO12: 3.700606061 | CP12: 3.743636364 | CQ12: 3.786666667 | CR12: 3.82969697 | CS12: 3.872727273 | CT12: 3.915757576 | CU12: 3.958787879 | CV12: 4.001818182 | CW12: 4.044848485 | CX12: 4.087878788 | CY12: 4.130909091 | CZ12: 4.173939394 | DA12: 4.216969697 | DB12: 4.26 | DC12: 4.303030303 | DE12: 6 | DF12: 4.561212121 | DG12: 4.561212121 | DH12: 4.561212121 | DI12: 4.561212121 | DJ12: 4.561212121 | DK12: 4.561212121 | DL12: 4.561212121 | DM12: 4.561212121 | DN12: 4.561212121 | DO12: 4.561212121 | DP12: 4.561212121 | DQ12: 4.561212121 | DR12: 4.561212121 | DS12: 4.561212121 | DT12: 4.561212121 | DU12: 4.561212121 | DV12: 4.561212121 | DW12: 4.561212121 | DY12: 6 | DZ12: 1.161818182 | EA12: 1.147915982 | EB12: 1.134107637 | EC12: 1.120391187 | ED12: 1.106764706 | EE12: 1.0932263 | EF12: 1.079774107 | EG12: 1.066406298 | EH12: 1.053121071 | EI12: 1.039916655 | EJ12: 1.026791309 | EK12: 1.013743316 | EL12: 1.000770987 | EM12: 0.9878726614 | EN12: 0.9750467008 | EO12: 0.9622914926 | EP12: 0.9496054476 | EQ12: 0.8942198918
B13: 7 | C13: 11.94392523 | D13: 11.94392523 | E13: 11.94392523 | F13: 11.94392523 | G13: 11.94392523 | H13: 11.94392523 | I13: 11.94392523 | J13: 11.94392523 | K13: 11.94392523 | L13: 11.94392523 | M13: 11.94392523 | N13: 11.94392523 | O13: 11.94392523 | P13: 11.94392523 | Q13: 11.94392523 | R13: 11.94392523 | S13: 11.94392523 | T13: 11.94392523 | V13: 7 | W13: 15.39759036 | X13: 15.21428571 | Y13: 15.03529412 | Z13: 14.86046512 | AA13: 14.68965517 | AB13: 14.52272727 | AC13: 14.35955056 | AD13: 14.2 | AE13: 14.04395604 | AF13: 13.89130435 | AG13: 13.74193548 | AH13: 13.59574468 | AI13: 13.45263158 | AJ13: 13.3125 | AK13: 13.17525773 | AL13: 13.04081633 | AM13: 12.90909091 | AN13: 12.78 | AR13: 7 | AS13: 3.915424993 | AT13: 3.822518965 | AU13: 3.732107818 | AV13: 3.644098146 | AW13: 3.558400947 | AX13: 3.474931366 | AY13: 3.393608467 | AZ13: 3.314355003 | BA13: 3.237097216 | BB13: 3.161764647 | BC13: 3.088289948 | BD13: 3.016608722 | BE13: 2.946659362 | BF13: 2.878382902 | BG13: 2.811722883 | BH13: 2.746625217 | BI13: 2.683038071 | BJ13: 2.478176865 | BN13: 7 | BO13: 0.2995278246 | BP13: 0.3031365936 | BQ13: 0.3067453626 | BR13: 0.3103541315 | BS13: 0.3139629005 | BT13: 0.3175716695 | BU13: 0.3211804384 | BV13: 0.3247892074 | BW13: 0.3283979764 | BX13: 0.3320067454 | BY13: 0.3356155143 | BZ13: 0.3392242833 | CA13: 0.3428330523 | CB13: 0.3464418212 | CC13: 0.3500505902 | CD13: 0.3536593592 | CE13: 0.3572681282 | CF13: 0.3608768971 | CK13: 7 | CL13: 3.577537943 | CM13: 3.620640809 | CN13: 3.663743676 | CO13: 3.706846543 | CP13: 3.74994941 | CQ13: 3.793052277 | CR13: 3.836155143 | CS13: 3.87925801 | CT13: 3.922360877 | CU13: 3.965463744 | CV13: 4.00856661 | CW13: 4.051669477 | CX13: 4.094772344 | CY13: 4.137875211 | CZ13: 4.180978078 | DA13: 4.224080944 | DB13: 4.267183811 | DC13: 4.310286678 | DE13: 7 | DF13: 4.612006745 | DG13: 4.612006745 | DH13: 4.612006745 | DI13: 4.612006745 | DJ13: 4.612006745 | DK13: 4.612006745 | DL13: 4.612006745 | DM13: 4.612006745 | DN13: 4.612006745 | DO13: 4.612006745 | DP13: 4.612006745 | DQ13: 4.612006745 | DR13: 4.612006745 | DS13: 4.612006745 | DT13: 4.612006745 | DU13: 4.612006745 | DV13: 4.612006745 | DW13: 4.612006745 | DY13: 7 | DZ13: 1.172778731 | EA13: 1.158745378 | EB13: 1.144806766 | EC13: 1.130960915 | ED13: 1.117205882 | EE13: 1.103539755 | EF13: 1.089960655 | EG13: 1.076466734 | EH13: 1.063056175 | EI13: 1.04972719 | EJ13: 1.036478019 | EK13: 1.023306932 | EL13: 1.010212223 | EM13: 0.9971922148 | EN13: 0.9842452546 | EO13: 0.9713697142 | EP13: 0.9585639896 | EQ13: 0.8943167776
B14: 8 | C14: 11.83333333 | D14: 11.83333333 | E14: 11.83333333 | F14: 11.83333333 | G14: 11.83333333 | H14: 11.83333333 | I14: 11.83333333 | J14: 11.83333333 | K14: 11.83333333 | L14: 11.83333333 | M14: 11.83333333 | N14: 11.83333333 | O14: 11.83333333 | P14: 11.83333333 | Q14: 11.83333333 | R14: 11.83333333 | S14: 11.83333333 | T14: 11.83333333 | V14: 8 | W14: 15.39759036 | X14: 15.21428571 | Y14: 15.03529412 | Z14: 14.86046512 | AA14: 14.68965517 | AB14: 14.52272727 | AC14: 14.35955056 | AD14: 14.2 | AE14: 14.04395604 | AF14: 13.89130435 | AG14: 13.74193548 | AH14: 13.59574468 | AI14: 13.45263158 | AJ14: 13.3125 | AK14: 13.17525773 | AL14: 13.04081633 | AM14: 12.90909091 | AN14: 12.78 | AR14: 8 | AS14: 3.908822253 | AT14: 3.816072896 | AU14: 3.725814213 | AV14: 3.637952955 | AW14: 3.55240027 | AX14: 3.469071448 | AY14: 3.387885687 | AZ14: 3.308765871 | BA14: 3.231638368 | BB14: 3.156432834 | BC14: 3.083082039 | BD14: 3.011521692 | BE14: 2.94169029 | BF14: 2.873528968 | BG14: 2.80698136 | BH14: 2.741993471 | BI14: 2.678513555 | BJ14: 2.451355966 | BN14: 8 | BO14: 0.3028378378 | BP14: 0.3064864865 | BQ14: 0.3101351351 | BR14: 0.3137837838 | BS14: 0.3174324324 | BT14: 0.3210810811 | BU14: 0.3247297297 | BV14: 0.3283783784 | BW14: 0.332027027 | BX14: 0.3356756757 | BY14: 0.3393243243 | BZ14: 0.342972973 | CA14: 0.3466216216 | CB14: 0.3502702703 | CC14: 0.3539189189 | CD14: 0.3575675676 | CE14: 0.3612162162 | CF14: 0.3648648649 | CK14: 8 | CL14: 3.583581081 | CM14: 3.626756757 | CN14: 3.669932432 | CO14: 3.713108108 | CP14: 3.756283784 | CQ14: 3.799459459 | CR14: 3.842635135 | CS14: 3.885810811 | CT14: 3.928986486 | CU14: 3.972162162 | CV14: 4.015337838 | CW14: 4.058513514 | CX14: 4.101689189 | CY14: 4.144864865 | CZ14: 4.188040541 | DA14: 4.231216216 | DB14: 4.274391892 | DC14: 4.317567568 | DE14: 8 | DF14: 4.662972973 | DG14: 4.662972973 | DH14: 4.662972973 | DI14: 4.662972973 | DJ14: 4.662972973 | DK14: 4.662972973 | DL14: 4.662972973 | DM14: 4.662972973 | DN14: 4.662972973 | DO14: 4.662972973 | DP14: 4.662972973 | DQ14: 4.662972973 | DR14: 4.662972973 | DS14: 4.662972973 | DT14: 4.662972973 | DU14: 4.662972973 | DV14: 4.662972973 | DW14: 4.662972973 | DY14: 8 | DZ14: 1.18373928 | EA14: 1.169574774 | EB14: 1.155505894 | EC14: 1.141530644 | ED14: 1.127647059 | EE14: 1.113853211 | EF14: 1.100147203 | EG14: 1.086527171 | EH14: 1.07299128 | EI14: 1.059537724 | EJ14: 1.04616473 | EK14: 1.032870548 | EL14: 1.019653459 | EM14: 1.006511768 | EN14: 0.9934438084 | EO14: 0.9804479358 | EP14: 0.9675225315 | EQ14: 0.8944136634
B15: 9 | C15: 11.72477064 | D15: 11.72477064 | E15: 11.72477064 | F15: 11.72477064 | G15: 11.72477064 | H15: 11.72477064 | I15: 11.72477064 | J15: 11.72477064 | K15: 11.72477064 | L15: 11.72477064 | M15: 11.72477064 | N15: 11.72477064 | O15: 11.72477064 | P15: 11.72477064 | Q15: 11.72477064 | R15: 11.72477064 | S15: 11.72477064 | T15: 11.72477064 | V15: 9 | W15: 15.39759036 | X15: 15.21428571 | Y15: 15.03529412 | Z15: 14.86046512 | AA15: 14.68965517 | AB15: 14.52272727 | AC15: 14.35955056 | AD15: 14.2 | AE15: 14.04395604 | AF15: 13.89130435 | AG15: 13.74193548 | AH15: 13.59574468 | AI15: 13.45263158 | AJ15: 13.3125 | AK15: 13.17525773 | AL15: 13.04081633 | AM15: 12.90909091 | AN15: 12.78 | AR15: 9 | AS15: 3.902219513 | AT15: 3.809626827 | AU15: 3.719520608 | AV15: 3.631807765 | AW15: 3.546399594 | AX15: 3.46321153 | AY15: 3.382162907 | AZ15: 3.303176739 | BA15: 3.226179519 | BB15: 3.151101022 | BC15: 3.07787413 | BD15: 3.006434662 | BE15: 2.936721219 | BF15: 2.868675034 | BG15: 2.802239837 | BH15: 2.737361726 | BI15: 2.673989039 | BJ15: 2.425026305 | BN15: 9 | BO15: 0.3061590525 | BP15: 0.3098477157 | BQ15: 0.313536379 | BR15: 0.3172250423 | BS15: 0.3209137056 | BT15: 0.3246023689 | BU15: 0.3282910321 | BV15: 0.3319796954 | BW15: 0.3356683587 | BX15: 0.339357022 | BY15: 0.3430456853 | BZ15: 0.3467343486 | CA15: 0.3504230118 | CB15: 0.3541116751 | CC15: 0.3578003384 | CD15: 0.3614890017 | CE15: 0.365177665 | CF15: 0.3688663283 | CK15: 9 | CL15: 3.58964467 | CM15: 3.632893401 | CN15: 3.676142132 | CO15: 3.719390863 | CP15: 3.762639594 | CQ15: 3.805888325 | CR15: 3.849137056 | CS15: 3.892385787 | CT15: 3.935634518 | CU15: 3.978883249 | CV15: 4.02213198 | CW15: 4.065380711 | CX15: 4.108629442 | CY15: 4.151878173 | CZ15: 4.195126904 | DA15: 4.238375635 | DB15: 4.281624365 | DC15: 4.324873096 | DE15: 9 | DF15: 4.714111675 | DG15: 4.714111675 | DH15: 4.714111675 | DI15: 4.714111675 | DJ15: 4.714111675 | DK15: 4.714111675 | DL15: 4.714111675 | DM15: 4.714111675 | DN15: 4.714111675 | DO15: 4.714111675 | DP15: 4.714111675 | DQ15: 4.714111675 | DR15: 4.714111675 | DS15: 4.714111675 | DT15: 4.714111675 | DU15: 4.714111675 | DV15: 4.714111675 | DW15: 4.714111675 | DY15: 9 | DZ15: 1.194699828 | EA15: 1.18040417 | EB15: 1.166205023 | EC15: 1.152100372 | ED15: 1.138088235 | EE15: 1.124166667 | EF15: 1.110333752 | EG15: 1.096587608 | EH15: 1.082926384 | EI15: 1.069348259 | EJ15: 1.05585144 | EK15: 1.042434164 | EL15: 1.029094694 | EM15: 1.015831322 | EN15: 1.002642362 | EO15: 0.9895261574 | EP15: 0.9764810735 | EQ15: 0.8945105491
B16: 10 | C16: 11.61818182 | D16: 11.61818182 | E16: 11.61818182 | F16: 11.61818182 | G16: 11.61818182 | H16: 11.61818182 | I16: 11.61818182 | J16: 11.61818182 | K16: 11.61818182 | L16: 11.61818182 | M16: 11.61818182 | N16: 11.61818182 | O16: 11.61818182 | P16: 11.61818182 | Q16: 11.61818182 | R16: 11.61818182 | S16: 11.61818182 | T16: 11.61818182 | V16: 10 | W16: 15.39759036 | X16: 15.21428571 | Y16: 15.03529412 | Z16: 14.86046512 | AA16: 14.68965517 | AB16: 14.52272727 | AC16: 14.35955056 | AD16: 14.2 | AE16: 14.04395604 | AF16: 13.89130435 | AG16: 13.74193548 | AH16: 13.59574468 | AI16: 13.45263158 | AJ16: 13.3125 | AK16: 13.17525773 | AL16: 13.04081633 | AM16: 12.90909091 | AN16: 12.78 | AR16: 10 | AS16: 3.895616772 | AT16: 3.803180758 | AU16: 3.713227003 | AV16: 3.625662574 | AW16: 3.540398918 | AX16: 3.457351612 | AY16: 3.376440127 | AZ16: 3.297587608 | BA16: 3.220720671 | BB16: 3.14576921 | BC16: 3.072666221 | BD16: 3.001347632 | BE16: 2.931752147 | BF16: 2.8638211 | BG16: 2.797498315 | BH16: 2.73272998 | BI16: 2.669464523 | BJ16: 2.399174485 | BN16: 10 | BO16: 0.3094915254 | BP16: 0.313220339 | BQ16: 0.3169491525 | BR16: 0.3206779661 | BS16: 0.3244067797 | BT16: 0.3281355932 | BU16: 0.3318644068 | BV16: 0.3355932203 | BW16: 0.3393220339 | BX16: 0.3430508475 | BY16: 0.346779661 | BZ16: 0.3505084746 | CA16: 0.3542372881 | CB16: 0.3579661017 | CC16: 0.3616949153 | CD16: 0.3654237288 | CE16: 0.3691525424 | CF16: 0.3728813559 | CK16: 10 | CL16: 3.595728814 | CM16: 3.639050847 | CN16: 3.682372881 | CO16: 3.725694915 | CP16: 3.769016949 | CQ16: 3.812338983 | CR16: 3.855661017 | CS16: 3.898983051 | CT16: 3.942305085 | CU16: 3.985627119 | CV16: 4.028949153 | CW16: 4.072271186 | CX16: 4.11559322 | CY16: 4.158915254 | CZ16: 4.202237288 | DA16: 4.245559322 | DB16: 4.288881356 | DC16: 4.33220339 | DE16: 10 | DF16: 4.765423729 | DG16: 4.765423729 | DH16: 4.765423729 | DI16: 4.765423729 | DJ16: 4.765423729 | DK16: 4.765423729 | DL16: 4.765423729 | DM16: 4.765423729 | DN16: 4.765423729 | DO16: 4.765423729 | DP16: 4.765423729 | DQ16: 4.765423729 | DR16: 4.765423729 | DS16: 4.765423729 | DT16: 4.765423729 | DU16: 4.765423729 | DV16: 4.765423729 | DW16: 4.765423729 | DY16: 10 | DZ16: 1.205660377 | EA16: 1.191233566 | EB16: 1.176904152 | EC16: 1.1626701 | ED16: 1.148529412 | EE16: 1.134480122 | EF16: 1.1205203 | EG16: 1.106648045 | EH16: 1.092861489 | EI16: 1.079158793 | EJ16: 1.065538151 | EK16: 1.05199778 | EL16: 1.03853593 | EM16: 1.025150875 | EN16: 1.011840916 | EO16: 0.9986043791 | EP16: 0.9854396155 | EQ16: 0.8946074349
B17: 11 | C17: 11.51351351 | D17: 11.51351351 | E17: 11.51351351 | F17: 11.51351351 | G17: 11.51351351 | H17: 11.51351351 | I17: 11.51351351 | J17: 11.51351351 | K17: 11.51351351 | L17: 11.51351351 | M17: 11.51351351 | N17: 11.51351351 | O17: 11.51351351 | P17: 11.51351351 | Q17: 11.51351351 | R17: 11.51351351 | S17: 11.51351351 | T17: 11.51351351 | V17: 11 | W17: 15.39759036 | X17: 15.21428571 | Y17: 15.03529412 | Z17: 14.86046512 | AA17: 14.68965517 | AB17: 14.52272727 | AC17: 14.35955056 | AD17: 14.2 | AE17: 14.04395604 | AF17: 13.89130435 | AG17: 13.74193548 | AH17: 13.59574468 | AI17: 13.45263158 | AJ17: 13.3125 | AK17: 13.17525773 | AL17: 13.04081633 | AM17: 12.90909091 | AN17: 12.78 | AR17: 11 | AS17: 3.889014032 | AT17: 3.796734689 | AU17: 3.706933398 | AV17: 3.619517383 | AW17: 3.534398242 | AX17: 3.451491694 | AY17: 3.370717347 | AZ17: 3.291998476 | BA17: 3.215261822 | BB17: 3.140437398 | BC17: 3.067458312 | BD17: 2.996260602 | BE17: 2.926783076 | BF17: 2.858967166 | BG17: 2.792756792 | BH17: 2.728098234 | BI17: 2.664940007 | BJ17: 2.37378759 | BN17: 11 | BO17: 0.3128353141 | BP17: 0.3166044143 | BQ17: 0.3203735144 | BR17: 0.3241426146 | BS17: 0.3279117148 | BT17: 0.3316808149 | BU17: 0.3354499151 | BV17: 0.3392190153 | BW17: 0.3429881154 | BX17: 0.3467572156 | BY17: 0.3505263158 | BZ17: 0.354295416 | CA17: 0.3580645161 | CB17: 0.3618336163 | CC17: 0.3656027165 | CD17: 0.3693718166 | CE17: 0.3731409168 | CF17: 0.376910017 | CK17: 11 | CL17: 3.601833616 | CM17: 3.645229202 | CN17: 3.688624788 | CO17: 3.732020374 | CP17: 3.775415959 | CQ17: 3.818811545 | CR17: 3.862207131 | CS17: 3.905602716 | CT17: 3.948998302 | CU17: 3.992393888 | CV17: 4.035789474 | CW17: 4.079185059 | CX17: 4.122580645 | CY17: 4.165976231 | CZ17: 4.209371817 | DA17: 4.252767402 | DB17: 4.296162988 | DC17: 4.339558574 | DE17: 11 | DF17: 4.816910017 | DG17: 4.816910017 | DH17: 4.816910017 | DI17: 4.816910017 | DJ17: 4.816910017 | DK17: 4.816910017 | DL17: 4.816910017 | DM17: 4.816910017 | DN17: 4.816910017 | DO17: 4.816910017 | DP17: 4.816910017 | DQ17: 4.816910017 | DR17: 4.816910017 | DS17: 4.816910017 | DT17: 4.816910017 | DU17: 4.816910017 | DV17: 4.816910017 | DW17: 4.816910017 | DY17: 11 | DZ17: 1.216620926 | EA17: 1.202062962 | EB17: 1.18760328 | EC17: 1.173239828 | ED17: 1.158970588 | EE17: 1.144793578 | EF17: 1.130706848 | EG17: 1.116708481 | EH17: 1.102796593 | EI17: 1.088969328 | EJ17: 1.075224861 | EK17: 1.061561396 | EL17: 1.047977166 | EM17: 1.034470428 | EN17: 1.02103947 | EO17: 1.007682601 | EP17: 0.9943981574 | EQ17: 0.8947043207
B18: 12 | C18: 11.41071429 | D18: 11.41071429 | E18: 11.41071429 | F18: 11.41071429 | G18: 11.41071429 | H18: 11.41071429 | I18: 11.41071429 | J18: 11.41071429 | K18: 11.41071429 | L18: 11.41071429 | M18: 11.41071429 | N18: 11.41071429 | O18: 11.41071429 | P18: 11.41071429 | Q18: 11.41071429 | R18: 11.41071429 | S18: 11.41071429 | T18: 11.41071429 | V18: 12 | W18: 15.39759036 | X18: 15.21428571 | Y18: 15.03529412 | Z18: 14.86046512 | AA18: 14.68965517 | AB18: 14.52272727 | AC18: 14.35955056 | AD18: 14.2 | AE18: 14.04395604 | AF18: 13.89130435 | AG18: 13.74193548 | AH18: 13.59574468 | AI18: 13.45263158 | AJ18: 13.3125 | AK18: 13.17525773 | AL18: 13.04081633 | AM18: 12.90909091 | AN18: 12.78 | AR18: 12 | AS18: 3.882411292 | AT18: 3.79028862 | AU18: 3.700639793 | AV18: 3.613372192 | AW18: 3.528397566 | AX18: 3.445631776 | AY18: 3.364994567 | AZ18: 3.286409345 | BA18: 3.209802973 | BB18: 3.135105585 | BC18: 3.062250403 | BD18: 2.991173572 | BE18: 2.921814004 | BF18: 2.854113232 | BG18: 2.78801527 | BH18: 2.723466488 | BI18: 2.660415491 | BJ18: 2.348853167 | BN18: 12 | BO18: 0.3161904762 | BP18: 0.32 | BQ18: 0.3238095238 | BR18: 0.3276190476 | BS18: 0.3314285714 | BT18: 0.3352380952 | BU18: 0.339047619 | BV18: 0.3428571429 | BW18: 0.3466666667 | BX18: 0.3504761905 | BY18: 0.3542857143 | BZ18: 0.3580952381 | CA18: 0.3619047619 | CB18: 0.3657142857 | CC18: 0.3695238095 | CD18: 0.3733333333 | CE18: 0.3771428571 | CF18: 0.380952381 | CK18: 12 | CL18: 3.607959184 | CM18: 3.651428571 | CN18: 3.694897959 | CO18: 3.738367347 | CP18: 3.781836735 | CQ18: 3.825306122 | CR18: 3.86877551 | CS18: 3.912244898 | CT18: 3.955714286 | CU18: 3.999183673 | CV18: 4.042653061 | CW18: 4.086122449 | CX18: 4.129591837 | CY18: 4.173061224 | CZ18: 4.216530612 | DA18: 4.26 | DB18: 4.303469388 | DC18: 4.346938776 | DE18: 12 | DF18: 4.868571429 | DG18: 4.868571429 | DH18: 4.868571429 | DI18: 4.868571429 | DJ18: 4.868571429 | DK18: 4.868571429 | DL18: 4.868571429 | DM18: 4.868571429 | DN18: 4.868571429 | DO18: 4.868571429 | DP18: 4.868571429 | DQ18: 4.868571429 | DR18: 4.868571429 | DS18: 4.868571429 | DT18: 4.868571429 | DU18: 4.868571429 | DV18: 4.868571429 | DW18: 4.868571429 | DY18: 12 | DZ18: 1.227581475 | EA18: 1.212892358 | EB18: 1.198302409 | EC18: 1.183809556 | ED18: 1.169411765 | EE18: 1.155107034 | EF18: 1.140893396 | EG18: 1.126768918 | EH18: 1.112731697 | EI18: 1.098779862 | EJ18: 1.084911572 | EK18: 1.071125013 | EL18: 1.057418402 | EM18: 1.043789982 | EN18: 1.030238024 | EO18: 1.016760822 | EP18: 1.003356699 | EQ18: 0.8948012064
B19: 13 | C19: 11.30973451 | D19: 11.30973451 | E19: 11.30973451 | F19: 11.30973451 | G19: 11.30973451 | H19: 11.30973451 | I19: 11.30973451 | J19: 11.30973451 | K19: 11.30973451 | L19: 11.30973451 | M19: 11.30973451 | N19: 11.30973451 | O19: 11.30973451 | P19: 11.30973451 | Q19: 11.30973451 | R19: 11.30973451 | S19: 11.30973451 | T19: 11.30973451 | V19: 13 | W19: 15.39759036 | X19: 15.21428571 | Y19: 15.03529412 | Z19: 14.86046512 | AA19: 14.68965517 | AB19: 14.52272727 | AC19: 14.35955056 | AD19: 14.2 | AE19: 14.04395604 | AF19: 13.89130435 | AG19: 13.74193548 | AH19: 13.59574468 | AI19: 13.45263158 | AJ19: 13.3125 | AK19: 13.17525773 | AL19: 13.04081633 | AM19: 12.90909091 | AN19: 12.78 | AR19: 13 | AS19: 3.875808552 | AT19: 3.78384255 | AU19: 3.694346187 | AV19: 3.607227001 | AW19: 3.52239689 | AX19: 3.439771858 | AY19: 3.359271788 | AZ19: 3.280820213 | BA19: 3.204344125 | BB19: 3.129773773 | BC19: 3.057042495 | BD19: 2.986086543 | BE19: 2.916844933 | BF19: 2.849259298 | BG19: 2.783273747 | BH19: 2.718834743 | BI19: 2.655890975 | BJ19: 2.324359204 | BN19: 13 | BO19: 0.3195570698 | BP19: 0.323407155 | BQ19: 0.3272572402 | BR19: 0.3311073254 | BS19: 0.3349574106 | BT19: 0.3388074957 | BU19: 0.3426575809 | BV19: 0.3465076661 | BW19: 0.3503577513 | BX19: 0.3542078365 | BY19: 0.3580579216 | BZ19: 0.3619080068 | CA19: 0.365758092 | CB19: 0.3696081772 | CC19: 0.3734582624 | CD19: 0.3773083475 | CE19: 0.3811584327 | CF19: 0.3850085179 | CK19: 13 | CL19: 3.614105622 | CM19: 3.657649063 | CN19: 3.701192504 | CO19: 3.744735945 | CP19: 3.788279387 | CQ19: 3.831822828 | CR19: 3.875366269 | CS19: 3.91890971 | CT19: 3.962453152 | CU19: 4.005996593 | CV19: 4.049540034 | CW19: 4.093083475 | CX19: 4.136626917 | CY19: 4.180170358 | CZ19: 4.223713799 | DA19: 4.26725724 | DB19: 4.310800681 | DC19: 4.354344123 | DE19: 13 | DF19: 4.920408859 | DG19: 4.920408859 | DH19: 4.920408859 | DI19: 4.920408859 | DJ19: 4.920408859 | DK19: 4.920408859 | DL19: 4.920408859 | DM19: 4.920408859 | DN19: 4.920408859 | DO19: 4.920408859 | DP19: 4.920408859 | DQ19: 4.920408859 | DR19: 4.920408859 | DS19: 4.920408859 | DT19: 4.920408859 | DU19: 4.920408859 | DV19: 4.920408859 | DW19: 4.920408859 | DY19: 13 | DZ19: 1.238542024 | EA19: 1.223721754 | EB19: 1.209001538 | EC19: 1.194379284 | ED19: 1.179852941 | EE19: 1.165420489 | EF19: 1.151079944 | EG19: 1.136829355 | EH19: 1.122666802 | EI19: 1.108590397 | EJ19: 1.094598282 | EK19: 1.080688629 | EL19: 1.066859637 | EM19: 1.053109535 | EN19: 1.039436577 | EO19: 1.025839044 | EP19: 1.012315241 | EQ19: 0.8948980922
B20: 14 | C20: 11.21052632 | D20: 11.21052632 | E20: 11.21052632 | F20: 11.21052632 | G20: 11.21052632 | H20: 11.21052632 | I20: 11.21052632 | J20: 11.21052632 | K20: 11.21052632 | L20: 11.21052632 | M20: 11.21052632 | N20: 11.21052632 | O20: 11.21052632 | P20: 11.21052632 | Q20: 11.21052632 | R20: 11.21052632 | S20: 11.21052632 | T20: 11.21052632 | V20: 14 | W20: 15.39759036 | X20: 15.21428571 | Y20: 15.03529412 | Z20: 14.86046512 | AA20: 14.68965517 | AB20: 14.52272727 | AC20: 14.35955056 | AD20: 14.2 | AE20: 14.04395604 | AF20: 13.89130435 | AG20: 13.74193548 | AH20: 13.59574468 | AI20: 13.45263158 | AJ20: 13.3125 | AK20: 13.17525773 | AL20: 13.04081633 | AM20: 12.90909091 | AN20: 12.78 | AR20: 14 | AS20: 3.869205811 | AT20: 3.777396481 | AU20: 3.688052582 | AV20: 3.601081811 | AW20: 3.516396214 | AX20: 3.433911941 | AY20: 3.353549008 | AZ20: 3.275231082 | BA20: 3.198885276 | BB20: 3.124441961 | BC20: 3.051834586 | BD20: 2.980999513 | BE20: 2.911875862 | BF20: 2.844405364 | BG20: 2.778532225 | BH20: 2.714202997 | BI20: 2.651366458 | BJ20: 2.30029411 | BN20: 14 | BO20: 0.3229351536 | BP20: 0.3268259386 | BQ20: 0.3307167235 | BR20: 0.3346075085 | BS20: 0.3384982935 | BT20: 0.3423890785 | BU20: 0.3462798635 | BV20: 0.3501706485 | BW20: 0.3540614334 | BX20: 0.3579522184 | BY20: 0.3618430034 | BZ20: 0.3657337884 | CA20: 0.3696245734 | CB20: 0.3735153584 | CC20: 0.3774061433 | CD20: 0.3812969283 | CE20: 0.3851877133 | CF20: 0.3890784983 | CK20: 14 | CL20: 3.620273038 | CM20: 3.663890785 | CN20: 3.707508532 | CO20: 3.75112628 | CP20: 3.794744027 | CQ20: 3.838361775 | CR20: 3.881979522 | CS20: 3.92559727 | CT20: 3.969215017 | CU20: 4.012832765 | CV20: 4.056450512 | CW20: 4.100068259 | CX20: 4.143686007 | CY20: 4.187303754 | CZ20: 4.230921502 | DA20: 4.274539249 | DB20: 4.318156997 | DC20: 4.361774744 | DE20: 14 | DF20: 4.972423208 | DG20: 4.972423208 | DH20: 4.972423208 | DI20: 4.972423208 | DJ20: 4.972423208 | DK20: 4.972423208 | DL20: 4.972423208 | DM20: 4.972423208 | DN20: 4.972423208 | DO20: 4.972423208 | DP20: 4.972423208 | DQ20: 4.972423208 | DR20: 4.972423208 | DS20: 4.972423208 | DT20: 4.972423208 | DU20: 4.972423208 | DV20: 4.972423208 | DW20: 4.972423208 | DY20: 14 | DZ20: 1.249502573 | EA20: 1.23455115 | EB20: 1.219700666 | EC20: 1.204949013 | ED20: 1.190294118 | EE20: 1.175733945 | EF20: 1.161266493 | EG20: 1.146889792 | EH20: 1.132601906 | EI20: 1.118400931 | EJ20: 1.104284992 | EK20: 1.090252245 | EL20: 1.076300873 | EM20: 1.062429089 | EN20: 1.048635131 | EO20: 1.034917266 | EP20: 1.021273783 | EQ20: 0.894994978
B21: 15 | C21: 11.11304348 | D21: 11.11304348 | E21: 11.11304348 | F21: 11.11304348 | G21: 11.11304348 | H21: 11.11304348 | I21: 11.11304348 | J21: 11.11304348 | K21: 11.11304348 | L21: 11.11304348 | M21: 11.11304348 | N21: 11.11304348 | O21: 11.11304348 | P21: 11.11304348 | Q21: 11.11304348 | R21: 11.11304348 | S21: 11.11304348 | T21: 11.11304348 | V21: 15 | W21: 15.39759036 | X21: 15.21428571 | Y21: 15.03529412 | Z21: 14.86046512 | AA21: 14.68965517 | AB21: 14.52272727 | AC21: 14.35955056 | AD21: 14.2 | AE21: 14.04395604 | AF21: 13.89130435 | AG21: 13.74193548 | AH21: 13.59574468 | AI21: 13.45263158 | AJ21: 13.3125 | AK21: 13.17525773 | AL21: 13.04081633 | AM21: 12.90909091 | AN21: 12.78 | AR21: 15 | AS21: 3.862603071 | AT21: 3.770950412 | AU21: 3.681758977 | AV21: 3.59493662 | AW21: 3.510395538 | AX21: 3.428052023 | AY21: 3.347826228 | AZ21: 3.26964195 | BA21: 3.193426428 | BB21: 3.119110149 | BC21: 3.046626677 | BD21: 2.975912483 | BE21: 2.90690679 | BF21: 2.83955143 | BG21: 2.773790702 | BH21: 2.709571251 | BI21: 2.646841942 | BJ21: 2.276646697 | BN21: 15 | BO21: 0.3263247863 | BP21: 0.3302564103 | BQ21: 0.3341880342 | BR21: 0.3381196581 | BS21: 0.3420512821 | BT21: 0.345982906 | BU21: 0.3499145299 | BV21: 0.3538461538 | BW21: 0.3577777778 | BX21: 0.3617094017 | BY21: 0.3656410256 | BZ21: 0.3695726496 | CA21: 0.3735042735 | CB21: 0.3774358974 | CC21: 0.3813675214 | CD21: 0.3852991453 | CE21: 0.3892307692 | CF21: 0.3931623932 | CK21: 15 | CL21: 3.626461538 | CM21: 3.670153846 | CN21: 3.713846154 | CO21: 3.757538462 | CP21: 3.801230769 | CQ21: 3.844923077 | CR21: 3.888615385 | CS21: 3.932307692 | CT21: 3.976 | CU21: 4.019692308 | CV21: 4.063384615 | CW21: 4.107076923 | CX21: 4.150769231 | CY21: 4.194461538 | CZ21: 4.238153846 | DA21: 4.281846154 | DB21: 4.325538462 | DC21: 4.369230769 | DE21: 15 | DF21: 5.024615385 | DG21: 5.024615385 | DH21: 5.024615385 | DI21: 5.024615385 | DJ21: 5.024615385 | DK21: 5.024615385 | DL21: 5.024615385 | DM21: 5.024615385 | DN21: 5.024615385 | DO21: 5.024615385 | DP21: 5.024615385 | DQ21: 5.024615385 | DR21: 5.024615385 | DS21: 5.024615385 | DT21: 5.024615385 | DU21: 5.024615385 | DV21: 5.024615385 | DW21: 5.024615385 | DY21: 15 | DZ21: 1.260463122 | EA21: 1.245380546 | EB21: 1.230399795 | EC21: 1.215518741 | ED21: 1.200735294 | EE21: 1.186047401 | EF21: 1.171453041 | EG21: 1.156950229 | EH21: 1.142537011 | EI21: 1.128211466 | EJ21: 1.113971703 | EK21: 1.099815861 | EL21: 1.085742109 | EM21: 1.071748642 | EN21: 1.057833685 | EO21: 1.043995487 | EP21: 1.030232325 | EQ21: 0.8950918638
B22: 16 | C22: 11.01724138 | D22: 11.01724138 | E22: 11.01724138 | F22: 11.01724138 | G22: 11.01724138 | H22: 11.01724138 | I22: 11.01724138 | J22: 11.01724138 | K22: 11.01724138 | L22: 11.01724138 | M22: 11.01724138 | N22: 11.01724138 | O22: 11.01724138 | P22: 11.01724138 | Q22: 11.01724138 | R22: 11.01724138 | S22: 11.01724138 | T22: 11.01724138 | V22: 16 | W22: 15.39759036 | X22: 15.21428571 | Y22: 15.03529412 | Z22: 14.86046512 | AA22: 14.68965517 | AB22: 14.52272727 | AC22: 14.35955056 | AD22: 14.2 | AE22: 14.04395604 | AF22: 13.89130435 | AG22: 13.74193548 | AH22: 13.59574468 | AI22: 13.45263158 | AJ22: 13.3125 | AK22: 13.17525773 | AL22: 13.04081633 | AM22: 12.90909091 | AN22: 12.78 | AR22: 16 | AS22: 3.856000331 | AT22: 3.764504343 | AU22: 3.675465372 | AV22: 3.588791429 | AW22: 3.504394861 | AX22: 3.422192105 | AY22: 3.342103448 | AZ22: 3.264052819 | BA22: 3.187967579 | BB22: 3.113778337 | BC22: 3.041418768 | BD22: 2.970825453 | BE22: 2.901937719 | BF22: 2.834697495 | BG22: 2.76904918 | BH22: 2.704939505 | BI22: 2.642317426 | BJ22: 2.253406163 | BN22: 16 | BO22: 0.3297260274 | BP22: 0.3336986301 | BQ22: 0.3376712329 | BR22: 0.3416438356 | BS22: 0.3456164384 | BT22: 0.3495890411 | BU22: 0.3535616438 | BV22: 0.3575342466 | BW22: 0.3615068493 | BX22: 0.3654794521 | BY22: 0.3694520548 | BZ22: 0.3734246575 | CA22: 0.3773972603 | CB22: 0.381369863 | CC22: 0.3853424658 | CD22: 0.3893150685 | CE22: 0.3932876712 | CF22: 0.397260274 | CK22: 16 | CL22: 3.632671233 | CM22: 3.676438356 | CN22: 3.720205479 | CO22: 3.763972603 | CP22: 3.807739726 | CQ22: 3.851506849 | CR22: 3.895273973 | CS22: 3.939041096 | CT22: 3.982808219 | CU22: 4.026575342 | CV22: 4.070342466 | CW22: 4.114109589 | CX22: 4.157876712 | CY22: 4.201643836 | CZ22: 4.245410959 | DA22: 4.289178082 | DB22: 4.332945205 | DC22: 4.376712329 | DE22: 16 | DF22: 5.076986301 | DG22: 5.076986301 | DH22: 5.076986301 | DI22: 5.076986301 | DJ22: 5.076986301 | DK22: 5.076986301 | DL22: 5.076986301 | DM22: 5.076986301 | DN22: 5.076986301 | DO22: 5.076986301 | DP22: 5.076986301 | DQ22: 5.076986301 | DR22: 5.076986301 | DS22: 5.076986301 | DT22: 5.076986301 | DU22: 5.076986301 | DV22: 5.076986301 | DW22: 5.076986301 | DY22: 16 | DZ22: 1.271423671 | EA22: 1.256209942 | EB22: 1.241098924 | EC22: 1.226088469 | ED22: 1.211176471 | EE22: 1.196360856 | EF22: 1.181639589 | EG22: 1.167010665 | EH22: 1.152472115 | EI22: 1.138022 | EJ22: 1.123658413 | EK22: 1.109379477 | EL22: 1.095183345 | EM22: 1.081068196 | EN22: 1.067032239 | EO22: 1.053073709 | EP22: 1.039190867 | EQ22: 0.8951887495
B23: 17 | C23: 10.92307692 | D23: 10.92307692 | E23: 10.92307692 | F23: 10.92307692 | G23: 10.92307692 | H23: 10.92307692 | I23: 10.92307692 | J23: 10.92307692 | K23: 10.92307692 | L23: 10.92307692 | M23: 10.92307692 | N23: 10.92307692 | O23: 10.92307692 | P23: 10.92307692 | Q23: 10.92307692 | R23: 10.92307692 | S23: 10.92307692 | T23: 10.92307692 | V23: 17 | W23: 15.39759036 | X23: 15.21428571 | Y23: 15.03529412 | Z23: 14.86046512 | AA23: 14.68965517 | AB23: 14.52272727 | AC23: 14.35955056 | AD23: 14.2 | AE23: 14.04395604 | AF23: 13.89130435 | AG23: 13.74193548 | AH23: 13.59574468 | AI23: 13.45263158 | AJ23: 13.3125 | AK23: 13.17525773 | AL23: 13.04081633 | AM23: 12.90909091 | AN23: 12.78 | AR23: 17 | AS23: 3.84939759 | AT23: 3.758058274 | AU23: 3.669171767 | AV23: 3.582646238 | AW23: 3.498394185 | AX23: 3.416332187 | AY23: 3.336380668 | AZ23: 3.258463687 | BA23: 3.18250873 | BB23: 3.108446524 | BC23: 3.036210859 | BD23: 2.965738423 | BE23: 2.896968647 | BF23: 2.829843561 | BG23: 2.764307657 | BH23: 2.70030776 | BI23: 2.63779291 | BJ23: 2.230562074 | BN23: 17 | BO23: 0.3331389365 | BP23: 0.3371526587 | BQ23: 0.3411663808 | BR23: 0.3451801029 | BS23: 0.349193825 | BT23: 0.3532075472 | BU23: 0.3572212693 | BV23: 0.3612349914 | BW23: 0.3652487136 | BX23: 0.3692624357 | BY23: 0.3732761578 | BZ23: 0.3772898799 | CA23: 0.3813036021 | CB23: 0.3853173242 | CC23: 0.3893310463 | CD23: 0.3933447684 | CE23: =(1+$BN23/100)*(1-CE$5/100)/(3-$M$2*$BN23/100) -> 0.3973584906 | CF23: 0.4013722127 | CK23: 17 | CL23: 3.63890223 | CM23: 3.682744425 | CN23: 3.726586621 | CO23: 3.770428816 | CP23: 3.814271012 | CQ23: 3.858113208 | CR23: 3.901955403 | CS23: 3.945797599 | CT23: 3.989639794 | CU23: 4.03348199 | CV23: 4.077324185 | CW23: 4.121166381 | CX23: 4.165008576 | CY23: 4.208850772 | CZ23: 4.252692967 | DA23: 4.296535163 | DB23: =($M$1*$CI$3+$M$3*$CI$1)*(1/100)*(1-DB$5/100)/(3-$M$2*$CK23/100) -> 4.340377358 | DC23: 4.384219554 | DE23: 17 | DF23: 5.129536878 | DG23: 5.129536878 | DH23: 5.129536878 | DI23: 5.129536878 | DJ23: 5.129536878 | DK23: 5.129536878 | DL23: 5.129536878 | DM23: 5.129536878 | DN23: 5.129536878 | DO23: 5.129536878 | DP23: 5.129536878 | DQ23: 5.129536878 | DR23: 5.129536878 | DS23: 5.129536878 | DT23: 5.129536878 | DU23: 5.129536878 | DV23: =($M$1*$CI$3+$M$3*$CI$1)*(1+$DE23/100)*(1/100)/(3-$M$2*$DE23/100) -> 5.129536878 | DW23: 5.129536878 | DY23: 17 | DZ23: 1.28238422 | EA23: 1.267039339 | EB23: 1.251798052 | EC23: 1.236658197 | ED23: 1.221617647 | EE23: 1.206674312 | EF23: 1.191826137 | EG23: 1.177071102 | EH23: 1.16240722 | EI23: 1.147832535 | EJ23: 1.133345124 | EK23: 1.118943094 | EL23: 1.10462458 | EM23: 1.090387749 | EN23: 1.076230792 | EO23: 1.06215193 | EP23: =(1/400)*(0.83+EP$5/100)*($CI$3*$M$1+$CI$1*$M$3)*(1+1*$DY23/100)/(3-$M$2*(0.83+EP$5/100)*(EP$5/100)) -> 1.048149409 | EQ23: 0.8952856353
B24: 18 | C24: 10.83050847 | D24: 10.83050847 | E24: 10.83050847 | F24: 10.83050847 | G24: 10.83050847 | H24: 10.83050847 | I24: 10.83050847 | J24: 10.83050847 | K24: 10.83050847 | L24: 10.83050847 | M24: 10.83050847 | N24: 10.83050847 | O24: 10.83050847 | P24: 10.83050847 | Q24: 10.83050847 | R24: 10.83050847 | S24: 10.83050847 | T24: 10.83050847 | V24: 18 | W24: 15.39759036 | X24: 15.21428571 | Y24: 15.03529412 | Z24: 14.86046512 | AA24: 14.68965517 | AB24: 14.52272727 | AC24: 14.35955056 | AD24: 14.2 | AE24: 14.04395604 | AF24: 13.89130435 | AG24: 13.74193548 | AH24: 13.59574468 | AI24: 13.45263158 | AJ24: 13.3125 | AK24: 13.17525773 | AL24: 13.04081633 | AM24: 12.90909091 | AN24: 12.78 | AR24: 18 | AS24: 3.84279485 | AT24: 3.751612205 | AU24: 3.662878162 | AV24: 3.576501047 | AW24: 3.492393509 | AX24: 3.410472269 | AY24: 3.330657888 | AZ24: 3.252874556 | BA24: 3.177049882 | BB24: 3.103114712 | BC24: 3.03100295 | BD24: 2.960651393 | BE24: 2.891999576 | BF24: 2.824989627 | BG24: 2.759566134 | BH24: 2.695676014 | BI24: 2.633268394 | BJ24: 2.208104353 | BN24: 18 | BO24: 0.3365635739 | BP24: 0.3406185567 | BQ24: 0.3446735395 | BR24: 0.3487285223 | BS24: 0.3527835052 | BT24: 0.356838488 | BU24: 0.3608934708 | BV24: 0.3649484536 | BW24: 0.3690034364 | BX24: 0.3730584192 | BY24: 0.3771134021 | BZ24: 0.3811683849 | CA24: 0.3852233677 | CB24: 0.3892783505 | CC24: 0.3933333333 | CD24: 0.3973883162 | CE24: 0.401443299 | CF24: 0.4054982818 | CK24: 18 | CL24: 3.645154639 | CM24: 3.689072165 | CN24: 3.732989691 | CO24: 3.776907216 | CP24: 3.820824742 | CQ24: 3.864742268 | CR24: 3.908659794 | CS24: 3.95257732 | CT24: 3.996494845 | CU24: 4.040412371 | CV24: 4.084329897 | CW24: 4.128247423 | CX24: 4.172164948 | CY24: 4.216082474 | CZ24: 4.26 | DA24: 4.303917526 | DB24: 4.347835052 | DC24: 4.391752577 | DE24: 18 | DF24: 5.182268041 | DG24: 5.182268041 | DH24: 5.182268041 | DI24: 5.182268041 | DJ24: 5.182268041 | DK24: 5.182268041 | DL24: 5.182268041 | DM24: 5.182268041 | DN24: 5.182268041 | DO24: 5.182268041 | DP24: 5.182268041 | DQ24: 5.182268041 | DR24: 5.182268041 | DS24: 5.182268041 | DT24: 5.182268041 | DU24: 5.182268041 | DV24: 5.182268041 | DW24: 5.182268041 | DY24: 18 | DZ24: 1.293344768 | EA24: 1.277868735 | EB24: 1.262497181 | EC24: 1.247227925 | ED24: 1.232058824 | EE24: 1.216987768 | EF24: 1.202012685 | EG24: 1.187131539 | EH24: 1.172342324 | EI24: 1.157643069 | EJ24: 1.143031834 | EK24: 1.12850671 | EL24: 1.114065816 | EM24: 1.099707302 | EN24: 1.085429346 | EO24: 1.071230152 | EP24: 1.057107951 | EQ24: 0.8953825211
B25: 19 | C25: 10.7394958 | D25: 10.7394958 | E25: 10.7394958 | F25: 10.7394958 | G25: 10.7394958 | H25: 10.7394958 | I25: 10.7394958 | J25: 10.7394958 | K25: 10.7394958 | L25: 10.7394958 | M25: 10.7394958 | N25: 10.7394958 | O25: 10.7394958 | P25: 10.7394958 | Q25: 10.7394958 | R25: 10.7394958 | S25: 10.7394958 | T25: 10.7394958 | V25: 19 | W25: 15.39759036 | X25: 15.21428571 | Y25: 15.03529412 | Z25: 14.86046512 | AA25: 14.68965517 | AB25: 14.52272727 | AC25: 14.35955056 | AD25: 14.2 | AE25: 14.04395604 | AF25: 13.89130435 | AG25: 13.74193548 | AH25: 13.59574468 | AI25: 13.45263158 | AJ25: 13.3125 | AK25: 13.17525773 | AL25: 13.04081633 | AM25: 12.90909091 | AN25: 12.78 | AR25: 19 | AS25: 3.83619211 | AT25: 3.745166136 | AU25: 3.656584557 | AV25: 3.570355857 | AW25: 3.486392833 | AX25: 3.404612351 | AY25: 3.324935108 | AZ25: 3.247285424 | BA25: 3.171591033 | BB25: 3.0977829 | BC25: 3.025795041 | BD25: 2.955564363 | BE25: 2.887030504 | BF25: 2.820135693 | BG25: 2.754824612 | BH25: 2.691044268 | BI25: 2.628743878 | BJ25: 2.186023258 | BN25: 19 | BO25: 0.34 | BP25: 0.3440963855 | BQ25: 0.3481927711 | BR25: 0.3522891566 | BS25: 0.3563855422 | BT25: 0.3604819277 | BU25: 0.3645783133 | BV25: 0.3686746988 | BW25: 0.3727710843 | BX25: 0.3768674699 | BY25: 0.3809638554 | BZ25: 0.385060241 | CA25: 0.3891566265 | CB25: 0.393253012 | CC25: 0.3973493976 | CD25: 0.4014457831 | CE25: 0.4055421687 | CF25: 0.4096385542 | CK25: 19 | CL25: 3.651428571 | CM25: 3.695421687 | CN25: 3.739414802 | CO25: 3.783407917 | CP25: 3.827401033 | CQ25: 3.871394148 | CR25: 3.915387263 | CS25: 3.959380379 | CT25: 4.003373494 | CU25: 4.047366609 | CV25: 4.091359725 | CW25: 4.13535284 | CX25: 4.179345955 | CY25: 4.223339071 | CZ25: 4.267332186 | DA25: 4.311325301 | DB25: 4.355318417 | DC25: 4.399311532 | DE25: 19 | DF25: 5.235180723 | DG25: 5.235180723 | DH25: 5.235180723 | DI25: 5.235180723 | DJ25: 5.235180723 | DK25: 5.235180723 | DL25: 5.235180723 | DM25: 5.235180723 | DN25: 5.235180723 | DO25: 5.235180723 | DP25: 5.235180723 | DQ25: 5.235180723 | DR25: 5.235180723 | DS25: 5.235180723 | DT25: 5.235180723 | DU25: 5.235180723 | DV25: 5.235180723 | DW25: 5.235180723 | DY25: 19 | DZ25: 1.304305317 | EA25: 1.288698131 | EB25: 1.27319631 | EC25: 1.257797654 | ED25: 1.2425 | EE25: 1.227301223 | EF25: 1.212199233 | EG25: 1.197191976 | EH25: 1.182277429 | EI25: 1.167453604 | EJ25: 1.152718545 | EK25: 1.138070326 | EL25: 1.123507052 | EM25: 1.109026856 | EN25: 1.0946279 | EO25: 1.080308374 | EP25: 1.066066493 | EQ25: 0.8954794069
B26: 20 | C26: 10.65 | D26: 10.65 | E26: 10.65 | F26: 10.65 | G26: 10.65 | H26: 10.65 | I26: 10.65 | J26: 10.65 | K26: 10.65 | L26: 10.65 | M26: 10.65 | N26: 10.65 | O26: 10.65 | P26: 10.65 | Q26: 10.65 | R26: 10.65 | S26: 10.65 | T26: 10.65 | V26: 20 | W26: 15.39759036 | X26: 15.21428571 | Y26: 15.03529412 | Z26: 14.86046512 | AA26: 14.68965517 | AB26: 14.52272727 | AC26: 14.35955056 | AD26: 14.2 | AE26: 14.04395604 | AF26: 13.89130435 | AG26: 13.74193548 | AH26: 13.59574468 | AI26: 13.45263158 | AJ26: 13.3125 | AK26: 13.17525773 | AL26: 13.04081633 | AM26: 12.90909091 | AN26: 12.78 | AR26: 20 | AS26: 3.829589369 | AT26: 3.738720067 | AU26: 3.650290952 | AV26: 3.564210666 | AW26: 3.480392157 | AX26: 3.398752433 | AY26: 3.319212328 | AZ26: 3.241696293 | BA26: 3.166132185 | BB26: 3.092451088 | BC26: 3.020587133 | BD26: 2.950477333 | BE26: 2.882061433 | BF26: 2.815281759 | BG26: 2.750083089 | BH26: 2.686412523 | BI26: 2.624219362 | BJ26: 2.164309374 | BN26: 20 | BO26: 0.3434482759 | BP26: 0.3475862069 | BQ26: 0.3517241379 | BR26: 0.355862069 | BS26: 0.36 | BT26: 0.364137931 | BU26: 0.3682758621 | BV26: 0.3724137931 | BW26: 0.3765517241 | BX26: 0.3806896552 | BY26: 0.3848275862 | BZ26: 0.3889655172 | CA26: 0.3931034483 | CB26: 0.3972413793 | CC26: 0.4013793103 | CD26: 0.4055172414 | CE26: 0.4096551724 | CF26: 0.4137931034 | CK26: 20 | CL26: 3.657724138 | CM26: 3.701793103 | CN26: 3.745862069 | CO26: 3.789931034 | CP26: 3.834 | CQ26: 3.878068966 | CR26: 3.922137931 | CS26: 3.966206897 | CT26: 4.010275862 | CU26: 4.054344828 | CV26: 4.098413793 | CW26: 4.142482759 | CX26: 4.186551724 | CY26: 4.23062069 | CZ26: 4.274689655 | DA26: 4.318758621 | DB26: 4.362827586 | DC26: 4.406896552 | DE26: 20 | DF26: 5.288275862 | DG26: 5.288275862 | DH26: 5.288275862 | DI26: 5.288275862 | DJ26: 5.288275862 | DK26: 5.288275862 | DL26: 5.288275862 | DM26: 5.288275862 | DN26: 5.288275862 | DO26: 5.288275862 | DP26: 5.288275862 | DQ26: 5.288275862 | DR26: 5.288275862 | DS26: 5.288275862 | DT26: 5.288275862 | DU26: 5.288275862 | DV26: 5.288275862 | DW26: 5.288275862 | DY26: 20 | DZ26: 1.315265866 | EA26: 1.299527527 | EB26: 1.283895438 | EC26: 1.268367382 | ED26: 1.252941176 | EE26: 1.237614679 | EF26: 1.222385782 | EG26: 1.207252412 | EH26: 1.192212533 | EI26: 1.177264138 | EJ26: 1.162405255 | EK26: 1.147633942 | EL26: 1.132948287 | EM26: 1.118346409 | EN26: 1.103826454 | EO26: 1.089386595 | EP26: 1.075025035 | EQ26: 0.8955762926
B27: 21 | C27: 10.56198347 | D27: 10.56198347 | E27: 10.56198347 | F27: 10.56198347 | G27: 10.56198347 | H27: 10.56198347 | I27: 10.56198347 | J27: 10.56198347 | K27: 10.56198347 | L27: 10.56198347 | M27: 10.56198347 | N27: 10.56198347 | O27: 10.56198347 | P27: 10.56198347 | Q27: 10.56198347 | R27: 10.56198347 | S27: 10.56198347 | T27: 10.56198347 | V27: 21 | W27: 15.39759036 | X27: 15.21428571 | Y27: 15.03529412 | Z27: 14.86046512 | AA27: 14.68965517 | AB27: 14.52272727 | AC27: 14.35955056 | AD27: 14.2 | AE27: 14.04395604 | AF27: 13.89130435 | AG27: 13.74193548 | AH27: 13.59574468 | AI27: 13.45263158 | AJ27: 13.3125 | AK27: 13.17525773 | AL27: 13.04081633 | AM27: 12.90909091 | AN27: 12.78 | AR27: 21 | AS27: 3.822986629 | AT27: 3.732273998 | AU27: 3.643997347 | AV27: 3.558065475 | AW27: 3.474391481 | AX27: 3.392892515 | AY27: 3.313489549 | AZ27: 3.236107161 | BA27: 3.160673336 | BB27: 3.087119275 | BC27: 3.015379224 | BD27: 2.945390303 | BE27: 2.877092362 | BF27: 2.810427825 | BG27: 2.745341567 | BH27: 2.681780777 | BI27: 2.619694846 | BJ27: 2.142953596 | BN27: 21 | BO27: 0.3469084629 | BP27: 0.3510880829 | BQ27: 0.3552677029 | BR27: 0.359447323 | BS27: 0.363626943 | BT27: 0.367806563 | BU27: 0.3719861831 | BV27: 0.3761658031 | BW27: 0.3803454231 | BX27: 0.3845250432 | BY27: 0.3887046632 | BZ27: 0.3928842832 | CA27: 0.3970639033 | CB27: 0.4012435233 | CC27: 0.4054231434 | CD27: 0.4096027634 | CE27: 0.4137823834 | CF27: 0.4179620035 | CK27: 21 | CL27: 3.664041451 | CM27: 3.708186528 | CN27: 3.752331606 | CO27: 3.796476684 | CP27: 3.840621762 | CQ27: 3.884766839 | CR27: 3.928911917 | CS27: 3.973056995 | CT27: 4.017202073 | CU27: 4.06134715 | CV27: 4.105492228 | CW27: 4.149637306 | CX27: 4.193782383 | CY27: 4.237927461 | CZ27: 4.282072539 | DA27: 4.326217617 | DB27: 4.370362694 | DC27: 4.414507772 | DE27: 21 | DF27: 5.341554404 | DG27: 5.341554404 | DH27: 5.341554404 | DI27: 5.341554404 | DJ27: 5.341554404 | DK27: 5.341554404 | DL27: 5.341554404 | DM27: 5.341554404 | DN27: 5.341554404 | DO27: 5.341554404 | DP27: 5.341554404 | DQ27: 5.341554404 | DR27: 5.341554404 | DS27: 5.341554404 | DT27: 5.341554404 | DU27: 5.341554404 | DV27: 5.341554404 | DW27: 5.341554404 | DY27: 21 | DZ27: 1.326226415 | EA27: 1.310356923 | EB27: 1.294594567 | EC27: 1.27893711 | ED27: 1.263382353 | EE27: 1.247928135 | EF27: 1.23257233 | EG27: 1.217312849 | EH27: 1.202147637 | EI27: 1.187074673 | EJ27: 1.172091966 | EK27: 1.157197558 | EL27: 1.142389523 | EM27: 1.127665963 | EN27: 1.113025008 | EO27: 1.098464817 | EP27: 1.083983577 | EQ27: 0.8956731784
B28: 22 | C28: 10.47540984 | D28: 10.47540984 | E28: 10.47540984 | F28: 10.47540984 | G28: 10.47540984 | H28: 10.47540984 | I28: 10.47540984 | J28: 10.47540984 | K28: 10.47540984 | L28: 10.47540984 | M28: 10.47540984 | N28: 10.47540984 | O28: 10.47540984 | P28: 10.47540984 | Q28: 10.47540984 | R28: 10.47540984 | S28: 10.47540984 | T28: 10.47540984 | V28: 22 | W28: 15.39759036 | X28: 15.21428571 | Y28: 15.03529412 | Z28: 14.86046512 | AA28: 14.68965517 | AB28: 14.52272727 | AC28: 14.35955056 | AD28: 14.2 | AE28: 14.04395604 | AF28: 13.89130435 | AG28: 13.74193548 | AH28: 13.59574468 | AI28: 13.45263158 | AJ28: 13.3125 | AK28: 13.17525773 | AL28: 13.04081633 | AM28: 12.90909091 | AN28: 12.78 | AR28: 22 | AS28: 3.816383889 | AT28: 3.725827929 | AU28: 3.637703742 | AV28: 3.551920284 | AW28: 3.468390805 | AX28: 3.387032597 | AY28: 3.307766769 | AZ28: 3.230518029 | BA28: 3.155214487 | BB28: 3.081787463 | BC28: 3.010171315 | BD28: 2.940303274 | BE28: 2.87212329 | BF28: 2.805573891 | BG28: 2.740600044 | BH28: 2.677149031 | BI28: 2.615170329 | BJ28: 2.121947119 | BN28: 22 | BO28: 0.3503806228 | BP28: 0.3546020761 | BQ28: 0.3588235294 | BR28: 0.3630449827 | BS28: 0.367266436 | BT28: 0.3714878893 | BU28: 0.3757093426 | BV28: 0.3799307958 | BW28: 0.3841522491 | BX28: 0.3883737024 | BY28: 0.3925951557 | BZ28: 0.396816609 | CA28: 0.4010380623 | CB28: 0.4052595156 | CC28: 0.4094809689 | CD28: 0.4137024221 | CE28: 0.4179238754 | CF28: 0.4221453287 | CK28: 22 | CL28: 3.670380623 | CM28: 3.714602076 | CN28: 3.758823529 | CO28: 3.803044983 | CP28: 3.847266436 | CQ28: 3.891487889 | CR28: 3.935709343 | CS28: 3.979930796 | CT28: 4.024152249 | CU28: 4.068373702 | CV28: 4.112595156 | CW28: 4.156816609 | CX28: 4.201038062 | CY28: 4.245259516 | CZ28: 4.289480969 | DA28: 4.333702422 | DB28: 4.377923875 | DC28: 4.422145329 | DE28: 22 | DF28: 5.395017301 | DG28: 5.395017301 | DH28: 5.395017301 | DI28: 5.395017301 | DJ28: 5.395017301 | DK28: 5.395017301 | DL28: 5.395017301 | DM28: 5.395017301 | DN28: 5.395017301 | DO28: 5.395017301 | DP28: 5.395017301 | DQ28: 5.395017301 | DR28: 5.395017301 | DS28: 5.395017301 | DT28: 5.395017301 | DU28: 5.395017301 | DV28: 5.395017301 | DW28: 5.395017301 | DY28: 22 | DZ28: 1.337186964 | EA28: 1.321186319 | EB28: 1.305293696 | EC28: 1.289506838 | ED28: 1.273823529 | EE28: 1.25824159 | EF28: 1.242758878 | EG28: 1.227373286 | EH28: 1.212082742 | EI28: 1.196885207 | EJ28: 1.181778676 | EK28: 1.166761174 | EL28: 1.151830759 | EM28: 1.136985516 | EN28: 1.122223561 | EO28: 1.107543039 | EP28: 1.092942119 | EQ28: 0.8957700642
B29: 23 | C29: 10.3902439 | D29: 10.3902439 | E29: 10.3902439 | F29: 10.3902439 | G29: 10.3902439 | H29: 10.3902439 | I29: 10.3902439 | J29: 10.3902439 | K29: 10.3902439 | L29: 10.3902439 | M29: 10.3902439 | N29: 10.3902439 | O29: 10.3902439 | P29: 10.3902439 | Q29: 10.3902439 | R29: 10.3902439 | S29: 10.3902439 | T29: 10.3902439 | V29: 23 | W29: 15.39759036 | X29: 15.21428571 | Y29: 15.03529412 | Z29: 14.86046512 | AA29: 14.68965517 | AB29: =(DK29/BT29) -> 14.52272727 | AC29: 14.35955056 | AD29: 14.2 | AE29: 14.04395604 | AF29: 13.89130435 | AG29: 13.74193548 | AH29: 13.59574468 | AI29: 13.45263158 | AJ29: 13.3125 | AK29: 13.17525773 | AL29: 13.04081633 | AM29: 12.90909091 | AN29: 12.78 | AR29: 23 | AS29: 3.809781149 | AT29: 3.71938186 | AU29: 3.631410137 | AV29: 3.545775093 | AW29: 3.462390128 | AX29: 3.381172679 | AY29: 3.302043989 | AZ29: 3.224928898 | BA29: 3.149755639 | BB29: 3.076455651 | BC29: 3.004963406 | BD29: 2.935216244 | BE29: 2.867154219 | BF29: 2.800719957 | BG29: 2.735858522 | BH29: 2.672517285 | BI29: 2.610645813 | BJ29: 2.101281423 | BN29: 23 | BO29: 0.353864818 | BP29: 0.3581282496 | BQ29: 0.3623916811 | BR29: 0.3666551127 | BS29: 0.3709185442 | BT29: 0.3751819757 | BU29: 0.3794454073 | BV29: 0.3837088388 | BW29: 0.3879722704 | BX29: 0.3922357019 | BY29: 0.3964991334 | BZ29: 0.400762565 | CA29: 0.4050259965 | CB29: 0.4092894281 | CC29: 0.4135528596 | CD29: 0.4178162912 | CE29: 0.4220797227 | CF29: 0.4263431542 | CK29: 23 | CL29: 3.676741768 | CM29: 3.721039861 | CN29: 3.765337955 | CO29: 3.809636049 | CP29: 3.853934142 | CQ29: 3.898232236 | CR29: 3.942530329 | CS29: 3.986828423 | CT29: 4.031126516 | CU29: 4.07542461 | CV29: 4.119722704 | CW29: 4.164020797 | CX29: 4.208318891 | CY29: 4.252616984 | CZ29: 4.296915078 | DA29: 4.341213172 | DB29: 4.385511265 | DC29: 4.429809359 | DE29: 23 | DF29: 5.448665511 | DG29: 5.448665511 | DH29: 5.448665511 | DI29: 5.448665511 | DJ29: 5.448665511 | DK29: 5.448665511 | DL29: 5.448665511 | DM29: 5.448665511 | DN29: 5.448665511 | DO29: 5.448665511 | DP29: 5.448665511 | DQ29: 5.448665511 | DR29: 5.448665511 | DS29: 5.448665511 | DT29: 5.448665511 | DU29: 5.448665511 | DV29: 5.448665511 | DW29: 5.448665511 | DY29: 23 | DZ29: 1.348147513 | EA29: 1.332015715 | EB29: 1.315992824 | EC29: 1.300076566 | ED29: 1.284264706 | EE29: 1.268555046 | EF29: 1.252945426 | EG29: 1.237433723 | EH29: 1.222017846 | EI29: 1.206695742 | EJ29: 1.191465387 | EK29: 1.176324791 | EL29: 1.161271995 | EM29: 1.146305069 | EN29: 1.131422115 | EO29: 1.11662126 | EP29: 1.101900661 | EQ29: 0.8958669499
B30: 24 | C30: 10.30645161 | D30: 10.30645161 | E30: 10.30645161 | F30: 10.30645161 | G30: 10.30645161 | H30: 10.30645161 | I30: 10.30645161 | J30: 10.30645161 | K30: 10.30645161 | L30: 10.30645161 | M30: 10.30645161 | N30: 10.30645161 | O30: 10.30645161 | P30: 10.30645161 | Q30: 10.30645161 | R30: 10.30645161 | S30: 10.30645161 | T30: 10.30645161 | V30: 24 | W30: 15.39759036 | X30: 15.21428571 | Y30: 15.03529412 | Z30: 14.86046512 | AA30: 14.68965517 | AB30: 14.52272727 | AC30: 14.35955056 | AD30: 14.2 | AE30: 14.04395604 | AF30: 13.89130435 | AG30: 13.74193548 | AH30: 13.59574468 | AI30: 13.45263158 | AJ30: 13.3125 | AK30: 13.17525773 | AL30: 13.04081633 | AM30: 12.90909091 | AN30: 12.78 | AR30: 24 | AS30: 3.803178408 | AT30: 3.712935791 | AU30: 3.625116531 | AV30: 3.539629903 | AW30: 3.456389452 | AX30: 3.375312761 | AY30: 3.296321209 | AZ30: 3.219339766 | BA30: 3.14429679 | BB30: 3.071123839 | BC30: 2.999755497 | BD30: 2.930129214 | BE30: 2.862185147 | BF30: 2.795866023 | BG30: 2.731116999 | BH30: 2.66788554 | BI30: 2.606121297 | BJ30: 2.080948264 | BN30: 24 | BO30: 0.3573611111 | BP30: 0.3616666667 | BQ30: 0.3659722222 | BR30: 0.3702777778 | BS30: 0.3745833333 | BT30: 0.3788888889 | BU30: 0.3831944444 | BV30: 0.3875 | BW30: 0.3918055556 | BX30: 0.3961111111 | BY30: 0.4004166667 | BZ30: 0.4047222222 | CA30: 0.4090277778 | CB30: 0.4133333333 | CC30: 0.4176388889 | CD30: 0.4219444444 | CE30: 0.42625 | CF30: 0.4305555556 | CK30: 24 | CL30: 3.683125 | CM30: 3.7275 | CN30: 3.771875 | CO30: 3.81625 | CP30: 3.860625 | CQ30: 3.905 | CR30: 3.949375 | CS30: 3.99375 | CT30: 4.038125 | CU30: 4.0825 | CV30: 4.126875 | CW30: 4.17125 | CX30: 4.215625 | CY30: 4.26 | CZ30: 4.304375 | DA30: 4.34875 | DB30: 4.393125 | DC30: 4.4375 | DE30: 24 | DF30: 5.5025 | DG30: 5.5025 | DH30: 5.5025 | DI30: 5.5025 | DJ30: 5.5025 | DK30: 5.5025 | DL30: 5.5025 | DM30: 5.5025 | DN30: 5.5025 | DO30: 5.5025 | DP30: 5.5025 | DQ30: 5.5025 | DR30: 5.5025 | DS30: 5.5025 | DT30: 5.5025 | DU30: 5.5025 | DV30: 5.5025 | DW30: 5.5025 | DY30: 24 | DZ30: 1.359108062 | EA30: 1.342845111 | EB30: 1.326691953 | EC30: 1.310646294 | ED30: 1.294705882 | EE30: 1.278868502 | EF30: 1.263131974 | EG30: 1.247494159 | EH30: 1.231952951 | EI30: 1.216506276 | EJ30: 1.201152097 | EK30: 1.185888407 | EL30: 1.17071323 | EM30: 1.155624623 | EN30: 1.140620669 | EO30: 1.125699482 | EP30: 1.110859203 | EQ30: 0.8959638357
B31: 25 | C31: 10.224 | D31: 10.224 | E31: 10.224 | F31: 10.224 | G31: 10.224 | H31: 10.224 | I31: 10.224 | J31: 10.224 | K31: 10.224 | L31: 10.224 | M31: 10.224 | N31: 10.224 | O31: 10.224 | P31: 10.224 | Q31: 10.224 | R31: 10.224 | S31: 10.224 | T31: 10.224 | V31: 25 | W31: 15.39759036 | X31: 15.21428571 | Y31: 15.03529412 | Z31: 14.86046512 | AA31: 14.68965517 | AB31: 14.52272727 | AC31: 14.35955056 | AD31: 14.2 | AE31: 14.04395604 | AF31: 13.89130435 | AG31: 13.74193548 | AH31: 13.59574468 | AI31: 13.45263158 | AJ31: 13.3125 | AK31: 13.17525773 | AL31: 13.04081633 | AM31: 12.90909091 | AN31: 12.78 | AR31: 25 | AS31: 3.796575668 | AT31: 3.706489722 | AU31: 3.618822926 | AV31: 3.533484712 | AW31: 3.450388776 | AX31: 3.369452843 | AY31: 3.290598429 | AZ31: 3.213750635 | BA31: 3.138837942 | BB31: 3.065792027 | BC31: 2.994547588 | BD31: 2.925042184 | BE31: 2.857216076 | BF31: 2.791012089 | BG31: 2.726375476 | BH31: 2.663253794 | BI31: 2.601596781 | BJ31: 2.060939659 | BN31: 25 | BO31: 0.3608695652 | BP31: 0.3652173913 | BQ31: 0.3695652174 | BR31: 0.3739130435 | BS31: 0.3782608696 | BT31: 0.3826086957 | BU31: 0.3869565217 | BV31: 0.3913043478 | BW31: 0.3956521739 | BX31: 0.4 | BY31: 0.4043478261 | BZ31: 0.4086956522 | CA31: 0.4130434783 | CB31: 0.4173913043 | CC31: 0.4217391304 | CD31: 0.4260869565 | CE31: 0.4304347826 | CF31: 0.4347826087 | CK31: 25 | CL31: 3.689530435 | CM31: 3.733982609 | CN31: 3.778434783 | CO31: 3.822886957 | CP31: 3.86733913 | CQ31: 3.911791304 | CR31: 3.956243478 | CS31: 4.000695652 | CT31: 4.045147826 | CU31: 4.0896 | CV31: 4.134052174 | CW31: 4.178504348 | CX31: 4.222956522 | CY31: 4.267408696 | CZ31: 4.31186087 | DA31: 4.356313043 | DB31: 4.400765217 | DC31: 4.445217391 | DE31: 25 | DF31: 5.556521739 | DG31: 5.556521739 | DH31: 5.556521739 | DI31: 5.556521739 | DJ31: 5.556521739 | DK31: 5.556521739 | DL31: 5.556521739 | DM31: 5.556521739 | DN31: 5.556521739 | DO31: 5.556521739 | DP31: 5.556521739 | DQ31: 5.556521739 | DR31: 5.556521739 | DS31: 5.556521739 | DT31: 5.556521739 | DU31: 5.556521739 | DV31: 5.556521739 | DW31: 5.556521739 | DY31: 25 | DZ31: 1.370068611 | EA31: 1.353674507 | EB31: 1.337391081 | EC31: 1.321216023 | ED31: 1.305147059 | EE31: 1.289181957 | EF31: 1.273318523 | EG31: 1.257554596 | EH31: 1.241888055 | EI31: 1.226316811 | EJ31: 1.210838807 | EK31: 1.195452023 | EL31: 1.180154466 | EM31: 1.164944176 | EN31: 1.149819223 | EO31: 1.134777703 | EP31: 1.119817745 | EQ31: 0.8960607215
B32: 26 | C32: 10.14285714 | D32: 10.14285714 | E32: 10.14285714 | F32: 10.14285714 | G32: 10.14285714 | H32: 10.14285714 | I32: 10.14285714 | J32: 10.14285714 | K32: 10.14285714 | L32: 10.14285714 | M32: 10.14285714 | N32: 10.14285714 | O32: 10.14285714 | P32: 10.14285714 | Q32: 10.14285714 | R32: 10.14285714 | S32: 10.14285714 | T32: 10.14285714 | V32: 26 | W32: 15.39759036 | X32: 15.21428571 | Y32: 15.03529412 | Z32: 14.86046512 | AA32: 14.68965517 | AB32: 14.52272727 | AC32: 14.35955056 | AD32: 14.2 | AE32: 14.04395604 | AF32: 13.89130435 | AG32: 13.74193548 | AH32: 13.59574468 | AI32: 13.45263158 | AJ32: 13.3125 | AK32: 13.17525773 | AL32: 13.04081633 | AM32: 12.90909091 | AN32: 12.78 | AR32: 26 | AS32: 3.789972928 | AT32: 3.700043652 | AU32: 3.612529321 | AV32: 3.527339521 | AW32: 3.4443881 | AX32: 3.363592925 | AY32: 3.284875649 | AZ32: 3.208161503 | BA32: 3.133379093 | BB32: 3.060460214 | BC32: 2.98933968 | BD32: 2.919955154 | BE32: 2.852247004 | BF32: 2.786158155 | BG32: 2.721633954 | BH32: 2.658622048 | BI32: 2.597072265 | BJ32: 2.041247883 | BN32: 26 | BO32: 0.3643902439 | BP32: 0.3687804878 | BQ32: 0.3731707317 | BR32: 0.3775609756 | BS32: 0.3819512195 | BT32: 0.3863414634 | BU32: 0.3907317073 | BV32: 0.3951219512 | BW32: 0.3995121951 | BX32: 0.403902439 | BY32: 0.4082926829 | BZ32: 0.4126829268 | CA32: 0.4170731707 | CB32: 0.4214634146 | CC32: 0.4258536585 | CD32: 0.4302439024 | CE32: 0.4346341463 | CF32: 0.4390243902 | CK32: 26 | CL32: 3.695958188 | CM32: 3.740487805 | CN32: 3.785017422 | CO32: 3.829547038 | CP32: 3.874076655 | CQ32: 3.918606272 | CR32: 3.963135889 | CS32: 4.007665505 | CT32: 4.052195122 | CU32: 4.096724739 | CV32: 4.141254355 | CW32: 4.185783972 | CX32: 4.230313589 | CY32: 4.274843206 | CZ32: 4.319372822 | DA32: 4.363902439 | DB32: 4.408432056 | DC32: 4.452961672 | DE32: 26 | DF32: 5.610731707 | DG32: 5.610731707 | DH32: 5.610731707 | DI32: 5.610731707 | DJ32: 5.610731707 | DK32: 5.610731707 | DL32: 5.610731707 | DM32: 5.610731707 | DN32: 5.610731707 | DO32: 5.610731707 | DP32: 5.610731707 | DQ32: 5.610731707 | DR32: 5.610731707 | DS32: 5.610731707 | DT32: 5.610731707 | DU32: 5.610731707 | DV32: 5.610731707 | DW32: 5.610731707 | DY32: 26 | DZ32: 1.38102916 | EA32: 1.364503903 | EB32: 1.34809021 | EC32: 1.331785751 | ED32: 1.315588235 | EE32: 1.299495413 | EF32: 1.283505071 | EG32: 1.267615033 | EH32: 1.25182316 | EI32: 1.236127345 | EJ32: 1.220525518 | EK32: 1.205015639 | EL32: 1.189595702 | EM32: 1.17426373 | EN32: 1.159017776 | EO32: 1.143855925 | EP32: 1.128776287 | EQ32: 0.8961576073
B33: 27 | C33: 10.06299213 | D33: 10.06299213 | E33: 10.06299213 | F33: 10.06299213 | G33: 10.06299213 | H33: 10.06299213 | I33: 10.06299213 | J33: 10.06299213 | K33: 10.06299213 | L33: 10.06299213 | M33: 10.06299213 | N33: 10.06299213 | O33: 10.06299213 | P33: 10.06299213 | Q33: 10.06299213 | R33: 10.06299213 | S33: 10.06299213 | T33: 10.06299213 | V33: 27 | W33: 15.39759036 | X33: 15.21428571 | Y33: 15.03529412 | Z33: 14.86046512 | AA33: 14.68965517 | AB33: 14.52272727 | AC33: 14.35955056 | AD33: 14.2 | AE33: 14.04395604 | AF33: 13.89130435 | AG33: 13.74193548 | AH33: 13.59574468 | AI33: 13.45263158 | AJ33: 13.3125 | AK33: 13.17525773 | AL33: 13.04081633 | AM33: 12.90909091 | AN33: 12.78 | AR33: 27 | AS33: 3.783370187 | AT33: 3.693597583 | AU33: 3.606235716 | AV33: 3.52119433 | AW33: 3.438387424 | AX33: 3.357733007 | AY33: 3.279152869 | AZ33: 3.202572372 | BA33: 3.127920244 | BB33: 3.055128402 | BC33: 2.984131771 | BD33: 2.914868124 | BE33: 2.847277933 | BF33: 2.781304221 | BG33: 2.716892431 | BH33: 2.653990302 | BI33: 2.592547749 | BJ33: 2.021865451 | BN33: 27 | BO33: 0.3679232112 | BP33: 0.3723560209 | BQ33: 0.3767888307 | BR33: 0.3812216405 | BS33: 0.3856544503 | BT33: 0.39008726 | BU33: 0.3945200698 | BV33: 0.3989528796 | BW33: 0.4033856894 | BX33: 0.4078184991 | BY33: 0.4122513089 | BZ33: 0.4166841187 | CA33: 0.4211169284 | CB33: 0.4255497382 | CC33: 0.429982548 | CD33: 0.4344153578 | CE33: 0.4388481675 | CF33: 0.4432809773 | CK33: 27 | CL33: 3.702408377 | CM33: 3.747015707 | CN33: 3.791623037 | CO33: 3.836230366 | CP33: 3.880837696 | CQ33: 3.925445026 | CR33: 3.970052356 | CS33: 4.014659686 | CT33: 4.059267016 | CU33: 4.103874346 | CV33: 4.148481675 | CW33: 4.193089005 | CX33: 4.237696335 | CY33: 4.282303665 | CZ33: 4.326910995 | DA33: 4.371518325 | DB33: 4.416125654 | DC33: 4.460732984 | DE33: 27 | DF33: 5.66513089 | DG33: 5.66513089 | DH33: 5.66513089 | DI33: 5.66513089 | DJ33: 5.66513089 | DK33: 5.66513089 | DL33: 5.66513089 | DM33: 5.66513089 | DN33: 5.66513089 | DO33: 5.66513089 | DP33: 5.66513089 | DQ33: 5.66513089 | DR33: 5.66513089 | DS33: 5.66513089 | DT33: 5.66513089 | DU33: 5.66513089 | DV33: 5.66513089 | DW33: 5.66513089 | DY33: 27 | DZ33: 1.391989708 | EA33: 1.375333299 | EB33: 1.358789339 | EC33: 1.342355479 | ED33: 1.326029412 | EE33: 1.309808869 | EF33: 1.293691619 | EG33: 1.27767547 | EH33: 1.261758264 | EI33: 1.24593788 | EJ33: 1.230212228 | EK33: 1.214579255 | EL33: 1.199036938 | EM33: 1.183583283 | EN33: 1.16821633 | EO33: 1.152934147 | EP33: 1.137734829 | EQ33: 0.896254493
B34: 28 | C34: 9.984375 | D34: 9.984375 | E34: 9.984375 | F34: 9.984375 | G34: 9.984375 | H34: 9.984375 | I34: 9.984375 | J34: 9.984375 | K34: 9.984375 | L34: 9.984375 | M34: 9.984375 | N34: 9.984375 | O34: 9.984375 | P34: 9.984375 | Q34: 9.984375 | R34: 9.984375 | S34: 9.984375 | T34: 9.984375 | V34: 28 | W34: 15.39759036 | X34: 15.21428571 | Y34: 15.03529412 | Z34: 14.86046512 | AA34: 14.68965517 | AB34: 14.52272727 | AC34: 14.35955056 | AD34: 14.2 | AE34: 14.04395604 | AF34: 13.89130435 | AG34: 13.74193548 | AH34: 13.59574468 | AI34: 13.45263158 | AJ34: 13.3125 | AK34: 13.17525773 | AL34: 13.04081633 | AM34: 12.90909091 | AN34: 12.78 | AR34: 28 | AS34: 3.776767447 | AT34: 3.687151514 | AU34: 3.599942111 | AV34: 3.515049139 | AW34: 3.432386748 | AX34: 3.351873089 | AY34: 3.273430089 | AZ34: 3.19698324 | BA34: 3.122461396 | BB34: 3.04979659 | BC34: 2.978923862 | BD34: 2.909781094 | BE34: 2.842308861 | BF34: 2.776450287 | BG34: 2.712150909 | BH34: 2.649358557 | BI34: 2.588023233 | BJ34: 2.002785112 | BN34: 28 | BO34: 0.3714685315 | BP34: 0.3759440559 | BQ34: 0.3804195804 | BR34: 0.3848951049 | BS34: 0.3893706294 | BT34: 0.3938461538 | BU34: 0.3983216783 | BV34: 0.4027972028 | BW34: 0.4072727273 | BX34: 0.4117482517 | BY34: 0.4162237762 | BZ34: 0.4206993007 | CA34: =(1+$BN34/100)*(1-CA$5/100)/(3-$M$2*$BN34/100) -> 0.4251748252 | CB34: 0.4296503497 | CC34: 0.4341258741 | CD34: 0.4386013986 | CE34: 0.4430769231 | CF34: 0.4475524476 | CK34: 28 | CL34: 3.708881119 | CM34: 3.753566434 | CN34: 3.798251748 | CO34: 3.842937063 | CP34: 3.887622378 | CQ34: 3.932307692 | CR34: 3.976993007 | CS34: 4.021678322 | CT34: 4.066363636 | CU34: 4.111048951 | CV34: 4.155734266 | CW34: 4.20041958 | CX34: =($M$1*$CI$3+$M$3*$CI$1)*(1/100)*(1-CX$5/100)/(3-$M$2*$CK34/100) -> 4.245104895 | CY34: 4.28979021 | CZ34: 4.334475524 | DA34: 4.379160839 | DB34: 4.423846154 | DC34: 4.468531469 | DE34: 28 | DF34: 5.71972028 | DG34: 5.71972028 | DH34: 5.71972028 | DI34: 5.71972028 | DJ34: 5.71972028 | DK34: 5.71972028 | DL34: 5.71972028 | DM34: 5.71972028 | DN34: 5.71972028 | DO34: 5.71972028 | DP34: 5.71972028 | DQ34: 5.71972028 | DR34: =($M$1*$CI$3+$M$3*$CI$1)*(1+$DE34/100)*(1/100)/(3-$M$2*$DE34/100) -> 5.71972028 | DS34: 5.71972028 | DT34: 5.71972028 | DU34: 5.71972028 | DV34: 5.71972028 | DW34: 5.71972028 | DY34: 28 | DZ34: 1.402950257 | EA34: 1.386162695 | EB34: 1.369488467 | EC34: 1.352925207 | ED34: 1.336470588 | EE34: 1.320122324 | EF34: 1.303878167 | EG34: 1.287735907 | EH34: 1.271693368 | EI34: 1.255748414 | EJ34: 1.239898939 | EK34: 1.224142872 | EL34: =(1/400)*(0.83+EL$5/100)*($CI$3*$M$1+$CI$1*$M$3)*(1+1*$DY34/100)/(3-$M$2*(0.83+EL$5/100)*(EL$5/100)) -> 1.208478173 | EM34: 1.192902836 | EN34: 1.177414884 | EO34: 1.162012368 | EP34: 1.146693371 | EQ34: 0.8963513788
B35: 29 | C35: 9.906976744 | D35: 9.906976744 | E35: 9.906976744 | F35: 9.906976744 | G35: 9.906976744 | H35: 9.906976744 | I35: 9.906976744 | J35: 9.906976744 | K35: 9.906976744 | L35: 9.906976744 | M35: 9.906976744 | N35: 9.906976744 | O35: 9.906976744 | P35: 9.906976744 | Q35: 9.906976744 | R35: 9.906976744 | S35: 9.906976744 | T35: 9.906976744 | V35: 29 | W35: 15.39759036 | X35: 15.21428571 | Y35: 15.03529412 | Z35: 14.86046512 | AA35: 14.68965517 | AB35: 14.52272727 | AC35: 14.35955056 | AD35: 14.2 | AE35: 14.04395604 | AF35: 13.89130435 | AG35: 13.74193548 | AH35: 13.59574468 | AI35: 13.45263158 | AJ35: 13.3125 | AK35: 13.17525773 | AL35: 13.04081633 | AM35: 12.90909091 | AN35: 12.78 | AR35: 29 | AS35: 3.770164707 | AT35: 3.680705445 | AU35: 3.593648506 | AV35: 3.508903949 | AW35: 3.426386072 | AX35: 3.346013171 | AY35: 3.26770731 | AZ35: 3.191394109 | BA35: 3.117002547 | BB35: 3.044464778 | BC35: 2.973715953 | BD35: 2.904694064 | BE35: 2.83733979 | BF35: 2.771596353 | BG35: 2.707409386 | BH35: 2.644726811 | BI35: 2.583498716 | BJ35: 1.983999841 | BN35: 29 | BO35: 0.3750262697 | BP35: =(1+$BN35/100)*(1-BP$5/100)/(3-$M$2*$BN35/100) -> 0.3795446585 | BQ35: 0.3840630473 | BR35: 0.3885814361 | BS35: 0.3930998249 | BT35: 0.3976182137 | BU35: 0.4021366025 | BV35: 0.4066549912 | BW35: 0.41117338 | BX35: 0.4156917688 | BY35: 0.4202101576 | BZ35: 0.4247285464 | CA35: 0.4292469352 | CB35: 0.433765324 | CC35: 0.4382837128 | CD35: 0.4428021016 | CE35: 0.4473204904 | CF35: 0.4518388792 | CK35: 29 | CL35: 3.715376532 | CM35: =($M$1*$CI$3+$M$3*$CI$1)*(1/100)*(1-CM$5/100)/(3-$M$2*$CK35/100) -> 3.760140105 | CN35: 3.804903678 | CO35: 3.84966725 | CP35: 3.894430823 | CQ35: 3.939194396 | CR35: 3.983957968 | CS35: 4.028721541 | CT35: 4.073485114 | CU35: 4.118248687 | CV35: 4.163012259 | CW35: 4.207775832 | CX35: 4.252539405 | CY35: 4.297302977 | CZ35: 4.34206655 | DA35: 4.386830123 | DB35: 4.431593695 | DC35: 4.476357268 | DE35: 29 | DF35: 5.774500876 | DG35: =($M$1*$CI$3+$M$3*$CI$1)*(1+$DE35/100)*(1/100)/(3-$M$2*$DE35/100) -> 5.774500876 | DH35: 5.774500876 | DI35: 5.774500876 | DJ35: 5.774500876 | DK35: 5.774500876 | DL35: 5.774500876 | DM35: 5.774500876 | DN35: 5.774500876 | DO35: 5.774500876 | DP35: 5.774500876 | DQ35: 5.774500876 | DR35: 5.774500876 | DS35: 5.774500876 | DT35: 5.774500876 | DU35: 5.774500876 | DV35: 5.774500876 | DW35: 5.774500876 | DY35: 29 | DZ35: 1.413910806 | EA35: =(1/400)*(0.83+EA$5/100)*($CI$3*$M$1+$CI$1*$M$3)*(1+1*$DY35/100)/(3-$M$2*(0.83+EA$5/100)*(EA$5/100)) -> 1.396992091 | EB35: 1.380187596 | EC35: 1.363494935 | ED35: 1.346911765 | EE35: 1.33043578 | EF35: 1.314064715 | EG35: 1.297796343 | EH35: 1.281628473 | EI35: 1.265558949 | EJ35: 1.249585649 | EK35: 1.233706488 | EL35: 1.217919409 | EM35: 1.20222239 | EN35: 1.186613438 | EO35: 1.17109059 | EP35: 1.155651913 | EQ35: 0.8964482646
B36: 30 | C36: 9.830769231 | D36: 9.830769231 | E36: 9.830769231 | F36: 9.830769231 | G36: 9.830769231 | H36: 9.830769231 | I36: 9.830769231 | J36: 9.830769231 | K36: 9.830769231 | L36: 9.830769231 | M36: 9.830769231 | N36: 9.830769231 | O36: 9.830769231 | P36: 9.830769231 | Q36: 9.830769231 | R36: 9.830769231 | S36: 9.830769231 | T36: 9.830769231 | V36: 30 | W36: 15.39759036 | X36: 15.21428571 | Y36: 15.03529412 | Z36: 14.86046512 | AA36: 14.68965517 | AB36: 14.52272727 | AC36: 14.35955056 | AD36: 14.2 | AE36: 14.04395604 | AF36: 13.89130435 | AG36: 13.74193548 | AH36: 13.59574468 | AI36: 13.45263158 | AJ36: 13.3125 | AK36: 13.17525773 | AL36: 13.04081633 | AM36: 12.90909091 | AN36: 12.78 | AR36: 30 | AS36: 3.763561967 | AT36: 3.674259376 | AU36: 3.587354901 | AV36: 3.502758758 | AW36: 3.420385396 | AX36: 3.340153253 | AY36: 3.26198453 | AZ36: 3.185804977 | BA36: 3.111543699 | BB36: 3.039132965 | BC36: 2.968508044 | BD36: 2.899607035 | BE36: 2.832370719 | BF36: 2.766742419 | BG36: 2.702667864 | BH36: 2.640095065 | BI36: 2.5789742 | BJ36: 1.96550283 | BN36: 30 | BO36: 0.3785964912 | BP36: 0.3831578947 | BQ36: 0.3877192982 | BR36: 0.3922807018 | BS36: 0.3968421053 | BT36: 0.4014035088 | BU36: 0.4059649123 | BV36: 0.4105263158 | BW36: 0.4150877193 | BX36: 0.4196491228 | BY36: 0.4242105263 | BZ36: 0.4287719298 | CA36: 0.4333333333 | CB36: 0.4378947368 | CC36: 0.4424561404 | CD36: 0.4470175439 | CE36: 0.4515789474 | CF36: 0.4561403509 | CK36: 30 | CL36: 3.721894737 | CM36: 3.766736842 | CN36: 3.811578947 | CO36: 3.856421053 | CP36: 3.901263158 | CQ36: 3.946105263 | CR36: 3.990947368 | CS36: 4.035789474 | CT36: 4.080631579 | CU36: 4.125473684 | CV36: 4.170315789 | CW36: 4.215157895 | CX36: 4.26 | CY36: 4.304842105 | CZ36: 4.349684211 | DA36: 4.394526316 | DB36: 4.439368421 | DC36: 4.484210526 | DE36: 30 | DF36: 5.829473684 | DG36: 5.829473684 | DH36: 5.829473684 | DI36: 5.829473684 | DJ36: 5.829473684 | DK36: 5.829473684 | DL36: 5.829473684 | DM36: 5.829473684 | DN36: 5.829473684 | DO36: 5.829473684 | DP36: 5.829473684 | DQ36: 5.829473684 | DR36: 5.829473684 | DS36: 5.829473684 | DT36: 5.829473684 | DU36: 5.829473684 | DV36: 5.829473684 | DW36: 5.829473684 | DY36: 30 | DZ36: 1.424871355 | EA36: 1.407821487 | EB36: 1.390886725 | EC36: 1.374064664 | ED36: 1.357352941 | EE36: 1.340749235 | EF36: 1.324251263 | EG36: 1.30785678 | EH36: 1.291563577 | EI36: 1.275369483 | EJ36: 1.25927236 | EK36: 1.243270104 | EL36: 1.227360645 | EM36: 1.211541943 | EN36: 1.195811992 | EO36: 1.180168812 | EP36: 1.164610455 | EQ36: 0.8965451503
B37: 31 | C37: 9.755725191 | D37: 9.755725191 | E37: 9.755725191 | F37: 9.755725191 | G37: 9.755725191 | H37: 9.755725191 | I37: 9.755725191 | J37: 9.755725191 | K37: 9.755725191 | L37: 9.755725191 | M37: 9.755725191 | N37: 9.755725191 | O37: 9.755725191 | P37: 9.755725191 | Q37: 9.755725191 | R37: 9.755725191 | S37: 9.755725191 | T37: 9.755725191 | V37: 31 | W37: 15.39759036 | X37: 15.21428571 | Y37: 15.03529412 | Z37: 14.86046512 | AA37: 14.68965517 | AB37: 14.52272727 | AC37: 14.35955056 | AD37: 14.2 | AE37: 14.04395604 | AF37: 13.89130435 | AG37: 13.74193548 | AH37: 13.59574468 | AI37: 13.45263158 | AJ37: 13.3125 | AK37: 13.17525773 | AL37: 13.04081633 | AM37: 12.90909091 | AN37: 12.78 | AR37: 31 | AS37: 3.756959226 | AT37: 3.667813307 | AU37: 3.581061296 | AV37: 3.496613567 | AW37: 3.414384719 | AX37: 3.334293335 | AY37: 3.25626175 | AZ37: 3.180215846 | BA37: 3.10608485 | BB37: 3.033801153 | BC37: 2.963300135 | BD37: 2.894520005 | BE37: 2.827401647 | BF37: 2.761888484 | BG37: 2.697926341 | BH37: 2.63546332 | BI37: 2.574449684 | BJ37: 1.947287475 | BN37: 31 | BO37: 0.3821792619 | BP37: 0.3867838313 | BQ37: 0.3913884007 | BR37: 0.3959929701 | BS37: 0.4005975395 | BT37: 0.405202109 | BU37: 0.4098066784 | BV37: 0.4144112478 | BW37: 0.4190158172 | BX37: 0.4236203866 | BY37: 0.4282249561 | BZ37: 0.4328295255 | CA37: 0.4374340949 | CB37: 0.4420386643 | CC37: 0.4466432337 | CD37: 0.4512478032 | CE37: 0.4558523726 | CF37: 0.460456942 | CK37: 31 | CL37: 3.728435852 | CM37: 3.773356766 | CN37: 3.81827768 | CO37: 3.863198594 | CP37: 3.908119508 | CQ37: 3.953040422 | CR37: 3.997961336 | CS37: 4.04288225 | CT37: 4.087803163 | CU37: 4.132724077 | CV37: 4.177644991 | CW37: 4.222565905 | CX37: 4.267486819 | CY37: 4.312407733 | CZ37: 4.357328647 | DA37: 4.402249561 | DB37: 4.447170475 | DC37: 4.492091388 | DE37: 31 | DF37: 5.884639719 | DG37: 5.884639719 | DH37: 5.884639719 | DI37: 5.884639719 | DJ37: 5.884639719 | DK37: 5.884639719 | DL37: 5.884639719 | DM37: 5.884639719 | DN37: 5.884639719 | DO37: 5.884639719 | DP37: 5.884639719 | DQ37: 5.884639719 | DR37: 5.884639719 | DS37: 5.884639719 | DT37: 5.884639719 | DU37: 5.884639719 | DV37: 5.884639719 | DW37: 5.884639719 | DY37: 31 | DZ37: 1.435831904 | EA37: 1.418650883 | EB37: 1.401585853 | EC37: 1.384634392 | ED37: 1.367794118 | EE37: 1.351062691 | EF37: 1.334437812 | EG37: 1.317917217 | EH37: 1.301498682 | EI37: 1.285180018 | EJ37: 1.26895907 | EK37: 1.25283372 | EL37: 1.23680188 | EM37: 1.220861497 | EN37: 1.205010545 | EO37: 1.189247033 | EP37: 1.173568997 | EQ37: 0.8966420361
B38: 32 | C38: 9.681818182 | D38: 9.681818182 | E38: 9.681818182 | F38: 9.681818182 | G38: 9.681818182 | H38: 9.681818182 | I38: 9.681818182 | J38: 9.681818182 | K38: 9.681818182 | L38: 9.681818182 | M38: 9.681818182 | N38: 9.681818182 | O38: 9.681818182 | P38: 9.681818182 | Q38: 9.681818182 | R38: 9.681818182 | S38: 9.681818182 | T38: 9.681818182 | V38: 32 | W38: 15.39759036 | X38: 15.21428571 | Y38: 15.03529412 | Z38: 14.86046512 | AA38: 14.68965517 | AB38: 14.52272727 | AC38: 14.35955056 | AD38: 14.2 | AE38: 14.04395604 | AF38: 13.89130435 | AG38: 13.74193548 | AH38: 13.59574468 | AI38: 13.45263158 | AJ38: 13.3125 | AK38: 13.17525773 | AL38: 13.04081633 | AM38: 12.90909091 | AN38: 12.78 | AR38: 32 | AS38: 3.750356486 | AT38: 3.661367238 | AU38: 3.574767691 | AV38: 3.490468376 | AW38: 3.408384043 | AX38: 3.328433417 | AY38: 3.25053897 | AZ38: 3.174626714 | BA38: 3.100626001 | BB38: 3.028469341 | BC38: 2.958092226 | BD38: 2.889432975 | BE38: 2.822432576 | BF38: 2.75703455 | BG38: 2.693184818 | BH38: 2.630831574 | BI38: 2.569925168 | BJ38: 1.929347377 | BN38: 32 | BO38: 0.3857746479 | BP38: 0.3904225352 | BQ38: 0.3950704225 | BR38: 0.3997183099 | BS38: 0.4043661972 | BT38: 0.4090140845 | BU38: 0.4136619718 | BV38: 0.4183098592 | BW38: 0.4229577465 | BX38: 0.4276056338 | BY38: 0.4322535211 | BZ38: 0.4369014085 | CA38: 0.4415492958 | CB38: 0.4461971831 | CC38: 0.4508450704 | CD38: 0.4554929577 | CE38: 0.4601408451 | CF38: 0.4647887324 | CK38: 32 | CL38: 3.735 | CM38: 3.78 | CN38: 3.825 | CO38: 3.87 | CP38: 3.915 | CQ38: 3.96 | CR38: 4.005 | CS38: 4.05 | CT38: 4.095 | CU38: 4.14 | CV38: 4.185 | CW38: 4.23 | CX38: 4.275 | CY38: 4.32 | CZ38: 4.365 | DA38: 4.41 | DB38: 4.455 | DC38: 4.5 | DE38: 32 | DF38: 5.94 | DG38: 5.94 | DH38: 5.94 | DI38: 5.94 | DJ38: 5.94 | DK38: 5.94 | DL38: 5.94 | DM38: 5.94 | DN38: 5.94 | DO38: 5.94 | DP38: 5.94 | DQ38: 5.94 | DR38: 5.94 | DS38: 5.94 | DT38: 5.94 | DU38: 5.94 | DV38: 5.94 | DW38: 5.94 | DY38: 32 | DZ38: 1.446792453 | EA38: 1.429480279 | EB38: 1.412284982 | EC38: 1.39520412 | ED38: 1.378235294 | EE38: 1.361376147 | EF38: 1.34462436 | EG38: 1.327977654 | EH38: 1.311433786 | EI38: 1.294990552 | EJ38: 1.278645781 | EK38: 1.262397336 | EL38: 1.246243116 | EM38: 1.23018105 | EN38: 1.214209099 | EO38: 1.198325255 | EP38: 1.182527539 | EQ38: 0.8967389219
B39: 33 | C39: 9.609022556 | D39: 9.609022556 | E39: 9.609022556 | F39: 9.609022556 | G39: 9.609022556 | H39: 9.609022556 | I39: 9.609022556 | J39: 9.609022556 | K39: 9.609022556 | L39: 9.609022556 | M39: 9.609022556 | N39: 9.609022556 | O39: 9.609022556 | P39: 9.609022556 | Q39: 9.609022556 | R39: 9.609022556 | S39: 9.609022556 | T39: 9.609022556 | V39: 33 | W39: 15.39759036 | X39: 15.21428571 | Y39: 15.03529412 | Z39: 14.86046512 | AA39: 14.68965517 | AB39: 14.52272727 | AC39: 14.35955056 | AD39: 14.2 | AE39: 14.04395604 | AF39: 13.89130435 | AG39: 13.74193548 | AH39: 13.59574468 | AI39: 13.45263158 | AJ39: 13.3125 | AK39: 13.17525773 | AL39: 13.04081633 | AM39: 12.90909091 | AN39: 12.78 | AR39: 33 | AS39: 3.743753746 | AT39: 3.654921169 | AU39: 3.568474086 | AV39: 3.484323185 | AW39: 3.402383367 | AX39: 3.322573499 | AY39: 3.24481619 | AZ39: 3.169037583 | BA39: 3.095167153 | BB39: 3.023137529 | BC39: 2.952884318 | BD39: 2.884345945 | BE39: 2.817463504 | BF39: 2.752180616 | BG39: 2.688443296 | BH39: 2.626199828 | BI39: 2.565400652 | BJ39: 1.911676327 | BN39: 33 | BO39: 0.389382716 | BP39: 0.3940740741 | BQ39: 0.3987654321 | BR39: 0.4034567901 | BS39: 0.4081481481 | BT39: 0.4128395062 | BU39: 0.4175308642 | BV39: 0.4222222222 | BW39: 0.4269135802 | BX39: 0.4316049383 | BY39: 0.4362962963 | BZ39: 0.4409876543 | CA39: 0.4456790123 | CB39: 0.4503703704 | CC39: 0.4550617284 | CD39: 0.4597530864 | CE39: 0.4644444444 | CF39: 0.4691358025 | CK39: 33 | CL39: 3.741587302 | CM39: 3.786666667 | CN39: 3.831746032 | CO39: 3.876825397 | CP39: 3.921904762 | CQ39: 3.966984127 | CR39: 4.012063492 | CS39: 4.057142857 | CT39: 4.102222222 | CU39: 4.147301587 | CV39: 4.192380952 | CW39: 4.237460317 | CX39: 4.282539683 | CY39: 4.327619048 | CZ39: 4.372698413 | DA39: 4.417777778 | DB39: 4.462857143 | DC39: 4.507936508 | DE39: 33 | DF39: 5.995555556 | DG39: 5.995555556 | DH39: 5.995555556 | DI39: 5.995555556 | DJ39: 5.995555556 | DK39: 5.995555556 | DL39: 5.995555556 | DM39: 5.995555556 | DN39: 5.995555556 | DO39: 5.995555556 | DP39: 5.995555556 | DQ39: 5.995555556 | DR39: 5.995555556 | DS39: 5.995555556 | DT39: 5.995555556 | DU39: 5.995555556 | DV39: 5.995555556 | DW39: 5.995555556 | DY39: 33 | DZ39: 1.457753002 | EA39: 1.440309675 | EB39: 1.422984111 | EC39: 1.405773848 | ED39: 1.388676471 | EE39: 1.371689602 | EF39: 1.354810908 | EG39: 1.33803809 | EH39: 1.321368891 | EI39: 1.304801087 | EJ39: 1.288332491 | EK39: 1.271960952 | EL39: 1.255684352 | EM39: 1.239500604 | EN39: 1.223407653 | EO39: 1.207403477 | EP39: 1.191486081 | EQ39: 0.8968358077
B40: 34 | C40: 9.537313433 | D40: 9.537313433 | E40: 9.537313433 | F40: 9.537313433 | G40: 9.537313433 | H40: 9.537313433 | I40: 9.537313433 | J40: 9.537313433 | K40: 9.537313433 | L40: 9.537313433 | M40: 9.537313433 | N40: 9.537313433 | O40: 9.537313433 | P40: 9.537313433 | Q40: 9.537313433 | R40: 9.537313433 | S40: 9.537313433 | T40: 9.537313433 | V40: 34 | W40: 15.39759036 | X40: 15.21428571 | Y40: 15.03529412 | Z40: 14.86046512 | AA40: 14.68965517 | AB40: 14.52272727 | AC40: 14.35955056 | AD40: 14.2 | AE40: 14.04395604 | AF40: 13.89130435 | AG40: 13.74193548 | AH40: 13.59574468 | AI40: 13.45263158 | AJ40: 13.3125 | AK40: 13.17525773 | AL40: 13.04081633 | AM40: 12.90909091 | AN40: 12.78 | AR40: 34 | AS40: 3.737151005 | AT40: 3.6484751 | AU40: 3.562180481 | AV40: 3.478177995 | AW40: 3.396382691 | AX40: 3.316713581 | AY40: 3.23909341 | AZ40: 3.163448451 | BA40: 3.089708304 | BB40: 3.017805717 | BC40: 2.947676409 | BD40: 2.879258915 | BE40: 2.812494433 | BF40: 2.747326682 | BG40: 2.683701773 | BH40: 2.621568082 | BI40: 2.560876136 | BJ40: 1.8942683 | BN40: 34 | BO40: 0.3930035336 | BP40: 0.3977385159 | BQ40: 0.4024734982 | BR40: 0.4072084806 | BS40: 0.4119434629 | BT40: 0.4166784452 | BU40: 0.4214134276 | BV40: 0.4261484099 | BW40: 0.4308833922 | BX40: 0.4356183746 | BY40: 0.4403533569 | BZ40: 0.4450883392 | CA40: 0.4498233216 | CB40: 0.4545583039 | CC40: 0.4592932862 | CD40: 0.4640282686 | CE40: 0.4687632509 | CF40: 0.4734982332 | CK40: 34 | CL40: 3.74819788 | CM40: 3.79335689 | CN40: 3.838515901 | CO40: 3.883674912 | CP40: 3.928833922 | CQ40: 3.973992933 | CR40: 4.019151943 | CS40: 4.064310954 | CT40: 4.109469965 | CU40: 4.154628975 | CV40: 4.199787986 | CW40: 4.244946996 | CX40: 4.290106007 | CY40: 4.335265018 | CZ40: 4.380424028 | DA40: 4.425583039 | DB40: 4.470742049 | DC40: 4.51590106 | DE40: 34 | DF40: 6.05130742 | DG40: 6.05130742 | DH40: 6.05130742 | DI40: 6.05130742 | DJ40: 6.05130742 | DK40: 6.05130742 | DL40: 6.05130742 | DM40: 6.05130742 | DN40: 6.05130742 | DO40: 6.05130742 | DP40: 6.05130742 | DQ40: 6.05130742 | DR40: 6.05130742 | DS40: 6.05130742 | DT40: 6.05130742 | DU40: 6.05130742 | DV40: 6.05130742 | DW40: 6.05130742 | DY40: 34 | DZ40: 1.468713551 | EA40: 1.451139071 | EB40: 1.433683239 | EC40: 1.416343576 | ED40: 1.399117647 | EE40: 1.382003058 | EF40: 1.364997456 | EG40: 1.348098527 | EH40: 1.331303995 | EI40: 1.314611621 | EJ40: 1.298019202 | EK40: 1.281524569 | EL40: 1.265125588 | EM40: 1.248820157 | EN40: 1.232606207 | EO40: 1.216481698 | EP40: 1.200444622 | EQ40: 0.8969326934
B41: 35 | C41: 9.466666667 | D41: 9.466666667 | E41: 9.466666667 | F41: 9.466666667 | G41: 9.466666667 | H41: 9.466666667 | I41: 9.466666667 | J41: 9.466666667 | K41: 9.466666667 | L41: 9.466666667 | M41: 9.466666667 | N41: 9.466666667 | O41: 9.466666667 | P41: 9.466666667 | Q41: 9.466666667 | R41: 9.466666667 | S41: 9.466666667 | T41: 9.466666667 | V41: 35 | W41: 15.39759036 | X41: 15.21428571 | Y41: 15.03529412 | Z41: 14.86046512 | AA41: 14.68965517 | AB41: 14.52272727 | AC41: 14.35955056 | AD41: 14.2 | AE41: 14.04395604 | AF41: 13.89130435 | AG41: 13.74193548 | AH41: 13.59574468 | AI41: 13.45263158 | AJ41: 13.3125 | AK41: 13.17525773 | AL41: 13.04081633 | AM41: 12.90909091 | AN41: 12.78 | AR41: 35 | AS41: 3.730548265 | AT41: 3.642029031 | AU41: 3.555886876 | AV41: 3.472032804 | AW41: 3.390382015 | AX41: 3.310853663 | AY41: 3.23337063 | AZ41: 3.157859319 | BA41: 3.084249456 | BB41: 3.012473904 | BC41: 2.9424685 | BD41: 2.874171885 | BE41: 2.807525361 | BF41: 2.742472748 | BG41: 2.678960251 | BH41: 2.616936337 | BI41: 2.55635162 | BJ41: 1.877117453 | BN41: 35 | BO41: 0.3966371681 | BP41: 0.4014159292 | BQ41: 0.4061946903 | BR41: 0.4109734513 | BS41: 0.4157522124 | BT41: 0.4205309735 | BU41: 0.4253097345 | BV41: 0.4300884956 | BW41: 0.4348672566 | BX41: 0.4396460177 | BY41: 0.4444247788 | BZ41: 0.4492035398 | CA41: 0.4539823009 | CB41: 0.4587610619 | CC41: 0.463539823 | CD41: 0.4683185841 | CE41: 0.4730973451 | CF41: 0.4778761062 | CK41: 35 | CL41: 3.754831858 | CM41: 3.800070796 | CN41: 3.845309735 | CO41: 3.890548673 | CP41: 3.935787611 | CQ41: 3.981026549 | CR41: 4.026265487 | CS41: 4.071504425 | CT41: 4.116743363 | CU41: 4.161982301 | CV41: 4.207221239 | CW41: 4.252460177 | CX41: 4.297699115 | CY41: 4.342938053 | CZ41: 4.388176991 | DA41: 4.433415929 | DB41: 4.478654867 | DC41: 4.523893805 | DE41: 35 | DF41: 6.107256637 | DG41: 6.107256637 | DH41: 6.107256637 | DI41: 6.107256637 | DJ41: 6.107256637 | DK41: 6.107256637 | DL41: 6.107256637 | DM41: 6.107256637 | DN41: 6.107256637 | DO41: 6.107256637 | DP41: 6.107256637 | DQ41: 6.107256637 | DR41: 6.107256637 | DS41: 6.107256637 | DT41: 6.107256637 | DU41: 6.107256637 | DV41: 6.107256637 | DW41: 6.107256637 | DY41: 35 | DZ41: 1.479674099 | EA41: 1.461968468 | EB41: 1.444382368 | EC41: 1.426913304 | ED41: 1.409558824 | EE41: 1.392316514 | EF41: 1.375184004 | EG41: 1.358158964 | EH41: 1.3412391 | EI41: 1.324422155 | EJ41: 1.307705912 | EK41: 1.291088185 | EL41: 1.274566823 | EM41: 1.25813971 | EN41: 1.24180476 | EO41: 1.22555992 | EP41: 1.209403164 | EQ41: 0.8970295792
B42: 36 | C42: 9.397058824 | D42: 9.397058824 | E42: 9.397058824 | F42: 9.397058824 | G42: 9.397058824 | H42: 9.397058824 | I42: 9.397058824 | J42: 9.397058824 | K42: 9.397058824 | L42: 9.397058824 | M42: 9.397058824 | N42: 9.397058824 | O42: 9.397058824 | P42: 9.397058824 | Q42: 9.397058824 | R42: 9.397058824 | S42: 9.397058824 | T42: 9.397058824 | V42: 36 | W42: 15.39759036 | X42: 15.21428571 | Y42: 15.03529412 | Z42: 14.86046512 | AA42: 14.68965517 | AB42: 14.52272727 | AC42: 14.35955056 | AD42: 14.2 | AE42: 14.04395604 | AF42: 13.89130435 | AG42: 13.74193548 | AH42: 13.59574468 | AI42: 13.45263158 | AJ42: 13.3125 | AK42: 13.17525773 | AL42: 13.04081633 | AM42: 12.90909091 | AN42: 12.78 | AR42: 36 | AS42: 3.723945525 | AT42: 3.635582962 | AU42: 3.54959327 | AV42: 3.465887613 | AW42: 3.384381339 | AX42: 3.304993745 | AY42: 3.22764785 | AZ42: 3.152270188 | BA42: 3.078790607 | BB42: 3.007142092 | BC42: 2.937260591 | BD42: 2.869084855 | BE42: 2.80255629 | BF42: 2.737618814 | BG42: 2.674218728 | BH42: 2.612304591 | BI42: 2.551827103 | BJ42: 1.860218111 | BN42: 36 | BO42: 0.4002836879 | BP42: 0.405106383 | BQ42: 0.409929078 | BR42: 0.414751773 | BS42: 0.4195744681 | BT42: 0.4243971631 | BU42: 0.4292198582 | BV42: 0.4340425532 | BW42: 0.4388652482 | BX42: 0.4436879433 | BY42: 0.4485106383 | BZ42: 0.4533333333 | CA42: 0.4581560284 | CB42: 0.4629787234 | CC42: 0.4678014184 | CD42: 0.4726241135 | CE42: 0.4774468085 | CF42: 0.4822695035 | CK42: 36 | CL42: 3.761489362 | CM42: 3.806808511 | CN42: 3.85212766 | CO42: 3.897446809 | CP42: 3.942765957 | CQ42: 3.988085106 | CR42: 4.033404255 | CS42: 4.078723404 | CT42: 4.124042553 | CU42: 4.169361702 | CV42: 4.214680851 | CW42: 4.26 | CX42: 4.305319149 | CY42: 4.350638298 | CZ42: 4.395957447 | DA42: 4.441276596 | DB42: 4.486595745 | DC42: 4.531914894 | DE42: 36 | DF42: 6.163404255 | DG42: 6.163404255 | DH42: 6.163404255 | DI42: 6.163404255 | DJ42: 6.163404255 | DK42: 6.163404255 | DL42: 6.163404255 | DM42: 6.163404255 | DN42: 6.163404255 | DO42: 6.163404255 | DP42: 6.163404255 | DQ42: 6.163404255 | DR42: 6.163404255 | DS42: 6.163404255 | DT42: 6.163404255 | DU42: 6.163404255 | DV42: 6.163404255 | DW42: 6.163404255 | DY42: 36 | DZ42: 1.490634648 | EA42: 1.472797864 | EB42: 1.455081497 | EC42: 1.437483033 | ED42: 1.42 | EE42: 1.402629969 | EF42: 1.385370553 | EG42: 1.368219401 | EH42: 1.351174204 | EI42: 1.33423269 | EJ42: 1.317392623 | EK42: 1.300651801 | EL42: 1.284008059 | EM42: 1.267459264 | EN42: 1.251003314 | EO42: 1.234638141 | EP42: 1.218361706 | EQ42: 0.897126465
B43: 37 | C43: 9.328467153 | D43: 9.328467153 | E43: 9.328467153 | F43: 9.328467153 | G43: 9.328467153 | H43: 9.328467153 | I43: 9.328467153 | J43: 9.328467153 | K43: 9.328467153 | L43: 9.328467153 | M43: 9.328467153 | N43: 9.328467153 | O43: 9.328467153 | P43: 9.328467153 | Q43: 9.328467153 | R43: 9.328467153 | S43: 9.328467153 | T43: 9.328467153 | V43: 37 | W43: 15.39759036 | X43: 15.21428571 | Y43: 15.03529412 | Z43: 14.86046512 | AA43: 14.68965517 | AB43: 14.52272727 | AC43: 14.35955056 | AD43: 14.2 | AE43: 14.04395604 | AF43: 13.89130435 | AG43: 13.74193548 | AH43: 13.59574468 | AI43: 13.45263158 | AJ43: 13.3125 | AK43: 13.17525773 | AL43: 13.04081633 | AM43: 12.90909091 | AN43: 12.78 | AR43: 37 | AS43: 3.717342785 | AT43: 3.629136893 | AU43: 3.543299665 | AV43: 3.459742422 | AW43: 3.378380663 | AX43: 3.299133827 | AY43: 3.221925071 | AZ43: 3.146681056 | BA43: 3.073331758 | BB43: 3.00181028 | BC43: 2.932052682 | BD43: 2.863997825 | BE43: 2.797587219 | BF43: 2.73276488 | BG43: 2.669477206 | BH43: 2.607672845 | BI43: 2.547302587 | BJ43: 1.843564768 | BN43: 37 | BO43: 0.4039431616 | BP43: 0.4088099467 | BQ43: 0.4136767318 | BR43: 0.4185435169 | BS43: 0.423410302 | BT43: 0.428277087 | BU43: 0.4331438721 | BV43: 0.4380106572 | BW43: 0.4428774423 | BX43: 0.4477442274 | BY43: 0.4526110124 | BZ43: 0.4574777975 | CA43: 0.4623445826 | CB43: 0.4672113677 | CC43: 0.4720781528 | CD43: 0.4769449378 | CE43: 0.4818117229 | CF43: 0.486678508 | CK43: 37 | CL43: 3.768170515 | CM43: 3.81357016 | CN43: 3.858969805 | CO43: 3.904369449 | CP43: 3.949769094 | CQ43: 3.995168739 | CR43: 4.040568384 | CS43: 4.085968028 | CT43: 4.131367673 | CU43: 4.176767318 | CV43: 4.222166963 | CW43: 4.267566607 | CX43: 4.312966252 | CY43: 4.358365897 | CZ43: 4.403765542 | DA43: 4.449165187 | DB43: 4.494564831 | DC43: 4.539964476 | DE43: 37 | DF43: 6.219751332 | DG43: 6.219751332 | DH43: 6.219751332 | DI43: 6.219751332 | DJ43: 6.219751332 | DK43: 6.219751332 | DL43: 6.219751332 | DM43: 6.219751332 | DN43: 6.219751332 | DO43: 6.219751332 | DP43: 6.219751332 | DQ43: 6.219751332 | DR43: 6.219751332 | DS43: 6.219751332 | DT43: 6.219751332 | DU43: 6.219751332 | DV43: 6.219751332 | DW43: 6.219751332 | DY43: 37 | DZ43: 1.501595197 | EA43: 1.48362726 | EB43: 1.465780625 | EC43: 1.448052761 | ED43: 1.430441176 | EE43: 1.412943425 | EF43: 1.395557101 | EG43: 1.378279837 | EH43: 1.361109308 | EI43: 1.344043224 | EJ43: 1.327079333 | EK43: 1.310215417 | EL43: 1.293449295 | EM43: 1.276778817 | EN43: 1.260201868 | EO43: 1.243716363 | EP43: 1.227320248 | EQ43: 0.8972233507
B44: 38 | C44: 9.260869565 | D44: 9.260869565 | E44: 9.260869565 | F44: 9.260869565 | G44: 9.260869565 | H44: 9.260869565 | I44: 9.260869565 | J44: 9.260869565 | K44: 9.260869565 | L44: 9.260869565 | M44: 9.260869565 | N44: 9.260869565 | O44: 9.260869565 | P44: 9.260869565 | Q44: 9.260869565 | R44: 9.260869565 | S44: 9.260869565 | T44: 9.260869565 | V44: 38 | W44: 15.39759036 | X44: 15.21428571 | Y44: 15.03529412 | Z44: 14.86046512 | AA44: 14.68965517 | AB44: 14.52272727 | AC44: 14.35955056 | AD44: 14.2 | AE44: 14.04395604 | AF44: 13.89130435 | AG44: 13.74193548 | AH44: 13.59574468 | AI44: 13.45263158 | AJ44: 13.3125 | AK44: 13.17525773 | AL44: 13.04081633 | AM44: 12.90909091 | AN44: 12.78 | AR44: 38 | AS44: 3.710740044 | AT44: 3.622690823 | AU44: 3.53700606 | AV44: 3.453597231 | AW44: 3.372379986 | AX44: 3.293273909 | AY44: 3.216202291 | AZ44: 3.141091925 | BA44: 3.06787291 | BB44: 2.996478468 | BC44: 2.926844773 | BD44: 2.858910795 | BE44: 2.792618147 | BF44: 2.727910946 | BG44: 2.664735683 | BH44: 2.603041099 | BI44: 2.542778071 | BJ44: 1.827152076 | BN44: 38 | BO44: 0.4076156584 | BP44: 0.4125266904 | BQ44: 0.4174377224 | BR44: 0.4223487544 | BS44: 0.4272597865 | BT44: 0.4321708185 | BU44: 0.4370818505 | BV44: 0.4419928826 | BW44: 0.4469039146 | BX44: 0.4518149466 | BY44: 0.4567259786 | BZ44: 0.4616370107 | CA44: 0.4665480427 | CB44: 0.4714590747 | CC44: 0.4763701068 | CD44: 0.4812811388 | CE44: 0.4861921708 | CF44: 0.4911032028 | CK44: 38 | CL44: 3.774875445 | CM44: 3.820355872 | CN44: 3.865836299 | CO44: 3.911316726 | CP44: 3.956797153 | CQ44: 4.00227758 | CR44: 4.047758007 | CS44: 4.093238434 | CT44: 4.138718861 | CU44: 4.184199288 | CV44: 4.229679715 | CW44: 4.275160142 | CX44: 4.320640569 | CY44: 4.366120996 | CZ44: 4.411601423 | DA44: 4.457081851 | DB44: 4.502562278 | DC44: 4.548042705 | DE44: 38 | DF44: 6.276298932 | DG44: 6.276298932 | DH44: 6.276298932 | DI44: 6.276298932 | DJ44: 6.276298932 | DK44: 6.276298932 | DL44: 6.276298932 | DM44: 6.276298932 | DN44: 6.276298932 | DO44: 6.276298932 | DP44: 6.276298932 | DQ44: 6.276298932 | DR44: 6.276298932 | DS44: 6.276298932 | DT44: 6.276298932 | DU44: 6.276298932 | DV44: 6.276298932 | DW44: 6.276298932 | DY44: 38 | DZ44: 1.512555746 | EA44: 1.494456656 | EB44: 1.476479754 | EC44: 1.458622489 | ED44: 1.440882353 | EE44: 1.423256881 | EF44: 1.405743649 | EG44: 1.388340274 | EH44: 1.371044413 | EI44: 1.353853759 | EJ44: 1.336766043 | EK44: 1.319779033 | EL44: 1.302890531 | EM44: 1.286098371 | EN44: 1.269400422 | EO44: 1.252794585 | EP44: 1.23627879 | EQ44: 0.8973202365
B45: 39 | C45: 9.194244604 | D45: 9.194244604 | E45: 9.194244604 | F45: 9.194244604 | G45: 9.194244604 | H45: 9.194244604 | I45: 9.194244604 | J45: 9.194244604 | K45: 9.194244604 | L45: 9.194244604 | M45: 9.194244604 | N45: 9.194244604 | O45: 9.194244604 | P45: 9.194244604 | Q45: 9.194244604 | R45: 9.194244604 | S45: 9.194244604 | T45: 9.194244604 | V45: 39 | W45: 15.39759036 | X45: 15.21428571 | Y45: 15.03529412 | Z45: 14.86046512 | AA45: 14.68965517 | AB45: 14.52272727 | AC45: 14.35955056 | AD45: 14.2 | AE45: 14.04395604 | AF45: 13.89130435 | AG45: 13.74193548 | AH45: 13.59574468 | AI45: 13.45263158 | AJ45: 13.3125 | AK45: 13.17525773 | AL45: 13.04081633 | AM45: 12.90909091 | AN45: 12.78 | AR45: 39 | AS45: 3.704137304 | AT45: 3.616244754 | AU45: 3.530712455 | AV45: 3.44745204 | AW45: 3.36637931 | AX45: 3.287413991 | AY45: 3.210479511 | AZ45: 3.135502793 | BA45: 3.062414061 | BB45: 2.991146656 | BC45: 2.921636864 | BD45: 2.853823766 | BE45: 2.787649076 | BF45: 2.723057012 | BG45: 2.65999416 | BH45: 2.598409354 | BI45: 2.538253555 | BJ45: 1.81097484 | BN45: 39 | BO45: 0.4113012478 | BP45: 0.4162566845 | BQ45: 0.4212121212 | BR45: 0.4261675579 | BS45: 0.4311229947 | BT45: 0.4360784314 | BU45: 0.4410338681 | BV45: 0.4459893048 | BW45: 0.4509447415 | BX45: 0.4559001783 | BY45: 0.460855615 | BZ45: 0.4658110517 | CA45: 0.4707664884 | CB45: 0.4757219251 | CC45: 0.4806773619 | CD45: 0.4856327986 | CE45: 0.4905882353 | CF45: 0.495543672 | CK45: 39 | CL45: 3.781604278 | CM45: 3.827165775 | CN45: 3.872727273 | CO45: 3.91828877 | CP45: 3.963850267 | CQ45: 4.009411765 | CR45: 4.054973262 | CS45: 4.100534759 | CT45: 4.146096257 | CU45: 4.191657754 | CV45: 4.237219251 | CW45: 4.282780749 | CX45: 4.328342246 | CY45: 4.373903743 | CZ45: 4.419465241 | DA45: 4.465026738 | DB45: 4.510588235 | DC45: 4.556149733 | DE45: 39 | DF45: 6.333048128 | DG45: 6.333048128 | DH45: 6.333048128 | DI45: 6.333048128 | DJ45: 6.333048128 | DK45: 6.333048128 | DL45: 6.333048128 | DM45: 6.333048128 | DN45: 6.333048128 | DO45: 6.333048128 | DP45: 6.333048128 | DQ45: 6.333048128 | DR45: 6.333048128 | DS45: 6.333048128 | DT45: 6.333048128 | DU45: 6.333048128 | DV45: 6.333048128 | DW45: 6.333048128 | DY45: 39 | DZ45: 1.523516295 | EA45: 1.505286052 | EB45: 1.487178883 | EC45: 1.469192217 | ED45: 1.451323529 | EE45: 1.433570336 | EF45: 1.415930197 | EG45: 1.398400711 | EH45: 1.380979517 | EI45: 1.363664293 | EJ45: 1.346452754 | EK45: 1.32934265 | EL45: 1.312331766 | EM45: 1.295417924 | EN45: 1.278598976 | EO45: 1.261872806 | EP45: 1.245237332 | EQ45: 0.8974171223
B46: 40 | C46: 9.128571429 | D46: 9.128571429 | E46: 9.128571429 | F46: 9.128571429 | G46: 9.128571429 | H46: 9.128571429 | I46: 9.128571429 | J46: 9.128571429 | K46: 9.128571429 | L46: 9.128571429 | M46: 9.128571429 | N46: 9.128571429 | O46: 9.128571429 | P46: 9.128571429 | Q46: 9.128571429 | R46: 9.128571429 | S46: 9.128571429 | T46: 9.128571429 | V46: 40 | W46: 15.39759036 | X46: 15.21428571 | Y46: 15.03529412 | Z46: 14.86046512 | AA46: 14.68965517 | AB46: 14.52272727 | AC46: 14.35955056 | AD46: 14.2 | AE46: 14.04395604 | AF46: 13.89130435 | AG46: 13.74193548 | AH46: 13.59574468 | AI46: 13.45263158 | AJ46: 13.3125 | AK46: 13.17525773 | AL46: 13.04081633 | AM46: 12.90909091 | AN46: 12.78 | AR46: 40 | AS46: 3.697534564 | AT46: 3.609798685 | AU46: 3.52441885 | AV46: 3.44130685 | AW46: 3.360378634 | AX46: 3.281554073 | AY46: 3.204756731 | AZ46: 3.129913662 | BA46: 3.056955213 | BB46: 2.985814843 | BC46: 2.916428956 | BD46: 2.848736736 | BE46: 2.782680004 | BF46: 2.718203078 | BG46: 2.655252638 | BH46: 2.593777608 | BI46: 2.533729039 | BJ46: 1.795028016 | BN46: 40 | BO46: 0.415 | BP46: 0.42 | BQ46: 0.425 | BR46: 0.43 | BS46: 0.435 | BT46: 0.44 | BU46: 0.445 | BV46: 0.45 | BW46: 0.455 | BX46: 0.46 | BY46: 0.465 | BZ46: 0.47 | CA46: 0.475 | CB46: 0.48 | CC46: 0.485 | CD46: 0.49 | CE46: 0.495 | CF46: 0.5 | CK46: 40 | CL46: 3.788357143 | CM46: 3.834 | CN46: 3.879642857 | CO46: 3.925285714 | CP46: 3.970928571 | CQ46: 4.016571429 | CR46: 4.062214286 | CS46: 4.107857143 | CT46: 4.1535 | CU46: 4.199142857 | CV46: 4.244785714 | CW46: 4.290428571 | CX46: 4.336071429 | CY46: 4.381714286 | CZ46: 4.427357143 | DA46: 4.473 | DB46: 4.518642857 | DC46: 4.564285714 | DE46: 40 | DF46: 6.39 | DG46: 6.39 | DH46: 6.39 | DI46: 6.39 | DJ46: 6.39 | DK46: 6.39 | DL46: 6.39 | DM46: 6.39 | DN46: 6.39 | DO46: 6.39 | DP46: 6.39 | DQ46: 6.39 | DR46: 6.39 | DS46: 6.39 | DT46: 6.39 | DU46: 6.39 | DV46: 6.39 | DW46: 6.39 | DY46: 40 | DZ46: 1.534476844 | EA46: 1.516115448 | EB46: 1.497878011 | EC46: 1.479761945 | ED46: 1.461764706 | EE46: 1.443883792 | EF46: 1.426116745 | EG46: 1.408461148 | EH46: 1.390914622 | EI46: 1.373474828 | EJ46: 1.356139464 | EK46: 1.338906266 | EL46: 1.321773002 | EM46: 1.304737477 | EN46: 1.287797529 | EO46: 1.270951028 | EP46: 1.254195874 | EQ46: 0.8975140081
B47: 41 | C47: 9.063829787 | D47: 9.063829787 | E47: 9.063829787 | F47: 9.063829787 | G47: 9.063829787 | H47: 9.063829787 | I47: 9.063829787 | J47: 9.063829787 | K47: 9.063829787 | L47: 9.063829787 | M47: 9.063829787 | N47: 9.063829787 | O47: 9.063829787 | P47: 9.063829787 | Q47: 9.063829787 | R47: 9.063829787 | S47: 9.063829787 | T47: 9.063829787 | V47: 41 | W47: 15.39759036 | X47: 15.21428571 | Y47: 15.03529412 | Z47: 14.86046512 | AA47: 14.68965517 | AB47: 14.52272727 | AC47: 14.35955056 | AD47: 14.2 | AE47: 14.04395604 | AF47: 13.89130435 | AG47: 13.74193548 | AH47: 13.59574468 | AI47: 13.45263158 | AJ47: 13.3125 | AK47: 13.17525773 | AL47: 13.04081633 | AM47: 12.90909091 | AN47: 12.78 | AR47: 41 | AS47: 3.690931823 | AT47: 3.603352616 | AU47: 3.518125245 | AV47: 3.435161659 | AW47: 3.354377958 | AX47: 3.275694155 | AY47: 3.199033951 | AZ47: 3.12432453 | BA47: 3.051496364 | BB47: 2.980483031 | BC47: 2.911221047 | BD47: 2.843649706 | BE47: 2.777710933 | BF47: 2.713349144 | BG47: 2.650511115 | BH47: 2.589145862 | BI47: 2.529204523 | BJ47: 1.779306701 | BN47: 41 | BO47: 0.4187119857 | BP47: 0.4237567084 | BQ47: 0.4288014311 | BR47: 0.4338461538 | BS47: 0.4388908766 | BT47: 0.4439355993 | BU47: 0.448980322 | BV47: 0.4540250447 | BW47: 0.4590697674 | BX47: 0.4641144902 | BY47: 0.4691592129 | BZ47: 0.4742039356 | CA47: 0.4792486583 | CB47: 0.484293381 | CC47: 0.4893381038 | CD47: 0.4943828265 | CE47: 0.4994275492 | CF47: 0.5044722719 | CK47: 41 | CL47: 3.795134168 | CM47: 3.840858676 | CN47: 3.886583184 | CO47: 3.932307692 | CP47: 3.9780322 | CQ47: 4.023756708 | CR47: 4.069481216 | CS47: 4.115205725 | CT47: 4.160930233 | CU47: 4.206654741 | CV47: 4.252379249 | CW47: 4.298103757 | CX47: 4.343828265 | CY47: 4.389552773 | CZ47: 4.435277281 | DA47: 4.481001789 | DB47: 4.526726297 | DC47: 4.572450805 | DE47: 41 | DF47: 6.447155635 | DG47: 6.447155635 | DH47: 6.447155635 | DI47: 6.447155635 | DJ47: 6.447155635 | DK47: 6.447155635 | DL47: 6.447155635 | DM47: 6.447155635 | DN47: 6.447155635 | DO47: 6.447155635 | DP47: 6.447155635 | DQ47: 6.447155635 | DR47: 6.447155635 | DS47: 6.447155635 | DT47: 6.447155635 | DU47: 6.447155635 | DV47: 6.447155635 | DW47: 6.447155635 | DY47: 41 | DZ47: 1.545437393 | EA47: 1.526944844 | EB47: 1.50857714 | EC47: 1.490331674 | ED47: 1.472205882 | EE47: 1.454197248 | EF47: 1.436303293 | EG47: 1.418521585 | EH47: 1.400849726 | EI47: 1.383285362 | EJ47: 1.365826175 | EK47: 1.348469882 | EL47: 1.331214238 | EM47: 1.314057031 | EN47: 1.296996083 | EO47: 1.28002925 | EP47: 1.263154416 | EQ47: 0.8976108938
B48: 42 | C48: 9 | D48: 9 | E48: 9 | F48: 9 | G48: 9 | H48: 9 | I48: 9 | J48: 9 | K48: 9 | L48: 9 | M48: 9 | N48: 9 | O48: 9 | P48: 9 | Q48: 9 | R48: 9 | S48: 9 | T48: 9 | V48: 42 | W48: 15.39759036 | X48: 15.21428571 | Y48: 15.03529412 | Z48: 14.86046512 | AA48: 14.68965517 | AB48: 14.52272727 | AC48: 14.35955056 | AD48: 14.2 | AE48: 14.04395604 | AF48: 13.89130435 | AG48: 13.74193548 | AH48: 13.59574468 | AI48: 13.45263158 | AJ48: 13.3125 | AK48: 13.17525773 | AL48: 13.04081633 | AM48: 12.90909091 | AN48: 12.78 | AR48: 42 | AS48: 3.684329083 | AT48: 3.596906547 | AU48: 3.51183164 | AV48: 3.429016468 | AW48: 3.348377282 | AX48: 3.269834237 | AY48: 3.193311171 | AZ48: 3.118735399 | BA48: 3.046037516 | BB48: 2.975151219 | BC48: 2.906013138 | BD48: 2.838562676 | BE48: 2.772741861 | BF48: 2.70849521 | BG48: 2.645769593 | BH48: 2.584514117 | BI48: 2.524680007 | BJ48: 1.76380613 | BN48: 42 | BO48: 0.422437276 | BP48: 0.4275268817 | BQ48: 0.4326164875 | BR48: 0.4377060932 | BS48: 0.4427956989 | BT48: 0.4478853047 | BU48: 0.4529749104 | BV48: 0.4580645161 | BW48: 0.4631541219 | BX48: 0.4682437276 | BY48: 0.4733333333 | BZ48: 0.4784229391 | CA48: 0.4835125448 | CB48: 0.4886021505 | CC48: 0.4936917563 | CD48: 0.498781362 | CE48: 0.5038709677 | CF48: 0.5089605735 | CK48: 42 | CL48: 3.801935484 | CM48: 3.847741935 | CN48: 3.893548387 | CO48: 3.939354839 | CP48: 3.98516129 | CQ48: 4.030967742 | CR48: 4.076774194 | CS48: 4.122580645 | CT48: 4.168387097 | CU48: 4.214193548 | CV48: 4.26 | CW48: 4.305806452 | CX48: 4.351612903 | CY48: 4.397419355 | CZ48: 4.443225806 | DA48: 4.489032258 | DB48: 4.53483871 | DC48: 4.580645161 | DE48: 42 | DF48: 6.504516129 | DG48: 6.504516129 | DH48: 6.504516129 | DI48: 6.504516129 | DJ48: 6.504516129 | DK48: 6.504516129 | DL48: 6.504516129 | DM48: 6.504516129 | DN48: 6.504516129 | DO48: 6.504516129 | DP48: 6.504516129 | DQ48: 6.504516129 | DR48: 6.504516129 | DS48: 6.504516129 | DT48: 6.504516129 | DU48: 6.504516129 | DV48: 6.504516129 | DW48: 6.504516129 | DY48: 42 | DZ48: 1.556397942 | EA48: 1.53777424 | EB48: 1.519276269 | EC48: 1.500901402 | ED48: 1.482647059 | EE48: 1.464510703 | EF48: 1.446489842 | EG48: 1.428582021 | EH48: 1.410784831 | EI48: 1.393095897 | EJ48: 1.375512885 | EK48: 1.358033498 | EL48: 1.340655473 | EM48: 1.323376584 | EN48: 1.306194637 | EO48: 1.289107471 | EP48: 1.272112958 | EQ48: 0.8977077796
B49: 43 | C49: 8.937062937 | D49: 8.937062937 | E49: 8.937062937 | F49: 8.937062937 | G49: 8.937062937 | H49: 8.937062937 | I49: 8.937062937 | J49: 8.937062937 | K49: 8.937062937 | L49: 8.937062937 | M49: 8.937062937 | N49: 8.937062937 | O49: 8.937062937 | P49: 8.937062937 | Q49: 8.937062937 | R49: 8.937062937 | S49: 8.937062937 | T49: 8.937062937 | V49: 43 | W49: 15.39759036 | X49: 15.21428571 | Y49: 15.03529412 | Z49: 14.86046512 | AA49: 14.68965517 | AB49: 14.52272727 | AC49: 14.35955056 | AD49: 14.2 | AE49: 14.04395604 | AF49: 13.89130435 | AG49: 13.74193548 | AH49: 13.59574468 | AI49: 13.45263158 | AJ49: 13.3125 | AK49: 13.17525773 | AL49: 13.04081633 | AM49: 12.90909091 | AN49: 12.78 | AR49: 43 | AS49: 3.677726343 | AT49: 3.590460478 | AU49: 3.505538035 | AV49: 3.422871277 | AW49: 3.342376606 | AX49: 3.263974319 | AY49: 3.187588391 | AZ49: 3.113146267 | BA49: 3.040578667 | BB49: 2.969819407 | BC49: 2.900805229 | BD49: 2.833475646 | BE49: 2.76777279 | BF49: 2.703641276 | BG49: 2.64102807 | BH49: 2.579882371 | BI49: 2.52015549 | BJ49: 1.748521673 | BN49: 43 | BO49: 0.4261759425 | BP49: 0.4313105925 | BQ49: 0.4364452424 | BR49: 0.4415798923 | BS49: 0.4467145422 | BT49: 0.4518491921 | BU49: 0.456983842 | BV49: 0.4621184919 | BW49: 0.4672531418 | BX49: 0.4723877917 | BY49: 0.4775224417 | BZ49: 0.4826570916 | CA49: 0.4877917415 | CB49: 0.4929263914 | CC49: 0.4980610413 | CD49: 0.5031956912 | CE49: 0.5083303411 | CF49: 0.513464991 | CK49: 43 | CL49: 3.808761221 | CM49: 3.85464991 | CN49: 3.9005386 | CO49: 3.946427289 | CP49: 3.992315978 | CQ49: 4.038204668 | CR49: 4.084093357 | CS49: 4.129982047 | CT49: 4.175870736 | CU49: 4.221759425 | CV49: 4.267648115 | CW49: 4.313536804 | CX49: 4.359425494 | CY49: 4.405314183 | CZ49: 4.451202873 | DA49: 4.497091562 | DB49: 4.542980251 | DC49: 4.588868941 | DE49: 43 | DF49: 6.562082585 | DG49: 6.562082585 | DH49: 6.562082585 | DI49: 6.562082585 | DJ49: 6.562082585 | DK49: 6.562082585 | DL49: 6.562082585 | DM49: 6.562082585 | DN49: 6.562082585 | DO49: 6.562082585 | DP49: 6.562082585 | DQ49: 6.562082585 | DR49: 6.562082585 | DS49: 6.562082585 | DT49: 6.562082585 | DU49: 6.562082585 | DV49: 6.562082585 | DW49: 6.562082585 | DY49: 43 | DZ49: 1.567358491 | EA49: 1.548603636 | EB49: 1.529975397 | EC49: 1.51147113 | ED49: 1.493088235 | EE49: 1.474824159 | EF49: 1.45667639 | EG49: 1.438642458 | EH49: 1.420719935 | EI49: 1.402906431 | EJ49: 1.385199596 | EK49: 1.367597114 | EL49: 1.350096709 | EM49: 1.332696138 | EN49: 1.315393191 | EO49: 1.298185693 | EP49: 1.2810715 | EQ49: 0.8978046654
B50: 44 | C50: 8.875 | D50: 8.875 | E50: 8.875 | F50: 8.875 | G50: 8.875 | H50: 8.875 | I50: 8.875 | J50: 8.875 | K50: 8.875 | L50: 8.875 | M50: 8.875 | N50: 8.875 | O50: 8.875 | P50: 8.875 | Q50: 8.875 | R50: 8.875 | S50: 8.875 | T50: 8.875 | V50: 44 | W50: 15.39759036 | X50: 15.21428571 | Y50: 15.03529412 | Z50: 14.86046512 | AA50: 14.68965517 | AB50: 14.52272727 | AC50: 14.35955056 | AD50: 14.2 | AE50: 14.04395604 | AF50: 13.89130435 | AG50: 13.74193548 | AH50: 13.59574468 | AI50: 13.45263158 | AJ50: 13.3125 | AK50: 13.17525773 | AL50: 13.04081633 | AM50: 12.90909091 | AN50: 12.78 | AR50: 44 | AS50: 3.671123602 | AT50: 3.584014409 | AU50: 3.49924443 | AV50: 3.416726086 | AW50: 3.33637593 | AX50: 3.258114401 | AY50: 3.181865611 | AZ50: 3.107557136 | BA50: 3.035119818 | BB50: 2.964487594 | BC50: 2.89559732 | BD50: 2.828388616 | BE50: 2.762803718 | BF50: 2.698787342 | BG50: 2.636286548 | BH50: 2.575250625 | BI50: 2.515630974 | BJ50: 1.733448828 | BN50: 44 | BO50: 0.4299280576 | BP50: 0.4351079137 | BQ50: 0.4402877698 | BR50: 0.4454676259 | BS50: 0.450647482 | BT50: 0.4558273381 | BU50: 0.4610071942 | BV50: 0.4661870504 | BW50: 0.4713669065 | BX50: 0.4765467626 | BY50: 0.4817266187 | BZ50: 0.4869064748 | CA50: 0.4920863309 | CB50: 0.4972661871 | CC50: 0.5024460432 | CD50: 0.5076258993 | CE50: 0.5128057554 | CF50: 0.5179856115 | CK50: 44 | CL50: 3.815611511 | CM50: 3.861582734 | CN50: 3.907553957 | CO50: 3.95352518 | CP50: 3.999496403 | CQ50: 4.045467626 | CR50: 4.091438849 | CS50: 4.137410072 | CT50: 4.183381295 | CU50: 4.229352518 | CV50: 4.275323741 | CW50: 4.321294964 | CX50: 4.367266187 | CY50: 4.41323741 | CZ50: 4.459208633 | DA50: 4.505179856 | DB50: 4.551151079 | DC50: 4.597122302 | DE50: 44 | DF50: 6.619856115 | DG50: 6.619856115 | DH50: 6.619856115 | DI50: 6.619856115 | DJ50: 6.619856115 | DK50: 6.619856115 | DL50: 6.619856115 | DM50: 6.619856115 | DN50: 6.619856115 | DO50: 6.619856115 | DP50: 6.619856115 | DQ50: 6.619856115 | DR50: 6.619856115 | DS50: 6.619856115 | DT50: 6.619856115 | DU50: 6.619856115 | DV50: 6.619856115 | DW50: 6.619856115 | DY50: 44 | DZ50: 1.578319039 | EA50: 1.559433032 | EB50: 1.540674526 | EC50: 1.522040858 | ED50: 1.503529412 | EE50: 1.485137615 | EF50: 1.466862938 | EG50: 1.448702895 | EH50: 1.43065504 | EI50: 1.412716966 | EJ50: 1.394886306 | EK50: 1.377160731 | EL50: 1.359537945 | EM50: 1.342015691 | EN50: 1.324591745 | EO50: 1.307263914 | EP50: 1.290030042 | EQ50: 0.8979015511
B51: 45 | C51: 8.813793103 | D51: 8.813793103 | E51: 8.813793103 | F51: 8.813793103 | G51: 8.813793103 | H51: 8.813793103 | I51: 8.813793103 | J51: 8.813793103 | K51: 8.813793103 | L51: 8.813793103 | M51: 8.813793103 | N51: 8.813793103 | O51: 8.813793103 | P51: 8.813793103 | Q51: 8.813793103 | R51: 8.813793103 | S51: 8.813793103 | T51: 8.813793103 | V51: 45 | W51: 15.39759036 | X51: 15.21428571 | Y51: 15.03529412 | Z51: 14.86046512 | AA51: 14.68965517 | AB51: 14.52272727 | AC51: 14.35955056 | AD51: 14.2 | AE51: 14.04395604 | AF51: 13.89130435 | AG51: 13.74193548 | AH51: 13.59574468 | AI51: 13.45263158 | AJ51: 13.3125 | AK51: 13.17525773 | AL51: 13.04081633 | AM51: 12.90909091 | AN51: 12.78 | AR51: 45 | AS51: 3.664520862 | AT51: 3.57756834 | AU51: 3.492950825 | AV51: 3.410580896 | AW51: 3.330375254 | AX51: 3.252254483 | AY51: 3.176142832 | AZ51: 3.101968004 | BA51: 3.02966097 | BB51: 2.959155782 | BC51: 2.890389411 | BD51: 2.823301586 | BE51: 2.757834647 | BF51: 2.693933408 | BG51: 2.631545025 | BH51: 2.570618879 | BI51: 2.511106458 | BJ51: 1.718583215 | BN51: 45 | BO51: 0.4336936937 | BP51: =(1+$BN51/100)*(1-BP$5/100)/(3-$M$2*$BN51/100) -> 0.4389189189 | BQ51: 0.4441441441 | BR51: 0.4493693694 | BS51: 0.4545945946 | BT51: 0.4598198198 | BU51: 0.465045045 | BV51: 0.4702702703 | BW51: 0.4754954955 | BX51: 0.4807207207 | BY51: 0.4859459459 | BZ51: 0.4911711712 | CA51: 0.4963963964 | CB51: 0.5016216216 | CC51: 0.5068468468 | CD51: 0.5120720721 | CE51: 0.5172972973 | CF51: 0.5225225225 | CK51: 45 | CL51: 3.822486486 | CM51: =($M$1*$CI$3+$M$3*$CI$1)*(1/100)*(1-CM$5/100)/(3-$M$2*$CK51/100) -> 3.868540541 | CN51: 3.914594595 | CO51: 3.960648649 | CP51: 4.006702703 | CQ51: 4.052756757 | CR51: 4.098810811 | CS51: 4.144864865 | CT51: 4.190918919 | CU51: 4.236972973 | CV51: 4.283027027 | CW51: 4.329081081 | CX51: 4.375135135 | CY51: 4.421189189 | CZ51: 4.467243243 | DA51: 4.513297297 | DB51: 4.559351351 | DC51: 4.605405405 | DE51: 45 | DF51: 6.677837838 | DG51: =($M$1*$CI$3+$M$3*$CI$1)*(1+$DE51/100)*(1/100)/(3-$M$2*$DE51/100) -> 6.677837838 | DH51: 6.677837838 | DI51: 6.677837838 | DJ51: 6.677837838 | DK51: 6.677837838 | DL51: 6.677837838 | DM51: 6.677837838 | DN51: 6.677837838 | DO51: 6.677837838 | DP51: 6.677837838 | DQ51: 6.677837838 | DR51: 6.677837838 | DS51: 6.677837838 | DT51: 6.677837838 | DU51: 6.677837838 | DV51: 6.677837838 | DW51: 6.677837838 | DY51: 45 | DZ51: 1.589279588 | EA51: =(1/400)*(0.83+EA$5/100)*($CI$3*$M$1+$CI$1*$M$3)*(1+1*$DY51/100)/(3-$M$2*(0.83+EA$5/100)*(EA$5/100)) -> 1.570262428 | EB51: 1.551373655 | EC51: 1.532610586 | ED51: 1.513970588 | EE51: 1.49545107 | EF51: 1.477049486 | EG51: 1.458763332 | EH51: 1.440590144 | EI51: 1.4225275 | EJ51: 1.404573017 | EK51: 1.386724347 | EL51: 1.368979181 | EM51: 1.351335244 | EN51: 1.333790298 | EO51: 1.316342136 | EP51: 1.298988584 | EQ51: 0.8979984369
B52: 46 | C52: 8.753424658 | D52: 8.753424658 | E52: 8.753424658 | F52: 8.753424658 | G52: 8.753424658 | H52: 8.753424658 | I52: 8.753424658 | J52: 8.753424658 | K52: 8.753424658 | L52: 8.753424658 | M52: 8.753424658 | N52: 8.753424658 | O52: 8.753424658 | P52: 8.753424658 | Q52: 8.753424658 | R52: 8.753424658 | S52: 8.753424658 | T52: 8.753424658 | V52: 46 | W52: 15.39759036 | X52: 15.21428571 | Y52: 15.03529412 | Z52: 14.86046512 | AA52: 14.68965517 | AB52: 14.52272727 | AC52: 14.35955056 | AD52: 14.2 | AE52: 14.04395604 | AF52: 13.89130435 | AG52: 13.74193548 | AH52: 13.59574468 | AI52: 13.45263158 | AJ52: 13.3125 | AK52: 13.17525773 | AL52: 13.04081633 | AM52: 12.90909091 | AN52: 12.78 | AR52: 46 | AS52: 3.657918122 | AT52: 3.571122271 | AU52: 3.48665722 | AV52: 3.404435705 | AW52: 3.324374577 | AX52: 3.246394565 | AY52: 3.170420052 | AZ52: 3.096378873 | BA52: 3.024202121 | BB52: 2.95382397 | BC52: 2.885181503 | BD52: 2.818214556 | BE52: 2.752865576 | BF52: 2.689079473 | BG52: 2.626803502 | BH52: 2.565987134 | BI52: 2.506581942 | BJ52: 1.703920578 | BN52: 46 | BO52: 0.4374729242 | BP52: 0.4427436823 | BQ52: 0.4480144404 | BR52: 0.4532851986 | BS52: 0.4585559567 | BT52: 0.4638267148 | BU52: 0.4690974729 | BV52: 0.474368231 | BW52: 0.4796389892 | BX52: 0.4849097473 | BY52: 0.4901805054 | BZ52: 0.4954512635 | CA52: 0.5007220217 | CB52: 0.5059927798 | CC52: 0.5112635379 | CD52: 0.516534296 | CE52: 0.5218050542 | CF52: 0.5270758123 | CK52: 46 | CL52: 3.829386282 | CM52: 3.875523466 | CN52: 3.92166065 | CO52: 3.967797834 | CP52: 4.013935018 | CQ52: 4.060072202 | CR52: 4.106209386 | CS52: 4.15234657 | CT52: 4.198483755 | CU52: 4.244620939 | CV52: 4.290758123 | CW52: 4.336895307 | CX52: 4.383032491 | CY52: 4.429169675 | CZ52: 4.475306859 | DA52: 4.521444043 | DB52: 4.567581227 | DC52: 4.613718412 | DE52: 46 | DF52: 6.736028881 | DG52: 6.736028881 | DH52: 6.736028881 | DI52: 6.736028881 | DJ52: 6.736028881 | DK52: 6.736028881 | DL52: 6.736028881 | DM52: 6.736028881 | DN52: 6.736028881 | DO52: 6.736028881 | DP52: 6.736028881 | DQ52: 6.736028881 | DR52: 6.736028881 | DS52: 6.736028881 | DT52: 6.736028881 | DU52: 6.736028881 | DV52: 6.736028881 | DW52: 6.736028881 | DY52: 46 | DZ52: 1.600240137 | EA52: 1.581091824 | EB52: 1.562072783 | EC52: 1.543180314 | ED52: 1.524411765 | EE52: 1.505764526 | EF52: 1.487236034 | EG52: 1.468823768 | EH52: 1.450525248 | EI52: 1.432338035 | EJ52: 1.414259727 | EK52: 1.396287963 | EL52: 1.378420416 | EM52: 1.360654798 | EN52: 1.342988852 | EO52: 1.325420358 | EP52: 1.307947126 | EQ52: 0.8980953227
B53: 47 | C53: 8.693877551 | D53: 8.693877551 | E53: 8.693877551 | F53: 8.693877551 | G53: 8.693877551 | H53: 8.693877551 | I53: 8.693877551 | J53: 8.693877551 | K53: 8.693877551 | L53: 8.693877551 | M53: 8.693877551 | N53: 8.693877551 | O53: 8.693877551 | P53: 8.693877551 | Q53: 8.693877551 | R53: 8.693877551 | S53: 8.693877551 | T53: 8.693877551 | V53: 47 | W53: 15.39759036 | X53: 15.21428571 | Y53: 15.03529412 | Z53: 14.86046512 | AA53: 14.68965517 | AB53: 14.52272727 | AC53: 14.35955056 | AD53: 14.2 | AE53: 14.04395604 | AF53: 13.89130435 | AG53: 13.74193548 | AH53: 13.59574468 | AI53: 13.45263158 | AJ53: 13.3125 | AK53: 13.17525773 | AL53: 13.04081633 | AM53: 12.90909091 | AN53: 12.78 | AR53: 47 | AS53: 3.651315382 | AT53: 3.564676202 | AU53: 3.480363614 | AV53: 3.398290514 | AW53: 3.318373901 | AX53: 3.240534647 | AY53: 3.164697272 | AZ53: 3.090789741 | BA53: 3.018743273 | BB53: 2.948492158 | BC53: 2.879973594 | BD53: 2.813127526 | BE53: 2.747896504 | BF53: 2.684225539 | BG53: 2.62206198 | BH53: 2.561355388 | BI53: 2.502057426 | BJ53: 1.689456773 | BN53: 47 | BO53: 0.4412658228 | BP53: 0.4465822785 | BQ53: 0.4518987342 | BR53: 0.4572151899 | BS53: 0.4625316456 | BT53: 0.4678481013 | BU53: 0.473164557 | BV53: 0.4784810127 | BW53: 0.4837974684 | BX53: 0.4891139241 | BY53: 0.4944303797 | BZ53: 0.4997468354 | CA53: 0.5050632911 | CB53: 0.5103797468 | CC53: 0.5156962025 | CD53: 0.5210126582 | CE53: 0.5263291139 | CF53: 0.5316455696 | CK53: 47 | CL53: 3.836311031 | CM53: 3.882531646 | CN53: 3.92875226 | CO53: 3.974972875 | CP53: 4.02119349 | CQ53: 4.067414105 | CR53: 4.11363472 | CS53: 4.159855335 | CT53: 4.206075949 | CU53: 4.252296564 | CV53: 4.298517179 | CW53: 4.344737794 | CX53: 4.390958409 | CY53: 4.437179024 | CZ53: 4.483399638 | DA53: 4.529620253 | DB53: 4.575840868 | DC53: 4.622061483 | DE53: 47 | DF53: 6.79443038 | DG53: 6.79443038 | DH53: 6.79443038 | DI53: 6.79443038 | DJ53: 6.79443038 | DK53: 6.79443038 | DL53: 6.79443038 | DM53: 6.79443038 | DN53: 6.79443038 | DO53: 6.79443038 | DP53: 6.79443038 | DQ53: 6.79443038 | DR53: 6.79443038 | DS53: 6.79443038 | DT53: 6.79443038 | DU53: 6.79443038 | DV53: 6.79443038 | DW53: 6.79443038 | DY53: 47 | DZ53: 1.611200686 | EA53: 1.59192122 | EB53: 1.572771912 | EC53: 1.553750043 | ED53: 1.534852941 | EE53: 1.516077982 | EF53: 1.497422583 | EG53: 1.478884205 | EH53: 1.460460353 | EI53: 1.442148569 | EJ53: 1.423946438 | EK53: 1.405851579 | EL53: 1.387861652 | EM53: 1.369974351 | EN53: 1.352187406 | EO53: 1.334498579 | EP53: 1.316905668 | EQ53: 0.8981922085
B54: 48 | C54: 8.635135135 | D54: 8.635135135 | E54: 8.635135135 | F54: 8.635135135 | G54: 8.635135135 | H54: 8.635135135 | I54: 8.635135135 | J54: 8.635135135 | K54: 8.635135135 | L54: 8.635135135 | M54: 8.635135135 | N54: 8.635135135 | O54: 8.635135135 | P54: 8.635135135 | Q54: 8.635135135 | R54: 8.635135135 | S54: 8.635135135 | T54: 8.635135135 | V54: 48 | W54: 15.39759036 | X54: 15.21428571 | Y54: 15.03529412 | Z54: 14.86046512 | AA54: 14.68965517 | AB54: 14.52272727 | AC54: 14.35955056 | AD54: 14.2 | AE54: 14.04395604 | AF54: 13.89130435 | AG54: 13.74193548 | AH54: 13.59574468 | AI54: 13.45263158 | AJ54: 13.3125 | AK54: 13.17525773 | AL54: 13.04081633 | AM54: 12.90909091 | AN54: 12.78 | AR54: 48 | AS54: 3.644712641 | AT54: 3.558230133 | AU54: 3.474070009 | AV54: 3.392145323 | AW54: 3.312373225 | AX54: 3.234674729 | AY54: 3.158974492 | AZ54: 3.085200609 | BA54: 3.013284424 | BB54: 2.943160346 | BC54: 2.874765685 | BD54: 2.808040497 | BE54: 2.742927433 | BF54: 2.679371605 | BG54: 2.617320457 | BH54: 2.556723642 | BI54: 2.49753291 | BJ54: 1.67518777 | BN54: 48 | BO54: 0.4450724638 | BP54: 0.4504347826 | BQ54: 0.4557971014 | BR54: 0.4611594203 | BS54: 0.4665217391 | BT54: 0.471884058 | BU54: 0.4772463768 | BV54: 0.4826086957 | BW54: 0.4879710145 | BX54: 0.4933333333 | BY54: 0.4986956522 | BZ54: 0.504057971 | CA54: 0.5094202899 | CB54: 0.5147826087 | CC54: 0.5201449275 | CD54: 0.5255072464 | CE54: 0.5308695652 | CF54: 0.5362318841 | CK54: 48 | CL54: 3.84326087 | CM54: 3.889565217 | CN54: 3.935869565 | CO54: 3.982173913 | CP54: 4.028478261 | CQ54: 4.074782609 | CR54: 4.121086957 | CS54: 4.167391304 | CT54: 4.213695652 | CU54: 4.26 | CV54: 4.306304348 | CW54: 4.352608696 | CX54: 4.398913043 | CY54: 4.445217391 | CZ54: 4.491521739 | DA54: 4.537826087 | DB54: 4.584130435 | DC54: 4.630434783 | DE54: 48 | DF54: 6.853043478 | DG54: 6.853043478 | DH54: 6.853043478 | DI54: 6.853043478 | DJ54: 6.853043478 | DK54: 6.853043478 | DL54: 6.853043478 | DM54: 6.853043478 | DN54: 6.853043478 | DO54: 6.853043478 | DP54: 6.853043478 | DQ54: 6.853043478 | DR54: 6.853043478 | DS54: 6.853043478 | DT54: 6.853043478 | DU54: 6.853043478 | DV54: 6.853043478 | DW54: 6.853043478 | DY54: 48 | DZ54: 1.622161235 | EA54: 1.602750616 | EB54: 1.58347104 | EC54: 1.564319771 | ED54: 1.545294118 | EE54: 1.526391437 | EF54: 1.507609131 | EG54: 1.488944642 | EH54: 1.470395457 | EI54: 1.451959104 | EJ54: 1.433633148 | EK54: 1.415415195 | EL54: 1.397302888 | EM54: 1.379293905 | EN54: 1.36138596 | EO54: 1.343576801 | EP54: 1.32586421 | EQ54: 0.8982890942
B55: 49 | C55: 8.577181208 | D55: 8.577181208 | E55: 8.577181208 | F55: 8.577181208 | G55: 8.577181208 | H55: 8.577181208 | I55: 8.577181208 | J55: 8.577181208 | K55: 8.577181208 | L55: 8.577181208 | M55: 8.577181208 | N55: 8.577181208 | O55: 8.577181208 | P55: 8.577181208 | Q55: 8.577181208 | R55: 8.577181208 | S55: 8.577181208 | T55: 8.577181208 | V55: 49 | W55: 15.39759036 | X55: 15.21428571 | Y55: 15.03529412 | Z55: 14.86046512 | AA55: 14.68965517 | AB55: 14.52272727 | AC55: 14.35955056 | AD55: 14.2 | AE55: 14.04395604 | AF55: 13.89130435 | AG55: 13.74193548 | AH55: 13.59574468 | AI55: 13.45263158 | AJ55: 13.3125 | AK55: 13.17525773 | AL55: 13.04081633 | AM55: 12.90909091 | AN55: 12.78 | AR55: 49 | AS55: 3.638109901 | AT55: 3.551784064 | AU55: 3.467776404 | AV55: 3.386000132 | AW55: 3.306372549 | AX55: 3.228814811 | AY55: 3.153251712 | AZ55: 3.079611478 | BA55: 3.007825575 | BB55: 2.937828533 | BC55: 2.869557776 | BD55: 2.802953467 | BE55: 2.737958361 | BF55: 2.674517671 | BG55: 2.612578935 | BH55: 2.552091896 | BI55: 2.493008394 | BJ55: 1.661109648 | BN55: 49 | BO55: 0.448892922 | BP55: 0.4543012704 | BQ55: 0.4597096189 | BR55: 0.4651179673 | BS55: 0.4705263158 | BT55: 0.4759346642 | BU55: 0.4813430127 | BV55: 0.4867513612 | BW55: 0.4921597096 | BX55: 0.4975680581 | BY55: 0.5029764065 | BZ55: 0.508384755 | CA55: 0.5137931034 | CB55: 0.5192014519 | CC55: 0.5246098004 | CD55: 0.5300181488 | CE55: 0.5354264973 | CF55: 0.5408348457 | CK55: 49 | CL55: 3.850235935 | CM55: 3.896624319 | CN55: 3.943012704 | CO55: 3.989401089 | CP55: 4.035789474 | CQ55: 4.082177858 | CR55: 4.128566243 | CS55: 4.174954628 | CT55: 4.221343013 | CU55: 4.267731397 | CV55: 4.314119782 | CW55: 4.360508167 | CX55: 4.406896552 | CY55: 4.453284936 | CZ55: 4.499673321 | DA55: 4.546061706 | DB55: 4.592450091 | DC55: 4.638838475 | DE55: 49 | DF55: 6.911869328 | DG55: 6.911869328 | DH55: 6.911869328 | DI55: 6.911869328 | DJ55: 6.911869328 | DK55: 6.911869328 | DL55: 6.911869328 | DM55: 6.911869328 | DN55: 6.911869328 | DO55: 6.911869328 | DP55: 6.911869328 | DQ55: 6.911869328 | DR55: 6.911869328 | DS55: 6.911869328 | DT55: 6.911869328 | DU55: 6.911869328 | DV55: 6.911869328 | DW55: 6.911869328 | DY55: 49 | DZ55: 1.633121784 | EA55: 1.613580012 | EB55: 1.594170169 | EC55: 1.574889499 | ED55: 1.555735294 | EE55: 1.536704893 | EF55: 1.517795679 | EG55: 1.499005079 | EH55: 1.480330562 | EI55: 1.461769638 | EJ55: 1.443319859 | EK55: 1.424978811 | EL55: 1.406744124 | EM55: 1.388613458 | EN55: 1.370584513 | EO55: 1.352655023 | EP55: 1.334822752 | EQ55: 0.89838598
B56: 50 | C56: 8.52 | D56: 8.52 | E56: 8.52 | F56: 8.52 | G56: 8.52 | H56: 8.52 | I56: 8.52 | J56: 8.52 | K56: 8.52 | L56: 8.52 | M56: 8.52 | N56: 8.52 | O56: 8.52 | P56: 8.52 | Q56: 8.52 | R56: 8.52 | S56: 8.52 | T56: 8.52 | V56: 50 | W56: 15.39759036 | X56: 15.21428571 | Y56: 15.03529412 | Z56: 14.86046512 | AA56: 14.68965517 | AB56: 14.52272727 | AC56: 14.35955056 | AD56: 14.2 | AE56: 14.04395604 | AF56: 13.89130435 | AG56: 13.74193548 | AH56: 13.59574468 | AI56: 13.45263158 | AJ56: 13.3125 | AK56: 13.17525773 | AL56: 13.04081633 | AM56: 12.90909091 | AN56: 12.78 | AR56: 50 | AS56: 3.631507161 | AT56: 3.545337994 | AU56: 3.461482799 | AV56: 3.379854942 | AW56: 3.300371873 | AX56: 3.222954893 | AY56: 3.147528932 | AZ56: 3.074022346 | BA56: 3.002366727 | BB56: 2.932496721 | BC56: 2.864349867 | BD56: 2.797866437 | BE56: 2.73298929 | BF56: 2.669663737 | BG56: 2.607837412 | BH56: 2.547460151 | BI56: 2.488483877 | BJ56: 1.647218587 | BN56: 50 | BO56: 0.4527272727 | BP56: 0.4581818182 | BQ56: 0.4636363636 | BR56: 0.4690909091 | BS56: 0.4745454545 | BT56: 0.48 | BU56: 0.4854545455 | BV56: 0.4909090909 | BW56: 0.4963636364 | BX56: 0.5018181818 | BY56: 0.5072727273 | BZ56: 0.5127272727 | CA56: 0.5181818182 | CB56: 0.5236363636 | CC56: 0.5290909091 | CD56: 0.5345454545 | CE56: 0.54 | CF56: 0.5454545455 | CK56: 50 | CL56: 3.857236364 | CM56: 3.903709091 | CN56: 3.950181818 | CO56: 3.996654545 | CP56: 4.043127273 | CQ56: 4.0896 | CR56: 4.136072727 | CS56: 4.182545455 | CT56: 4.229018182 | CU56: 4.275490909 | CV56: 4.321963636 | CW56: 4.368436364 | CX56: 4.414909091 | CY56: 4.461381818 | CZ56: 4.507854545 | DA56: 4.554327273 | DB56: 4.6008 | DC56: 4.647272727 | DE56: 50 | DF56: 6.970909091 | DG56: 6.970909091 | DH56: 6.970909091 | DI56: 6.970909091 | DJ56: 6.970909091 | DK56: 6.970909091 | DL56: 6.970909091 | DM56: 6.970909091 | DN56: 6.970909091 | DO56: 6.970909091 | DP56: 6.970909091 | DQ56: 6.970909091 | DR56: 6.970909091 | DS56: 6.970909091 | DT56: 6.970909091 | DU56: 6.970909091 | DV56: 6.970909091 | DW56: 6.970909091 | DY56: 50 | DZ56: 1.644082333 | EA56: 1.624409408 | EB56: 1.604869298 | EC56: 1.585459227 | ED56: 1.566176471 | EE56: 1.547018349 | EF56: 1.527982227 | EG56: 1.509065515 | EH56: 1.490265666 | EI56: 1.471580173 | EJ56: 1.453006569 | EK56: 1.434542428 | EL56: 1.416185359 | EM56: 1.397933011 | EN56: 1.379783067 | EO56: 1.361733244 | EP56: 1.343781294 | EQ56: 0.8984828658
B57: 51 | C57: 8.463576159 | D57: 8.463576159 | E57: 8.463576159 | F57: 8.463576159 | G57: 8.463576159 | H57: 8.463576159 | I57: 8.463576159 | J57: 8.463576159 | K57: 8.463576159 | L57: 8.463576159 | M57: 8.463576159 | N57: 8.463576159 | O57: 8.463576159 | P57: 8.463576159 | Q57: 8.463576159 | R57: 8.463576159 | S57: 8.463576159 | T57: 8.463576159 | V57: 51 | W57: 15.39759036 | X57: 15.21428571 | Y57: 15.03529412 | Z57: 14.86046512 | AA57: 14.68965517 | AB57: 14.52272727 | AC57: 14.35955056 | AD57: 14.2 | AE57: 14.04395604 | AF57: 13.89130435 | AG57: 13.74193548 | AH57: 13.59574468 | AI57: 13.45263158 | AJ57: 13.3125 | AK57: 13.17525773 | AL57: 13.04081633 | AM57: 12.90909091 | AN57: 12.78 | AR57: 51 | AS57: 3.62490442 | AT57: 3.538891925 | AU57: 3.455189194 | AV57: 3.373709751 | AW57: 3.294371197 | AX57: 3.217094975 | AY57: 3.141806152 | AZ57: 3.068433215 | BA57: 2.996907878 | BB57: 2.927164909 | BC57: 2.859141958 | BD57: 2.792779407 | BE57: 2.728020218 | BF57: 2.664809803 | BG57: 2.60309589 | BH57: 2.542828405 | BI57: 2.483959361 | BJ57: 1.633510873 | BN57: 51 | BO57: 0.456575592 | BP57: 0.4620765027 | BQ57: 0.4675774135 | BR57: 0.4730783242 | BS57: 0.478579235 | BT57: 0.4840801457 | BU57: 0.4895810565 | BV57: 0.4950819672 | BW57: 0.500582878 | BX57: 0.5060837887 | BY57: 0.5115846995 | BZ57: 0.5170856102 | CA57: 0.5225865209 | CB57: 0.5280874317 | CC57: 0.5335883424 | CD57: 0.5390892532 | CE57: 0.5445901639 | CF57: 0.5500910747 | CK57: 51 | CL57: 3.864262295 | CM57: 3.910819672 | CN57: 3.957377049 | CO57: 4.003934426 | CP57: 4.050491803 | CQ57: 4.09704918 | CR57: 4.143606557 | CS57: 4.190163934 | CT57: 4.236721311 | CU57: 4.283278689 | CV57: 4.329836066 | CW57: 4.376393443 | CX57: 4.42295082 | CY57: 4.469508197 | CZ57: 4.516065574 | DA57: 4.562622951 | DB57: 4.609180328 | DC57: 4.655737705 | DE57: 51 | DF57: 7.030163934 | DG57: 7.030163934 | DH57: 7.030163934 | DI57: 7.030163934 | DJ57: 7.030163934 | DK57: 7.030163934 | DL57: 7.030163934 | DM57: 7.030163934 | DN57: 7.030163934 | DO57: 7.030163934 | DP57: 7.030163934 | DQ57: 7.030163934 | DR57: 7.030163934 | DS57: 7.030163934 | DT57: 7.030163934 | DU57: 7.030163934 | DV57: 7.030163934 | DW57: 7.030163934 | DY57: 51 | DZ57: 1.655042882 | EA57: 1.635238804 | EB57: 1.615568426 | EC57: 1.596028955 | ED57: 1.576617647 | EE57: 1.557331804 | EF57: 1.538168775 | EG57: 1.519125952 | EH57: 1.500200771 | EI57: 1.481390707 | EJ57: 1.462693279 | EK57: 1.444106044 | EL57: 1.425626595 | EM57: 1.407252565 | EN57: 1.388981621 | EO57: 1.370811466 | EP57: 1.352739836 | EQ57: 0.8985797516
B58: 52 | C58: 8.407894737 | D58: 8.407894737 | E58: 8.407894737 | F58: 8.407894737 | G58: 8.407894737 | H58: 8.407894737 | I58: 8.407894737 | J58: 8.407894737 | K58: 8.407894737 | L58: 8.407894737 | M58: 8.407894737 | N58: 8.407894737 | O58: 8.407894737 | P58: 8.407894737 | Q58: 8.407894737 | R58: 8.407894737 | S58: 8.407894737 | T58: 8.407894737 | V58: 52 | W58: 15.39759036 | X58: 15.21428571 | Y58: 15.03529412 | Z58: 14.86046512 | AA58: 14.68965517 | AB58: 14.52272727 | AC58: 14.35955056 | AD58: 14.2 | AE58: 14.04395604 | AF58: 13.89130435 | AG58: 13.74193548 | AH58: 13.59574468 | AI58: 13.45263158 | AJ58: 13.3125 | AK58: 13.17525773 | AL58: 13.04081633 | AM58: 12.90909091 | AN58: 12.78 | AR58: 52 | AS58: 3.61830168 | AT58: 3.532445856 | AU58: 3.448895589 | AV58: 3.36756456 | AW58: 3.288370521 | AX58: 3.211235057 | AY58: 3.136083372 | AZ58: 3.062844083 | BA58: 2.99144903 | BB58: 2.921833097 | BC58: 2.853934049 | BD58: 2.787692377 | BE58: 2.723051147 | BF58: 2.659955869 | BG58: 2.598354367 | BH58: 2.538196659 | BI58: 2.479434845 | BJ58: 1.619982886 | BN58: 52 | BO58: 0.4604379562 | BP58: 0.4659854015 | BQ58: 0.4715328467 | BR58: 0.477080292 | BS58: 0.4826277372 | BT58: 0.4881751825 | BU58: 0.4937226277 | BV58: 0.499270073 | BW58: 0.5048175182 | BX58: 0.5103649635 | BY58: 0.5159124088 | BZ58: 0.521459854 | CA58: 0.5270072993 | CB58: 0.5325547445 | CC58: 0.5381021898 | CD58: 0.543649635 | CE58: 0.5491970803 | CF58: 0.5547445255 | CK58: 52 | CL58: 3.871313869 | CM58: 3.917956204 | CN58: 3.96459854 | CO58: 4.011240876 | CP58: 4.057883212 | CQ58: 4.104525547 | CR58: 4.151167883 | CS58: 4.197810219 | CT58: 4.244452555 | CU58: 4.291094891 | CV58: 4.337737226 | CW58: 4.384379562 | CX58: 4.431021898 | CY58: 4.477664234 | CZ58: 4.524306569 | DA58: 4.570948905 | DB58: 4.617591241 | DC58: 4.664233577 | DE58: 52 | DF58: 7.089635036 | DG58: 7.089635036 | DH58: 7.089635036 | DI58: 7.089635036 | DJ58: 7.089635036 | DK58: 7.089635036 | DL58: 7.089635036 | DM58: 7.089635036 | DN58: 7.089635036 | DO58: 7.089635036 | DP58: 7.089635036 | DQ58: 7.089635036 | DR58: 7.089635036 | DS58: 7.089635036 | DT58: 7.089635036 | DU58: 7.089635036 | DV58: 7.089635036 | DW58: 7.089635036 | DY58: 52 | DZ58: 1.666003431 | EA58: 1.6460682 | EB58: 1.626267555 | EC58: 1.606598684 | ED58: 1.587058824 | EE58: 1.56764526 | EF58: 1.548355323 | EG58: 1.529186389 | EH58: 1.510135875 | EI58: 1.491201242 | EJ58: 1.47237999 | EK58: 1.45366966 | EL58: 1.435067831 | EM58: 1.416572118 | EN58: 1.398180175 | EO58: 1.379889687 | EP58: 1.361698378 | EQ58: 0.8986766373
B59: 53 | C59: 8.352941176 | D59: 8.352941176 | E59: 8.352941176 | F59: 8.352941176 | G59: 8.352941176 | H59: 8.352941176 | I59: 8.352941176 | J59: 8.352941176 | K59: 8.352941176 | L59: 8.352941176 | M59: 8.352941176 | N59: 8.352941176 | O59: 8.352941176 | P59: 8.352941176 | Q59: 8.352941176 | R59: 8.352941176 | S59: 8.352941176 | T59: 8.352941176 | V59: 53 | W59: 15.39759036 | X59: 15.21428571 | Y59: 15.03529412 | Z59: 14.86046512 | AA59: 14.68965517 | AB59: 14.52272727 | AC59: 14.35955056 | AD59: 14.2 | AE59: 14.04395604 | AF59: 13.89130435 | AG59: 13.74193548 | AH59: 13.59574468 | AI59: 13.45263158 | AJ59: 13.3125 | AK59: 13.17525773 | AL59: 13.04081633 | AM59: 12.90909091 | AN59: 12.78 | AR59: 53 | AS59: 3.61169894 | AT59: 3.525999787 | AU59: 3.442601984 | AV59: 3.361419369 | AW59: 3.282369844 | AX59: 3.205375139 | AY59: 3.130360592 | AZ59: 3.057254952 | BA59: 2.985990181 | BB59: 2.916501284 | BC59: 2.848726141 | BD59: 2.782605347 | BE59: 2.718082076 | BF59: 2.655101935 | BG59: 2.593612845 | BH59: 2.533564914 | BI59: 2.474910329 | BJ59: 1.606631102 | BN59: 53 | BO59: 0.4643144424 | BP59: 0.4699085923 | BQ59: 0.4755027422 | BR59: 0.4810968921 | BS59: 0.486691042 | BT59: 0.492285192 | BU59: 0.4978793419 | BV59: 0.5034734918 | BW59: 0.5090676417 | BX59: 0.5146617916 | BY59: 0.5202559415 | BZ59: 0.5258500914 | CA59: 0.5314442413 | CB59: 0.5370383912 | CC59: 0.5426325411 | CD59: 0.548226691 | CE59: 0.553820841 | CF59: 0.5594149909 | CK59: 53 | CL59: 3.878391225 | CM59: 3.92511883 | CN59: 3.971846435 | CO59: 4.01857404 | CP59: 4.065301645 | CQ59: 4.11202925 | CR59: 4.158756856 | CS59: 4.205484461 | CT59: 4.252212066 | CU59: 4.298939671 | CV59: 4.345667276 | CW59: 4.392394881 | CX59: 4.439122486 | CY59: 4.485850091 | CZ59: 4.532577697 | DA59: 4.579305302 | DB59: 4.626032907 | DC59: 4.672760512 | DE59: 53 | DF59: 7.149323583 | DG59: 7.149323583 | DH59: 7.149323583 | DI59: 7.149323583 | DJ59: 7.149323583 | DK59: 7.149323583 | DL59: 7.149323583 | DM59: 7.149323583 | DN59: 7.149323583 | DO59: 7.149323583 | DP59: 7.149323583 | DQ59: 7.149323583 | DR59: 7.149323583 | DS59: 7.149323583 | DT59: 7.149323583 | DU59: 7.149323583 | DV59: 7.149323583 | DW59: 7.149323583 | DY59: 53 | DZ59: 1.676963979 | EA59: 1.656897597 | EB59: 1.636966684 | EC59: 1.617168412 | ED59: 1.5975 | EE59: 1.577958716 | EF59: 1.558541872 | EG59: 1.539246826 | EH59: 1.52007098 | EI59: 1.501011776 | EJ59: 1.4820667 | EK59: 1.463233276 | EL59: 1.444509066 | EM59: 1.425891672 | EN59: 1.407378729 | EO59: 1.388967909 | EP59: 1.37065692 | EQ59: 0.8987735231
B60: 54 | C60: 8.298701299 | D60: 8.298701299 | E60: 8.298701299 | F60: 8.298701299 | G60: 8.298701299 | H60: 8.298701299 | I60: 8.298701299 | J60: 8.298701299 | K60: 8.298701299 | L60: 8.298701299 | M60: 8.298701299 | N60: 8.298701299 | O60: 8.298701299 | P60: 8.298701299 | Q60: 8.298701299 | R60: 8.298701299 | S60: 8.298701299 | T60: 8.298701299 | V60: 54 | W60: 15.39759036 | X60: 15.21428571 | Y60: 15.03529412 | Z60: 14.86046512 | AA60: 14.68965517 | AB60: 14.52272727 | AC60: 14.35955056 | AD60: 14.2 | AE60: 14.04395604 | AF60: 13.89130435 | AG60: 13.74193548 | AH60: 13.59574468 | AI60: 13.45263158 | AJ60: 13.3125 | AK60: 13.17525773 | AL60: 13.04081633 | AM60: 12.90909091 | AN60: 12.78 | AR60: 54 | AS60: 3.6050962 | AT60: 3.519553718 | AU60: 3.436308379 | AV60: 3.355274178 | AW60: 3.276369168 | AX60: 3.199515221 | AY60: 3.124637813 | AZ60: 3.05166582 | BA60: 2.980531332 | BB60: 2.911169472 | BC60: 2.843518232 | BD60: 2.777518317 | BE60: 2.713113004 | BF60: 2.650248001 | BG60: 2.588871322 | BH60: 2.528933168 | BI60: 2.470385813 | BJ60: 1.593452088 | BN60: 54 | BO60: 0.4682051282 | BP60: 0.4738461538 | BQ60: 0.4794871795 | BR60: 0.4851282051 | BS60: 0.4907692308 | BT60: 0.4964102564 | BU60: 0.5020512821 | BV60: 0.5076923077 | BW60: 0.5133333333 | BX60: 0.518974359 | BY60: 0.5246153846 | BZ60: 0.5302564103 | CA60: 0.5358974359 | CB60: 0.5415384615 | CC60: 0.5471794872 | CD60: 0.5528205128 | CE60: 0.5584615385 | CF60: 0.5641025641 | CK60: 54 | CL60: 3.885494505 | CM60: 3.932307692 | CN60: 3.979120879 | CO60: 4.025934066 | CP60: 4.072747253 | CQ60: 4.11956044 | CR60: 4.166373626 | CS60: 4.213186813 | CT60: 4.26 | CU60: 4.306813187 | CV60: 4.353626374 | CW60: 4.40043956 | CX60: 4.447252747 | CY60: 4.494065934 | CZ60: 4.540879121 | DA60: 4.587692308 | DB60: 4.634505495 | DC60: 4.681318681 | DE60: 54 | DF60: 7.209230769 | DG60: 7.209230769 | DH60: 7.209230769 | DI60: 7.209230769 | DJ60: 7.209230769 | DK60: 7.209230769 | DL60: 7.209230769 | DM60: 7.209230769 | DN60: 7.209230769 | DO60: 7.209230769 | DP60: 7.209230769 | DQ60: 7.209230769 | DR60: 7.209230769 | DS60: 7.209230769 | DT60: 7.209230769 | DU60: 7.209230769 | DV60: 7.209230769 | DW60: 7.209230769 | DY60: 54 | DZ60: 1.687924528 | EA60: 1.667726993 | EB60: 1.647665812 | EC60: 1.62773814 | ED60: 1.607941176 | EE60: 1.588272171 | EF60: 1.56872842 | EG60: 1.549307263 | EH60: 1.530006084 | EI60: 1.510822311 | EJ60: 1.491753411 | EK60: 1.472796892 | EL60: 1.453950302 | EM60: 1.435211225 | EN60: 1.416577282 | EO60: 1.398046131 | EP60: 1.379615462 | EQ60: 0.8988704089
B61: 55 | C61: 8.24516129 | D61: 8.24516129 | E61: 8.24516129 | F61: 8.24516129 | G61: 8.24516129 | H61: 8.24516129 | I61: 8.24516129 | J61: 8.24516129 | K61: 8.24516129 | L61: 8.24516129 | M61: 8.24516129 | N61: 8.24516129 | O61: 8.24516129 | P61: 8.24516129 | Q61: 8.24516129 | R61: 8.24516129 | S61: 8.24516129 | T61: 8.24516129 | V61: 55 | W61: 15.39759036 | X61: 15.21428571 | Y61: 15.03529412 | Z61: 14.86046512 | AA61: 14.68965517 | AB61: 14.52272727 | AC61: 14.35955056 | AD61: 14.2 | AE61: 14.04395604 | AF61: 13.89130435 | AG61: 13.74193548 | AH61: 13.59574468 | AI61: 13.45263158 | AJ61: 13.3125 | AK61: 13.17525773 | AL61: 13.04081633 | AM61: 12.90909091 | AN61: 12.78 | AR61: 55 | AS61: 3.598493459 | AT61: 3.513107649 | AU61: 3.430014774 | AV61: 3.349128988 | AW61: 3.270368492 | AX61: 3.193655303 | AY61: 3.118915033 | AZ61: 3.046076689 | BA61: 2.975072484 | BB61: 2.90583766 | BC61: 2.838310323 | BD61: 2.772431287 | BE61: 2.708143933 | BF61: 2.645394067 | BG61: 2.584129799 | BH61: 2.524301422 | BI61: 2.465861297 | BJ61: 1.580442502 | BN61: 55 | BO61: 0.4721100917 | BP61: 0.4777981651 | BQ61: 0.4834862385 | BR61: 0.4891743119 | BS61: 0.4948623853 | BT61: 0.5005504587 | BU61: 0.5062385321 | BV61: 0.5119266055 | BW61: 0.5176146789 | BX61: 0.5233027523 | BY61: 0.5289908257 | BZ61: 0.5346788991 | CA61: 0.5403669725 | CB61: 0.5460550459 | CC61: 0.5517431193 | CD61: 0.5574311927 | CE61: 0.5631192661 | CF61: 0.5688073394 | CK61: 55 | CL61: 3.892623853 | CM61: 3.939522936 | CN61: 3.986422018 | CO61: 4.033321101 | CP61: 4.080220183 | CQ61: 4.127119266 | CR61: 4.174018349 | CS61: 4.220917431 | CT61: 4.267816514 | CU61: 4.314715596 | CV61: 4.361614679 | CW61: 4.408513761 | CX61: 4.455412844 | CY61: 4.502311927 | CZ61: 4.549211009 | DA61: 4.596110092 | DB61: 4.643009174 | DC61: 4.689908257 | DE61: 55 | DF61: 7.269357798 | DG61: 7.269357798 | DH61: 7.269357798 | DI61: 7.269357798 | DJ61: 7.269357798 | DK61: 7.269357798 | DL61: 7.269357798 | DM61: 7.269357798 | DN61: 7.269357798 | DO61: 7.269357798 | DP61: 7.269357798 | DQ61: 7.269357798 | DR61: 7.269357798 | DS61: 7.269357798 | DT61: 7.269357798 | DU61: 7.269357798 | DV61: 7.269357798 | DW61: 7.269357798 | DY61: 55 | DZ61: 1.698885077 | EA61: 1.678556389 | EB61: 1.658364941 | EC61: 1.638307868 | ED61: 1.618382353 | EE61: 1.598585627 | EF61: 1.578914968 | EG61: 1.559367699 | EH61: 1.539941188 | EI61: 1.520632845 | EJ61: 1.501440121 | EK61: 1.482360509 | EL61: 1.463391538 | EM61: 1.444530779 | EN61: 1.425775836 | EO61: 1.407124352 | EP61: 1.388574004 | EQ61: 0.8989672946
B62: 56 | C62: 8.192307692 | D62: 8.192307692 | E62: 8.192307692 | F62: 8.192307692 | G62: 8.192307692 | H62: 8.192307692 | I62: 8.192307692 | J62: 8.192307692 | K62: 8.192307692 | L62: 8.192307692 | M62: 8.192307692 | N62: 8.192307692 | O62: 8.192307692 | P62: 8.192307692 | Q62: 8.192307692 | R62: 8.192307692 | S62: 8.192307692 | T62: 8.192307692 | V62: 56 | W62: 15.39759036 | X62: 15.21428571 | Y62: 15.03529412 | Z62: 14.86046512 | AA62: 14.68965517 | AB62: 14.52272727 | AC62: 14.35955056 | AD62: 14.2 | AE62: 14.04395604 | AF62: 13.89130435 | AG62: 13.74193548 | AH62: 13.59574468 | AI62: 13.45263158 | AJ62: 13.3125 | AK62: 13.17525773 | AL62: 13.04081633 | AM62: 12.90909091 | AN62: 12.78 | AR62: 56 | AS62: 3.591890719 | AT62: 3.50666158 | AU62: 3.423721169 | AV62: 3.342983797 | AW62: 3.264367816 | AX62: 3.187795385 | AY62: 3.113192253 | AZ62: 3.040487557 | BA62: 2.969613635 | BB62: 2.900505848 | BC62: 2.833102414 | BD62: 2.767344258 | BE62: 2.703174861 | BF62: 2.640540133 | BG62: 2.579388277 | BH62: 2.519669676 | BI62: 2.461336781 | BJ62: 1.567599084 | BN62: 56 | BO62: 0.4760294118 | BP62: 0.4817647059 | BQ62: 0.4875 | BR62: 0.4932352941 | BS62: 0.4989705882 | BT62: 0.5047058824 | BU62: 0.5104411765 | BV62: 0.5161764706 | BW62: 0.5219117647 | BX62: 0.5276470588 | BY62: 0.5333823529 | BZ62: 0.5391176471 | CA62: 0.5448529412 | CB62: 0.5505882353 | CC62: 0.5563235294 | CD62: 0.5620588235 | CE62: 0.5677941176 | CF62: 0.5735294118 | CK62: 56 | CL62: 3.899779412 | CM62: 3.946764706 | CN62: 3.99375 | CO62: 4.040735294 | CP62: 4.087720588 | CQ62: 4.134705882 | CR62: 4.181691176 | CS62: 4.228676471 | CT62: 4.275661765 | CU62: 4.322647059 | CV62: 4.369632353 | CW62: 4.416617647 | CX62: 4.463602941 | CY62: 4.510588235 | CZ62: 4.557573529 | DA62: 4.604558824 | DB62: 4.651544118 | DC62: 4.698529412 | DE62: 56 | DF62: 7.329705882 | DG62: 7.329705882 | DH62: 7.329705882 | DI62: 7.329705882 | DJ62: 7.329705882 | DK62: 7.329705882 | DL62: 7.329705882 | DM62: 7.329705882 | DN62: 7.329705882 | DO62: 7.329705882 | DP62: 7.329705882 | DQ62: 7.329705882 | DR62: 7.329705882 | DS62: 7.329705882 | DT62: 7.329705882 | DU62: 7.329705882 | DV62: 7.329705882 | DW62: 7.329705882 | DY62: 56 | DZ62: 1.709845626 | EA62: 1.689385785 | EB62: 1.66906407 | EC62: 1.648877596 | ED62: 1.628823529 | EE62: 1.608899083 | EF62: 1.589101516 | EG62: 1.569428136 | EH62: 1.549876293 | EI62: 1.53044338 | EJ62: 1.511126832 | EK62: 1.491924125 | EL62: 1.472832774 | EM62: 1.453850332 | EN62: 1.43497439 | EO62: 1.416202574 | EP62: 1.397532546 | EQ62: 0.8990641804
B63: 57 | C63: 8.140127389 | D63: 8.140127389 | E63: 8.140127389 | F63: 8.140127389 | G63: 8.140127389 | H63: 8.140127389 | I63: 8.140127389 | J63: 8.140127389 | K63: 8.140127389 | L63: 8.140127389 | M63: 8.140127389 | N63: 8.140127389 | O63: 8.140127389 | P63: 8.140127389 | Q63: 8.140127389 | R63: 8.140127389 | S63: 8.140127389 | T63: 8.140127389 | V63: 57 | W63: 15.39759036 | X63: 15.21428571 | Y63: 15.03529412 | Z63: 14.86046512 | AA63: 14.68965517 | AB63: 14.52272727 | AC63: 14.35955056 | AD63: 14.2 | AE63: 14.04395604 | AF63: 13.89130435 | AG63: 13.74193548 | AH63: 13.59574468 | AI63: 13.45263158 | AJ63: 13.3125 | AK63: 13.17525773 | AL63: 13.04081633 | AM63: 12.90909091 | AN63: 12.78 | AR63: 57 | AS63: 3.585287979 | AT63: 3.500215511 | AU63: 3.417427564 | AV63: 3.336838606 | AW63: 3.25836714 | AX63: 3.181935467 | AY63: 3.107469473 | AZ63: 3.034898426 | BA63: 2.964154787 | BB63: 2.895174036 | BC63: 2.827894505 | BD63: 2.762257228 | BE63: 2.69820579 | BF63: 2.635686199 | BG63: 2.574646754 | BH63: 2.515037931 | BI63: 2.456812264 | BJ63: 1.554918659 | BN63: 57 | BO63: 0.4799631676 | BP63: 0.4857458564 | BQ63: 0.4915285451 | BR63: 0.4973112339 | BS63: 0.5030939227 | BT63: 0.5088766114 | BU63: 0.5146593002 | BV63: 0.520441989 | BW63: 0.5262246777 | BX63: 0.5320073665 | BY63: 0.5377900552 | BZ63: 0.543572744 | CA63: 0.5493554328 | CB63: 0.5551381215 | CC63: 0.5609208103 | CD63: 0.5667034991 | CE63: 0.5724861878 | CF63: 0.5782688766 | CK63: 57 | CL63: 3.906961326 | CM63: 3.954033149 | CN63: 4.001104972 | CO63: 4.048176796 | CP63: 4.095248619 | CQ63: 4.142320442 | CR63: 4.189392265 | CS63: 4.236464088 | CT63: 4.283535912 | CU63: 4.330607735 | CV63: 4.377679558 | CW63: 4.424751381 | CX63: 4.471823204 | CY63: 4.518895028 | CZ63: 4.565966851 | DA63: 4.613038674 | DB63: 4.660110497 | DC63: 4.70718232 | DE63: 57 | DF63: 7.390276243 | DG63: 7.390276243 | DH63: 7.390276243 | DI63: 7.390276243 | DJ63: 7.390276243 | DK63: 7.390276243 | DL63: 7.390276243 | DM63: 7.390276243 | DN63: 7.390276243 | DO63: 7.390276243 | DP63: 7.390276243 | DQ63: 7.390276243 | DR63: 7.390276243 | DS63: 7.390276243 | DT63: 7.390276243 | DU63: 7.390276243 | DV63: 7.390276243 | DW63: 7.390276243 | DY63: 57 | DZ63: 1.720806175 | EA63: 1.700215181 | EB63: 1.679763198 | EC63: 1.659447324 | ED63: 1.639264706 | EE63: 1.619212538 | EF63: 1.599288064 | EG63: 1.579488573 | EH63: 1.559811397 | EI63: 1.540253914 | EJ63: 1.520813542 | EK63: 1.501487741 | EL63: 1.482274009 | EM63: 1.463169885 | EN63: 1.444172944 | EO63: 1.425280796 | EP63: 1.406491088 | EQ63: 0.8991610662
B64: 58 | C64: 8.088607595 | D64: 8.088607595 | E64: 8.088607595 | F64: 8.088607595 | G64: 8.088607595 | H64: 8.088607595 | I64: 8.088607595 | J64: 8.088607595 | K64: 8.088607595 | L64: 8.088607595 | M64: 8.088607595 | N64: 8.088607595 | O64: 8.088607595 | P64: 8.088607595 | Q64: 8.088607595 | R64: 8.088607595 | S64: 8.088607595 | T64: 8.088607595 | V64: 58 | W64: 15.39759036 | X64: 15.21428571 | Y64: 15.03529412 | Z64: 14.86046512 | AA64: 14.68965517 | AB64: 14.52272727 | AC64: 14.35955056 | AD64: 14.2 | AE64: 14.04395604 | AF64: 13.89130435 | AG64: 13.74193548 | AH64: 13.59574468 | AI64: 13.45263158 | AJ64: 13.3125 | AK64: 13.17525773 | AL64: 13.04081633 | AM64: 12.90909091 | AN64: 12.78 | AR64: 58 | AS64: 3.578685238 | AT64: 3.493769442 | AU64: 3.411133958 | AV64: 3.330693415 | AW64: 3.252366464 | AX64: 3.176075549 | AY64: 3.101746693 | AZ64: 3.029309294 | BA64: 2.958695938 | BB64: 2.889842223 | BC64: 2.822686596 | BD64: 2.757170198 | BE64: 2.693236718 | BF64: 2.630832265 | BG64: 2.569905232 | BH64: 2.510406185 | BI64: 2.452287748 | BJ64: 1.542398133 | BN64: 58 | BO64: 0.4839114391 | BP64: 0.4897416974 | BQ64: 0.4955719557 | BR64: 0.501402214 | BS64: 0.5072324723 | BT64: 0.5130627306 | BU64: 0.5188929889 | BV64: 0.5247232472 | BW64: 0.5305535055 | BX64: 0.5363837638 | BY64: 0.5422140221 | BZ64: 0.5480442804 | CA64: 0.5538745387 | CB64: 0.559704797 | CC64: 0.5655350554 | CD64: 0.5713653137 | CE64: 0.577195572 | CF64: 0.5830258303 | CK64: 58 | CL64: 3.914169742 | CM64: 3.961328413 | CN64: 4.008487085 | CO64: 4.055645756 | CP64: 4.102804428 | CQ64: 4.1499631 | CR64: 4.197121771 | CS64: 4.244280443 | CT64: 4.291439114 | CU64: 4.338597786 | CV64: 4.385756458 | CW64: 4.432915129 | CX64: 4.480073801 | CY64: 4.527232472 | CZ64: 4.574391144 | DA64: 4.621549815 | DB64: 4.668708487 | DC64: 4.715867159 | DE64: 58 | DF64: 7.451070111 | DG64: 7.451070111 | DH64: 7.451070111 | DI64: 7.451070111 | DJ64: 7.451070111 | DK64: 7.451070111 | DL64: 7.451070111 | DM64: 7.451070111 | DN64: 7.451070111 | DO64: 7.451070111 | DP64: 7.451070111 | DQ64: 7.451070111 | DR64: 7.451070111 | DS64: 7.451070111 | DT64: 7.451070111 | DU64: 7.451070111 | DV64: 7.451070111 | DW64: 7.451070111 | DY64: 58 | DZ64: 1.731766724 | EA64: 1.711044577 | EB64: 1.690462327 | EC64: 1.670017053 | ED64: 1.649705882 | EE64: 1.629525994 | EF64: 1.609474612 | EG64: 1.58954901 | EH64: 1.569746502 | EI64: 1.550064449 | EJ64: 1.530500253 | EK64: 1.511051357 | EL64: 1.491715245 | EM64: 1.472489439 | EN64: 1.453371497 | EO64: 1.434359017 | EP64: 1.415449629 | EQ64: 0.899257952
B65: 59 | C65: 8.037735849 | D65: 8.037735849 | E65: 8.037735849 | F65: 8.037735849 | G65: 8.037735849 | H65: 8.037735849 | I65: 8.037735849 | J65: 8.037735849 | K65: 8.037735849 | L65: 8.037735849 | M65: 8.037735849 | N65: 8.037735849 | O65: 8.037735849 | P65: 8.037735849 | Q65: 8.037735849 | R65: 8.037735849 | S65: 8.037735849 | T65: 8.037735849 | V65: 59 | W65: 15.39759036 | X65: 15.21428571 | Y65: 15.03529412 | Z65: 14.86046512 | AA65: 14.68965517 | AB65: 14.52272727 | AC65: 14.35955056 | AD65: 14.2 | AE65: 14.04395604 | AF65: 13.89130435 | AG65: 13.74193548 | AH65: 13.59574468 | AI65: 13.45263158 | AJ65: 13.3125 | AK65: 13.17525773 | AL65: 13.04081633 | AM65: 12.90909091 | AN65: 12.78 | AR65: 59 | AS65: 3.572082498 | AT65: 3.487323373 | AU65: 3.404840353 | AV65: 3.324548224 | AW65: 3.246365788 | AX65: 3.170215631 | AY65: 3.096023913 | AZ65: 3.023720163 | BA65: 2.953237089 | BB65: 2.884510411 | BC65: 2.817478688 | BD65: 2.752083168 | BE65: 2.688267647 | BF65: 2.625978331 | BG65: 2.565163709 | BH65: 2.505774439 | BI65: 2.447763232 | BJ65: 1.530034488 | BN65: 59 | BO65: 0.4878743068 | BP65: 0.4937523105 | BQ65: 0.4996303142 | BR65: 0.5055083179 | BS65: 0.5113863216 | BT65: 0.5172643253 | BU65: 0.523142329 | BV65: 0.5290203327 | BW65: 0.5348983364 | BX65: 0.5407763401 | BY65: 0.5466543438 | BZ65: 0.5525323475 | CA65: 0.5584103512 | CB65: 0.5642883549 | CC65: 0.5701663586 | CD65: 0.5760443623 | CE65: 0.581922366 | CF65: 0.5878003697 | CK65: 59 | CL65: 3.921404806 | CM65: 3.968650647 | CN65: 4.015896488 | CO65: 4.063142329 | CP65: 4.11038817 | CQ65: 4.157634011 | CR65: 4.204879852 | CS65: 4.252125693 | CT65: 4.299371534 | CU65: 4.346617375 | CV65: 4.393863216 | CW65: 4.441109057 | CX65: 4.488354898 | CY65: 4.535600739 | CZ65: 4.58284658 | DA65: 4.630092421 | DB65: 4.677338262 | DC65: 4.724584104 | DE65: 59 | DF65: 7.512088725 | DG65: 7.512088725 | DH65: 7.512088725 | DI65: 7.512088725 | DJ65: 7.512088725 | DK65: 7.512088725 | DL65: 7.512088725 | DM65: 7.512088725 | DN65: 7.512088725 | DO65: 7.512088725 | DP65: 7.512088725 | DQ65: 7.512088725 | DR65: 7.512088725 | DS65: 7.512088725 | DT65: 7.512088725 | DU65: 7.512088725 | DV65: 7.512088725 | DW65: 7.512088725 | DY65: 59 | DZ65: 1.742727273 | EA65: 1.721873973 | EB65: 1.701161456 | EC65: 1.680586781 | ED65: 1.660147059 | EE65: 1.63983945 | EF65: 1.619661161 | EG65: 1.599609446 | EH65: 1.579681606 | EI65: 1.559874983 | EJ65: 1.540186963 | EK65: 1.520614973 | EL65: 1.501156481 | EM65: 1.481808992 | EN65: 1.462570051 | EO65: 1.443437239 | EP65: 1.424408171 | EQ65: 0.8993548377
B66: 60 | C66: 7.9875 | D66: 7.9875 | E66: 7.9875 | F66: 7.9875 | G66: 7.9875 | H66: 7.9875 | I66: 7.9875 | J66: 7.9875 | K66: 7.9875 | L66: 7.9875 | M66: 7.9875 | N66: 7.9875 | O66: 7.9875 | P66: 7.9875 | Q66: 7.9875 | R66: 7.9875 | S66: 7.9875 | T66: 7.9875 | V66: 60 | W66: 15.39759036 | X66: 15.21428571 | Y66: 15.03529412 | Z66: 14.86046512 | AA66: 14.68965517 | AB66: 14.52272727 | AC66: 14.35955056 | AD66: 14.2 | AE66: 14.04395604 | AF66: 13.89130435 | AG66: 13.74193548 | AH66: 13.59574468 | AI66: 13.45263158 | AJ66: 13.3125 | AK66: 13.17525773 | AL66: 13.04081633 | AM66: 12.90909091 | AN66: 12.78 | AR66: 60 | AS66: 3.565479758 | AT66: 3.480877304 | AU66: 3.398546748 | AV66: 3.318403034 | AW66: 3.240365112 | AX66: 3.164355713 | AY66: 3.090301133 | AZ66: 3.018131031 | BA66: 2.947778241 | BB66: 2.879178599 | BC66: 2.812270779 | BD66: 2.746996138 | BE66: 2.683298576 | BF66: 2.621124396 | BG66: 2.560422187 | BH66: 2.501142693 | BI66: 2.443238716 | BJ66: 1.517824783 | BN66: 60 | BO66: 0.4918518519 | BP66: 0.4977777778 | BQ66: 0.5037037037 | BR66: 0.5096296296 | BS66: 0.5155555556 | BT66: 0.5214814815 | BU66: 0.5274074074 | BV66: 0.5333333333 | BW66: 0.5392592593 | BX66: 0.5451851852 | BY66: 0.5511111111 | BZ66: 0.557037037 | CA66: 0.562962963 | CB66: 0.5688888889 | CC66: 0.5748148148 | CD66: 0.5807407407 | CE66: 0.5866666667 | CF66: 0.5925925926 | CK66: 60 | CL66: 3.928666667 | CM66: 3.976 | CN66: 4.023333333 | CO66: 4.070666667 | CP66: 4.118 | CQ66: 4.165333333 | CR66: 4.212666667 | CS66: 4.26 | CT66: 4.307333333 | CU66: 4.354666667 | CV66: 4.402 | CW66: 4.449333333 | CX66: 4.496666667 | CY66: 4.544 | CZ66: 4.591333333 | DA66: 4.638666667 | DB66: 4.686 | DC66: 4.733333333 | DE66: 60 | DF66: 7.573333333 | DG66: 7.573333333 | DH66: 7.573333333 | DI66: 7.573333333 | DJ66: 7.573333333 | DK66: 7.573333333 | DL66: 7.573333333 | DM66: 7.573333333 | DN66: 7.573333333 | DO66: 7.573333333 | DP66: 7.573333333 | DQ66: 7.573333333 | DR66: 7.573333333 | DS66: 7.573333333 | DT66: 7.573333333 | DU66: 7.573333333 | DV66: 7.573333333 | DW66: 7.573333333 | DY66: 60 | DZ66: 1.753687822 | EA66: 1.732703369 | EB66: 1.711860584 | EC66: 1.691156509 | ED66: 1.670588235 | EE66: 1.650152905 | EF66: 1.629847709 | EG66: 1.609669883 | EH66: 1.589616711 | EI66: 1.569685518 | EJ66: 1.549873674 | EK66: 1.530178589 | EL66: 1.510597717 | EM66: 1.491128546 | EN66: 1.471768605 | EO66: 1.45251546 | EP66: 1.433366713 | EQ66: 0.8994517235
B67: 61 | C67: 7.937888199 | D67: 7.937888199 | E67: 7.937888199 | F67: 7.937888199 | G67: 7.937888199 | H67: 7.937888199 | I67: 7.937888199 | J67: 7.937888199 | K67: 7.937888199 | L67: 7.937888199 | M67: 7.937888199 | N67: 7.937888199 | O67: 7.937888199 | P67: 7.937888199 | Q67: 7.937888199 | R67: 7.937888199 | S67: 7.937888199 | T67: 7.937888199 | V67: 61 | W67: 15.39759036 | X67: 15.21428571 | Y67: 15.03529412 | Z67: 14.86046512 | AA67: 14.68965517 | AB67: 14.52272727 | AC67: 14.35955056 | AD67: 14.2 | AE67: 14.04395604 | AF67: 13.89130435 | AG67: 13.74193548 | AH67: 13.59574468 | AI67: 13.45263158 | AJ67: 13.3125 | AK67: 13.17525773 | AL67: 13.04081633 | AM67: 12.90909091 | AN67: 12.78 | AR67: 61 | AS67: 3.558877018 | AT67: 3.474431235 | AU67: 3.392253143 | AV67: 3.312257843 | AW67: 3.234364435 | AX67: 3.158495795 | AY67: 3.084578353 | AZ67: 3.012541899 | BA67: 2.942319392 | BB67: 2.873846787 | BC67: 2.80706287 | BD67: 2.741909108 | BE67: 2.678329504 | BF67: 2.616270462 | BG67: 2.555680664 | BH67: 2.496510948 | BI67: 2.4387142 | BJ67: 1.50576615 | BN67: 61 | BO67: 0.4958441558 | BP67: =(1+$BN67/100)*(1-BP$5/100)/(3-$M$2*$BN67/100) -> 0.5018181818 | BQ67: 0.5077922078 | BR67: 0.5137662338 | BS67: 0.5197402597 | BT67: 0.5257142857 | BU67: 0.5316883117 | BV67: 0.5376623377 | BW67: 0.5436363636 | BX67: 0.5496103896 | BY67: 0.5555844156 | BZ67: 0.5615584416 | CA67: 0.5675324675 | CB67: 0.5735064935 | CC67: 0.5794805195 | CD67: 0.5854545455 | CE67: 0.5914285714 | CF67: 0.5974025974 | CK67: 61 | CL67: 3.935955473 | CM67: =($M$1*$CI$3+$M$3*$CI$1)*(1/100)*(1-CM$5/100)/(3-$M$2*$CK67/100) -> 3.983376623 | CN67: 4.030797774 | CO67: 4.078218924 | CP67: 4.125640074 | CQ67: 4.173061224 | CR67: 4.220482375 | CS67: 4.267903525 | CT67: 4.315324675 | CU67: 4.362745826 | CV67: 4.410166976 | CW67: 4.457588126 | CX67: 4.505009276 | CY67: 4.552430427 | CZ67: 4.599851577 | DA67: 4.647272727 | DB67: 4.694693878 | DC67: 4.742115028 | DE67: 61 | DF67: 7.634805195 | DG67: =($M$1*$CI$3+$M$3*$CI$1)*(1+$DE67/100)*(1/100)/(3-$M$2*$DE67/100) -> 7.634805195 | DH67: 7.634805195 | DI67: 7.634805195 | DJ67: 7.634805195 | DK67: 7.634805195 | DL67: 7.634805195 | DM67: 7.634805195 | DN67: 7.634805195 | DO67: 7.634805195 | DP67: 7.634805195 | DQ67: 7.634805195 | DR67: 7.634805195 | DS67: 7.634805195 | DT67: 7.634805195 | DU67: 7.634805195 | DV67: 7.634805195 | DW67: 7.634805195 | DY67: 61 | DZ67: 1.76464837 | EA67: =(1/400)*(0.83+EA$5/100)*($CI$3*$M$1+$CI$1*$M$3)*(1+1*$DY67/100)/(3-$M$2*(0.83+EA$5/100)*(EA$5/100)) -> 1.743532765 | EB67: 1.722559713 | EC67: 1.701726237 | ED67: 1.681029412 | EE67: 1.660466361 | EF67: 1.640034257 | EG67: 1.61973032 | EH67: 1.599551815 | EI67: 1.579496052 | EJ67: 1.559560384 | EK67: 1.539742206 | EL67: 1.520038952 | EM67: 1.500448099 | EN67: 1.480967159 | EO67: 1.461593682 | EP67: 1.442325255 | EQ67: 0.8995486093
B68: 62 | C68: 7.888888889 | D68: 7.888888889 | E68: 7.888888889 | F68: 7.888888889 | G68: 7.888888889 | H68: 7.888888889 | I68: 7.888888889 | J68: 7.888888889 | K68: 7.888888889 | L68: 7.888888889 | M68: 7.888888889 | N68: 7.888888889 | O68: 7.888888889 | P68: 7.888888889 | Q68: 7.888888889 | R68: 7.888888889 | S68: 7.888888889 | T68: 7.888888889 | V68: 62 | W68: 15.39759036 | X68: 15.21428571 | Y68: 15.03529412 | Z68: 14.86046512 | AA68: 14.68965517 | AB68: 14.52272727 | AC68: 14.35955056 | AD68: 14.2 | AE68: 14.04395604 | AF68: 13.89130435 | AG68: 13.74193548 | AH68: 13.59574468 | AI68: 13.45263158 | AJ68: 13.3125 | AK68: 13.17525773 | AL68: 13.04081633 | AM68: 12.90909091 | AN68: 12.78 | AR68: 62 | AS68: 3.552274277 | AT68: 3.467985166 | AU68: 3.385959538 | AV68: 3.306112652 | AW68: 3.228363759 | AX68: 3.152635877 | AY68: 3.078855574 | AZ68: 3.006952768 | BA68: 2.936860544 | BB68: 2.868514974 | BC68: 2.801854961 | BD68: 2.736822078 | BE68: 2.673360433 | BF68: 2.611416528 | BG68: 2.550939141 | BH68: 2.491879202 | BI68: 2.434189684 | BJ68: 1.493855791 | BN68: 62 | BO68: 0.4998513011 | BP68: 0.5058736059 | BQ68: 0.5118959108 | BR68: 0.5179182156 | BS68: 0.5239405204 | BT68: 0.5299628253 | BU68: 0.5359851301 | BV68: 0.5420074349 | BW68: 0.5480297398 | BX68: 0.5540520446 | BY68: 0.5600743494 | BZ68: 0.5660966543 | CA68: 0.5721189591 | CB68: 0.5781412639 | CC68: 0.5841635688 | CD68: 0.5901858736 | CE68: 0.5962081784 | CF68: 0.6022304833 | CK68: 62 | CL68: 3.943271375 | CM68: 3.990780669 | CN68: 4.038289963 | CO68: 4.085799257 | CP68: 4.13330855 | CQ68: 4.180817844 | CR68: 4.228327138 | CS68: 4.275836431 | CT68: 4.323345725 | CU68: 4.370855019 | CV68: 4.418364312 | CW68: 4.465873606 | CX68: 4.5133829 | CY68: 4.560892193 | CZ68: 4.608401487 | DA68: 4.655910781 | DB68: 4.703420074 | DC68: 4.750929368 | DE68: 62 | DF68: 7.696505576 | DG68: 7.696505576 | DH68: 7.696505576 | DI68: 7.696505576 | DJ68: 7.696505576 | DK68: 7.696505576 | DL68: 7.696505576 | DM68: 7.696505576 | DN68: 7.696505576 | DO68: 7.696505576 | DP68: 7.696505576 | DQ68: 7.696505576 | DR68: 7.696505576 | DS68: 7.696505576 | DT68: 7.696505576 | DU68: 7.696505576 | DV68: 7.696505576 | DW68: 7.696505576 | DY68: 62 | DZ68: 1.775608919 | EA68: 1.754362161 | EB68: 1.733258842 | EC68: 1.712295965 | ED68: 1.691470588 | EE68: 1.670779817 | EF68: 1.650220805 | EG68: 1.629790757 | EH68: 1.609486919 | EI68: 1.589306587 | EJ68: 1.569247094 | EK68: 1.549305822 | EL68: 1.529480188 | EM68: 1.509767652 | EN68: 1.490165713 | EO68: 1.470671904 | EP68: 1.451283797 | EQ68: 0.899645495
B69: 63 | C69: 7.840490798 | D69: 7.840490798 | E69: 7.840490798 | F69: 7.840490798 | G69: 7.840490798 | H69: 7.840490798 | I69: 7.840490798 | J69: 7.840490798 | K69: 7.840490798 | L69: 7.840490798 | M69: 7.840490798 | N69: 7.840490798 | O69: 7.840490798 | P69: 7.840490798 | Q69: 7.840490798 | R69: 7.840490798 | S69: 7.840490798 | T69: 7.840490798 | V69: 63 | W69: 15.39759036 | X69: 15.21428571 | Y69: 15.03529412 | Z69: 14.86046512 | AA69: 14.68965517 | AB69: 14.52272727 | AC69: 14.35955056 | AD69: 14.2 | AE69: 14.04395604 | AF69: 13.89130435 | AG69: 13.74193548 | AH69: 13.59574468 | AI69: 13.45263158 | AJ69: 13.3125 | AK69: 13.17525773 | AL69: 13.04081633 | AM69: 12.90909091 | AN69: 12.78 | AR69: 63 | AS69: 3.545671537 | AT69: 3.461539096 | AU69: 3.379665933 | AV69: 3.299967461 | AW69: 3.222363083 | AX69: 3.146775959 | AY69: 3.073132794 | AZ69: 3.001363636 | BA69: 2.931401695 | BB69: 2.863183162 | BC69: 2.796647052 | BD69: 2.731735048 | BE69: 2.668391361 | BF69: 2.606562594 | BG69: 2.546197619 | BH69: 2.487247456 | BI69: 2.429665168 | BJ69: 1.482090977 | BN69: 63 | BO69: 0.5038733706 | BP69: 0.5099441341 | BQ69: 0.5160148976 | BR69: 0.5220856611 | BS69: 0.5281564246 | BT69: 0.5342271881 | BU69: 0.5402979516 | BV69: 0.5463687151 | BW69: 0.5524394786 | BX69: 0.5585102421 | BY69: 0.5645810056 | BZ69: 0.5706517691 | CA69: 0.5767225326 | CB69: 0.5827932961 | CC69: 0.5888640596 | CD69: 0.5949348231 | CE69: 0.6010055866 | CF69: 0.6070763501 | CK69: 63 | CL69: 3.950614525 | CM69: 3.998212291 | CN69: 4.045810056 | CO69: 4.093407821 | CP69: 4.141005587 | CQ69: 4.188603352 | CR69: 4.236201117 | CS69: 4.283798883 | CT69: 4.331396648 | CU69: 4.378994413 | CV69: 4.426592179 | CW69: 4.474189944 | CX69: 4.521787709 | CY69: 4.569385475 | CZ69: 4.61698324 | DA69: 4.664581006 | DB69: 4.712178771 | DC69: 4.759776536 | DE69: 63 | DF69: 7.758435754 | DG69: 7.758435754 | DH69: 7.758435754 | DI69: 7.758435754 | DJ69: 7.758435754 | DK69: 7.758435754 | DL69: 7.758435754 | DM69: 7.758435754 | DN69: 7.758435754 | DO69: 7.758435754 | DP69: 7.758435754 | DQ69: 7.758435754 | DR69: 7.758435754 | DS69: 7.758435754 | DT69: 7.758435754 | DU69: 7.758435754 | DV69: 7.758435754 | DW69: 7.758435754 | DY69: 63 | DZ69: 1.786569468 | EA69: 1.765191557 | EB69: 1.74395797 | EC69: 1.722865694 | ED69: 1.701911765 | EE69: 1.681093272 | EF69: 1.660407353 | EG69: 1.639851193 | EH69: 1.619422024 | EI69: 1.599117121 | EJ69: 1.578933805 | EK69: 1.558869438 | EL69: 1.538921424 | EM69: 1.519087206 | EN69: 1.499364266 | EO69: 1.479750125 | EP69: 1.460242339 | EQ69: 0.8997423808
B70: 64 | C70: 7.792682927 | D70: 7.792682927 | E70: 7.792682927 | F70: 7.792682927 | G70: 7.792682927 | H70: 7.792682927 | I70: 7.792682927 | J70: 7.792682927 | K70: 7.792682927 | L70: 7.792682927 | M70: 7.792682927 | N70: 7.792682927 | O70: 7.792682927 | P70: 7.792682927 | Q70: 7.792682927 | R70: 7.792682927 | S70: 7.792682927 | T70: 7.792682927 | V70: 64 | W70: 15.39759036 | X70: 15.21428571 | Y70: 15.03529412 | Z70: 14.86046512 | AA70: 14.68965517 | AB70: 14.52272727 | AC70: 14.35955056 | AD70: 14.2 | AE70: 14.04395604 | AF70: 13.89130435 | AG70: 13.74193548 | AH70: 13.59574468 | AI70: 13.45263158 | AJ70: 13.3125 | AK70: 13.17525773 | AL70: 13.04081633 | AM70: 12.90909091 | AN70: 12.78 | AR70: 64 | AS70: 3.539068797 | AT70: 3.455093027 | AU70: 3.373372328 | AV70: 3.29382227 | AW70: 3.216362407 | AX70: 3.140916041 | AY70: 3.067410014 | AZ70: 2.995774505 | BA70: 2.925942846 | BB70: 2.85785135 | BC70: 2.791439143 | BD70: 2.726648018 | BE70: 2.66342229 | BF70: 2.60170866 | BG70: 2.541456096 | BH70: 2.48261571 | BI70: 2.425140651 | BJ70: 1.470469045 | BN70: 64 | BO70: 0.5079104478 | BP70: 0.5140298507 | BQ70: 0.5201492537 | BR70: 0.5262686567 | BS70: 0.5323880597 | BT70: 0.5385074627 | BU70: 0.5446268657 | BV70: 0.5507462687 | BW70: 0.5568656716 | BX70: 0.5629850746 | BY70: 0.5691044776 | BZ70: 0.5752238806 | CA70: 0.5813432836 | CB70: 0.5874626866 | CC70: 0.5935820896 | CD70: 0.5997014925 | CE70: 0.6058208955 | CF70: 0.6119402985 | CK70: 64 | CL70: 3.957985075 | CM70: 4.005671642 | CN70: 4.053358209 | CO70: 4.101044776 | CP70: 4.148731343 | CQ70: 4.19641791 | CR70: 4.244104478 | CS70: 4.291791045 | CT70: 4.339477612 | CU70: 4.387164179 | CV70: 4.434850746 | CW70: 4.482537313 | CX70: 4.530223881 | CY70: 4.577910448 | CZ70: 4.625597015 | DA70: 4.673283582 | DB70: 4.720970149 | DC70: 4.768656716 | DE70: 64 | DF70: 7.820597015 | DG70: 7.820597015 | DH70: 7.820597015 | DI70: 7.820597015 | DJ70: 7.820597015 | DK70: 7.820597015 | DL70: 7.820597015 | DM70: 7.820597015 | DN70: 7.820597015 | DO70: 7.820597015 | DP70: 7.820597015 | DQ70: 7.820597015 | DR70: 7.820597015 | DS70: 7.820597015 | DT70: 7.820597015 | DU70: 7.820597015 | DV70: 7.820597015 | DW70: 7.820597015 | DY70: 64 | DZ70: 1.797530017 | EA70: 1.776020953 | EB70: 1.754657099 | EC70: 1.733435422 | ED70: 1.712352941 | EE70: 1.691406728 | EF70: 1.670593902 | EG70: 1.64991163 | EH70: 1.629357128 | EI70: 1.608927656 | EJ70: 1.588620515 | EK70: 1.568433054 | EL70: 1.54836266 | EM70: 1.528406759 | EN70: 1.50856282 | EO70: 1.488828347 | EP70: 1.469200881 | EQ70: 0.8998392666
B71: 65 | C71: 7.745454545 | D71: 7.745454545 | E71: =(CN71/BQ71) -> 7.745454545 | F71: =(CO71/BR71) -> 7.745454545 | G71: =(CP71/BS71) -> 7.745454545 | H71: =(CQ71/BT71) -> 7.745454545 | I71: =(CR71/BU71) -> 7.745454545 | J71: =(CS71/BV71) -> 7.745454545 | K71: =(CT71/BW71) -> 7.745454545 | L71: =(CU71/BX71) -> 7.745454545 | M71: =(CV71/BY71) -> 7.745454545 | N71: =(CW71/BZ71) -> 7.745454545 | O71: =(CX71/CA71) -> 7.745454545 | P71: =(CY71/CB71) -> 7.745454545 | Q71: =(CZ71/CC71) -> 7.745454545 | R71: =(DA71/CD71) -> 7.745454545 | S71: =(DB71/CE71) -> 7.745454545 | T71: 7.745454545 | V71: 65 | W71: 15.39759036 | X71: 15.21428571 | Y71: =(DH71/BQ71) -> 15.03529412 | Z71: =(DI71/BR71) -> 14.86046512 | AA71: =(DJ71/BS71) -> 14.68965517 | AB71: =(DK71/BT71) -> 14.52272727 | AC71: =(DL71/BU71) -> 14.35955056 | AD71: =(DM71/BV71) -> 14.2 | AE71: =(DN71/BW71) -> 14.04395604 | AF71: =(DO71/BX71) -> 13.89130435 | AG71: =(DP71/BY71) -> 13.74193548 | AH71: =(DQ71/BZ71) -> 13.59574468 | AI71: =(DR71/CA71) -> 13.45263158 | AJ71: =(DS71/CB71) -> 13.3125 | AK71: =(DT71/CC71) -> 13.17525773 | AL71: =(DU71/CD71) -> 13.04081633 | AM71: =(DV71/CE71) -> 12.90909091 | AN71: 12.78 | AR71: 65 | AS71: 3.532466056 | AT71: 3.448646958 | AU71: =(EB71/BQ71) -> 3.367078723 | AV71: =(EC71/BR71) -> 3.28767708 | AW71: =(ED71/BS71) -> 3.210361731 | AX71: =(EE71/BT71) -> 3.135056123 | AY71: =(EF71/BU71) -> 3.061687234 | AZ71: =(EG71/BV71) -> 2.990185373 | BA71: =(EH71/BW71) -> 2.920483998 | BB71: =(EI71/BX71) -> 2.852519538 | BC71: =(EJ71/BY71) -> 2.786231234 | BD71: =(EK71/BZ71) -> 2.721560989 | BE71: =(EL71/CA71) -> 2.658453218 | BF71: =(EM71/CB71) -> 2.596854726 | BG71: =(EN71/CC71) -> 2.536714574 | BH71: =(EO71/CD71) -> 2.477983965 | BI71: =(EP71/CE71) -> 2.420616135 | BJ71: 1.458987399 | BN71: 65 | BO71: 0.5119626168 | BP71: 0.5181308411 | BQ71: 0.5242990654 | BR71: 0.5304672897 | BS71: 0.536635514 | BT71: 0.5428037383 | BU71: 0.5489719626 | BV71: 0.5551401869 | BW71: 0.5613084112 | BX71: 0.5674766355 | BY71: 0.5736448598 | BZ71: 0.5798130841 | CA71: 0.5859813084 | CB71: 0.5921495327 | CC71: 0.598317757 | CD71: 0.6044859813 | CE71: 0.6106542056 | CF71: 0.6168224299 | CK71: 65 | CL71: 3.965383178 | CM71: 4.013158879 | CN71: 4.060934579 | CO71: 4.10871028 | CP71: 4.156485981 | CQ71: 4.204261682 | CR71: 4.252037383 | CS71: 4.299813084 | CT71: 4.347588785 | CU71: 4.395364486 | CV71: 4.443140187 | CW71: 4.490915888 | CX71: 4.538691589 | CY71: 4.58646729 | CZ71: 4.634242991 | DA71: 4.682018692 | DB71: 4.729794393 | DC71: 4.777570093 | DE71: 65 | DF71: 7.882990654 | DG71: 7.882990654 | DH71: 7.882990654 | DI71: 7.882990654 | DJ71: 7.882990654 | DK71: 7.882990654 | DL71: 7.882990654 | DM71: 7.882990654 | DN71: 7.882990654 | DO71: 7.882990654 | DP71: 7.882990654 | DQ71: 7.882990654 | DR71: 7.882990654 | DS71: 7.882990654 | DT71: 7.882990654 | DU71: 7.882990654 | DV71: 7.882990654 | DW71: 7.882990654 | DY71: 65 | DZ71: 1.808490566 | EA71: 1.786850349 | EB71: 1.765356228 | EC71: 1.74400515 | ED71: 1.722794118 | EE71: 1.701720183 | EF71: 1.68078045 | EG71: 1.659972067 | EH71: 1.639292233 | EI71: 1.61873819 | EJ71: 1.598307226 | EK71: 1.57799667 | EL71: 1.557803895 | EM71: 1.537726313 | EN71: 1.517761374 | EO71: 1.497906569 | EP71: 1.478159423 | EQ71: 0.8999361524
B72: 66 | C72: =(CL72/BO72) -> 7.698795181 | D72: =(CM72/BP72) -> 7.698795181 | E72: 7.698795181 | F72: 7.698795181 | G72: 7.698795181 | H72: 7.698795181 | I72: 7.698795181 | J72: 7.698795181 | K72: 7.698795181 | L72: 7.698795181 | M72: 7.698795181 | N72: 7.698795181 | O72: 7.698795181 | P72: 7.698795181 | Q72: 7.698795181 | R72: 7.698795181 | S72: 7.698795181 | T72: =(DC72/CF72) -> 7.698795181 | V72: 66 | W72: =(DF72/BO72) -> 15.39759036 | X72: =(DG72/BP72) -> 15.21428571 | Y72: 15.03529412 | Z72: 14.86046512 | AA72: 14.68965517 | AB72: 14.52272727 | AC72: 14.35955056 | AD72: 14.2 | AE72: 14.04395604 | AF72: 13.89130435 | AG72: 13.74193548 | AH72: 13.59574468 | AI72: 13.45263158 | AJ72: 13.3125 | AK72: 13.17525773 | AL72: 13.04081633 | AM72: 12.90909091 | AN72: =(DW72/CF72) -> 12.78 | AR72: 66 | AS72: =(DZ72/BO72) -> 3.525863316 | AT72: =(EA72/BP72) -> 3.442200889 | AU72: 3.360785118 | AV72: 3.281531889 | AW72: 3.204361055 | AX72: 3.129196205 | AY72: 3.055964454 | AZ72: 2.984596242 | BA72: 2.915025149 | BB72: 2.847187726 | BC72: 2.781023326 | BD72: 2.716473959 | BE72: 2.653484147 | BF72: 2.592000792 | BG72: 2.531973051 | BH72: 2.473352219 | BI72: 2.416091619 | BJ72: =(EQ72/CF72) -> 1.447643501 | BN72: 66 | BO72: =(1+$BN72/100)*(1-BO$5/100)/(3-$M$2*$BN72/100) -> 0.5160299625 | BP72: 0.522247191 | BQ72: 0.5284644195 | BR72: 0.5346816479 | BS72: 0.5408988764 | BT72: 0.5471161049 | BU72: 0.5533333333 | BV72: 0.5595505618 | BW72: 0.5657677903 | BX72: 0.5719850187 | BY72: 0.5782022472 | BZ72: 0.5844194757 | CA72: 0.5906367041 | CB72: 0.5968539326 | CC72: 0.603071161 | CD72: 0.6092883895 | CE72: 0.615505618 | CF72: 0.6217228464 | CK72: 66 | CL72: =($M$1*$CI$3+$M$3*$CI$1)*(1/100)*(1-CL$5/100)/(3-$M$2*$CK72/100) -> 3.972808989 | CM72: 4.020674157 | CN72: 4.068539326 | CO72: 4.116404494 | CP72: 4.164269663 | CQ72: 4.212134831 | CR72: 4.26 | CS72: 4.307865169 | CT72: 4.355730337 | CU72: 4.403595506 | CV72: 4.451460674 | CW72: 4.499325843 | CX72: 4.547191011 | CY72: 4.59505618 | CZ72: 4.642921348 | DA72: 4.690786517 | DB72: 4.738651685 | DC72: 4.786516854 | DE72: 66 | DF72: =($M$1*$CI$3+$M$3*$CI$1)*(1+$DE72/100)*(1/100)/(3-$M$2*$DE72/100) -> 7.945617978 | DG72: 7.945617978 | DH72: 7.945617978 | DI72: 7.945617978 | DJ72: 7.945617978 | DK72: 7.945617978 | DL72: 7.945617978 | DM72: 7.945617978 | DN72: 7.945617978 | DO72: 7.945617978 | DP72: 7.945617978 | DQ72: 7.945617978 | DR72: 7.945617978 | DS72: 7.945617978 | DT72: 7.945617978 | DU72: 7.945617978 | DV72: 7.945617978 | DW72: 7.945617978 | DY72: 66 | DZ72: =(1/400)*(0.83+DZ$5/100)*($CI$3*$M$1+$CI$1*$M$3)*(1+1*$DY72/100)/(3-$M$2*(0.83+DZ$5/100)*(DZ$5/100)) -> 1.819451115 | EA72: 1.797679745 | EB72: 1.776055356 | EC72: 1.754574878 | ED72: 1.733235294 | EE72: 1.712033639 | EF72: 1.690966998 | EG72: 1.670032504 | EH72: 1.649227337 | EI72: 1.628548725 | EJ72: 1.607993936 | EK72: 1.587560287 | EL72: 1.567245131 | EM72: 1.547045866 | EN72: 1.526959928 | EO72: 1.50698479 | EP72: 1.487117965 | EQ72: =(1/400)*(0.83+EQ$5/100)*($CI$3*$M$1+$CI$1*$M$3)*(1+1*$DZ72/100)/(3-$M$2*(0.83+EQ$5/100)*(EQ$5/100)) -> 0.9000330381
B73: 67 | C73: 7.652694611 | D73: 7.652694611 | E73: 7.652694611 | F73: 7.652694611 | G73: 7.652694611 | H73: 7.652694611 | I73: 7.652694611 | J73: 7.652694611 | K73: 7.652694611 | L73: 7.652694611 | M73: 7.652694611 | N73: 7.652694611 | O73: 7.652694611 | P73: 7.652694611 | Q73: 7.652694611 | R73: 7.652694611 | S73: 7.652694611 | T73: 7.652694611 | V73: 67 | W73: 15.39759036 | X73: 15.21428571 | Y73: 15.03529412 | Z73: 14.86046512 | AA73: 14.68965517 | AB73: 14.52272727 | AC73: 14.35955056 | AD73: 14.2 | AE73: 14.04395604 | AF73: 13.89130435 | AG73: 13.74193548 | AH73: 13.59574468 | AI73: 13.45263158 | AJ73: 13.3125 | AK73: 13.17525773 | AL73: 13.04081633 | AM73: 12.90909091 | AN73: 12.78 | AR73: 67 | AS73: 3.519260576 | AT73: 3.43575482 | AU73: 3.354491513 | AV73: 3.275386698 | AW73: 3.198360379 | AX73: 3.123336287 | AY73: 3.050241674 | AZ73: 2.97900711 | BA73: 2.909566301 | BB73: 2.841855913 | BC73: 2.775815417 | BD73: 2.711386929 | BE73: 2.648515075 | BF73: 2.587146858 | BG73: 2.527231529 | BH73: 2.468720473 | BI73: 2.411567103 | BJ73: 1.436434879 | BN73: 67 | BO73: 0.5201125704 | BP73: 0.5263789869 | BQ73: 0.5326454034 | BR73: 0.5389118199 | BS73: 0.5451782364 | BT73: 0.5514446529 | BU73: 0.5577110694 | BV73: 0.5639774859 | BW73: 0.5702439024 | BX73: 0.5765103189 | BY73: 0.5827767355 | BZ73: 0.589043152 | CA73: 0.5953095685 | CB73: 0.601575985 | CC73: 0.6078424015 | CD73: 0.614108818 | CE73: 0.6203752345 | CF73: 0.626641651 | CK73: 67 | CL73: 3.980262664 | CM73: 4.028217636 | CN73: 4.076172608 | CO73: 4.12412758 | CP73: 4.172082552 | CQ73: 4.220037523 | CR73: 4.267992495 | CS73: 4.315947467 | CT73: 4.363902439 | CU73: 4.411857411 | CV73: 4.459812383 | CW73: 4.507767355 | CX73: 4.555722326 | CY73: 4.603677298 | CZ73: 4.65163227 | DA73: 4.699587242 | DB73: 4.747542214 | DC73: 4.795497186 | DE73: 67 | DF73: 8.0084803 | DG73: 8.0084803 | DH73: 8.0084803 | DI73: 8.0084803 | DJ73: 8.0084803 | DK73: 8.0084803 | DL73: 8.0084803 | DM73: 8.0084803 | DN73: 8.0084803 | DO73: 8.0084803 | DP73: 8.0084803 | DQ73: 8.0084803 | DR73: 8.0084803 | DS73: 8.0084803 | DT73: 8.0084803 | DU73: 8.0084803 | DV73: 8.0084803 | DW73: 8.0084803 | DY73: 67 | DZ73: 1.830411664 | EA73: 1.808509141 | EB73: 1.786754485 | EC73: 1.765144606 | ED73: 1.743676471 | EE73: 1.722347095 | EF73: 1.701153546 | EG73: 1.680092941 | EH73: 1.659162442 | EI73: 1.638359259 | EJ73: 1.617680647 | EK73: 1.597123903 | EL73: 1.576686367 | EM73: 1.556365419 | EN73: 1.536158481 | EO73: 1.516063012 | EP73: 1.496076507 | EQ73: 0.9001299239
B74: 68 | C74: 7.607142857 | D74: 7.607142857 | E74: 7.607142857 | F74: 7.607142857 | G74: 7.607142857 | H74: 7.607142857 | I74: 7.607142857 | J74: 7.607142857 | K74: 7.607142857 | L74: 7.607142857 | M74: 7.607142857 | N74: 7.607142857 | O74: 7.607142857 | P74: 7.607142857 | Q74: 7.607142857 | R74: 7.607142857 | S74: 7.607142857 | T74: 7.607142857 | V74: 68 | W74: 15.39759036 | X74: 15.21428571 | Y74: 15.03529412 | Z74: 14.86046512 | AA74: 14.68965517 | AB74: 14.52272727 | AC74: 14.35955056 | AD74: 14.2 | AE74: 14.04395604 | AF74: 13.89130435 | AG74: 13.74193548 | AH74: 13.59574468 | AI74: 13.45263158 | AJ74: 13.3125 | AK74: 13.17525773 | AL74: 13.04081633 | AM74: 12.90909091 | AN74: 12.78 | AR74: 68 | AS74: 3.512657835 | AT74: 3.429308751 | AU74: 3.348197908 | AV74: 3.269241507 | AW74: 3.192359703 | AX74: 3.117476369 | AY74: 3.044518894 | AZ74: 2.973417979 | BA74: 2.904107452 | BB74: 2.836524101 | BC74: 2.770607508 | BD74: 2.706299899 | BE74: 2.643546004 | BF74: 2.582292924 | BG74: 2.522490006 | BH74: 2.464088728 | BI74: 2.407042587 | BJ74: 1.425359115 | BN74: 68 | BO74: 0.5242105263 | BP74: 0.5305263158 | BQ74: 0.5368421053 | BR74: 0.5431578947 | BS74: 0.5494736842 | BT74: 0.5557894737 | BU74: 0.5621052632 | BV74: 0.5684210526 | BW74: 0.5747368421 | BX74: 0.5810526316 | BY74: 0.5873684211 | BZ74: 0.5936842105 | CA74: 0.6 | CB74: 0.6063157895 | CC74: 0.6126315789 | CD74: 0.6189473684 | CE74: 0.6252631579 | CF74: 0.6315789474 | CK74: 68 | CL74: 3.987744361 | CM74: 4.035789474 | CN74: 4.083834586 | CO74: 4.131879699 | CP74: 4.179924812 | CQ74: 4.227969925 | CR74: 4.276015038 | CS74: 4.32406015 | CT74: 4.372105263 | CU74: 4.420150376 | CV74: 4.468195489 | CW74: 4.516240602 | CX74: 4.564285714 | CY74: 4.612330827 | CZ74: 4.66037594 | DA74: 4.708421053 | DB74: 4.756466165 | DC74: 4.804511278 | DE74: 68 | DF74: 8.071578947 | DG74: 8.071578947 | DH74: 8.071578947 | DI74: 8.071578947 | DJ74: 8.071578947 | DK74: 8.071578947 | DL74: 8.071578947 | DM74: 8.071578947 | DN74: 8.071578947 | DO74: 8.071578947 | DP74: 8.071578947 | DQ74: 8.071578947 | DR74: 8.071578947 | DS74: 8.071578947 | DT74: 8.071578947 | DU74: 8.071578947 | DV74: 8.071578947 | DW74: 8.071578947 | DY74: 68 | DZ74: 1.841372213 | EA74: 1.819338537 | EB74: 1.797453614 | EC74: 1.775714334 | ED74: 1.754117647 | EE74: 1.73266055 | EF74: 1.711340094 | EG74: 1.690153377 | EH74: 1.669097546 | EI74: 1.648169793 | EJ74: 1.627367357 | EK74: 1.606687519 | EL74: 1.586127602 | EM74: 1.565684973 | EN74: 1.545357035 | EO74: 1.525141233 | EP74: 1.505035049 | EQ74: 0.9002268097
B75: 69 | C75: 7.562130178 | D75: 7.562130178 | E75: 7.562130178 | F75: 7.562130178 | G75: 7.562130178 | H75: 7.562130178 | I75: 7.562130178 | J75: 7.562130178 | K75: 7.562130178 | L75: 7.562130178 | M75: 7.562130178 | N75: 7.562130178 | O75: 7.562130178 | P75: 7.562130178 | Q75: 7.562130178 | R75: 7.562130178 | S75: 7.562130178 | T75: 7.562130178 | V75: 69 | W75: 15.39759036 | X75: 15.21428571 | Y75: 15.03529412 | Z75: 14.86046512 | AA75: 14.68965517 | AB75: 14.52272727 | AC75: 14.35955056 | AD75: 14.2 | AE75: 14.04395604 | AF75: 13.89130435 | AG75: 13.74193548 | AH75: 13.59574468 | AI75: 13.45263158 | AJ75: 13.3125 | AK75: 13.17525773 | AL75: 13.04081633 | AM75: 12.90909091 | AN75: 12.78 | AR75: 69 | AS75: 3.506055095 | AT75: 3.422862682 | AU75: 3.341904302 | AV75: 3.263096316 | AW75: 3.186359026 | AX75: 3.111616451 | AY75: 3.038796114 | AZ75: 2.967828847 | BA75: 2.898648603 | BB75: 2.831192289 | BC75: 2.765399599 | BD75: 2.701212869 | BE75: 2.638576933 | BF75: 2.57743899 | BG75: 2.517748483 | BH75: 2.459456982 | BI75: 2.402518071 | BJ75: 1.414413853 | BN75: 69 | BO75: 0.5283239171 | BP75: 0.5346892655 | BQ75: 0.5410546139 | BR75: 0.5474199623 | BS75: 0.5537853107 | BT75: 0.5601506591 | BU75: 0.5665160075 | BV75: 0.5728813559 | BW75: 0.5792467043 | BX75: 0.5856120527 | BY75: 0.5919774011 | BZ75: 0.5983427495 | CA75: 0.6047080979 | CB75: 0.6110734463 | CC75: 0.6174387947 | CD75: 0.6238041431 | CE75: 0.6301694915 | CF75: 0.6365348399 | CK75: 69 | CL75: 3.995254237 | CM75: 4.043389831 | CN75: 4.091525424 | CO75: 4.139661017 | CP75: 4.18779661 | CQ75: 4.235932203 | CR75: 4.284067797 | CS75: 4.33220339 | CT75: 4.380338983 | CU75: 4.428474576 | CV75: 4.476610169 | CW75: 4.524745763 | CX75: 4.572881356 | CY75: 4.621016949 | CZ75: 4.669152542 | DA75: 4.717288136 | DB75: 4.765423729 | DC75: 4.813559322 | DE75: 69 | DF75: 8.134915254 | DG75: 8.134915254 | DH75: 8.134915254 | DI75: 8.134915254 | DJ75: 8.134915254 | DK75: 8.134915254 | DL75: 8.134915254 | DM75: 8.134915254 | DN75: 8.134915254 | DO75: 8.134915254 | DP75: 8.134915254 | DQ75: 8.134915254 | DR75: 8.134915254 | DS75: 8.134915254 | DT75: 8.134915254 | DU75: 8.134915254 | DV75: 8.134915254 | DW75: 8.134915254 | DY75: 69 | DZ75: 1.852332762 | EA75: 1.830167933 | EB75: 1.808152742 | EC75: 1.786284063 | ED75: 1.764558824 | EE75: 1.742974006 | EF75: 1.721526642 | EG75: 1.700213814 | EH75: 1.679032651 | EI75: 1.657980328 | EJ75: 1.637054068 | EK75: 1.616251135 | EL75: 1.595568838 | EM75: 1.575004526 | EN75: 1.554555589 | EO75: 1.534219455 | EP75: 1.513993591 | EQ75: 0.9003236954
B76: 70 | C76: 7.517647059 | D76: 7.517647059 | E76: 7.517647059 | F76: 7.517647059 | G76: 7.517647059 | H76: 7.517647059 | I76: 7.517647059 | J76: 7.517647059 | K76: 7.517647059 | L76: 7.517647059 | M76: 7.517647059 | N76: 7.517647059 | O76: 7.517647059 | P76: 7.517647059 | Q76: 7.517647059 | R76: 7.517647059 | S76: 7.517647059 | T76: 7.517647059 | V76: 70 | W76: 15.39759036 | X76: 15.21428571 | Y76: 15.03529412 | Z76: 14.86046512 | AA76: 14.68965517 | AB76: 14.52272727 | AC76: 14.35955056 | AD76: 14.2 | AE76: 14.04395604 | AF76: 13.89130435 | AG76: 13.74193548 | AH76: 13.59574468 | AI76: 13.45263158 | AJ76: 13.3125 | AK76: 13.17525773 | AL76: 13.04081633 | AM76: 12.90909091 | AN76: 12.78 | AR76: 70 | AS76: 3.499452355 | AT76: 3.416416613 | AU76: 3.335610697 | AV76: 3.256951126 | AW76: 3.18035835 | AX76: 3.105756533 | AY76: 3.033073335 | AZ76: 2.962239716 | BA76: 2.893189755 | BB76: 2.825860477 | BC76: 2.76019169 | BD76: 2.696125839 | BE76: 2.633607861 | BF76: 2.572585056 | BG76: 2.513006961 | BH76: 2.454825236 | BI76: 2.397993555 | BJ76: 1.403596788 | BN76: 70 | BO76: 0.5324528302 | BP76: 0.5388679245 | BQ76: 0.5452830189 | BR76: 0.5516981132 | BS76: 0.5581132075 | BT76: 0.5645283019 | BU76: 0.5709433962 | BV76: 0.5773584906 | BW76: 0.5837735849 | BX76: 0.5901886792 | BY76: 0.5966037736 | BZ76: 0.6030188679 | CA76: 0.6094339623 | CB76: 0.6158490566 | CC76: 0.6222641509 | CD76: 0.6286792453 | CE76: 0.6350943396 | CF76: 0.641509434 | CK76: 70 | CL76: 4.002792453 | CM76: 4.051018868 | CN76: 4.099245283 | CO76: 4.147471698 | CP76: 4.195698113 | CQ76: 4.243924528 | CR76: 4.292150943 | CS76: 4.340377358 | CT76: 4.388603774 | CU76: 4.436830189 | CV76: 4.485056604 | CW76: 4.533283019 | CX76: 4.581509434 | CY76: 4.629735849 | CZ76: 4.677962264 | DA76: 4.726188679 | DB76: 4.774415094 | DC76: 4.822641509 | DE76: 70 | DF76: 8.198490566 | DG76: 8.198490566 | DH76: 8.198490566 | DI76: 8.198490566 | DJ76: 8.198490566 | DK76: 8.198490566 | DL76: 8.198490566 | DM76: 8.198490566 | DN76: 8.198490566 | DO76: 8.198490566 | DP76: 8.198490566 | DQ76: 8.198490566 | DR76: 8.198490566 | DS76: 8.198490566 | DT76: 8.198490566 | DU76: 8.198490566 | DV76: 8.198490566 | DW76: 8.198490566 | DY76: 70 | DZ76: 1.86329331 | EA76: 1.840997329 | EB76: 1.818851871 | EC76: 1.796853791 | ED76: 1.775 | EE76: 1.753287462 | EF76: 1.731713191 | EG76: 1.710274251 | EH76: 1.688967755 | EI76: 1.667790862 | EJ76: 1.646740778 | EK76: 1.625814751 | EL76: 1.605010074 | EM76: 1.58432408 | EN76: 1.563754143 | EO76: 1.543297677 | EP76: 1.522952133 | EQ76: 0.9004205812
B77: 71 | C77: 7.473684211 | D77: 7.473684211 | E77: 7.473684211 | F77: 7.473684211 | G77: 7.473684211 | H77: 7.473684211 | I77: 7.473684211 | J77: 7.473684211 | K77: 7.473684211 | L77: 7.473684211 | M77: 7.473684211 | N77: 7.473684211 | O77: 7.473684211 | P77: 7.473684211 | Q77: 7.473684211 | R77: 7.473684211 | S77: 7.473684211 | T77: 7.473684211 | V77: 71 | W77: 15.39759036 | X77: 15.21428571 | Y77: 15.03529412 | Z77: 14.86046512 | AA77: 14.68965517 | AB77: 14.52272727 | AC77: 14.35955056 | AD77: 14.2 | AE77: 14.04395604 | AF77: 13.89130435 | AG77: 13.74193548 | AH77: 13.59574468 | AI77: 13.45263158 | AJ77: 13.3125 | AK77: 13.17525773 | AL77: 13.04081633 | AM77: 12.90909091 | AN77: 12.78 | AR77: 71 | AS77: 3.492849615 | AT77: 3.409970544 | AU77: 3.329317092 | AV77: 3.250805935 | AW77: 3.174357674 | AX77: 3.099896615 | AY77: 3.027350555 | AZ77: 2.956650584 | BA77: 2.887730906 | BB77: 2.820528664 | BC77: 2.754983781 | BD77: 2.691038809 | BE77: 2.62863879 | BF77: 2.567731122 | BG77: 2.508265438 | BH77: 2.45019349 | BI77: 2.393469038 | BJ77: 1.392905673 | BN77: 71 | BO77: 0.5365973535 | BP77: 0.5430623819 | BQ77: 0.5495274102 | BR77: 0.5559924386 | BS77: 0.5624574669 | BT77: 0.5689224953 | BU77: 0.5753875236 | BV77: 0.581852552 | BW77: 0.5883175803 | BX77: 0.5947826087 | BY77: 0.6012476371 | BZ77: 0.6077126654 | CA77: 0.6141776938 | CB77: 0.6206427221 | CC77: 0.6271077505 | CD77: 0.6335727788 | CE77: 0.6400378072 | CF77: 0.6465028355 | CK77: 71 | CL77: 4.010359168 | CM77: 4.058676749 | CN77: 4.106994329 | CO77: 4.155311909 | CP77: 4.20362949 | CQ77: 4.25194707 | CR77: 4.30026465 | CS77: 4.348582231 | CT77: 4.396899811 | CU77: 4.445217391 | CV77: 4.493534972 | CW77: 4.541852552 | CX77: 4.590170132 | CY77: 4.638487713 | CZ77: 4.686805293 | DA77: 4.735122873 | DB77: 4.783440454 | DC77: 4.831758034 | DE77: 71 | DF77: 8.262306238 | DG77: 8.262306238 | DH77: 8.262306238 | DI77: 8.262306238 | DJ77: 8.262306238 | DK77: 8.262306238 | DL77: 8.262306238 | DM77: 8.262306238 | DN77: 8.262306238 | DO77: 8.262306238 | DP77: 8.262306238 | DQ77: 8.262306238 | DR77: 8.262306238 | DS77: 8.262306238 | DT77: 8.262306238 | DU77: 8.262306238 | DV77: 8.262306238 | DW77: 8.262306238 | DY77: 71 | DZ77: 1.874253859 | EA77: 1.851826726 | EB77: 1.829550999 | EC77: 1.807423519 | ED77: 1.785441176 | EE77: 1.763600917 | EF77: 1.741899739 | EG77: 1.720334688 | EH77: 1.698902859 | EI77: 1.677601397 | EJ77: 1.656427489 | EK77: 1.635378367 | EL77: 1.61445131 | EM77: 1.593643633 | EN77: 1.572952697 | EO77: 1.552375898 | EP77: 1.531910675 | EQ77: 0.900517467
B78: 72 | C78: 7.430232558 | D78: 7.430232558 | E78: 7.430232558 | F78: 7.430232558 | G78: 7.430232558 | H78: 7.430232558 | I78: 7.430232558 | J78: 7.430232558 | K78: 7.430232558 | L78: 7.430232558 | M78: 7.430232558 | N78: 7.430232558 | O78: 7.430232558 | P78: 7.430232558 | Q78: 7.430232558 | R78: 7.430232558 | S78: 7.430232558 | T78: 7.430232558 | V78: 72 | W78: 15.39759036 | X78: 15.21428571 | Y78: 15.03529412 | Z78: 14.86046512 | AA78: 14.68965517 | AB78: 14.52272727 | AC78: 14.35955056 | AD78: 14.2 | AE78: 14.04395604 | AF78: 13.89130435 | AG78: 13.74193548 | AH78: 13.59574468 | AI78: 13.45263158 | AJ78: 13.3125 | AK78: 13.17525773 | AL78: 13.04081633 | AM78: 12.90909091 | AN78: 12.78 | AR78: 72 | AS78: 3.486246874 | AT78: 3.403524475 | AU78: 3.323023487 | AV78: 3.244660744 | AW78: 3.168356998 | AX78: 3.094036697 | AY78: 3.021627775 | AZ78: 2.951061453 | BA78: 2.882272058 | BB78: 2.815196852 | BC78: 2.749775872 | BD78: 2.685951779 | BE78: 2.623669718 | BF78: 2.562877188 | BG78: 2.503523916 | BH78: 2.445561745 | BI78: 2.388944522 | BJ78: 1.382338309 | BN78: 72 | BO78: 0.5407575758 | BP78: 0.5472727273 | BQ78: 0.5537878788 | BR78: 0.5603030303 | BS78: 0.5668181818 | BT78: 0.5733333333 | BU78: 0.5798484848 | BV78: 0.5863636364 | BW78: 0.5928787879 | BX78: 0.5993939394 | BY78: 0.6059090909 | BZ78: 0.6124242424 | CA78: 0.6189393939 | CB78: 0.6254545455 | CC78: 0.631969697 | CD78: 0.6384848485 | CE78: 0.645 | CF78: 0.6515151515 | CK78: 72 | CL78: 4.017954545 | CM78: 4.066363636 | CN78: 4.114772727 | CO78: 4.163181818 | CP78: 4.211590909 | CQ78: 4.26 | CR78: 4.308409091 | CS78: 4.356818182 | CT78: 4.405227273 | CU78: 4.453636364 | CV78: 4.502045455 | CW78: 4.550454545 | CX78: 4.598863636 | CY78: 4.647272727 | CZ78: 4.695681818 | DA78: 4.744090909 | DB78: 4.7925 | DC78: 4.840909091 | DE78: 72 | DF78: 8.326363636 | DG78: 8.326363636 | DH78: 8.326363636 | DI78: 8.326363636 | DJ78: 8.326363636 | DK78: 8.326363636 | DL78: 8.326363636 | DM78: 8.326363636 | DN78: 8.326363636 | DO78: 8.326363636 | DP78: 8.326363636 | DQ78: 8.326363636 | DR78: 8.326363636 | DS78: 8.326363636 | DT78: 8.326363636 | DU78: 8.326363636 | DV78: 8.326363636 | DW78: 8.326363636 | DY78: 72 | DZ78: 1.885214408 | EA78: 1.862656122 | EB78: 1.840250128 | EC78: 1.817993247 | ED78: 1.795882353 | EE78: 1.773914373 | EF78: 1.752086287 | EG78: 1.730395124 | EH78: 1.708837964 | EI78: 1.687411931 | EJ78: 1.666114199 | EK78: 1.644941984 | EL78: 1.623892545 | EM78: 1.602963186 | EN78: 1.58215125 | EO78: 1.56145412 | EP78: 1.540869217 | EQ78: 0.9006143528
B79: 73 | C79: 7.387283237 | D79: 7.387283237 | E79: 7.387283237 | F79: 7.387283237 | G79: 7.387283237 | H79: 7.387283237 | I79: 7.387283237 | J79: 7.387283237 | K79: 7.387283237 | L79: 7.387283237 | M79: 7.387283237 | N79: 7.387283237 | O79: 7.387283237 | P79: 7.387283237 | Q79: 7.387283237 | R79: 7.387283237 | S79: 7.387283237 | T79: 7.387283237 | V79: 73 | W79: 15.39759036 | X79: 15.21428571 | Y79: 15.03529412 | Z79: 14.86046512 | AA79: 14.68965517 | AB79: 14.52272727 | AC79: 14.35955056 | AD79: 14.2 | AE79: 14.04395604 | AF79: 13.89130435 | AG79: 13.74193548 | AH79: 13.59574468 | AI79: 13.45263158 | AJ79: 13.3125 | AK79: 13.17525773 | AL79: 13.04081633 | AM79: 12.90909091 | AN79: 12.78 | AR79: 73 | AS79: 3.479644134 | AT79: 3.397078406 | AU79: 3.316729882 | AV79: 3.238515553 | AW79: 3.162356322 | AX79: 3.088176779 | AY79: 3.015904995 | AZ79: 2.945472321 | BA79: 2.876813209 | BB79: 2.80986504 | BC79: 2.744567964 | BD79: 2.680864749 | BE79: 2.618700647 | BF79: 2.558023254 | BG79: 2.498782393 | BH79: 2.440929999 | BI79: 2.384420006 | BJ79: 1.371892551 | BN79: 73 | BO79: 0.5449335863 | BP79: 0.5514990512 | BQ79: 0.5580645161 | BR79: 0.564629981 | BS79: 0.5711954459 | BT79: 0.5777609108 | BU79: 0.5843263757 | BV79: 0.5908918406 | BW79: 0.5974573055 | BX79: 0.6040227704 | BY79: 0.6105882353 | BZ79: 0.6171537002 | CA79: 0.6237191651 | CB79: 0.63028463 | CC79: 0.6368500949 | CD79: 0.6434155598 | CE79: 0.6499810247 | CF79: 0.6565464896 | CK79: 73 | CL79: 4.025578748 | CM79: 4.074079696 | CN79: 4.122580645 | CO79: 4.171081594 | CP79: 4.219582543 | CQ79: 4.268083491 | CR79: 4.31658444 | CS79: 4.365085389 | CT79: 4.413586338 | CU79: 4.462087287 | CV79: 4.510588235 | CW79: 4.559089184 | CX79: 4.607590133 | CY79: 4.656091082 | CZ79: 4.70459203 | DA79: 4.753092979 | DB79: 4.801593928 | DC79: 4.850094877 | DE79: 73 | DF79: 8.390664137 | DG79: 8.390664137 | DH79: 8.390664137 | DI79: 8.390664137 | DJ79: 8.390664137 | DK79: 8.390664137 | DL79: 8.390664137 | DM79: 8.390664137 | DN79: 8.390664137 | DO79: 8.390664137 | DP79: 8.390664137 | DQ79: 8.390664137 | DR79: 8.390664137 | DS79: 8.390664137 | DT79: 8.390664137 | DU79: 8.390664137 | DV79: 8.390664137 | DW79: 8.390664137 | DY79: 73 | DZ79: 1.896174957 | EA79: 1.873485518 | EB79: 1.850949257 | EC79: 1.828562975 | ED79: 1.806323529 | EE79: 1.784227829 | EF79: 1.762272835 | EG79: 1.740455561 | EH79: 1.718773068 | EI79: 1.697222466 | EJ79: 1.67580091 | EK79: 1.6545056 | EL79: 1.633333781 | EM79: 1.61228274 | EN79: 1.591349804 | EO79: 1.570532342 | EP79: 1.549827759 | EQ79: 0.9007112385
B80: 74 | C80: 7.344827586 | D80: 7.344827586 | E80: 7.344827586 | F80: 7.344827586 | G80: 7.344827586 | H80: 7.344827586 | I80: 7.344827586 | J80: 7.344827586 | K80: 7.344827586 | L80: 7.344827586 | M80: 7.344827586 | N80: 7.344827586 | O80: 7.344827586 | P80: 7.344827586 | Q80: 7.344827586 | R80: 7.344827586 | S80: 7.344827586 | T80: 7.344827586 | V80: 74 | W80: 15.39759036 | X80: 15.21428571 | Y80: 15.03529412 | Z80: 14.86046512 | AA80: 14.68965517 | AB80: 14.52272727 | AC80: 14.35955056 | AD80: 14.2 | AE80: 14.04395604 | AF80: 13.89130435 | AG80: 13.74193548 | AH80: 13.59574468 | AI80: 13.45263158 | AJ80: 13.3125 | AK80: 13.17525773 | AL80: 13.04081633 | AM80: 12.90909091 | AN80: 12.78 | AR80: 74 | AS80: 3.473041394 | AT80: 3.390632337 | AU80: 3.310436277 | AV80: 3.232370362 | AW80: 3.156355646 | AX80: 3.082316861 | AY80: 3.010182215 | AZ80: 2.939883189 | BA80: 2.871354361 | BB80: 2.804533228 | BC80: 2.739360055 | BD80: 2.67577772 | BE80: 2.613731575 | BF80: 2.55316932 | BG80: 2.494040871 | BH80: 2.436298253 | BI80: 2.37989549 | BJ80: 1.361566303 | BN80: 74 | BO80: 0.5491254753 | BP80: 0.5557414449 | BQ80: 0.5623574144 | BR80: 0.568973384 | BS80: 0.5755893536 | BT80: 0.5822053232 | BU80: 0.5888212928 | BV80: 0.5954372624 | BW80: 0.6020532319 | BX80: 0.6086692015 | BY80: 0.6152851711 | BZ80: 0.6219011407 | CA80: 0.6285171103 | CB80: 0.6351330798 | CC80: 0.6417490494 | CD80: 0.648365019 | CE80: 0.6549809886 | CF80: 0.6615969582 | CK80: 74 | CL80: 4.033231939 | CM80: 4.081825095 | CN80: 4.130418251 | CO80: 4.179011407 | CP80: 4.227604563 | CQ80: 4.276197719 | CR80: 4.324790875 | CS80: 4.37338403 | CT80: 4.421977186 | CU80: 4.470570342 | CV80: 4.519163498 | CW80: 4.567756654 | CX80: 4.61634981 | CY80: 4.664942966 | CZ80: 4.713536122 | DA80: 4.762129278 | DB80: 4.810722433 | DC80: 4.859315589 | DE80: 74 | DF80: 8.455209125 | DG80: 8.455209125 | DH80: 8.455209125 | DI80: 8.455209125 | DJ80: 8.455209125 | DK80: 8.455209125 | DL80: 8.455209125 | DM80: 8.455209125 | DN80: 8.455209125 | DO80: 8.455209125 | DP80: 8.455209125 | DQ80: 8.455209125 | DR80: 8.455209125 | DS80: 8.455209125 | DT80: 8.455209125 | DU80: 8.455209125 | DV80: 8.455209125 | DW80: 8.455209125 | DY80: 74 | DZ80: 1.907135506 | EA80: 1.884314914 | EB80: 1.861648385 | EC80: 1.839132704 | ED80: 1.816764706 | EE80: 1.794541284 | EF80: 1.772459383 | EG80: 1.750515998 | EH80: 1.728708173 | EI80: 1.707033 | EJ80: 1.68548762 | EK80: 1.664069216 | EL80: 1.642775017 | EM80: 1.621602293 | EN80: 1.600548358 | EO80: 1.579610563 | EP80: 1.558786301 | EQ80: 0.9008081243
B81: 75 | C81: 7.302857143 | D81: 7.302857143 | E81: 7.302857143 | F81: 7.302857143 | G81: 7.302857143 | H81: 7.302857143 | I81: 7.302857143 | J81: 7.302857143 | K81: 7.302857143 | L81: 7.302857143 | M81: 7.302857143 | N81: 7.302857143 | O81: 7.302857143 | P81: 7.302857143 | Q81: 7.302857143 | R81: 7.302857143 | S81: 7.302857143 | T81: 7.302857143 | V81: 75 | W81: 15.39759036 | X81: 15.21428571 | Y81: 15.03529412 | Z81: 14.86046512 | AA81: 14.68965517 | AB81: 14.52272727 | AC81: 14.35955056 | AD81: 14.2 | AE81: 14.04395604 | AF81: 13.89130435 | AG81: 13.74193548 | AH81: 13.59574468 | AI81: 13.45263158 | AJ81: 13.3125 | AK81: 13.17525773 | AL81: 13.04081633 | AM81: 12.90909091 | AN81: 12.78 | AR81: 75 | AS81: 3.466438653 | AT81: 3.384186267 | AU81: 3.304142672 | AV81: 3.226225172 | AW81: 3.15035497 | AX81: 3.076456943 | AY81: 3.004459435 | AZ81: 2.934294058 | BA81: 2.865895512 | BB81: 2.799201416 | BC81: 2.734152146 | BD81: 2.67069069 | BE81: 2.608762504 | BF81: 2.548315385 | BG81: 2.489299348 | BH81: 2.431666507 | BI81: 2.375370974 | BJ81: 1.351357515 | BN81: 75 | BO81: 0.5533333333 | BP81: 0.56 | BQ81: 0.5666666667 | BR81: 0.5733333333 | BS81: 0.58 | BT81: 0.5866666667 | BU81: 0.5933333333 | BV81: 0.6 | BW81: 0.6066666667 | BX81: 0.6133333333 | BY81: 0.62 | BZ81: 0.6266666667 | CA81: 0.6333333333 | CB81: 0.64 | CC81: 0.6466666667 | CD81: 0.6533333333 | CE81: 0.66 | CF81: 0.6666666667 | CK81: 75 | CL81: 4.040914286 | CM81: 4.0896 | CN81: 4.138285714 | CO81: 4.186971429 | CP81: 4.235657143 | CQ81: 4.284342857 | CR81: 4.333028571 | CS81: 4.381714286 | CT81: 4.4304 | CU81: 4.479085714 | CV81: 4.527771429 | CW81: 4.576457143 | CX81: 4.625142857 | CY81: 4.673828571 | CZ81: 4.722514286 | DA81: 4.7712 | DB81: 4.819885714 | DC81: 4.868571429 | DE81: 75 | DF81: 8.52 | DG81: 8.52 | DH81: 8.52 | DI81: 8.52 | DJ81: 8.52 | DK81: 8.52 | DL81: 8.52 | DM81: 8.52 | DN81: 8.52 | DO81: 8.52 | DP81: 8.52 | DQ81: 8.52 | DR81: 8.52 | DS81: 8.52 | DT81: 8.52 | DU81: 8.52 | DV81: 8.52 | DW81: 8.52 | DY81: 75 | DZ81: 1.918096055 | EA81: 1.89514431 | EB81: 1.872347514 | EC81: 1.849702432 | ED81: 1.827205882 | EE81: 1.80485474 | EF81: 1.782645932 | EG81: 1.760576435 | EH81: 1.738643277 | EI81: 1.716843535 | EJ81: 1.69517433 | EK81: 1.673632832 | EL81: 1.652216253 | EM81: 1.630921847 | EN81: 1.609746912 | EO81: 1.588688785 | EP81: 1.567744843 | EQ81: 0.9009050101
B82: 76 | C82: 7.261363636 | D82: 7.261363636 | E82: 7.261363636 | F82: 7.261363636 | G82: 7.261363636 | H82: 7.261363636 | I82: 7.261363636 | J82: 7.261363636 | K82: 7.261363636 | L82: 7.261363636 | M82: 7.261363636 | N82: 7.261363636 | O82: 7.261363636 | P82: 7.261363636 | Q82: 7.261363636 | R82: 7.261363636 | S82: 7.261363636 | T82: 7.261363636 | V82: 76 | W82: 15.39759036 | X82: 15.21428571 | Y82: 15.03529412 | Z82: 14.86046512 | AA82: 14.68965517 | AB82: 14.52272727 | AC82: 14.35955056 | AD82: 14.2 | AE82: 14.04395604 | AF82: 13.89130435 | AG82: 13.74193548 | AH82: 13.59574468 | AI82: 13.45263158 | AJ82: 13.3125 | AK82: 13.17525773 | AL82: 13.04081633 | AM82: 12.90909091 | AN82: 12.78 | AR82: 76 | AS82: 3.459835913 | AT82: 3.377740198 | AU82: 3.297849067 | AV82: 3.220079981 | AW82: 3.144354293 | AX82: 3.070597025 | AY82: 2.998736655 | AZ82: 2.928704926 | BA82: 2.860436663 | BB82: 2.793869603 | BC82: 2.728944237 | BD82: 2.66560366 | BE82: 2.603793433 | BF82: 2.543461451 | BG82: 2.484557825 | BH82: 2.427034762 | BI82: 2.370846458 | BJ82: 1.341264186 | BN82: 76 | BO82: 0.5575572519 | BP82: 0.5642748092 | BQ82: 0.5709923664 | BR82: 0.5777099237 | BS82: 0.5844274809 | BT82: 0.5911450382 | BU82: 0.5978625954 | BV82: 0.6045801527 | BW82: 0.6112977099 | BX82: 0.6180152672 | BY82: 0.6247328244 | BZ82: 0.6314503817 | CA82: 0.6381679389 | CB82: 0.6448854962 | CC82: 0.6516030534 | CD82: 0.6583206107 | CE82: 0.6650381679 | CF82: 0.6717557252 | CK82: 76 | CL82: 4.048625954 | CM82: 4.09740458 | CN82: 4.146183206 | CO82: 4.194961832 | CP82: 4.243740458 | CQ82: 4.292519084 | CR82: 4.34129771 | CS82: 4.390076336 | CT82: 4.438854962 | CU82: 4.487633588 | CV82: 4.536412214 | CW82: 4.58519084 | CX82: 4.633969466 | CY82: 4.682748092 | CZ82: 4.731526718 | DA82: 4.780305344 | DB82: 4.829083969 | DC82: 4.877862595 | DE82: 76 | DF82: 8.585038168 | DG82: 8.585038168 | DH82: 8.585038168 | DI82: 8.585038168 | DJ82: 8.585038168 | DK82: 8.585038168 | DL82: 8.585038168 | DM82: 8.585038168 | DN82: 8.585038168 | DO82: 8.585038168 | DP82: 8.585038168 | DQ82: 8.585038168 | DR82: 8.585038168 | DS82: 8.585038168 | DT82: 8.585038168 | DU82: 8.585038168 | DV82: 8.585038168 | DW82: 8.585038168 | DY82: 76 | DZ82: 1.929056604 | EA82: 1.905973706 | EB82: 1.883046643 | EC82: 1.86027216 | ED82: 1.837647059 | EE82: 1.815168196 | EF82: 1.79283248 | EG82: 1.770636872 | EH82: 1.748578382 | EI82: 1.726654069 | EJ82: 1.704861041 | EK82: 1.683196448 | EL82: 1.661657488 | EM82: 1.6402414 | EN82: 1.618945466 | EO82: 1.597767007 | EP82: 1.576703385 | EQ82: 0.9010018958
B83: 77 | C83: 7.220338983 | D83: 7.220338983 | E83: 7.220338983 | F83: 7.220338983 | G83: 7.220338983 | H83: 7.220338983 | I83: 7.220338983 | J83: 7.220338983 | K83: 7.220338983 | L83: 7.220338983 | M83: 7.220338983 | N83: 7.220338983 | O83: 7.220338983 | P83: 7.220338983 | Q83: 7.220338983 | R83: 7.220338983 | S83: 7.220338983 | T83: 7.220338983 | V83: 77 | W83: 15.39759036 | X83: 15.21428571 | Y83: 15.03529412 | Z83: 14.86046512 | AA83: 14.68965517 | AB83: 14.52272727 | AC83: 14.35955056 | AD83: 14.2 | AE83: 14.04395604 | AF83: 13.89130435 | AG83: 13.74193548 | AH83: 13.59574468 | AI83: 13.45263158 | AJ83: 13.3125 | AK83: 13.17525773 | AL83: 13.04081633 | AM83: 12.90909091 | AN83: 12.78 | AR83: 77 | AS83: 3.453233173 | AT83: 3.371294129 | AU83: 3.291555462 | AV83: 3.21393479 | AW83: 3.138353617 | AX83: 3.064737107 | AY83: 2.993013875 | AZ83: 2.923115795 | BA83: 2.854977815 | BB83: 2.788537791 | BC83: 2.723736328 | BD83: 2.66051663 | BE83: 2.598824361 | BF83: 2.538607517 | BG83: 2.479816303 | BH83: 2.422403016 | BI83: 2.366321942 | BJ83: 1.331284358 | BN83: 77 | BO83: 0.5617973231 | BP83: 0.5685659656 | BQ83: 0.575334608 | BR83: 0.5821032505 | BS83: 0.5888718929 | BT83: 0.5956405354 | BU83: 0.6024091778 | BV83: 0.6091778203 | BW83: 0.6159464627 | BX83: 0.6227151052 | BY83: 0.6294837476 | BZ83: 0.6362523901 | CA83: 0.6430210325 | CB83: 0.649789675 | CC83: 0.6565583174 | CD83: 0.6633269598 | CE83: 0.6700956023 | CF83: 0.6768642447 | CK83: 77 | CL83: 4.056367113 | CM83: 4.105239006 | CN83: 4.154110899 | CO83: 4.202982792 | CP83: 4.251854685 | CQ83: 4.300726577 | CR83: 4.34959847 | CS83: 4.398470363 | CT83: 4.447342256 | CU83: 4.496214149 | CV83: 4.545086042 | CW83: 4.593957935 | CX83: 4.642829828 | CY83: 4.691701721 | CZ83: 4.740573614 | DA83: 4.789445507 | DB83: 4.8383174 | DC83: 4.887189293 | DE83: 77 | DF83: 8.650325048 | DG83: 8.650325048 | DH83: 8.650325048 | DI83: 8.650325048 | DJ83: 8.650325048 | DK83: 8.650325048 | DL83: 8.650325048 | DM83: 8.650325048 | DN83: 8.650325048 | DO83: 8.650325048 | DP83: 8.650325048 | DQ83: 8.650325048 | DR83: 8.650325048 | DS83: 8.650325048 | DT83: 8.650325048 | DU83: 8.650325048 | DV83: 8.650325048 | DW83: 8.650325048 | DY83: 77 | DZ83: 1.940017153 | EA83: 1.916803102 | EB83: 1.893745771 | EC83: 1.870841888 | ED83: 1.848088235 | EE83: 1.825481651 | EF83: 1.803019028 | EG83: 1.780697308 | EH83: 1.758513486 | EI83: 1.736464604 | EJ83: 1.714547751 | EK83: 1.692760065 | EL83: 1.671098724 | EM83: 1.649560954 | EN83: 1.628144019 | EO83: 1.606845228 | EP83: 1.585661927 | EQ83: 0.9010987816
B84: 78 | C84: 7.179775281 | D84: 7.179775281 | E84: 7.179775281 | F84: 7.179775281 | G84: 7.179775281 | H84: 7.179775281 | I84: 7.179775281 | J84: 7.179775281 | K84: 7.179775281 | L84: 7.179775281 | M84: 7.179775281 | N84: 7.179775281 | O84: 7.179775281 | P84: 7.179775281 | Q84: 7.179775281 | R84: 7.179775281 | S84: 7.179775281 | T84: 7.179775281 | V84: 78 | W84: 15.39759036 | X84: 15.21428571 | Y84: 15.03529412 | Z84: 14.86046512 | AA84: 14.68965517 | AB84: 14.52272727 | AC84: 14.35955056 | AD84: 14.2 | AE84: 14.04395604 | AF84: 13.89130435 | AG84: 13.74193548 | AH84: 13.59574468 | AI84: 13.45263158 | AJ84: 13.3125 | AK84: 13.17525773 | AL84: 13.04081633 | AM84: 12.90909091 | AN84: 12.78 | AR84: 78 | AS84: 3.446630433 | AT84: 3.36484806 | AU84: 3.285261857 | AV84: 3.207789599 | AW84: 3.132352941 | AX84: 3.058877189 | AY84: 2.987291096 | AZ84: 2.917526663 | BA84: 2.849518966 | BB84: 2.783205979 | BC84: 2.718528419 | BD84: 2.6554296 | BE84: 2.59385529 | BF84: 2.533753583 | BG84: 2.47507478 | BH84: 2.41777127 | BI84: 2.361797425 | BJ84: 1.321416119 | BN84: 78 | BO84: 0.5660536398 | BP84: 0.5728735632 | BQ84: 0.5796934866 | BR84: 0.58651341 | BS84: 0.5933333333 | BT84: 0.6001532567 | BU84: 0.6069731801 | BV84: 0.6137931034 | BW84: 0.6206130268 | BX84: 0.6274329502 | BY84: 0.6342528736 | BZ84: 0.6410727969 | CA84: 0.6478927203 | CB84: 0.6547126437 | CC84: 0.661532567 | CD84: 0.6683524904 | CE84: 0.6751724138 | CF84: 0.6819923372 | CK84: 78 | CL84: 4.064137931 | CM84: 4.113103448 | CN84: 4.162068966 | CO84: 4.211034483 | CP84: 4.26 | CQ84: 4.308965517 | CR84: 4.357931034 | CS84: 4.406896552 | CT84: 4.455862069 | CU84: 4.504827586 | CV84: 4.553793103 | CW84: 4.602758621 | CX84: 4.651724138 | CY84: 4.700689655 | CZ84: 4.749655172 | DA84: 4.79862069 | DB84: 4.847586207 | DC84: 4.896551724 | DE84: 78 | DF84: 8.715862069 | DG84: 8.715862069 | DH84: 8.715862069 | DI84: 8.715862069 | DJ84: 8.715862069 | DK84: 8.715862069 | DL84: 8.715862069 | DM84: 8.715862069 | DN84: 8.715862069 | DO84: 8.715862069 | DP84: 8.715862069 | DQ84: 8.715862069 | DR84: 8.715862069 | DS84: 8.715862069 | DT84: 8.715862069 | DU84: 8.715862069 | DV84: 8.715862069 | DW84: 8.715862069 | DY84: 78 | DZ84: 1.950977702 | EA84: 1.927632498 | EB84: 1.9044449 | EC84: 1.881411616 | ED84: 1.858529412 | EE84: 1.835795107 | EF84: 1.813205576 | EG84: 1.790757745 | EH84: 1.768448591 | EI84: 1.746275138 | EJ84: 1.724234462 | EK84: 1.702323681 | EL84: 1.68053996 | EM84: 1.658880507 | EN84: 1.637342573 | EO84: 1.61592345 | EP84: 1.594620469 | EQ84: 0.9011956674
